Workbook

Sheet Introduction
C4: Joint Monitoring Programme for Water Supply, Sanitation and Hygiene
C6: Estimates on household water, sanitation and hygiene by wealth quintile and sub-national region in
C7: =+Water!B5 -> Ghana
C9: Updated May 2021
C11: Follow the links below to find the following information:
C13: JMP Estimates
C14: WASH status and trends by wealth quintile (customized quintiles made without water and sanitation assets)
C15: Water
C16: Sanitation
C17: Hygiene
C19: Data inputs
C20: customized wealth quintiles and subnational data:
C21: =IF(INDIRECT(CONCATENATE("Water","!B105"))=0,"",INDIRECT(CONCATENATE("Water","!B105"))) -> DHS03
C22: =IF(INDIRECT(CONCATENATE("Water","!B106"))=0,"",INDIRECT(CONCATENATE("Water","!B106"))) -> MICS06
C23: =IF(INDIRECT(CONCATENATE("Water","!B107"))=0,"",INDIRECT(CONCATENATE("Water","!B107"))) -> DHS08
C24: =IF(INDIRECT(CONCATENATE("Water","!B108"))=0,"",INDIRECT(CONCATENATE("Water","!B108"))) -> MICS11
C25: =IF(INDIRECT(CONCATENATE("Water","!B109"))=0,"",INDIRECT(CONCATENATE("Water","!B109"))) -> GLSS13
C26: =IF(INDIRECT(CONCATENATE("Water","!B110"))=0,"",INDIRECT(CONCATENATE("Water","!B110"))) -> DHS14
C27: =IF(INDIRECT(CONCATENATE("Water","!B111"))=0,"",INDIRECT(CONCATENATE("Water","!B111"))) -> MIS16
C28: =IF(INDIRECT(CONCATENATE("Water","!B112"))=0,"",INDIRECT(CONCATENATE("Water","!B112"))) -> DHS17
C29: =IF(INDIRECT(CONCATENATE("Water","!B113"))=0,"",INDIRECT(CONCATENATE("Water","!B113"))) -> MICS18
C30: =IF(INDIRECT(CONCATENATE("Water","!B114"))=0,"",INDIRECT(CONCATENATE("Water","!B114"))) -> MIS19
C31: =IF(INDIRECT(CONCATENATE("Water","!B115"))=0,"",INDIRECT(CONCATENATE("Water","!B115"))) -> 
C32: =IF(INDIRECT(CONCATENATE("Water","!B116"))=0,"",INDIRECT(CONCATENATE("Water","!B116"))) -> 
L55: =+IF(ISNUMBER(M48), "", "Insufficient data to estimate safely managed sanitation services at national level") -> Insufficient data to estimate safely managed sanitation services at national level

Sheet Water
A1: BGD
B4: Summary of trends in use of drinking water by wealth quintile (%)
B5: =IF(ISERROR(INDIRECT(CONCATENATE($B105,"!A2"))),"",INDIRECT(CONCATENATE($B105,"!A2"))) -> Ghana
B7: =B118 -> National use of drinking water sources, 2000–2020 | J7: =B218 -> Urban use of drinking water sources, 2000–2020 | R7: =B318 -> Rural use of drinking water sources, 2000–2020
B31: =IF(ISERROR(INDIRECT(CONCATENATE($B105,"!A2"))),"",INDIRECT(CONCATENATE($B105,"!A2"))) -> Ghana | F31: Poorest | J31: Poor | N31: Middle | R31: Rich | V31: Richest
F32: Basic | G32: Limited | H32: Unimproved | I32: Surface water | J32: Basic | K32: Limited | L32: Unimproved | M32: Surface water | N32: Basic | O32: Limited | P32: Unimproved | Q32: Surface water | R32: Basic | S32: Limited | T32: Unimproved | U32: Surface water | V32: Basic | W32: Limited | X32: Unimproved | Y32: Surface water
B33: NATIONAL | D33: Estimate | E33: =C99 -> 2000 | F33: =E99 -> 42.31499029 | G33: =F99 -> 9.849606 | H33: 12.79460648 | I33: 35.04079723 | J33: =J99 -> 49.00129274 | K33: =K99 -> 6.285696997 | L33: 12.28953704 | M33: 32.42347323 | N33: =O99 -> 65.85496376 | O33: =P99 -> 4.761947817 | P33: 11.54748677 | Q33: 17.83560165 | R33: =T99 -> 82.71094181 | S33: =U99 -> 2.96504254 | T33: 9.782706769 | U33: 4.541308887 | V33: =Y99 -> 95.16787902 | W33: =Z99 -> 1.44097108 | X33: 2.724690156 | Y33: 0.6664597431
E34: =C100 -> 2020 | F34: =E100 -> 57.51514058 | G34: 13.38772548 | H34: 7.898360841 | I34: 21.1987731 | J34: =J100 -> 80.22477263 | K34: 10.29092467 | L34: 2.588549405 | M34: 6.895753294 | N34: =O100 -> 92.37647897 | O34: 6.67970867 | P34: 0.05585207811 | Q34: 0.8879602838 | R34: =T100 -> 95.86256384 | S34: 3.436505177 | T34: 0 | U34: 0.7009309838 | V34: =Y100 -> 98.50844816 | W34: 1.491551839 | X34: 0 | Y34: 0
B36: URBAN | D36: Estimate | E36: =C199 -> 2000 | F36: =E199 -> 73.8055202 | G36: =F199 -> 5.409885818 | H36: 13.37226648 | I36: 7.412327508 | J36: =J199 -> 83.64400068 | K36: =K199 -> 2.86766186 | L36: 10.19241389 | M36: 3.295923566 | N36: =O199 -> 89.16615913 | O36: =P199 -> 2.182726741 | P36: 8.206118786 | Q36: 0.444995342 | R36: =T199 -> 93.77646476 | S36: =U199 -> 1.430001663 | T36: 4.551511473 | U36: 0.2420221001 | V36: =Y199 -> 97.70028183 | W36: =Z199 -> 0.9881100405 | X36: 0.9476882438 | Y36: 0.3639198868
E37: =C200 -> 2020 | F37: =E200 -> 88.14033735 | G37: 6.460616492 | H37: 2.838496235 | I37: 2.560549928 | J37: =J200 -> 95.67414254 | K37: 3.280104817 | L37: 0 | M37: 1.04575264 | N37: =O200 -> 96.88465986 | O37: 2.371670373 | P37: 0 | Q37: 0.7436697669 | R37: =T200 -> 98.2635923 | S37: 1.498426079 | T37: 0 | U37: 0.237981624 | V37: =Y200 -> 98.91434754 | W37: 1.000388721 | X37: 0 | Y37: 0.08526374305
B39: RURAL | D39: Estimate | E39: =C299 -> 2000 | F39: =E299 -> 41.31857554 | G39: =F299 -> 11.66676728 | H39: 12.32564285 | I39: 34.68901433 | J39: =J299 -> 41.78109033 | K39: =K299 -> 8.082043518 | L39: 14.28391975 | M39: 35.8529464 | N39: =O299 -> 47.55065084 | O39: =P299 -> 6.601665512 | P39: 12.15173286 | Q39: 33.6959508 | R39: =T299 -> 55.9586517 | S39: =U299 -> 6.097932738 | T39: 10.39383371 | U39: 27.54958184 | V39: =Y299 -> 71.91879118 | W39: =Z299 -> 4.763158154 | X39: 8.021505696 | Y39: 15.29654497
E40: =C300 -> 2020 | F40: =E300 -> 50.7897782 | G40: 14.34106851 | H40: 9.344041342 | I40: 25.52511195 | J40: =J300 -> 62.97182057 | K40: 12.18113243 | L40: 5.719070706 | M40: 19.12797629 | N40: =O300 -> 76.98662041 | O40: 10.68839033 | P40: 2.431119246 | Q40: 9.893870013 | R40: =T300 -> 86.67102314 | S40: 9.44472487 | T40: 1.224878091 | U40: 2.659373896 | V40: =Y300 -> 93.78842323 | W40: 6.211576773 | X40: 0 | Y40: 0
A97: NATIONAL | D97: Poorest | I97: Poor | N97: Middle | S97: Rich | X97: Richest
D98: Improved | E98: Basic | F98: Limited | G98: Unimproved | H98: Surface water | I98: Improved | J98: Basic | K98: Limited | L98: Unimproved | M98: Surface water | N98: Improved | O98: Basic | P98: Limited | Q98: Unimproved | R98: Surface water | S98: Improved | T98: Basic | U98: Limited | V98: Unimproved | W98: Surface water | X98: Improved | Y98: Basic | Z98: Limited | AA98: Unimproved | AB98: Surface water
A99: Forecast period: | C99: 2000 | D99: =IF((D101+H101)>100,D101*100/(D101+H101),D101) -> 52.16459629 | E99: =D99*AVERAGEIF(E105:E116,">0")/100 -> 42.31499029 | F99: =D99*(100-AVERAGEIF(E105:E116,">0"))/100 -> 9.849606 | G99: =100-(E99+F99+H99) -> 12.79460648 | H99: =IF((D101+H101)>100,H101*100/(D101+H101),H101) -> 35.04079723 | I99: =IF((I101+M101)>100,I101*100/(I101+M101),I101) -> 55.28698973 | J99: =I99*AVERAGEIF(J105:J116,">0")/100 -> 49.00129274 | K99: =I99*(100-AVERAGEIF(J105:J116,">0"))/100 -> 6.285696997 | L99: =100-(J99+K99+M99) -> 12.28953704 | M99: =IF((I101+M101)>100,M101*100/(I101+M101),M101) -> 32.42347323 | N99: =IF((N101+R101)>100,N101*100/(N101+R101),N101) -> 70.61691158 | O99: =N99*AVERAGEIF(O105:O116,">0")/100 -> 65.85496376 | P99: =N99*(100-AVERAGEIF(O105:O116,">0"))/100 -> 4.761947817 | Q99: =100-(O99+P99+R99) -> 11.54748677 | R99: =IF((N101+R101)>100,R101*100/(N101+R101),R101) -> 17.83560165 | S99: =IF((S101+W101)>100,S101*100/(S101+W101),S101) -> 85.67598434 | T99: =S99*AVERAGEIF(T105:T116,">0")/100 -> 82.71094181 | U99: =S99*(100-AVERAGEIF(T105:T116,">0"))/100 -> 2.96504254 | V99: =100-(T99+U99+W99) -> 9.782706769 | W99: =IF((S101+W101)>100,W101*100/(S101+W101),W101) -> 4.541308887 | X99: =IF((X101+AB101)>100,X101*100/(X101+AB101),X101) -> 96.6088501 | Y99: =X99*AVERAGEIF(Y105:Y116,">0")/100 -> 95.16787902 | Z99: =X99*(100-AVERAGEIF(Y105:Y116,">0"))/100 -> 1.44097108 | AA99: =100-(Y99+Z99+AB99) -> 2.724690156 | AB99: =IF((X101+AB101)>100,AB101*100/(X101+AB101),AB101) -> 0.6664597431
C100: 2020 | D100: =IF((D102+H102)>100,D102*100/(D102+H102),D102) -> 70.90286606 | E100: =D100*AVERAGEIF(E105:E116,">0")/100 -> 57.51514058 | F100: =D100*(100-AVERAGEIF(E105:E116,">0"))/100 -> 13.38772548 | G100: =100-(E100+F100+H100) -> 7.898360841 | H100: =IF((D102+H102)>100,H102*100/(D102+H102),H102) -> 21.1987731 | I100: =IF((I102+M102)>100,I102*100/(I102+M102),I102) -> 90.5156973 | J100: =I100*AVERAGEIF(J105:J116,">0")/100 -> 80.22477263 | K100: =I100*(100-AVERAGEIF(J105:J116,">0"))/100 -> 10.29092467 | L100: =100-(J100+K100+M100) -> 2.588549405 | M100: =IF((I102+M102)>100,M102*100/(I102+M102),M102) -> 6.895753294 | N100: =IF((N102+R102)>100,N102*100/(N102+R102),N102) -> 99.05618764 | O100: =N100*AVERAGEIF(O105:O116,">0")/100 -> 92.37647897 | P100: =N100*(100-AVERAGEIF(O105:O116,">0"))/100 -> 6.67970867 | Q100: =100-(O100+P100+R100) -> 0.05585207811 | R100: =IF((N102+R102)>100,R102*100/(N102+R102),R102) -> 0.8879602838 | S100: =IF((S102+W102)>100,S102*100/(S102+W102),S102) -> 99.29906902 | T100: =S100*AVERAGEIF(T105:T116,">0")/100 -> 95.86256384 | U100: =S100*(100-AVERAGEIF(T105:T116,">0"))/100 -> 3.436505177 | V100: =100-(T100+U100+W100) -> 0 | W100: =IF((S102+W102)>100,W102*100/(S102+W102),W102) -> 0.7009309838 | X100: =IF((X102+AB102)>100,X102*100/(X102+AB102),X102) -> 100 | Y100: =X100*AVERAGEIF(Y105:Y116,">0")/100 -> 98.50844816 | Z100: =X100*(100-AVERAGEIF(Y105:Y116,">0"))/100 -> 1.491551839 | AA100: =100-(Y100+Z100+AB100) -> 0 | AB100: =IF((X102+AB102)>100,AB102*100/(X102+AB102),AB102) -> 0
A101: Regression period: | C101: =MinRegYear(C99,C105:C116) -> 2001 | D101: =IF(MAX(C105:C116)-MIN(C105:C116)<5,AVERAGEIF(C105:C116,">0",D105:D116), IF(FORECAST($C101,D$105:D$116,$C$105:$C$116)<0,0, IF(FORECAST($C101,D$105:D$116,$C$105:$C$116)>100,100, FORECAST($C101,D$105:D$116,$C$105:$C$116)))) -> 52.16459629 | H101: =IF(MAX(C105:C116)-MIN(C105:C116)<5,AVERAGEIF(C105:C116,">0",H105:H116), IF(FORECAST($C101,H$105:H$116,$C$105:$C$116)<0,0, IF(FORECAST($C101,H$105:H$116,$C$105:$C$116)>100,100, FORECAST($C101,H$105:H$116,$C$105:$C$116)))) -> 35.04079723 | I101: =IF(MAX(C105:C116)-MIN(C105:C116)<5,AVERAGEIF(C105:C116,">0",I105:I116), IF(FORECAST($C101,I$105:I$116,$C$105:$C$116)<0,0, IF(FORECAST($C101,I$105:I$116,$C$105:$C$116)>100,100, FORECAST($C101,I$105:I$116,$C$105:$C$116)))) -> 55.28698973 | M101: =IF(MAX(C105:C116)-MIN(C105:C116)<5,AVERAGEIF(C105:C116,">0",M105:M116), IF(FORECAST($C101,M$105:M$116,$C$105:$C$116)<0,0, IF(FORECAST($C101,M$105:M$116,$C$105:$C$116)>100,100, FORECAST($C101,M$105:M$116,$C$105:$C$116)))) -> 32.42347323 | N101: =IF(MAX(C105:C116)-MIN(C105:C116)<5,AVERAGEIF(C105:C116,">0",N105:N116), IF(FORECAST($C101,N$105:N$116,$C$105:$C$116)<0,0, IF(FORECAST($C101,N$105:N$116,$C$105:$C$116)>100,100, FORECAST($C101,N$105:N$116,$C$105:$C$116)))) -> 70.61691158 | R101: =IF(MAX(C105:C116)-MIN(C105:C116)<5,AVERAGEIF(C105:C116,">0",R105:R116), IF(FORECAST($C101,R$105:R$116,$C$105:$C$116)<0,0, IF(FORECAST($C101,R$105:R$116,$C$105:$C$116)>100,100, FORECAST($C101,R$105:R$116,$C$105:$C$116)))) -> 17.83560165 | S101: =IF(MAX(C105:C116)-MIN(C105:C116)<5,AVERAGEIF(C105:C116,">0",S105:S116), IF(FORECAST($C101,S$105:S$116,$C$105:$C$116)<0,0, IF(FORECAST($C101,S$105:S$116,$C$105:$C$116)>100,100, FORECAST($C101,S$105:S$116,$C$105:$C$116)))) -> 85.67598434 | W101: =IF(MAX(C105:C116)-MIN(C105:C116)<5,AVERAGEIF(C105:C116,">0",W105:W116), IF(FORECAST($C101,W$105:W$116,$C$105:$C$116)<0,0, IF(FORECAST($C101,W$105:W$116,$C$105:$C$116)>100,100, FORECAST($C101,W$105:W$116,$C$105:$C$116)))) -> 4.541308887 | X101: =IF(MAX(C105:C116)-MIN(C105:C116)<5,AVERAGEIF(C105:C116,">0",X105:X116), IF(FORECAST($C101,X$105:X$116,$C$105:$C$116)<0,0, IF(FORECAST($C101,X$105:X$116,$C$105:$C$116)>100,100, FORECAST($C101,X$105:X$116,$C$105:$C$116)))) -> 96.6088501 | AB101: =IF(MAX(C105:C116)-MIN(C105:C116)<5,AVERAGEIF(C105:C116,">0",AB105:AB116), IF(FORECAST($C101,AB$105:AB$116,$C$105:$C$116)<0,0, IF(FORECAST($C101,AB$105:AB$116,$C$105:$C$116)>100,100, FORECAST($C101,AB$105:AB$116,$C$105:$C$116)))) -> 0.6664597431
C102: =MaxRegYear(C100,C105:C116) -> 2020 | D102: =IF(MAX(C105:C116)-MIN(C105:C116)<5,AVERAGEIF(C105:C116,">0",D105:D116), IF(FORECAST($C102,D$105:D$116,$C$105:$C$116)<0,0, IF(FORECAST($C102,D$105:D$116,$C$105:$C$116)>100,100, FORECAST($C102,D$105:D$116,$C$105:$C$116)))) -> 70.90286606 | H102: =IF(MAX(C105:C116)-MIN(C105:C116)<5,AVERAGEIF(C105:C116,">0",H105:H116), IF(FORECAST($C102,H$105:H$116,$C$105:$C$116)<0,0, IF(FORECAST($C102,H$105:H$116,$C$105:$C$116)>100,100, FORECAST($C102,H$105:H$116,$C$105:$C$116)))) -> 21.1987731 | I102: =IF(MAX(C105:C116)-MIN(C105:C116)<5,AVERAGEIF(C105:C116,">0",I105:I116), IF(FORECAST($C102,I$105:I$116,$C$105:$C$116)<0,0, IF(FORECAST($C102,I$105:I$116,$C$105:$C$116)>100,100, FORECAST($C102,I$105:I$116,$C$105:$C$116)))) -> 90.5156973 | M102: =IF(MAX(C105:C116)-MIN(C105:C116)<5,AVERAGEIF(C105:C116,">0",M105:M116), IF(FORECAST($C102,M$105:M$116,$C$105:$C$116)<0,0, IF(FORECAST($C102,M$105:M$116,$C$105:$C$116)>100,100, FORECAST($C102,M$105:M$116,$C$105:$C$116)))) -> 6.895753294 | N102: =IF(MAX(C105:C116)-MIN(C105:C116)<5,AVERAGEIF(C105:C116,">0",N105:N116), IF(FORECAST($C102,N$105:N$116,$C$105:$C$116)<0,0, IF(FORECAST($C102,N$105:N$116,$C$105:$C$116)>100,100, FORECAST($C102,N$105:N$116,$C$105:$C$116)))) -> 99.05618764 | R102: =IF(MAX(C105:C116)-MIN(C105:C116)<5,AVERAGEIF(C105:C116,">0",R105:R116), IF(FORECAST($C102,R$105:R$116,$C$105:$C$116)<0,0, IF(FORECAST($C102,R$105:R$116,$C$105:$C$116)>100,100, FORECAST($C102,R$105:R$116,$C$105:$C$116)))) -> 0.8879602838 | S102: =IF(MAX(C105:C116)-MIN(C105:C116)<5,AVERAGEIF(C105:C116,">0",S105:S116), IF(FORECAST($C102,S$105:S$116,$C$105:$C$116)<0,0, IF(FORECAST($C102,S$105:S$116,$C$105:$C$116)>100,100, FORECAST($C102,S$105:S$116,$C$105:$C$116)))) -> 100 | W102: =IF(MAX(C105:C116)-MIN(C105:C116)<5,AVERAGEIF(C105:C116,">0",W105:W116), IF(FORECAST($C102,W$105:W$116,$C$105:$C$116)<0,0, IF(FORECAST($C102,W$105:W$116,$C$105:$C$116)>100,100, FORECAST($C102,W$105:W$116,$C$105:$C$116)))) -> 0.7058787064 | X102: =IF(MAX(C105:C116)-MIN(C105:C116)<5,AVERAGEIF(C105:C116,">0",X105:X116), IF(FORECAST($C102,X$105:X$116,$C$105:$C$116)<0,0, IF(FORECAST($C102,X$105:X$116,$C$105:$C$116)>100,100, FORECAST($C102,X$105:X$116,$C$105:$C$116)))) -> 100 | AB102: =IF(MAX(C105:C116)-MIN(C105:C116)<5,AVERAGEIF(C105:C116,">0",AB105:AB116), IF(FORECAST($C102,AB$105:AB$116,$C$105:$C$116)<0,0, IF(FORECAST($C102,AB$105:AB$116,$C$105:$C$116)>100,100, FORECAST($C102,AB$105:AB$116,$C$105:$C$116)))) -> 0
B104: Survey | C104: Year | D104: Improved | E104: % Improved < = 30min | H104: Surface water | I104: Improved | J104: % Improved < = 30min | M104: Surface water | N104: Improved | O104: % Improved < = 30min | R104: Surface water | S104: Improved | T104: % Improved < = 30min | W104: Surface water | X104: Improved | Y104: % Improved < = 30min | AB104: Surface water
B105: DHS03 | C105: 2003 | D105: =IF(ISERROR(INDIRECT(CONCATENATE($B105,"!C16"))),"",INDIRECT(CONCATENATE($B105,"!C16"))) -> 47.7 | E105: =IF(ISERROR(INDIRECT(CONCATENATE($B105,"!C23"))),"",INDIRECT(CONCATENATE($B105,"!C23"))) -> 89.2 | H105: =IF(ISERROR(INDIRECT(CONCATENATE($B105,"!C21"))),"",INDIRECT(CONCATENATE($B105,"!C21"))) -> 34.8 | I105: =IF(ISERROR(INDIRECT(CONCATENATE($B105,"!D16"))),"",INDIRECT(CONCATENATE($B105,"!D16"))) -> 48.9 | J105: =IF(ISERROR(INDIRECT(CONCATENATE($B105,"!D23"))),"",INDIRECT(CONCATENATE($B105,"!D23"))) -> 87 | M105: =IF(ISERROR(INDIRECT(CONCATENATE($B105,"!D21"))),"",INDIRECT(CONCATENATE($B105,"!D21"))) -> 34.3 | N105: =IF(ISERROR(INDIRECT(CONCATENATE($B105,"!E16"))),"",INDIRECT(CONCATENATE($B105,"!E16"))) -> 64.3 | O105: =IF(ISERROR(INDIRECT(CONCATENATE($B105,"!E23"))),"",INDIRECT(CONCATENATE($B105,"!E23"))) -> 90.8 | R105: =IF(ISERROR(INDIRECT(CONCATENATE($B105,"!E21"))),"",INDIRECT(CONCATENATE($B105,"!E21"))) -> 22.7 | S105: =IF(ISERROR(INDIRECT(CONCATENATE($B105,"!F16"))),"",INDIRECT(CONCATENATE($B105,"!F16"))) -> 78.4 | T105: =IF(ISERROR(INDIRECT(CONCATENATE($B105,"!F23"))),"",INDIRECT(CONCATENATE($B105,"!F23"))) -> 96.3 | W105: =IF(ISERROR(INDIRECT(CONCATENATE($B105,"!F21"))),"",INDIRECT(CONCATENATE($B105,"!F21"))) -> 6.7 | X105: =IF(ISERROR(INDIRECT(CONCATENATE($B105,"!G16"))),"",INDIRECT(CONCATENATE($B105,"!G16"))) -> 95.4 | Y105: =IF(ISERROR(INDIRECT(CONCATENATE($B105,"!G23"))),"",INDIRECT(CONCATENATE($B105,"!G23"))) -> 97.7 | AB105: =IF(ISERROR(INDIRECT(CONCATENATE($B105,"!G221"))),"",INDIRECT(CONCATENATE($B105,"!G21"))) -> 0.8
B106: MICS06 | C106: 2006 | D106: 65.16487267 | E106: 77.75556598 | H106: 26.78439508 | I106: 65.17911984 | J106: 83.49838336 | M106: 26.75400696 | N106: 76.62649117 | O106: 90.32547118 | R106: 11.18064408 | S106: 93.56554939 | T106: 94.90837979 | W106: 1.375537504 | X106: 97.96080443 | Y106: 97.79061878 | AB106: 0.1234122112
B107: DHS08 | C107: 2008 | D107: 65.4 | E107: 80.6 | H107: 27.7 | I107: 77.7 | J107: 90.9 | M107: 17.4 | N107: 90.1 | O107: 95.3 | R107: 7.4 | S107: 96.2 | T107: 95.9 | W107: 2.1 | X107: 98.9 | Y107: 97.7 | AB107: 0.8
B108: MICS11 | C108: 2011 | D108: 55.5 | E108: 68.8 | H108: 33 | I108: 73.8 | J108: 81.3 | M108: 19.9 | N108: 89.1 | O108: 89.1 | R108: 7.1 | S108: 97.2 | T108: 94.1 | W108: 2 | X108: 99.8 | Y108: 97.5 | AB108: 0.1
B109: GLSS13 | C109: 2013 | D109: 59.8 | E109: 81.3 | H109: 32.2 | I109: 87.5 | J109: 88.2 | M109: 10 | N109: 96.4 | O109: 95 | R109: 2.8 | S109: 96.8 | T109: 97.6 | W109: 2.7 | X109: 100 | Y109: 99.9 | AB109: 0
B110: DHS14 | C110: 2014 | D110: 70.61008809 | E110: 80.35062592 | H110: 21.81002448 | I110: 80.56899342 | J110: 86.92150475 | M110: 14.1154599 | N110: 92.07368912 | O110: 91.89587093 | R110: 5.126958449 | S110: 97.59235183 | T110: 96.02141223 | W110: 1.220725773 | X110: 99.4002712 | Y110: 98.24052004 | AB110: 0.2416955301
B111: MIS16 | C111: 2016 | D111: =IF(ISERROR(INDIRECT(CONCATENATE($B111,"!C16"))),"",INDIRECT(CONCATENATE($B111,"!C16"))) -> 58.48142376 | E111: =IF(ISERROR(INDIRECT(CONCATENATE($B111,"!C23"))),"",INDIRECT(CONCATENATE($B111,"!C23"))) -> 92.33502294 | H111: =IF(ISERROR(INDIRECT(CONCATENATE($B111,"!C21"))),"",INDIRECT(CONCATENATE($B111,"!C21"))) -> 27.39113916 | I111: =IF(ISERROR(INDIRECT(CONCATENATE($B111,"!D16"))),"",INDIRECT(CONCATENATE($B111,"!D16"))) -> 80.45825556 | J111: =IF(ISERROR(INDIRECT(CONCATENATE($B111,"!D23"))),"",INDIRECT(CONCATENATE($B111,"!D23"))) -> 98.15069235 | M111: =IF(ISERROR(INDIRECT(CONCATENATE($B111,"!D21"))),"",INDIRECT(CONCATENATE($B111,"!D21"))) -> 12.38927075 | N111: =IF(ISERROR(INDIRECT(CONCATENATE($B111,"!E16"))),"",INDIRECT(CONCATENATE($B111,"!E16"))) -> 91.34651353 | O111: =IF(ISERROR(INDIRECT(CONCATENATE($B111,"!E23"))),"",INDIRECT(CONCATENATE($B111,"!E23"))) -> 97.90205047 | R111: =IF(ISERROR(INDIRECT(CONCATENATE($B111,"!E21"))),"",INDIRECT(CONCATENATE($B111,"!E21"))) -> 6.420911981 | S111: =IF(ISERROR(INDIRECT(CONCATENATE($B111,"!F16"))),"",INDIRECT(CONCATENATE($B111,"!F16"))) -> 97.45724958 | T111: =IF(ISERROR(INDIRECT(CONCATENATE($B111,"!F23"))),"",INDIRECT(CONCATENATE($B111,"!F23"))) -> 98.94950861 | W111: =IF(ISERROR(INDIRECT(CONCATENATE($B111,"!F21"))),"",INDIRECT(CONCATENATE($B111,"!F21"))) -> 1.803415059 | X111: =IF(ISERROR(INDIRECT(CONCATENATE($B111,"!G16"))),"",INDIRECT(CONCATENATE($B111,"!G16"))) -> 99.8742049 | Y111: =IF(ISERROR(INDIRECT(CONCATENATE($B111,"!G23"))),"",INDIRECT(CONCATENATE($B111,"!G23"))) -> 99.83418837 | AB111: =IF(ISERROR(INDIRECT(CONCATENATE($B111,"!G221"))),"",INDIRECT(CONCATENATE($B111,"!G21"))) -> 0.1082814887
B112: DHS17 | C112: 2017 | D112: =IF(ISERROR(INDIRECT(CONCATENATE($B112,"!C16"))),"",INDIRECT(CONCATENATE($B112,"!C16"))) -> 71.16579981 | E112: =IF(ISERROR(INDIRECT(CONCATENATE($B112,"!C23"))),"",INDIRECT(CONCATENATE($B112,"!C23"))) -> 80.79056489 | H112: =IF(ISERROR(INDIRECT(CONCATENATE($B112,"!C21"))),"",INDIRECT(CONCATENATE($B112,"!C21"))) -> 21.24737209 | I112: =IF(ISERROR(INDIRECT(CONCATENATE($B112,"!D16"))),"",INDIRECT(CONCATENATE($B112,"!D16"))) -> 84.99028658 | J112: =IF(ISERROR(INDIRECT(CONCATENATE($B112,"!D23"))),"",INDIRECT(CONCATENATE($B112,"!D23"))) -> 90.51168415 | M112: =IF(ISERROR(INDIRECT(CONCATENATE($B112,"!D21"))),"",INDIRECT(CONCATENATE($B112,"!D21"))) -> 12.61817331 | N112: =IF(ISERROR(INDIRECT(CONCATENATE($B112,"!E16"))),"",INDIRECT(CONCATENATE($B112,"!E16"))) -> 92.37171822 | O112: =IF(ISERROR(INDIRECT(CONCATENATE($B112,"!E23"))),"",INDIRECT(CONCATENATE($B112,"!E23"))) -> 94.03161804 | R112: =IF(ISERROR(INDIRECT(CONCATENATE($B112,"!E21"))),"",INDIRECT(CONCATENATE($B112,"!E21"))) -> 6.106951369 | S112: =IF(ISERROR(INDIRECT(CONCATENATE($B112,"!F16"))),"",INDIRECT(CONCATENATE($B112,"!F16"))) -> 97.74165304 | T112: =IF(ISERROR(INDIRECT(CONCATENATE($B112,"!F23"))),"",INDIRECT(CONCATENATE($B112,"!F23"))) -> 97.13265464 | W112: =IF(ISERROR(INDIRECT(CONCATENATE($B112,"!F21"))),"",INDIRECT(CONCATENATE($B112,"!F21"))) -> 1.90026995 | X112: =IF(ISERROR(INDIRECT(CONCATENATE($B112,"!G16"))),"",INDIRECT(CONCATENATE($B112,"!G16"))) -> 99.50012664 | Y112: =IF(ISERROR(INDIRECT(CONCATENATE($B112,"!G23"))),"",INDIRECT(CONCATENATE($B112,"!G23"))) -> 98.1183274 | AB112: =IF(ISERROR(INDIRECT(CONCATENATE($B112,"!G221"))),"",INDIRECT(CONCATENATE($B112,"!G21"))) -> 0.2525366386
B113: MICS18 | C113: 2018 | D113: 65.64809418 | E113: 83.01332466 | H113: 23.70052055 | I113: 78.8845821 | J113: 91.62058129 | M113: 15.71357045 | N113: 89.65338619 | O113: 94.31372113 | R113: 6.043457924 | S113: 96.09038466 | T113: 97.38756962 | W113: 1.584274159 | X113: 99.47416576 | Y113: 99.225439 | AB113: 0.1861779839
B114: MIS19 | C114: 2019 | D114: 75.59152773 | E114: 77.0370632 | H114: 17.99384856 | I114: 88.11504776 | J114: 88.20499928 | M114: 6.534367089 | N114: 96.3297779 | O114: 93.89773553 | R114: 0.8992633798 | S114: 98.262843 | T114: 97.09284776 | W114: 0.8144205924 | X114: 99.89658361 | Y114: 99.07538803 | AB114: 0
B118: =CONCATENATE("National use of drinking water sources, ",C99,"–",C100) -> National use of drinking water sources, 2000–2020 | S118: Data points used for regression
E153: =IF(ISERROR(INDIRECT(CONCATENATE($B153,"!M18"))),"",INDIRECT(CONCATENATE($B153,"!M18"))) ->  | F153: =IF(ISERROR(INDIRECT(CONCATENATE($B153,"!M19"))),"",INDIRECT(CONCATENATE($B153,"!M19"))) ->  | G153: =IF(ISERROR(INDIRECT(CONCATENATE($B153,"!M20"))),"",INDIRECT(CONCATENATE($B153,"!M20"))) ->  | H153: =IF(ISERROR(INDIRECT(CONCATENATE($B153,"!M21"))),"",INDIRECT(CONCATENATE($B153,"!M21"))) ->  | J153: =IF(ISERROR(INDIRECT(CONCATENATE($B153,"!N18"))),"",INDIRECT(CONCATENATE($B153,"!N18"))) ->  | K153: =IF(ISERROR(INDIRECT(CONCATENATE($B153,"!N19"))),"",INDIRECT(CONCATENATE($B153,"!N19"))) ->  | L153: =IF(ISERROR(INDIRECT(CONCATENATE($B153,"!N20"))),"",INDIRECT(CONCATENATE($B153,"!N20"))) ->  | M153: =IF(ISERROR(INDIRECT(CONCATENATE($B153,"!N21"))),"",INDIRECT(CONCATENATE($B153,"!N21"))) ->  | O153: =IF(ISERROR(INDIRECT(CONCATENATE($B153,"!O18"))),"",INDIRECT(CONCATENATE($B153,"!O18"))) ->  | P153: =IF(ISERROR(INDIRECT(CONCATENATE($B153,"!O19"))),"",INDIRECT(CONCATENATE($B153,"!O19"))) ->  | Q153: =IF(ISERROR(INDIRECT(CONCATENATE($B153,"!O20"))),"",INDIRECT(CONCATENATE($B153,"!O20"))) ->  | R153: =IF(ISERROR(INDIRECT(CONCATENATE($B153,"!O21"))),"",INDIRECT(CONCATENATE($B153,"!O21"))) ->  | T153: =IF(ISERROR(INDIRECT(CONCATENATE($B153,"!P18"))),"",INDIRECT(CONCATENATE($B153,"!P18"))) ->  | U153: =IF(ISERROR(INDIRECT(CONCATENATE($B153,"!P19"))),"",INDIRECT(CONCATENATE($B153,"!P19"))) ->  | V153: =IF(ISERROR(INDIRECT(CONCATENATE($B153,"!P20"))),"",INDIRECT(CONCATENATE($B153,"!P20"))) ->  | W153: =IF(ISERROR(INDIRECT(CONCATENATE($B153,"!P21"))),"",INDIRECT(CONCATENATE($B153,"!P21"))) ->  | Y153: =IF(ISERROR(INDIRECT(CONCATENATE($B153,"!Q18"))),"",INDIRECT(CONCATENATE($B153,"!Q18"))) ->  | Z153: =IF(ISERROR(INDIRECT(CONCATENATE($B153,"!Q19"))),"",INDIRECT(CONCATENATE($B153,"!Q19"))) ->  | AA153: =IF(ISERROR(INDIRECT(CONCATENATE($B153,"!Q20"))),"",INDIRECT(CONCATENATE($B153,"!Q20"))) ->  | AB153: =IF(ISERROR(INDIRECT(CONCATENATE($B153,"!Q21"))),"",INDIRECT(CONCATENATE($B153,"!Q1"))) -> 
A197: URBAN | D197: Poorest | I197: Poor | N197: Middle | S197: Rich | X197: Richest
D198: Improved | E198: Basic | F198: Limited | G198: Unimproved | H198: Surface water | I198: Improved | J198: Basic | K198: Limited | L198: Unimproved | M198: Surface water | N198: Improved | O198: Basic | P198: Limited | Q198: Unimproved | R198: Surface water | S198: Improved | T198: Basic | U198: Limited | V198: Unimproved | W198: Surface water | X198: Improved | Y198: Basic | Z198: Limited | AA198: Unimproved | AB198: Surface water
A199: Forecast period: | C199: 2000 | D199: =IF((D201+H201)>100,D201*100/(D201+H201),D201) -> 79.21540602 | E199: =D199*AVERAGEIF(E205:E216,">0")/100 -> 73.8055202 | F199: =D199*(100-AVERAGEIF(E205:E216,">0"))/100 -> 5.409885818 | G199: =100-(E199+F199+H199) -> 13.37226648 | H199: =IF((D201+H201)>100,H201*100/(D201+H201),H201) -> 7.412327508 | I199: =IF((I201+M201)>100,I201*100/(I201+M201),I201) -> 86.51166254 | J199: =I199*AVERAGEIF(J205:J216,">0")/100 -> 83.64400068 | K199: =I199*(100-AVERAGEIF(J205:J216,">0"))/100 -> 2.86766186 | L199: =100-(J199+K199+M199) -> 10.19241389 | M199: =IF((I201+M201)>100,M201*100/(I201+M201),M201) -> 3.295923566 | N199: =IF((N201+R201)>100,N201*100/(N201+R201),N201) -> 91.34888587 | O199: =N199*AVERAGEIF(O205:O216,">0")/100 -> 89.16615913 | P199: =N199*(100-AVERAGEIF(O205:O216,">0"))/100 -> 2.182726741 | Q199: =100-(O199+P199+R199) -> 8.206118786 | R199: =IF((N201+R201)>100,R201*100/(N201+R201),R201) -> 0.444995342 | S199: =IF((S201+W201)>100,S201*100/(S201+W201),S201) -> 95.20646643 | T199: =S199*AVERAGEIF(T205:T216,">0")/100 -> 93.77646476 | U199: =S199*(100-AVERAGEIF(T205:T216,">0"))/100 -> 1.430001663 | V199: =100-(T199+U199+W199) -> 4.551511473 | W199: =IF((S201+W201)>100,W201*100/(S201+W201),W201) -> 0.2420221001 | X199: =IF((X201+AB201)>100,X201*100/(X201+AB201),X201) -> 98.68839187 | Y199: =X199*AVERAGEIF(Y205:Y216,">0")/100 -> 97.70028183 | Z199: =X199*(100-AVERAGEIF(Y205:Y216,">0"))/100 -> 0.9881100405 | AA199: =100-(Y199+Z199+AB199) -> 0.9476882438 | AB199: =IF((X201+AB201)>100,AB201*100/(X201+AB201),AB201) -> 0.3639198868
C200: 2020 | D200: =IF((D202+H202)>100,D202*100/(D202+H202),D202) -> 94.60095384 | E200: =D200*AVERAGEIF(E205:E216,">0")/100 -> 88.14033735 | F200: =D200*(100-AVERAGEIF(E205:E216,">0"))/100 -> 6.460616492 | G200: =100-(E200+F200+H200) -> 2.838496235 | H200: =IF((D202+H202)>100,H202*100/(D202+H202),H202) -> 2.560549928 | I200: =IF((I202+M202)>100,I202*100/(I202+M202),I202) -> 98.95424736 | J200: =I200*AVERAGEIF(J205:J216,">0")/100 -> 95.67414254 | K200: =I200*(100-AVERAGEIF(J205:J216,">0"))/100 -> 3.280104817 | L200: =100-(J200+K200+M200) -> 0 | M200: =IF((I202+M202)>100,M202*100/(I202+M202),M202) -> 1.04575264 | N200: =IF((N202+R202)>100,N202*100/(N202+R202),N202) -> 99.25633023 | O200: =N200*AVERAGEIF(O205:O216,">0")/100 -> 96.88465986 | P200: =N200*(100-AVERAGEIF(O205:O216,">0"))/100 -> 2.371670373 | Q200: =100-(O200+P200+R200) -> 0 | R200: =IF((N202+R202)>100,R202*100/(N202+R202),R202) -> 0.7436697669 | S200: =IF((S202+W202)>100,S202*100/(S202+W202),S202) -> 99.76201838 | T200: =S200*AVERAGEIF(T205:T216,">0")/100 -> 98.2635923 | U200: =S200*(100-AVERAGEIF(T205:T216,">0"))/100 -> 1.498426079 | V200: =100-(T200+U200+W200) -> 0 | W200: =IF((S202+W202)>100,W202*100/(S202+W202),W202) -> 0.237981624 | X200: =IF((X202+AB202)>100,X202*100/(X202+AB202),X202) -> 99.91473626 | Y200: =X200*AVERAGEIF(Y205:Y216,">0")/100 -> 98.91434754 | Z200: =X200*(100-AVERAGEIF(Y205:Y216,">0"))/100 -> 1.000388721 | AA200: =100-(Y200+Z200+AB200) -> 0 | AB200: =IF((X202+AB202)>100,AB202*100/(X202+AB202),AB202) -> 0.08526374305
A201: Regression period: | C201: =MinRegYear(C199,C205:C216) -> 2001 | D201: =IF(MAX(C205:C216)-MIN(C205:C216)<5,AVERAGEIF(C205:C216,">0",D205:D216), IF(FORECAST($C201,D$205:D$216,$C$205:$C$216)<0,0, IF(FORECAST($C201,D$205:D$216,$C$205:$C$216)>100,100, FORECAST($C201,D$205:D$216,$C$205:$C$216)))) -> 79.21540602 | H201: =IF(MAX(C205:C216)-MIN(C205:C216)<5,AVERAGEIF(C205:C216,">0",H205:H216), IF(FORECAST($C201,H$205:H$216,$C$205:$C$216)<0,0, IF(FORECAST($C201,H$205:H$216,$C$205:$C$216)>100,100, FORECAST($C201,H$205:H$216,$C$205:$C$216)))) -> 7.412327508 | I201: =IF(MAX(C205:C216)-MIN(C205:C216)<5,AVERAGEIF(C205:C216,">0",I205:I216), IF(FORECAST($C201,I$205:I$216,$C$205:$C$216)<0,0, IF(FORECAST($C201,I$205:I$216,$C$205:$C$216)>100,100, FORECAST($C201,I$205:I$216,$C$205:$C$216)))) -> 86.51166254 | M201: =IF(MAX(C205:C216)-MIN(C205:C216)<5,AVERAGEIF(C205:C216,">0",M205:M216), IF(FORECAST($C201,M$205:M$216,$C$205:$C$216)<0,0, IF(FORECAST($C201,M$205:M$216,$C$205:$C$216)>100,100, FORECAST($C201,M$205:M$216,$C$205:$C$216)))) -> 3.295923566 | N201: =IF(MAX(C205:C216)-MIN(C205:C216)<5,AVERAGEIF(C205:C216,">0",N205:N216), IF(FORECAST($C201,N$205:N$216,$C$205:$C$216)<0,0, IF(FORECAST($C201,N$205:N$216,$C$205:$C$216)>100,100, FORECAST($C201,N$205:N$216,$C$205:$C$216)))) -> 91.34888587 | R201: =IF(MAX(C205:C216)-MIN(C205:C216)<5,AVERAGEIF(C205:C216,">0",R205:R216), IF(FORECAST($C201,R$205:R$216,$C$205:$C$216)<0,0, IF(FORECAST($C201,R$205:R$216,$C$205:$C$216)>100,100, FORECAST($C201,R$205:R$216,$C$205:$C$216)))) -> 0.444995342 | S201: =IF(MAX(C205:C216)-MIN(C205:C216)<5,AVERAGEIF(C205:C216,">0",S205:S216), IF(FORECAST($C201,S$205:S$216,$C$205:$C$216)<0,0, IF(FORECAST($C201,S$205:S$216,$C$205:$C$216)>100,100, FORECAST($C201,S$205:S$216,$C$205:$C$216)))) -> 95.20646643 | W201: =IF(MAX(C205:C216)-MIN(C205:C216)<5,AVERAGEIF(C205:C216,">0",W205:W216), IF(FORECAST($C201,W$205:W$216,$C$205:$C$216)<0,0, IF(FORECAST($C201,W$205:W$216,$C$205:$C$216)>100,100, FORECAST($C201,W$205:W$216,$C$205:$C$216)))) -> 0.2420221001 | X201: =IF(MAX(C205:C216)-MIN(C205:C216)<5,AVERAGEIF(C205:C216,">0",X205:X216), IF(FORECAST($C201,X$205:X$216,$C$205:$C$216)<0,0, IF(FORECAST($C201,X$205:X$216,$C$205:$C$216)>100,100, FORECAST($C201,X$205:X$216,$C$205:$C$216)))) -> 98.68839187 | AB201: =IF(MAX(C205:C216)-MIN(C205:C216)<5,AVERAGEIF(C205:C216,">0",AB205:AB216), IF(FORECAST($C201,AB$205:AB$216,$C$205:$C$216)<0,0, IF(FORECAST($C201,AB$205:AB$216,$C$205:$C$216)>100,100, FORECAST($C201,AB$205:AB$216,$C$205:$C$216)))) -> 0.3639198868
C202: =MaxRegYear(C200,C205:C216) -> 2020 | D202: =IF(MAX(C205:C216)-MIN(C205:C216)<5,AVERAGEIF(C205:C216,">0",D205:D216), IF(FORECAST($C202,D$205:D$216,$C$205:$C$216)<0,0, IF(FORECAST($C202,D$205:D$216,$C$205:$C$216)>100,100, FORECAST($C202,D$205:D$216,$C$205:$C$216)))) -> 94.60095384 | H202: =IF(MAX(C205:C216)-MIN(C205:C216)<5,AVERAGEIF(C205:C216,">0",H205:H216), IF(FORECAST($C202,H$205:H$216,$C$205:$C$216)<0,0, IF(FORECAST($C202,H$205:H$216,$C$205:$C$216)>100,100, FORECAST($C202,H$205:H$216,$C$205:$C$216)))) -> 2.560549928 | I202: =IF(MAX(C205:C216)-MIN(C205:C216)<5,AVERAGEIF(C205:C216,">0",I205:I216), IF(FORECAST($C202,I$205:I$216,$C$205:$C$216)<0,0, IF(FORECAST($C202,I$205:I$216,$C$205:$C$216)>100,100, FORECAST($C202,I$205:I$216,$C$205:$C$216)))) -> 99.49195379 | M202: =IF(MAX(C205:C216)-MIN(C205:C216)<5,AVERAGEIF(C205:C216,">0",M205:M216), IF(FORECAST($C202,M$205:M$216,$C$205:$C$216)<0,0, IF(FORECAST($C202,M$205:M$216,$C$205:$C$216)>100,100, FORECAST($C202,M$205:M$216,$C$205:$C$216)))) -> 1.051435144 | N202: =IF(MAX(C205:C216)-MIN(C205:C216)<5,AVERAGEIF(C205:C216,">0",N205:N216), IF(FORECAST($C202,N$205:N$216,$C$205:$C$216)<0,0, IF(FORECAST($C202,N$205:N$216,$C$205:$C$216)>100,100, FORECAST($C202,N$205:N$216,$C$205:$C$216)))) -> 100 | R202: =IF(MAX(C205:C216)-MIN(C205:C216)<5,AVERAGEIF(C205:C216,">0",R205:R216), IF(FORECAST($C202,R$205:R$216,$C$205:$C$216)<0,0, IF(FORECAST($C202,R$205:R$216,$C$205:$C$216)>100,100, FORECAST($C202,R$205:R$216,$C$205:$C$216)))) -> 0.7492416506 | S202: =IF(MAX(C205:C216)-MIN(C205:C216)<5,AVERAGEIF(C205:C216,">0",S205:S216), IF(FORECAST($C202,S$205:S$216,$C$205:$C$216)<0,0, IF(FORECAST($C202,S$205:S$216,$C$205:$C$216)>100,100, FORECAST($C202,S$205:S$216,$C$205:$C$216)))) -> 100 | W202: =IF(MAX(C205:C216)-MIN(C205:C216)<5,AVERAGEIF(C205:C216,">0",W205:W216), IF(FORECAST($C202,W$205:W$216,$C$205:$C$216)<0,0, IF(FORECAST($C202,W$205:W$216,$C$205:$C$216)>100,100, FORECAST($C202,W$205:W$216,$C$205:$C$216)))) -> 0.2385493276 | X202: =IF(MAX(C205:C216)-MIN(C205:C216)<5,AVERAGEIF(C205:C216,">0",X205:X216), IF(FORECAST($C202,X$205:X$216,$C$205:$C$216)<0,0, IF(FORECAST($C202,X$205:X$216,$C$205:$C$216)>100,100, FORECAST($C202,X$205:X$216,$C$205:$C$216)))) -> 100 | AB202: =IF(MAX(C205:C216)-MIN(C205:C216)<5,AVERAGEIF(C205:C216,">0",AB205:AB216), IF(FORECAST($C202,AB$205:AB$216,$C$205:$C$216)<0,0, IF(FORECAST($C202,AB$205:AB$216,$C$205:$C$216)>100,100, FORECAST($C202,AB$205:AB$216,$C$205:$C$216)))) -> 0.08533650415
B204: Survey | C204: Year | D204: Improved | E204: % Improved < = 30min | H204: Surface water | I204: Improved | J204: % Improved < = 30min | M204: Surface water | N204: Improved | O204: % Improved < = 30min | R204: Surface water | S204: Improved | T204: % Improved < = 30min | W204: Surface water | X204: Improved | Y204: % Improved < = 30min | AB204: Surface water
B205: DHS03 | C205: 2003 | D205: =IF(ISERROR(INDIRECT(CONCATENATE($B205,"!H16"))),"",INDIRECT(CONCATENATE($B205,"!H16"))) -> 75.1 | E205: =IF(ISERROR(INDIRECT(CONCATENATE($B205,"!H23"))),"",INDIRECT(CONCATENATE($B205,"!H23"))) -> 91.7 | H205: =IF(ISERROR(INDIRECT(CONCATENATE($B205,"!H21"))),"",INDIRECT(CONCATENATE($B205,"!H21"))) -> 8.1 | I205: =IF(ISERROR(INDIRECT(CONCATENATE($B205,"!I16"))),"",INDIRECT(CONCATENATE($B205,"!I16"))) -> 81.8 | J205: =IF(ISERROR(INDIRECT(CONCATENATE($B205,"!I23"))),"",INDIRECT(CONCATENATE($B205,"!I23"))) -> 96.9 | M205: =IF(ISERROR(INDIRECT(CONCATENATE($B205,"!I21"))),"",INDIRECT(CONCATENATE($B205,"!I21"))) -> 4.3 | N205: =IF(ISERROR(INDIRECT(CONCATENATE($B205,"!J16"))),"",INDIRECT(CONCATENATE($B205,"!J16"))) -> 86.5 | O205: =IF(ISERROR(INDIRECT(CONCATENATE($B205,"!J23"))),"",INDIRECT(CONCATENATE($B205,"!J23"))) -> 96.8 | R205: =IF(ISERROR(INDIRECT(CONCATENATE($B205,"!J21"))),"",INDIRECT(CONCATENATE($B205,"!J21"))) -> 0.8 | S205: =IF(ISERROR(INDIRECT(CONCATENATE($B205,"!K16"))),"",INDIRECT(CONCATENATE($B205,"!K16"))) -> 93.5 | T205: =IF(ISERROR(INDIRECT(CONCATENATE($B205,"!K23"))),"",INDIRECT(CONCATENATE($B205,"!K23"))) -> 97.9 | W205: =IF(ISERROR(INDIRECT(CONCATENATE($B205,"!K21"))),"",INDIRECT(CONCATENATE($B205,"!K21"))) -> 0 | X205: =IF(ISERROR(INDIRECT(CONCATENATE($B205,"!L16"))),"",INDIRECT(CONCATENATE($B205,"!L16"))) -> 98.5 | Y205: =IF(ISERROR(INDIRECT(CONCATENATE($B205,"!L23"))),"",INDIRECT(CONCATENATE($B205,"!L23"))) -> 97.9 | AB205: =IF(ISERROR(INDIRECT(CONCATENATE($B205,"!L221"))),"",INDIRECT(CONCATENATE($B205,"!L21"))) -> 0.4
B206: MICS06 | C206: 2006 | D206: 82.95273438 | E206: 90.51283346 | H206: 3.303689494 | I206: 91.87915844 | J206: 96.9440008 | M206: 0.5765304034 | N206: 95.56612127 | O206: 97.22409979 | R206: 0 | S206: 97.23252844 | T206: 97.75897384 | W206: 0 | X206: 99.0168897 | Y206: 98.48129443 | AB206: 0
B207: DHS08 | C207: 2008 | D207: 91.3 | E207: 93.9 | H207: 5.2 | I207: 95.4 | J207: 95.9 | M207: 3.4 | N207: 97.8 | O207: 96.5 | R207: 0.4 | S207: 98.7 | T207: 97.7 | W207: 0.7 | X207: 99.5 | Y207: 97.9 | AB207: 0.3
B208: MICS11 | C208: 2011 | D208: 87.4 | E208: 89 | H208: 8 | I208: 95.1 | J208: 93.2 | M208: 1.3 | N208: 99.2 | O208: 96.7 | R208: 0.4 | S208: 99.6 | T208: 97.3 | W208: 0 | X208: 100 | Y208: 98.5 | AB208: 0
B209: GLSS13 | C209: 2013 | D209: 96.9 | E209: 94.9 | H209: 1.3 | I209: 97.8 | J209: 97.5 | M209: 1.6 | N209: 98.9 | O209: 98.1 | R209: 1.2 | S209: 99 | T209: 99.2 | W209: 1.1 | X209: 99 | Y209: 99.2 | AB209: 1.1
B210: DHS14 | C210: 2014 | D210: 87.83706194 | E210: 91.46075164 | H210: 6.294920029 | I210: 96.38776668 | J210: 95.84707247 | M210: 1.632967315 | N210: 98.7766032 | O210: 96.87793168 | R210: 0.414841597 | S210: 99.80305473 | T210: 98.26766975 | W210: 0.1379164858 | X210: 99.69428557 | Y210: 99.49501998 | AB210: 0
B211: MIS16 | C211: 2016 | D211: 87.57423021 | E211: 97.65475792 | H211: 3.983199574 | I211: 94.9352479 | J211: 98.69465962 | M211: 3.583237232 | N211: 97.89718858 | O211: 98.74639097 | R211: 1.977490938 | S211: 99.78944471 | T211: 99.86006984 | W211: 0 | X211: 100 | Y211: 100 | AB211: 0
B212: DHS17 | C212: 2017 | D212: 92.48065642 | E212: 94.86760352 | H212: 4.625524039 | I212: 96.73984886 | J212: 96.95635251 | M212: 1.371583844 | N212: 99.44170403 | O212: 97.69282973 | R212: 0.1708299639 | S212: 99.32253497 | T212: 98.56345852 | W212: 0.2843210807 | X212: 99.85542807 | Y212: 98.90212923 | AB212: 0.09054895348
B213: MICS18 | C213: 2018 | D213: 89.98288324 | E213: 95.65033047 | H213: 3.730070996 | I213: 94.14374403 | J213: 97.506744 | M213: 1.588900352 | N213: 95.83618461 | O213: 99.02135876 | R213: 0.7426438534 | S213: 99.58533769 | T213: 99.01796138 | W213: 0.08456482791 | X213: 99.65087283 | Y213: 99.8338605 | AB213: 0.06248733527
B214: MIS19 | C214: 2019 | D214: 93.74954658 | E214: 92.06036832 | H214: 0.2198487507 | I214: 99.4957802 | J214: 97.40347958 | M214: 0.02095501264 | N214: 99.00251985 | O214: 98.44298992 | R214: 0.1856378826 | S214: 99.84600134 | T214: 99.41186101 | W214: 0.09239919394 | X214: 99.91970833 | Y214: 99.77527168 | AB214: 0
B218: =CONCATENATE("Urban use of drinking water sources, ",C199,"–",C200) -> Urban use of drinking water sources, 2000–2020 | S218: Data points used for regression
E253: =IF(ISERROR(INDIRECT(CONCATENATE($B253,"!M18"))),"",INDIRECT(CONCATENATE($B253,"!M18"))) ->  | F253: =IF(ISERROR(INDIRECT(CONCATENATE($B253,"!M19"))),"",INDIRECT(CONCATENATE($B253,"!M19"))) ->  | G253: =IF(ISERROR(INDIRECT(CONCATENATE($B253,"!M20"))),"",INDIRECT(CONCATENATE($B253,"!M20"))) ->  | H253: =IF(ISERROR(INDIRECT(CONCATENATE($B253,"!M21"))),"",INDIRECT(CONCATENATE($B253,"!M21"))) ->  | J253: =IF(ISERROR(INDIRECT(CONCATENATE($B253,"!N18"))),"",INDIRECT(CONCATENATE($B253,"!N18"))) ->  | K253: =IF(ISERROR(INDIRECT(CONCATENATE($B253,"!N19"))),"",INDIRECT(CONCATENATE($B253,"!N19"))) ->  | L253: =IF(ISERROR(INDIRECT(CONCATENATE($B253,"!N20"))),"",INDIRECT(CONCATENATE($B253,"!N20"))) ->  | M253: =IF(ISERROR(INDIRECT(CONCATENATE($B253,"!N21"))),"",INDIRECT(CONCATENATE($B253,"!N21"))) ->  | O253: =IF(ISERROR(INDIRECT(CONCATENATE($B253,"!O18"))),"",INDIRECT(CONCATENATE($B253,"!O18"))) ->  | P253: =IF(ISERROR(INDIRECT(CONCATENATE($B253,"!O19"))),"",INDIRECT(CONCATENATE($B253,"!O19"))) ->  | Q253: =IF(ISERROR(INDIRECT(CONCATENATE($B253,"!O20"))),"",INDIRECT(CONCATENATE($B253,"!O20"))) ->  | R253: =IF(ISERROR(INDIRECT(CONCATENATE($B253,"!O21"))),"",INDIRECT(CONCATENATE($B253,"!O21"))) ->  | T253: =IF(ISERROR(INDIRECT(CONCATENATE($B253,"!P18"))),"",INDIRECT(CONCATENATE($B253,"!P18"))) ->  | U253: =IF(ISERROR(INDIRECT(CONCATENATE($B253,"!P19"))),"",INDIRECT(CONCATENATE($B253,"!P19"))) ->  | V253: =IF(ISERROR(INDIRECT(CONCATENATE($B253,"!P20"))),"",INDIRECT(CONCATENATE($B253,"!P20"))) ->  | W253: =IF(ISERROR(INDIRECT(CONCATENATE($B253,"!P21"))),"",INDIRECT(CONCATENATE($B253,"!P21"))) ->  | Y253: =IF(ISERROR(INDIRECT(CONCATENATE($B253,"!Q18"))),"",INDIRECT(CONCATENATE($B253,"!Q18"))) ->  | Z253: =IF(ISERROR(INDIRECT(CONCATENATE($B253,"!Q19"))),"",INDIRECT(CONCATENATE($B253,"!Q19"))) ->  | AA253: =IF(ISERROR(INDIRECT(CONCATENATE($B253,"!Q20"))),"",INDIRECT(CONCATENATE($B253,"!Q20"))) ->  | AB253: =IF(ISERROR(INDIRECT(CONCATENATE($B253,"!Q21"))),"",INDIRECT(CONCATENATE($B253,"!Q1"))) -> 
E254: =IF(ISERROR(INDIRECT(CONCATENATE($B254,"!M18"))),"",INDIRECT(CONCATENATE($B254,"!M18"))) ->  | F254: =IF(ISERROR(INDIRECT(CONCATENATE($B254,"!M19"))),"",INDIRECT(CONCATENATE($B254,"!M19"))) ->  | G254: =IF(ISERROR(INDIRECT(CONCATENATE($B254,"!M20"))),"",INDIRECT(CONCATENATE($B254,"!M20"))) ->  | H254: =IF(ISERROR(INDIRECT(CONCATENATE($B254,"!M21"))),"",INDIRECT(CONCATENATE($B254,"!M21"))) ->  | J254: =IF(ISERROR(INDIRECT(CONCATENATE($B254,"!N18"))),"",INDIRECT(CONCATENATE($B254,"!N18"))) ->  | K254: =IF(ISERROR(INDIRECT(CONCATENATE($B254,"!N19"))),"",INDIRECT(CONCATENATE($B254,"!N19"))) ->  | L254: =IF(ISERROR(INDIRECT(CONCATENATE($B254,"!N20"))),"",INDIRECT(CONCATENATE($B254,"!N20"))) ->  | M254: =IF(ISERROR(INDIRECT(CONCATENATE($B254,"!N21"))),"",INDIRECT(CONCATENATE($B254,"!N21"))) ->  | O254: =IF(ISERROR(INDIRECT(CONCATENATE($B254,"!O18"))),"",INDIRECT(CONCATENATE($B254,"!O18"))) ->  | P254: =IF(ISERROR(INDIRECT(CONCATENATE($B254,"!O19"))),"",INDIRECT(CONCATENATE($B254,"!O19"))) ->  | Q254: =IF(ISERROR(INDIRECT(CONCATENATE($B254,"!O20"))),"",INDIRECT(CONCATENATE($B254,"!O20"))) ->  | R254: =IF(ISERROR(INDIRECT(CONCATENATE($B254,"!O21"))),"",INDIRECT(CONCATENATE($B254,"!O21"))) ->  | T254: =IF(ISERROR(INDIRECT(CONCATENATE($B254,"!P18"))),"",INDIRECT(CONCATENATE($B254,"!P18"))) ->  | U254: =IF(ISERROR(INDIRECT(CONCATENATE($B254,"!P19"))),"",INDIRECT(CONCATENATE($B254,"!P19"))) ->  | V254: =IF(ISERROR(INDIRECT(CONCATENATE($B254,"!P20"))),"",INDIRECT(CONCATENATE($B254,"!P20"))) ->  | W254: =IF(ISERROR(INDIRECT(CONCATENATE($B254,"!P21"))),"",INDIRECT(CONCATENATE($B254,"!P21"))) ->  | Y254: =IF(ISERROR(INDIRECT(CONCATENATE($B254,"!Q18"))),"",INDIRECT(CONCATENATE($B254,"!Q18"))) ->  | Z254: =IF(ISERROR(INDIRECT(CONCATENATE($B254,"!Q19"))),"",INDIRECT(CONCATENATE($B254,"!Q19"))) ->  | AA254: =IF(ISERROR(INDIRECT(CONCATENATE($B254,"!Q20"))),"",INDIRECT(CONCATENATE($B254,"!Q20"))) ->  | AB254: =IF(ISERROR(INDIRECT(CONCATENATE($B254,"!Q21"))),"",INDIRECT(CONCATENATE($B254,"!Q1"))) -> 
E255: =IF(ISERROR(INDIRECT(CONCATENATE($B255,"!M18"))),"",INDIRECT(CONCATENATE($B255,"!M18"))) ->  | F255: =IF(ISERROR(INDIRECT(CONCATENATE($B255,"!M19"))),"",INDIRECT(CONCATENATE($B255,"!M19"))) ->  | G255: =IF(ISERROR(INDIRECT(CONCATENATE($B255,"!M20"))),"",INDIRECT(CONCATENATE($B255,"!M20"))) ->  | H255: =IF(ISERROR(INDIRECT(CONCATENATE($B255,"!M21"))),"",INDIRECT(CONCATENATE($B255,"!M21"))) ->  | J255: =IF(ISERROR(INDIRECT(CONCATENATE($B255,"!N18"))),"",INDIRECT(CONCATENATE($B255,"!N18"))) ->  | K255: =IF(ISERROR(INDIRECT(CONCATENATE($B255,"!N19"))),"",INDIRECT(CONCATENATE($B255,"!N19"))) ->  | L255: =IF(ISERROR(INDIRECT(CONCATENATE($B255,"!N20"))),"",INDIRECT(CONCATENATE($B255,"!N20"))) ->  | M255: =IF(ISERROR(INDIRECT(CONCATENATE($B255,"!N21"))),"",INDIRECT(CONCATENATE($B255,"!N21"))) ->  | O255: =IF(ISERROR(INDIRECT(CONCATENATE($B255,"!O18"))),"",INDIRECT(CONCATENATE($B255,"!O18"))) ->  | P255: =IF(ISERROR(INDIRECT(CONCATENATE($B255,"!O19"))),"",INDIRECT(CONCATENATE($B255,"!O19"))) ->  | Q255: =IF(ISERROR(INDIRECT(CONCATENATE($B255,"!O20"))),"",INDIRECT(CONCATENATE($B255,"!O20"))) ->  | R255: =IF(ISERROR(INDIRECT(CONCATENATE($B255,"!O21"))),"",INDIRECT(CONCATENATE($B255,"!O21"))) ->  | T255: =IF(ISERROR(INDIRECT(CONCATENATE($B255,"!P18"))),"",INDIRECT(CONCATENATE($B255,"!P18"))) ->  | U255: =IF(ISERROR(INDIRECT(CONCATENATE($B255,"!P19"))),"",INDIRECT(CONCATENATE($B255,"!P19"))) ->  | V255: =IF(ISERROR(INDIRECT(CONCATENATE($B255,"!P20"))),"",INDIRECT(CONCATENATE($B255,"!P20"))) ->  | W255: =IF(ISERROR(INDIRECT(CONCATENATE($B255,"!P21"))),"",INDIRECT(CONCATENATE($B255,"!P21"))) ->  | Y255: =IF(ISERROR(INDIRECT(CONCATENATE($B255,"!Q18"))),"",INDIRECT(CONCATENATE($B255,"!Q18"))) ->  | Z255: =IF(ISERROR(INDIRECT(CONCATENATE($B255,"!Q19"))),"",INDIRECT(CONCATENATE($B255,"!Q19"))) ->  | AA255: =IF(ISERROR(INDIRECT(CONCATENATE($B255,"!Q20"))),"",INDIRECT(CONCATENATE($B255,"!Q20"))) ->  | AB255: =IF(ISERROR(INDIRECT(CONCATENATE($B255,"!Q21"))),"",INDIRECT(CONCATENATE($B255,"!Q1"))) -> 
E256: =IF(ISERROR(INDIRECT(CONCATENATE($B256,"!M18"))),"",INDIRECT(CONCATENATE($B256,"!M18"))) ->  | F256: =IF(ISERROR(INDIRECT(CONCATENATE($B256,"!M19"))),"",INDIRECT(CONCATENATE($B256,"!M19"))) ->  | G256: =IF(ISERROR(INDIRECT(CONCATENATE($B256,"!M20"))),"",INDIRECT(CONCATENATE($B256,"!M20"))) ->  | H256: =IF(ISERROR(INDIRECT(CONCATENATE($B256,"!M21"))),"",INDIRECT(CONCATENATE($B256,"!M21"))) ->  | J256: =IF(ISERROR(INDIRECT(CONCATENATE($B256,"!N18"))),"",INDIRECT(CONCATENATE($B256,"!N18"))) ->  | K256: =IF(ISERROR(INDIRECT(CONCATENATE($B256,"!N19"))),"",INDIRECT(CONCATENATE($B256,"!N19"))) ->  | L256: =IF(ISERROR(INDIRECT(CONCATENATE($B256,"!N20"))),"",INDIRECT(CONCATENATE($B256,"!N20"))) ->  | M256: =IF(ISERROR(INDIRECT(CONCATENATE($B256,"!N21"))),"",INDIRECT(CONCATENATE($B256,"!N21"))) ->  | O256: =IF(ISERROR(INDIRECT(CONCATENATE($B256,"!O18"))),"",INDIRECT(CONCATENATE($B256,"!O18"))) ->  | P256: =IF(ISERROR(INDIRECT(CONCATENATE($B256,"!O19"))),"",INDIRECT(CONCATENATE($B256,"!O19"))) ->  | Q256: =IF(ISERROR(INDIRECT(CONCATENATE($B256,"!O20"))),"",INDIRECT(CONCATENATE($B256,"!O20"))) ->  | R256: =IF(ISERROR(INDIRECT(CONCATENATE($B256,"!O21"))),"",INDIRECT(CONCATENATE($B256,"!O21"))) ->  | T256: =IF(ISERROR(INDIRECT(CONCATENATE($B256,"!P18"))),"",INDIRECT(CONCATENATE($B256,"!P18"))) ->  | U256: =IF(ISERROR(INDIRECT(CONCATENATE($B256,"!P19"))),"",INDIRECT(CONCATENATE($B256,"!P19"))) ->  | V256: =IF(ISERROR(INDIRECT(CONCATENATE($B256,"!P20"))),"",INDIRECT(CONCATENATE($B256,"!P20"))) ->  | W256: =IF(ISERROR(INDIRECT(CONCATENATE($B256,"!P21"))),"",INDIRECT(CONCATENATE($B256,"!P21"))) ->  | Y256: =IF(ISERROR(INDIRECT(CONCATENATE($B256,"!Q18"))),"",INDIRECT(CONCATENATE($B256,"!Q18"))) ->  | Z256: =IF(ISERROR(INDIRECT(CONCATENATE($B256,"!Q19"))),"",INDIRECT(CONCATENATE($B256,"!Q19"))) ->  | AA256: =IF(ISERROR(INDIRECT(CONCATENATE($B256,"!Q20"))),"",INDIRECT(CONCATENATE($B256,"!Q20"))) ->  | AB256: =IF(ISERROR(INDIRECT(CONCATENATE($B256,"!Q21"))),"",INDIRECT(CONCATENATE($B256,"!Q1"))) -> 
E257: =IF(ISERROR(INDIRECT(CONCATENATE($B257,"!M18"))),"",INDIRECT(CONCATENATE($B257,"!M18"))) ->  | F257: =IF(ISERROR(INDIRECT(CONCATENATE($B257,"!M19"))),"",INDIRECT(CONCATENATE($B257,"!M19"))) ->  | G257: =IF(ISERROR(INDIRECT(CONCATENATE($B257,"!M20"))),"",INDIRECT(CONCATENATE($B257,"!M20"))) ->  | H257: =IF(ISERROR(INDIRECT(CONCATENATE($B257,"!M21"))),"",INDIRECT(CONCATENATE($B257,"!M21"))) ->  | J257: =IF(ISERROR(INDIRECT(CONCATENATE($B257,"!N18"))),"",INDIRECT(CONCATENATE($B257,"!N18"))) ->  | K257: =IF(ISERROR(INDIRECT(CONCATENATE($B257,"!N19"))),"",INDIRECT(CONCATENATE($B257,"!N19"))) ->  | L257: =IF(ISERROR(INDIRECT(CONCATENATE($B257,"!N20"))),"",INDIRECT(CONCATENATE($B257,"!N20"))) ->  | M257: =IF(ISERROR(INDIRECT(CONCATENATE($B257,"!N21"))),"",INDIRECT(CONCATENATE($B257,"!N21"))) ->  | O257: =IF(ISERROR(INDIRECT(CONCATENATE($B257,"!O18"))),"",INDIRECT(CONCATENATE($B257,"!O18"))) ->  | P257: =IF(ISERROR(INDIRECT(CONCATENATE($B257,"!O19"))),"",INDIRECT(CONCATENATE($B257,"!O19"))) ->  | Q257: =IF(ISERROR(INDIRECT(CONCATENATE($B257,"!O20"))),"",INDIRECT(CONCATENATE($B257,"!O20"))) ->  | R257: =IF(ISERROR(INDIRECT(CONCATENATE($B257,"!O21"))),"",INDIRECT(CONCATENATE($B257,"!O21"))) ->  | T257: =IF(ISERROR(INDIRECT(CONCATENATE($B257,"!P18"))),"",INDIRECT(CONCATENATE($B257,"!P18"))) ->  | U257: =IF(ISERROR(INDIRECT(CONCATENATE($B257,"!P19"))),"",INDIRECT(CONCATENATE($B257,"!P19"))) ->  | V257: =IF(ISERROR(INDIRECT(CONCATENATE($B257,"!P20"))),"",INDIRECT(CONCATENATE($B257,"!P20"))) ->  | W257: =IF(ISERROR(INDIRECT(CONCATENATE($B257,"!P21"))),"",INDIRECT(CONCATENATE($B257,"!P21"))) ->  | Y257: =IF(ISERROR(INDIRECT(CONCATENATE($B257,"!Q18"))),"",INDIRECT(CONCATENATE($B257,"!Q18"))) ->  | Z257: =IF(ISERROR(INDIRECT(CONCATENATE($B257,"!Q19"))),"",INDIRECT(CONCATENATE($B257,"!Q19"))) ->  | AA257: =IF(ISERROR(INDIRECT(CONCATENATE($B257,"!Q20"))),"",INDIRECT(CONCATENATE($B257,"!Q20"))) ->  | AB257: =IF(ISERROR(INDIRECT(CONCATENATE($B257,"!Q21"))),"",INDIRECT(CONCATENATE($B257,"!Q1"))) -> 
A297: RURAL | D297: Poorest | I297: Poor | N297: Middle | S297: Rich | X297: Richest
D298: Improved | E298: Basic | F298: Limited | G298: Unimproved | H298: Surface water | I298: Improved | J298: Basic | K298: Limited | L298: Unimproved | M298: Surface water | N298: Improved | O298: Basic | P298: Limited | Q298: Unimproved | R298: Surface water | S298: Improved | T298: Basic | U298: Limited | V298: Unimproved | W298: Surface water | X298: Improved | Y298: Basic | Z298: Limited | AA298: Unimproved | AB298: Surface water
A299: Forecast period: | C299: 2000 | D299: =IF((D301+H301)>100,D301*100/(D301+H301),D301) -> 52.98534283 | E299: =D299*AVERAGEIF(E305:E316,">0")/100 -> 41.31857554 | F299: =D299*(100-AVERAGEIF(E305:E316,">0"))/100 -> 11.66676728 | G299: =100-(E299+F299+H299) -> 12.32564285 | H299: =IF((D301+H301)>100,H301*100/(D301+H301),H301) -> 34.68901433 | I299: =IF((I301+M301)>100,I301*100/(I301+M301),I301) -> 49.86313385 | J299: =I299*AVERAGEIF(J305:J316,">0")/100 -> 41.78109033 | K299: =I299*(100-AVERAGEIF(J305:J316,">0"))/100 -> 8.082043518 | L299: =100-(J299+K299+M299) -> 14.28391975 | M299: =IF((I301+M301)>100,M301*100/(I301+M301),M301) -> 35.8529464 | N299: =IF((N301+R301)>100,N301*100/(N301+R301),N301) -> 54.15231635 | O299: =N299*AVERAGEIF(O305:O316,">0")/100 -> 47.55065084 | P299: =N299*(100-AVERAGEIF(O305:O316,">0"))/100 -> 6.601665512 | Q299: =100-(O299+P299+R299) -> 12.15173286 | R299: =IF((N301+R301)>100,R301*100/(N301+R301),R301) -> 33.6959508 | S299: =IF((S301+W301)>100,S301*100/(S301+W301),S301) -> 62.05658444 | T299: =S299*AVERAGEIF(T305:T316,">0")/100 -> 55.9586517 | U299: =S299*(100-AVERAGEIF(T305:T316,">0"))/100 -> 6.097932738 | V299: =100-(T299+U299+W299) -> 10.39383371 | W299: =IF((S301+W301)>100,W301*100/(S301+W301),W301) -> 27.54958184 | X299: =IF((X301+AB301)>100,X301*100/(X301+AB301),X301) -> 76.68194934 | Y299: =X299*AVERAGEIF(Y305:Y316,">0")/100 -> 71.91879118 | Z299: =X299*(100-AVERAGEIF(Y305:Y316,">0"))/100 -> 4.763158154 | AA299: =100-(Y299+Z299+AB299) -> 8.021505696 | AB299: =IF((X301+AB301)>100,AB301*100/(X301+AB301),AB301) -> 15.29654497
C300: 2020 | D300: =IF((D302+H302)>100,D302*100/(D302+H302),D302) -> 65.13084671 | E300: =D300*AVERAGEIF(E305:E316,">0")/100 -> 50.7897782 | F300: =D300*(100-AVERAGEIF(E305:E316,">0"))/100 -> 14.34106851 | G300: =100-(E300+F300+H300) -> 9.344041342 | H300: =IF((D302+H302)>100,H302*100/(D302+H302),H302) -> 25.52511195 | I300: =IF((I302+M302)>100,I302*100/(I302+M302),I302) -> 75.152953 | J300: =I300*AVERAGEIF(J305:J316,">0")/100 -> 62.97182057 | K300: =I300*(100-AVERAGEIF(J305:J316,">0"))/100 -> 12.18113243 | L300: =100-(J300+K300+M300) -> 5.719070706 | M300: =IF((I302+M302)>100,M302*100/(I302+M302),M302) -> 19.12797629 | N300: =IF((N302+R302)>100,N302*100/(N302+R302),N302) -> 87.67501074 | O300: =N300*AVERAGEIF(O305:O316,">0")/100 -> 76.98662041 | P300: =N300*(100-AVERAGEIF(O305:O316,">0"))/100 -> 10.68839033 | Q300: =100-(O300+P300+R300) -> 2.431119246 | R300: =IF((N302+R302)>100,R302*100/(N302+R302),R302) -> 9.893870013 | S300: =IF((S302+W302)>100,S302*100/(S302+W302),S302) -> 96.11574801 | T300: =S300*AVERAGEIF(T305:T316,">0")/100 -> 86.67102314 | U300: =S300*(100-AVERAGEIF(T305:T316,">0"))/100 -> 9.44472487 | V300: =100-(T300+U300+W300) -> 1.224878091 | W300: =IF((S302+W302)>100,W302*100/(S302+W302),W302) -> 2.659373896 | X300: =IF((X302+AB302)>100,X302*100/(X302+AB302),X302) -> 100 | Y300: =X300*AVERAGEIF(Y305:Y316,">0")/100 -> 93.78842323 | Z300: =X300*(100-AVERAGEIF(Y305:Y316,">0"))/100 -> 6.211576773 | AA300: =100-(Y300+Z300+AB300) -> 0 | AB300: =IF((X302+AB302)>100,AB302*100/(X302+AB302),AB302) -> 0
A301: Regression period: | C301: =MinRegYear(C299,C305:C316) -> 2001 | D301: =IF(MAX(C305:C316)-MIN(C305:C316)<5,AVERAGEIF(C305:C316,">0",D305:D316), IF(FORECAST($C301,D$305:D$316,$C$305:$C$316)<0,0, IF(FORECAST($C301,D$305:D$316,$C$305:$C$316)>100,100, FORECAST($C301,D$305:D$316,$C$305:$C$316)))) -> 52.98534283 | H301: =IF(MAX(C305:C316)-MIN(C305:C316)<5,AVERAGEIF(C305:C316,">0",H305:H316), IF(FORECAST($C301,H$305:H$316,$C$305:$C$316)<0,0, IF(FORECAST($C301,H$305:H$316,$C$305:$C$316)>100,100, FORECAST($C301,H$305:H$316,$C$305:$C$316)))) -> 34.68901433 | I301: =IF(MAX(C305:C316)-MIN(C305:C316)<5,AVERAGEIF(C305:C316,">0",I305:I316), IF(FORECAST($C301,I$305:I$316,$C$305:$C$316)<0,0, IF(FORECAST($C301,I$305:I$316,$C$305:$C$316)>100,100, FORECAST($C301,I$305:I$316,$C$305:$C$316)))) -> 49.86313385 | M301: =IF(MAX(C305:C316)-MIN(C305:C316)<5,AVERAGEIF(C305:C316,">0",M305:M316), IF(FORECAST($C301,M$305:M$316,$C$305:$C$316)<0,0, IF(FORECAST($C301,M$305:M$316,$C$305:$C$316)>100,100, FORECAST($C301,M$305:M$316,$C$305:$C$316)))) -> 35.8529464 | N301: =IF(MAX(C305:C316)-MIN(C305:C316)<5,AVERAGEIF(C305:C316,">0",N305:N316), IF(FORECAST($C301,N$305:N$316,$C$305:$C$316)<0,0, IF(FORECAST($C301,N$305:N$316,$C$305:$C$316)>100,100, FORECAST($C301,N$305:N$316,$C$305:$C$316)))) -> 54.15231635 | R301: =IF(MAX(C305:C316)-MIN(C305:C316)<5,AVERAGEIF(C305:C316,">0",R305:R316), IF(FORECAST($C301,R$305:R$316,$C$305:$C$316)<0,0, IF(FORECAST($C301,R$305:R$316,$C$305:$C$316)>100,100, FORECAST($C301,R$305:R$316,$C$305:$C$316)))) -> 33.6959508 | S301: =IF(MAX(C305:C316)-MIN(C305:C316)<5,AVERAGEIF(C305:C316,">0",S305:S316), IF(FORECAST($C301,S$305:S$316,$C$305:$C$316)<0,0, IF(FORECAST($C301,S$305:S$316,$C$305:$C$316)>100,100, FORECAST($C301,S$305:S$316,$C$305:$C$316)))) -> 62.05658444 | W301: =IF(MAX(C305:C316)-MIN(C305:C316)<5,AVERAGEIF(C305:C316,">0",W305:W316), IF(FORECAST($C301,W$305:W$316,$C$305:$C$316)<0,0, IF(FORECAST($C301,W$305:W$316,$C$305:$C$316)>100,100, FORECAST($C301,W$305:W$316,$C$305:$C$316)))) -> 27.54958184 | X301: =IF(MAX(C305:C316)-MIN(C305:C316)<5,AVERAGEIF(C305:C316,">0",X305:X316), IF(FORECAST($C301,X$305:X$316,$C$305:$C$316)<0,0, IF(FORECAST($C301,X$305:X$316,$C$305:$C$316)>100,100, FORECAST($C301,X$305:X$316,$C$305:$C$316)))) -> 76.68194934 | AB301: =IF(MAX(C305:C316)-MIN(C305:C316)<5,AVERAGEIF(C305:C316,">0",AB305:AB316), IF(FORECAST($C301,AB$305:AB$316,$C$305:$C$316)<0,0, IF(FORECAST($C301,AB$305:AB$316,$C$305:$C$316)>100,100, FORECAST($C301,AB$305:AB$316,$C$305:$C$316)))) -> 15.29654497
C302: =MaxRegYear(C300,C305:C316) -> 2020 | D302: =IF(MAX(C305:C316)-MIN(C305:C316)<5,AVERAGEIF(C305:C316,">0",D305:D316), IF(FORECAST($C302,D$305:D$316,$C$305:$C$316)<0,0, IF(FORECAST($C302,D$305:D$316,$C$305:$C$316)>100,100, FORECAST($C302,D$305:D$316,$C$305:$C$316)))) -> 65.13084671 | H302: =IF(MAX(C305:C316)-MIN(C305:C316)<5,AVERAGEIF(C305:C316,">0",H305:H316), IF(FORECAST($C302,H$305:H$316,$C$305:$C$316)<0,0, IF(FORECAST($C302,H$305:H$316,$C$305:$C$316)>100,100, FORECAST($C302,H$305:H$316,$C$305:$C$316)))) -> 25.52511195 | I302: =IF(MAX(C305:C316)-MIN(C305:C316)<5,AVERAGEIF(C305:C316,">0",I305:I316), IF(FORECAST($C302,I$305:I$316,$C$305:$C$316)<0,0, IF(FORECAST($C302,I$305:I$316,$C$305:$C$316)>100,100, FORECAST($C302,I$305:I$316,$C$305:$C$316)))) -> 75.152953 | M302: =IF(MAX(C305:C316)-MIN(C305:C316)<5,AVERAGEIF(C305:C316,">0",M305:M316), IF(FORECAST($C302,M$305:M$316,$C$305:$C$316)<0,0, IF(FORECAST($C302,M$305:M$316,$C$305:$C$316)>100,100, FORECAST($C302,M$305:M$316,$C$305:$C$316)))) -> 19.12797629 | N302: =IF(MAX(C305:C316)-MIN(C305:C316)<5,AVERAGEIF(C305:C316,">0",N305:N316), IF(FORECAST($C302,N$305:N$316,$C$305:$C$316)<0,0, IF(FORECAST($C302,N$305:N$316,$C$305:$C$316)>100,100, FORECAST($C302,N$305:N$316,$C$305:$C$316)))) -> 87.67501074 | R302: =IF(MAX(C305:C316)-MIN(C305:C316)<5,AVERAGEIF(C305:C316,">0",R305:R316), IF(FORECAST($C302,R$305:R$316,$C$305:$C$316)<0,0, IF(FORECAST($C302,R$305:R$316,$C$305:$C$316)>100,100, FORECAST($C302,R$305:R$316,$C$305:$C$316)))) -> 9.893870013 | S302: =IF(MAX(C305:C316)-MIN(C305:C316)<5,AVERAGEIF(C305:C316,">0",S305:S316), IF(FORECAST($C302,S$305:S$316,$C$305:$C$316)<0,0, IF(FORECAST($C302,S$305:S$316,$C$305:$C$316)>100,100, FORECAST($C302,S$305:S$316,$C$305:$C$316)))) -> 96.11574801 | W302: =IF(MAX(C305:C316)-MIN(C305:C316)<5,AVERAGEIF(C305:C316,">0",W305:W316), IF(FORECAST($C302,W$305:W$316,$C$305:$C$316)<0,0, IF(FORECAST($C302,W$305:W$316,$C$305:$C$316)>100,100, FORECAST($C302,W$305:W$316,$C$305:$C$316)))) -> 2.659373896 | X302: =IF(MAX(C305:C316)-MIN(C305:C316)<5,AVERAGEIF(C305:C316,">0",X305:X316), IF(FORECAST($C302,X$305:X$316,$C$305:$C$316)<0,0, IF(FORECAST($C302,X$305:X$316,$C$305:$C$316)>100,100, FORECAST($C302,X$305:X$316,$C$305:$C$316)))) -> 100 | AB302: =IF(MAX(C305:C316)-MIN(C305:C316)<5,AVERAGEIF(C305:C316,">0",AB305:AB316), IF(FORECAST($C302,AB$305:AB$316,$C$305:$C$316)<0,0, IF(FORECAST($C302,AB$305:AB$316,$C$305:$C$316)>100,100, FORECAST($C302,AB$305:AB$316,$C$305:$C$316)))) -> 0
B304: Survey | C304: Year | D304: Improved | E304: % Improved < = 30min | H304: Surface water | I304: Improved | J304: % Improved < = 30min | M304: Surface water | N304: Improved | O304: % Improved < = 30min | R304: Surface water | S304: Improved | T304: % Improved < = 30min | W304: Surface water | X304: Improved | Y304: % Improved < = 30min | AB304: Surface water
B305: DHS03 | C305: 2003 | D305: =IF(ISERROR(INDIRECT(CONCATENATE($B305,"!M16"))),"",INDIRECT(CONCATENATE($B305,"!M16"))) -> 45.2 | E305: =IF(ISERROR(INDIRECT(CONCATENATE($B305,"!M23"))),"",INDIRECT(CONCATENATE($B305,"!M23"))) -> 90.3 | H305: =IF(ISERROR(INDIRECT(CONCATENATE($B305,"!M21"))),"",INDIRECT(CONCATENATE($B305,"!M21"))) -> 38.1 | I305: =IF(ISERROR(INDIRECT(CONCATENATE($B305,"!N16"))),"",INDIRECT(CONCATENATE($B305,"!N16"))) -> 45.5 | J305: =IF(ISERROR(INDIRECT(CONCATENATE($B305,"!N23"))),"",INDIRECT(CONCATENATE($B305,"!N23"))) -> 89.2 | M305: =IF(ISERROR(INDIRECT(CONCATENATE($B305,"!N21"))),"",INDIRECT(CONCATENATE($B305,"!N21"))) -> 34.1 | N305: =IF(ISERROR(INDIRECT(CONCATENATE($B305,"!O16"))),"",INDIRECT(CONCATENATE($B305,"!O16"))) -> 50.1 | O305: =IF(ISERROR(INDIRECT(CONCATENATE($B305,"!O23"))),"",INDIRECT(CONCATENATE($B305,"!O23"))) -> 86.7 | R305: =IF(ISERROR(INDIRECT(CONCATENATE($B305,"!O21"))),"",INDIRECT(CONCATENATE($B305,"!O21"))) -> 34.2 | S305: =IF(ISERROR(INDIRECT(CONCATENATE($B305,"!P16"))),"",INDIRECT(CONCATENATE($B305,"!P16"))) -> 58 | T305: =IF(ISERROR(INDIRECT(CONCATENATE($B305,"!P23"))),"",INDIRECT(CONCATENATE($B305,"!P23"))) -> 87.4 | W305: =IF(ISERROR(INDIRECT(CONCATENATE($B305,"!P21"))),"",INDIRECT(CONCATENATE($B305,"!P21"))) -> 31.6 | X305: =IF(ISERROR(INDIRECT(CONCATENATE($B305,"!Q16"))),"",INDIRECT(CONCATENATE($B305,"!Q16"))) -> 65.2 | Y305: =IF(ISERROR(INDIRECT(CONCATENATE($B305,"!Q23"))),"",INDIRECT(CONCATENATE($B305,"!Q23"))) -> 94 | AB305: =IF(ISERROR(INDIRECT(CONCATENATE($B305,"!Q221"))),"",INDIRECT(CONCATENATE($B305,"!Q21"))) -> 22.6
B306: MICS06 | C306: 2006 | D306: 67.63488382 | E306: 75.21126309 | H306: 23.13195253 | I306: 62.3407689 | J306: 80.01800478 | M306: 31.38145352 | N306: 60.9843856 | O306: 84.77412882 | R306: 30.83757908 | S306: 68.78993087 | T306: 87.15585258 | W306: 18.95762989 | X306: 90.68023777 | Y306: 90.98265825 | AB306: 5.870532024
B307: DHS08 | C307: 2008 | D307: 64.2 | E307: 76.2 | H307: 28.4 | I307: 67.1 | J307: 86.6 | M307: 26.2 | N307: 76.9 | O307: 90.2 | R307: 18 | S307: 83.6 | T307: 94.5 | W307: 13.8 | X307: 94.3 | Y307: 95.8 | AB307: 4.2
B308: MICS11 | C308: 2011 | D308: 53.7 | E308: 65 | H308: 34.6 | I308: 55.3 | J308: 70.4 | M308: 33 | N308: 69.2 | O308: 79.9 | R308: 23.4 | S308: 81.5 | T308: 85 | W308: 12.9 | X308: 94 | Y308: 90 | AB308: 4.7
B309: GLSS13 | C309: 2013 | D309: 55.9 | E309: 80.6 | H309: 37.2 | I309: 66.8 | J309: 81.5 | M309: 24.7 | N309: 86.6 | O309: 87.5 | R309: 11.7 | S309: 91.9 | T309: 90.1 | W309: 6.5 | X309: 91.9 | Y309: 90.1 | AB309: 6.5
B310: DHS14 | C310: 2014 | D310: 67.77368696 | E310: 79.1337029 | H310: 23.99908966 | I310: 70.8250718 | J310: 80.09228487 | M310: 22.88621869 | N310: 78.53502152 | O310: 85.37681166 | R310: 15.72686136 | S310: 87.36146472 | T310: 86.12461532 | W310: 9.886187385 | X310: 94.35615612 | Y310: 93.72564426 | AB310: 3.354286072
B311: MIS16 | C311: 2016 | D311: 47.9787572 | E311: 90.45000011 | H311: 35.78294463 | I311: 67.76240909 | J311: 94.96645547 | M311: 21.58367494 | N311: 77.38514222 | O311: 97.43348388 | R311: 16.49969093 | S311: 86.0165536 | T311: 97.40679092 | W311: 10.06108049 | X311: 96.78670942 | Y311: 98.74779271 | AB311: 2.100058901
B312: DHS17 | C312: 2017 | D312: 67.42699177 | E312: 75.08781122 | H312: 22.65713894 | I312: 72.33835187 | J312: 84.63708726 | M312: 22.0521902 | N312: 80.50293886 | O312: 89.09835316 | R312: 16.26878732 | S312: 87.55027784 | T312: 91.18472329 | W312: 10.65107115 | X312: 94.95098349 | Y312: 94.0408381 | AB312: 4.250086275
B313: MICS18 | C313: 2018 | D313: 62.76507162 | E313: 78.55389387 | H313: 25.49132224 | I313: 64.84032418 | J313: 85.01799515 | M313: 26.2692532 | N313: 76.27802111 | O313: 91.08513221 | R313: 18.49788888 | S313: 87.85631218 | T313: 91.96887842 | W313: 8.40200242 | X313: 95.72265123 | Y313: 95.4661868 | AB313: 3.667449036
B314: MIS19 | C314: 2019 | D314: 70.78629724 | E314: 69.27475095 | H314: 22.06197033 | I314: 78.89437065 | J314: 85.48362432 | M314: 15.12659124 | N314: 87.93817287 | O314: 86.02289123 | R314: 7.763474594 | S314: 94.13887419 | T314: 90.89506656 | W314: 2.086588466 | X314: 97.39887863 | Y314: 95.02111216 | AB314: 1.276198263
B318: =CONCATENATE("Rural use of drinking water sources, ",C299,"–",C300) -> Rural use of drinking water sources, 2000–2020 | S318: Data points used for regression

Sheet Sanitation
B4: Summary of trends in use of sanitation facilities by wealth quintile (%)
B5: =IF(ISERROR(INDIRECT(CONCATENATE($B105,"!A2"))),"",INDIRECT(CONCATENATE($B105,"!A2"))) -> Ghana
B7: =B118 -> National use of sanitation facilities, 2000–2020 | J7: =B218 -> Urban use of sanitation facilities, 2000–2020 | R7: =B318 -> Rural use of sanitation facilities, 2000–2020
B31: =IF(ISERROR(INDIRECT(CONCATENATE($B105,"!A2"))),"",INDIRECT(CONCATENATE($B105,"!A2"))) -> Ghana | F31: Poorest | J31: Poor | N31: Middle | R31: Rich | V31: Richest
F32: Basic | G32: Limited | H32: Unimproved | I32: Open defecation | J32: Basic | K32: Limited | L32: Unimproved | M32: Open defecation | N32: Basic | O32: Limited | P32: Unimproved | Q32: Open defecation | R32: Basic | S32: Limited | T32: Unimproved | U32: Open defecation | V32: Basic | W32: Limited | X32: Unimproved | Y32: Open defecation
B33: NATIONAL | D33: Estimate | E33: =C99 -> 2000 | F33: =E99 -> 6.548441583 | G33: =F99 -> 14.14206225 | H33: 16.7812495 | I33: 62.52824666 | J33: =J99 -> 8.526242325 | K33: =K99 -> 32.68621753 | L33: 25.09534372 | M33: 33.69219643 | N33: =O99 -> 12.02933142 | O33: =P99 -> 47.34364101 | P33: 20.02185115 | Q33: 20.60517641 | R33: =T99 -> 18.16520752 | S33: =U99 -> 61.82705549 | T33: 11.65372844 | U33: 8.354008557 | V33: =Y99 -> 41.99288317 | W33: =Z99 -> 45.59198875 | X33: 9.365936151 | Y33: 3.049191932
E34: =C100 -> 2020 | F34: =E100 -> 10.69868922 | G34: 23.10496734 | H34: 18.61506644 | I34: 47.581277 | J34: =J100 -> 11.46034639 | K34: 43.93440401 | L34: 19.17858209 | M34: 25.42666751 | N34: =O100 -> 14.74101141 | O34: 58.01595516 | P34: 14.93046277 | Q34: 12.31257065 | R34: =T100 -> 18.81847205 | S34: 64.05050506 | T34: 10.93518357 | U34: 6.195839322 | V34: =Y100 -> 45.67079823 | W34: 49.58512875 | X34: 3.692254838 | Y34: 1.051818183
B36: URBAN | D36: Estimate | E36: =C199 -> 2000 | F36: =E199 -> 9.720280459 | G36: =F199 -> 54.59082258 | H36: 16.56025696 | I36: 19.12864 | J36: =J199 -> 12.65317347 | K36: =K199 -> 64.86115402 | L36: 12.54868738 | M36: 9.936985131 | N36: =O199 -> 17.500698 | O36: =P199 -> 65.68216337 | P36: 11.75766252 | Q36: 5.05947611 | R36: =T199 -> 23.79669051 | S36: =U199 -> 59.80528563 | T36: 12.40282036 | U36: 3.995203496 | V36: =Y199 -> 57.77642373 | W36: =Z199 -> 34.93844182 | X36: 6.187475091 | Y36: 1.097659353
E37: =C200 -> 2020 | F37: =E200 -> 9.609093685 | G37: 53.9663779 | H37: 12.73966665 | I37: 23.68486177 | J37: =J200 -> 12.86647656 | K37: 65.95456232 | L37: 11.66451314 | M37: 9.514447977 | N37: =O200 -> 18.12806305 | O37: 68.03673766 | P37: 9.212781802 | Q37: 4.622417488 | R37: =T200 -> 26.39886257 | S37: 66.34500355 | T37: 5.621052203 | U37: 1.635081682 | V37: =Y200 -> 60.19323056 | W37: 36.39992835 | X37: 2.83945645 | Y37: 0.5673846395
B39: RURAL | D39: Estimate | E39: =C299 -> 2000 | F39: =E299 -> 5.219083076 | G39: =F299 -> 8.92698225 | H39: 7.912002155 | I39: 77.94193252 | J39: =J299 -> 8.653472079 | K39: =K299 -> 19.85260582 | L39: 23.90806568 | M39: 47.58585642 | N39: =O299 -> 10.08964384 | O39: =P299 -> 33.64151641 | P39: 26.0759518 | Q39: 30.19288795 | R39: =T299 -> 12.36131737 | S39: =U299 -> 37.88983609 | T39: 25.24752223 | U39: 24.50132431 | V39: =Y299 -> 24.33245645 | W39: =Z299 -> 47.40399764 | X39: 12.87911022 | Y39: 15.38443568
E40: =C300 -> 2020 | F40: =E300 -> 9.876979169 | G40: 16.89408205 | H40: 18.98216313 | I40: 54.24677565 | J40: =J300 -> 11.83100775 | K40: 27.14243846 | L40: 23.86549696 | M40: 37.16105683 | N40: =O300 -> 11.52141279 | O40: 38.41540924 | P40: 21.0332161 | Q40: 29.02996187 | R40: =T300 -> 15.85997914 | S40: 48.61391324 | T40: 17.94638407 | U40: 17.57972354 | V40: =Y300 -> 26.68634682 | W40: 51.98979907 | X40: 13.69005294 | Y40: 7.633801177
A97: NATIONAL | D97: Poorest | I97: Poor | N97: Middle | S97: Rich | X97: Richest
D98: Improved | E98: Basic | F98: Limited | G98: Unimproved | H98: Open defecation | I98: Improved | J98: Basic | K98: Limited | L98: Unimproved | M98: Open defecation | N98: Improved | O98: Basic | P98: Limited | Q98: Unimproved | R98: Open defecation | S98: Improved | T98: Basic | U98: Limited | V98: Unimproved | W98: Open defecation | X98: Improved | Y98: Basic | Z98: Limited | AA98: Unimproved | AB98: Open defecation
A99: Forecast period: | C99: =MinBase(C105:C116) -> 2000 | D99: =IF((D101+H101)>100,D101*100/(D101+H101),D101) -> 20.69050383 | E99: =D99*AVERAGEIF(E105:E116,">0")/100 -> 6.548441583 | F99: =D99*(100-AVERAGEIF(E105:E116,">0"))/100 -> 14.14206225 | G99: =100-(E99+F99+H99) -> 16.7812495 | H99: =IF((D101+H101)>100,H101*100/(D101+H101),H101) -> 62.52824666 | I99: =IF((I101+M101)>100,I101*100/(I101+M101),I101) -> 41.21245985 | J99: =I99*AVERAGEIF(J105:J116,">0")/100 -> 8.526242325 | K99: =I99*(100-AVERAGEIF(J105:J116,">0"))/100 -> 32.68621753 | L99: =100-(J99+K99+M99) -> 25.09534372 | M99: =IF((I101+M101)>100,M101*100/(I101+M101),M101) -> 33.69219643 | N99: =IF((N101+R101)>100,N101*100/(N101+R101),N101) -> 59.37297243 | O99: =N99*AVERAGEIF(O105:O116,">0")/100 -> 12.02933142 | P99: =N99*(100-AVERAGEIF(O105:O116,">0"))/100 -> 47.34364101 | Q99: =100-(O99+P99+R99) -> 20.02185115 | R99: =IF((N101+R101)>100,R101*100/(N101+R101),R101) -> 20.60517641 | S99: =IF((S101+W101)>100,S101*100/(S101+W101),S101) -> 79.99226301 | T99: =S99*AVERAGEIF(T105:T116,">0")/100 -> 18.16520752 | U99: =S99*(100-AVERAGEIF(T105:T116,">0"))/100 -> 61.82705549 | V99: =100-(T99+U99+W99) -> 11.65372844 | W99: =IF((S101+W101)>100,W101*100/(S101+W101),W101) -> 8.354008557 | X99: =IF((X101+AB101)>100,X101*100/(X101+AB101),X101) -> 87.58487192 | Y99: =X99*AVERAGEIF(Y105:Y116,">0")/100 -> 41.99288317 | Z99: =X99*(100-AVERAGEIF(Y105:Y116,">0"))/100 -> 45.59198875 | AA99: =100-(Y99+Z99+AB99) -> 9.365936151 | AB99: =IF((X101+AB101)>100,AB101*100/(X101+AB101),AB101) -> 3.049191932
C100: =MaxTarget(C105:C116) -> 2020 | D100: =IF((D102+H102)>100,D102*100/(D102+H102),D102) -> 33.80365656 | E100: =D100*AVERAGEIF(E105:E116,">0")/100 -> 10.69868922 | F100: =D100*(100-AVERAGEIF(E105:E116,">0"))/100 -> 23.10496734 | G100: =100-(E100+F100+H100) -> 18.61506644 | H100: =IF((D102+H102)>100,H102*100/(D102+H102),H102) -> 47.581277 | I100: =IF((I102+M102)>100,I102*100/(I102+M102),I102) -> 55.3947504 | J100: =I100*AVERAGEIF(J105:J116,">0")/100 -> 11.46034639 | K100: =I100*(100-AVERAGEIF(J105:J116,">0"))/100 -> 43.93440401 | L100: =100-(J100+K100+M100) -> 19.17858209 | M100: =IF((I102+M102)>100,M102*100/(I102+M102),M102) -> 25.42666751 | N100: =IF((N102+R102)>100,N102*100/(N102+R102),N102) -> 72.75696657 | O100: =N100*AVERAGEIF(O105:O116,">0")/100 -> 14.74101141 | P100: =N100*(100-AVERAGEIF(O105:O116,">0"))/100 -> 58.01595516 | Q100: =100-(O100+P100+R100) -> 14.93046277 | R100: =IF((N102+R102)>100,R102*100/(N102+R102),R102) -> 12.31257065 | S100: =IF((S102+W102)>100,S102*100/(S102+W102),S102) -> 82.86897711 | T100: =S100*AVERAGEIF(T105:T116,">0")/100 -> 18.81847205 | U100: =S100*(100-AVERAGEIF(T105:T116,">0"))/100 -> 64.05050506 | V100: =100-(T100+U100+W100) -> 10.93518357 | W100: =IF((S102+W102)>100,W102*100/(S102+W102),W102) -> 6.195839322 | X100: =IF((X102+AB102)>100,X102*100/(X102+AB102),X102) -> 95.25592698 | Y100: =X100*AVERAGEIF(Y105:Y116,">0")/100 -> 45.67079823 | Z100: =X100*(100-AVERAGEIF(Y105:Y116,">0"))/100 -> 49.58512875 | AA100: =100-(Y100+Z100+AB100) -> 3.692254838 | AB100: =IF((X102+AB102)>100,AB102*100/(X102+AB102),AB102) -> 1.051818183
A101: Regression period: | C101: =MinRegYear(C99,C105:C116) -> 2001 | D101: =IF(MAX(C105:C116)-MIN(C105:C116)<5,AVERAGEIF(C105:C116,">0",D105:D116), IF(FORECAST($C101,D$105:D$116,$C$105:$C$116)<0,0, IF(FORECAST($C101,D$105:D$116,$C$105:$C$116)>100,100, FORECAST($C101,D$105:D$116,$C$105:$C$116)))) -> 20.69050383 | H101: =IF(MAX(C105:C116)-MIN(C105:C116)<5,AVERAGEIF(C105:C116,">0",H105:H116), IF(FORECAST($C101,H$105:H$116,$C$105:$C$116)<0,0, IF(FORECAST($C101,H$105:H$116,$C$105:$C$116)>100,100, FORECAST($C101,H$105:H$116,$C$105:$C$116)))) -> 62.52824666 | I101: =IF(MAX(C105:C116)-MIN(C105:C116)<5,AVERAGEIF(C105:C116,">0",I105:I116), IF(FORECAST($C101,I$105:I$116,$C$105:$C$116)<0,0, IF(FORECAST($C101,I$105:I$116,$C$105:$C$116)>100,100, FORECAST($C101,I$105:I$116,$C$105:$C$116)))) -> 41.21245985 | M101: =IF(MAX(C105:C116)-MIN(C105:C116)<5,AVERAGEIF(C105:C116,">0",M105:M116), IF(FORECAST($C101,M$105:M$116,$C$105:$C$116)<0,0, IF(FORECAST($C101,M$105:M$116,$C$105:$C$116)>100,100, FORECAST($C101,M$105:M$116,$C$105:$C$116)))) -> 33.69219643 | N101: =IF(MAX(C105:C116)-MIN(C105:C116)<5,AVERAGEIF(C105:C116,">0",N105:N116), IF(FORECAST($C101,N$105:N$116,$C$105:$C$116)<0,0, IF(FORECAST($C101,N$105:N$116,$C$105:$C$116)>100,100, FORECAST($C101,N$105:N$116,$C$105:$C$116)))) -> 59.37297243 | R101: =IF(MAX(C105:C116)-MIN(C105:C116)<5,AVERAGEIF(C105:C116,">0",R105:R116), IF(FORECAST($C101,R$105:R$116,$C$105:$C$116)<0,0, IF(FORECAST($C101,R$105:R$116,$C$105:$C$116)>100,100, FORECAST($C101,R$105:R$116,$C$105:$C$116)))) -> 20.60517641 | S101: =IF(MAX(C105:C116)-MIN(C105:C116)<5,AVERAGEIF(C105:C116,">0",S105:S116), IF(FORECAST($C101,S$105:S$116,$C$105:$C$116)<0,0, IF(FORECAST($C101,S$105:S$116,$C$105:$C$116)>100,100, FORECAST($C101,S$105:S$116,$C$105:$C$116)))) -> 79.99226301 | W101: =IF(MAX(C105:C116)-MIN(C105:C116)<5,AVERAGEIF(C105:C116,">0",W105:W116), IF(FORECAST($C101,W$105:W$116,$C$105:$C$116)<0,0, IF(FORECAST($C101,W$105:W$116,$C$105:$C$116)>100,100, FORECAST($C101,W$105:W$116,$C$105:$C$116)))) -> 8.354008557 | X101: =IF(MAX(C105:C116)-MIN(C105:C116)<5,AVERAGEIF(C105:C116,">0",X105:X116), IF(FORECAST($C101,X$105:X$116,$C$105:$C$116)<0,0, IF(FORECAST($C101,X$105:X$116,$C$105:$C$116)>100,100, FORECAST($C101,X$105:X$116,$C$105:$C$116)))) -> 87.58487192 | AB101: =IF(MAX(C105:C116)-MIN(C105:C116)<5,AVERAGEIF(C105:C116,">0",AB105:AB116), IF(FORECAST($C101,AB$105:AB$116,$C$105:$C$116)<0,0, IF(FORECAST($C101,AB$105:AB$116,$C$105:$C$116)>100,100, FORECAST($C101,AB$105:AB$116,$C$105:$C$116)))) -> 3.049191932
C102: =MaxRegYear(C100,C105:C116) -> 2020 | D102: =IF(MAX(C105:C116)-MIN(C105:C116)<5,AVERAGEIF(C105:C116,">0",D105:D116), IF(FORECAST($C102,D$105:D$116,$C$105:$C$116)<0,0, IF(FORECAST($C102,D$105:D$116,$C$105:$C$116)>100,100, FORECAST($C102,D$105:D$116,$C$105:$C$116)))) -> 33.80365656 | H102: =IF(MAX(C105:C116)-MIN(C105:C116)<5,AVERAGEIF(C105:C116,">0",H105:H116), IF(FORECAST($C102,H$105:H$116,$C$105:$C$116)<0,0, IF(FORECAST($C102,H$105:H$116,$C$105:$C$116)>100,100, FORECAST($C102,H$105:H$116,$C$105:$C$116)))) -> 47.581277 | I102: =IF(MAX(C105:C116)-MIN(C105:C116)<5,AVERAGEIF(C105:C116,">0",I105:I116), IF(FORECAST($C102,I$105:I$116,$C$105:$C$116)<0,0, IF(FORECAST($C102,I$105:I$116,$C$105:$C$116)>100,100, FORECAST($C102,I$105:I$116,$C$105:$C$116)))) -> 55.3947504 | M102: =IF(MAX(C105:C116)-MIN(C105:C116)<5,AVERAGEIF(C105:C116,">0",M105:M116), IF(FORECAST($C102,M$105:M$116,$C$105:$C$116)<0,0, IF(FORECAST($C102,M$105:M$116,$C$105:$C$116)>100,100, FORECAST($C102,M$105:M$116,$C$105:$C$116)))) -> 25.42666751 | N102: =IF(MAX(C105:C116)-MIN(C105:C116)<5,AVERAGEIF(C105:C116,">0",N105:N116), IF(FORECAST($C102,N$105:N$116,$C$105:$C$116)<0,0, IF(FORECAST($C102,N$105:N$116,$C$105:$C$116)>100,100, FORECAST($C102,N$105:N$116,$C$105:$C$116)))) -> 72.75696657 | R102: =IF(MAX(C105:C116)-MIN(C105:C116)<5,AVERAGEIF(C105:C116,">0",R105:R116), IF(FORECAST($C102,R$105:R$116,$C$105:$C$116)<0,0, IF(FORECAST($C102,R$105:R$116,$C$105:$C$116)>100,100, FORECAST($C102,R$105:R$116,$C$105:$C$116)))) -> 12.31257065 | S102: =IF(MAX(C105:C116)-MIN(C105:C116)<5,AVERAGEIF(C105:C116,">0",S105:S116), IF(FORECAST($C102,S$105:S$116,$C$105:$C$116)<0,0, IF(FORECAST($C102,S$105:S$116,$C$105:$C$116)>100,100, FORECAST($C102,S$105:S$116,$C$105:$C$116)))) -> 82.86897711 | W102: =IF(MAX(C105:C116)-MIN(C105:C116)<5,AVERAGEIF(C105:C116,">0",W105:W116), IF(FORECAST($C102,W$105:W$116,$C$105:$C$116)<0,0, IF(FORECAST($C102,W$105:W$116,$C$105:$C$116)>100,100, FORECAST($C102,W$105:W$116,$C$105:$C$116)))) -> 6.195839322 | X102: =IF(MAX(C105:C116)-MIN(C105:C116)<5,AVERAGEIF(C105:C116,">0",X105:X116), IF(FORECAST($C102,X$105:X$116,$C$105:$C$116)<0,0, IF(FORECAST($C102,X$105:X$116,$C$105:$C$116)>100,100, FORECAST($C102,X$105:X$116,$C$105:$C$116)))) -> 95.25592698 | AB102: =IF(MAX(C105:C116)-MIN(C105:C116)<5,AVERAGEIF(C105:C116,">0",AB105:AB116), IF(FORECAST($C102,AB$105:AB$116,$C$105:$C$116)<0,0, IF(FORECAST($C102,AB$105:AB$116,$C$105:$C$116)>100,100, FORECAST($C102,AB$105:AB$116,$C$105:$C$116)))) -> 1.051818183
B104: Survey | C104: Year | D104: Improved | E104: Not shared | H104: Open defecation | I104: Improved | J104: Not shared | M104: Open defecation | N104: Improved | O104: Not shared | R104: Open defecation | S104: Improved | T104: Not shared | W104: Open defecation | X104: Improved | Y104: Not shared | AB104: Open defecation
B105: DHS03 | C105: 2003 | D105: =IF(ISERROR(INDIRECT(CONCATENATE($B105,"!C122"))),"",INDIRECT(CONCATENATE($B105,"!C122"))) -> 28.51627806 | E105: =IF(ISERROR(INDIRECT(CONCATENATE($B105,"!C129"))),"",INDIRECT(CONCATENATE($B105,"!C129"))) -> N/A | H105: =IF(ISERROR(INDIRECT(CONCATENATE($B105,"!C127"))),"",INDIRECT(CONCATENATE($B105,"!C127"))) -> 47.57162522 | I105: =IF(ISERROR(INDIRECT(CONCATENATE($B105,"!D122"))),"",INDIRECT(CONCATENATE($B105,"!D122"))) -> 36.51439017 | J105: =IF(ISERROR(INDIRECT(CONCATENATE($B105,"!D129"))),"",INDIRECT(CONCATENATE($B105,"!D129"))) -> N/A | M105: =IF(ISERROR(INDIRECT(CONCATENATE($B105,"!D127"))),"",INDIRECT(CONCATENATE($B105,"!D127"))) -> 38.17939868 | N105: =IF(ISERROR(INDIRECT(CONCATENATE($B105,"!E122"))),"",INDIRECT(CONCATENATE($B105,"!E122"))) -> 53.47268085 | O105: =IF(ISERROR(INDIRECT(CONCATENATE($B105,"!E129"))),"",INDIRECT(CONCATENATE($B105,"!E129"))) -> N/A | R105: =IF(ISERROR(INDIRECT(CONCATENATE($B105,"!E127"))),"",INDIRECT(CONCATENATE($B105,"!E127"))) -> 25.30109433 | S105: =IF(ISERROR(INDIRECT(CONCATENATE($B105,"!F122"))),"",INDIRECT(CONCATENATE($B105,"!F122"))) -> 77.34213255 | T105: =IF(ISERROR(INDIRECT(CONCATENATE($B105,"!F129"))),"",INDIRECT(CONCATENATE($B105,"!F129"))) -> N/A | W105: =IF(ISERROR(INDIRECT(CONCATENATE($B105,"!F127"))),"",INDIRECT(CONCATENATE($B105,"!F127"))) -> 9.031447085 | X105: =IF(ISERROR(INDIRECT(CONCATENATE($B105,"!G122"))),"",INDIRECT(CONCATENATE($B105,"!G122"))) -> 86.29470712 | Y105: =IF(ISERROR(INDIRECT(CONCATENATE($B105,"!G129"))),"",INDIRECT(CONCATENATE($B105,"!G129"))) -> N/A | AB105: =IF(ISERROR(INDIRECT(CONCATENATE($B105,"!G2127"))),"",INDIRECT(CONCATENATE($B105,"!G127"))) -> 2.206340486
B106: MICS06 | C106: 2006 | D106: 18.15554046 | E106: 10.50452893 | H106: 65.98034709 | I106: 46.75729814 | J106: 7.440971642 | M106: 28.39924006 | N106: 66.87017961 | O106: 9.612292691 | R106: 14.81278256 | S106: 82.71007141 | T106: 9.012413048 | W106: 8.398813307 | X106: 88.95722125 | Y106: 34.49056258 | AB106: 4.386327259
B107: DHS08 | C107: 2008 | D107: 27.1 | E107: 22.5 | H107: 63.3 | I107: 56.4 | J107: 7.5 | M107: 27.9 | N107: 72.5 | O107: 6.6 | R107: 14.9 | S107: 84.2 | T107: 10.4 | W107: 6.8 | X107: 92.6 | Y107: 41.4 | AB107: 1.9
B108: MICS11 | C108: 2011 | D108: 23.52648883 | E108: 28.55751301 | H108: 58.95761938 | I108: 43.3452157 | J108: 11.90758789 | M108: 29.41859882 | N108: 66.81636026 | O108: 12.9086787 | R108: 16.01990523 | S108: 79.02154499 | T108: 18.68846801 | W108: 8.042810445 | X108: 91.60137138 | Y108: 43.1953986 | AB108: 2.310480322
B109: GLSS13 | C109: 2013 | D109: 28.1368067 | E109: N/A | H109: 53.08076096 | I109: 44.1235847 | J109: N/A | M109: 27.24030741 | N109: 56.12067481 | O109: N/A | R109: 14.42869285 | S109: 74.62427836 | T109: N/A | W109: 5.482730894 | X109: 93.26180487 | Y109: N/A | AB109: 0.2446820738
B110: DHS14 | C110: 2014 | D110: 32.54356732 | E110: 77.35651905 | H110: 56.36999881 | I110: 59.08780722 | J110: 72.65454096 | M110: 28.26904263 | N110: 74.75844953 | O110: 65.36353478 | R110: 14.07995115 | S110: 89.17916858 | T110: 60.30425862 | W110: 5.1196742 | X110: 94.84086394 | Y110: 63.32564611 | AB110: 0.9659116467
B111: MIS16 | C111: 2016 | D111: 27.42131929 | E111: 19.92405447 | H111: 51.26135821 | I111: 55.28767626 | J111: 11.34857953 | M111: 23.37665339 | N111: 77.28669496 | O111: 12.58425914 | R111: 12.2466886 | S111: 89.82393801 | T111: 19.67025942 | W111: 4.731185289 | X111: 96.5156254 | Y111: 46.69761276 | AB111: 1.391418599
B112: DHS17 | C112: 2017 | D112: 26.55719703 | E112: 24.66002034 | H112: 47.68582057 | I112: 53.43876539 | J112: 17.48916329 | M112: 24.80130787 | N112: 71.04368214 | O112: 16.96185727 | R112: 12.8874041 | S112: 82.35543984 | T112: 22.73218271 | W112: 6.315476901 | X112: 93.80702102 | Y112: 53.89932029 | AB112: 1.739212711
B113: MICS18 | C113: 2018 | D113: 34.10181235 | E113: 36.35309774 | H113: 46.45321899 | I113: 48.6735694 | J113: 19.21123041 | M113: 32.17534278 | N113: 59.51741281 | O113: 19.91230778 | R113: 18.7270822 | S113: 74.02739221 | T113: 21.21139212 | W113: 9.770970841 | X113: 89.32422015 | Y113: 52.13137493 | AB113: 1.554005897
B114: MIS19 | C114: 2019 | D114: 40.2151106 | E114: 33.34028859 | H114: 44.15321679 | I114: 54.33647115 | J114: 17.95597615 | M114: 27.13387131 | N114: 76.35197495 | O114: 18.14201743 | R114: 12.45607561 | S114: 84.05035475 | T114: 19.65067096 | W114: 6.784373345 | X114: 95.07595415 | Y114: 48.42297411 | AB114: 1.704172897
B118: =CONCATENATE("National use of sanitation facilities, ",C99,"–",C100) -> National use of sanitation facilities, 2000–2020 | S118: Data points used for regression
A197: URBAN | D197: Poorest | I197: Poor | N197: Middle | S197: Rich | X197: Richest
D198: Improved | E198: Basic | F198: Limited | G198: Unimproved | H198: Open defecation | I198: Improved | J198: Basic | K198: Limited | L198: Unimproved | M198: Open defecation | N198: Improved | O198: Basic | P198: Limited | Q198: Unimproved | R198: Open defecation | S198: Improved | T198: Basic | U198: Limited | V198: Unimproved | W198: Open defecation | X198: Improved | Y198: Basic | Z198: Limited | AA198: Unimproved | AB198: Open defecation
A199: Forecast period: | C199: 2000 | D199: =IF((D201+H201)>100,D201*100/(D201+H201),D201) -> 64.31110304 | E199: =D199*AVERAGEIF(E205:E216,">0")/100 -> 9.720280459 | F199: =D199*(100-AVERAGEIF(E205:E216,">0"))/100 -> 54.59082258 | G199: =100-(E199+F199+H199) -> 16.56025696 | H199: =IF((D201+H201)>100,H201*100/(D201+H201),H201) -> 19.12864 | I199: =IF((I201+M201)>100,I201*100/(I201+M201),I201) -> 77.51432749 | J199: =I199*AVERAGEIF(J205:J216,">0")/100 -> 12.65317347 | K199: =I199*(100-AVERAGEIF(J205:J216,">0"))/100 -> 64.86115402 | L199: =100-(J199+K199+M199) -> 12.54868738 | M199: =IF((I201+M201)>100,M201*100/(I201+M201),M201) -> 9.936985131 | N199: =IF((N201+R201)>100,N201*100/(N201+R201),N201) -> 83.18286137 | O199: =N199*AVERAGEIF(O205:O216,">0")/100 -> 17.500698 | P199: =N199*(100-AVERAGEIF(O205:O216,">0"))/100 -> 65.68216337 | Q199: =100-(O199+P199+R199) -> 11.75766252 | R199: =IF((N201+R201)>100,R201*100/(N201+R201),R201) -> 5.05947611 | S199: =IF((S201+W201)>100,S201*100/(S201+W201),S201) -> 83.60197614 | T199: =S199*AVERAGEIF(T205:T216,">0")/100 -> 23.79669051 | U199: =S199*(100-AVERAGEIF(T205:T216,">0"))/100 -> 59.80528563 | V199: =100-(T199+U199+W199) -> 12.40282036 | W199: =IF((S201+W201)>100,W201*100/(S201+W201),W201) -> 3.995203496 | X199: =IF((X201+AB201)>100,X201*100/(X201+AB201),X201) -> 92.71486556 | Y199: =X199*AVERAGEIF(Y205:Y216,">0")/100 -> 57.77642373 | Z199: =X199*(100-AVERAGEIF(Y205:Y216,">0"))/100 -> 34.93844182 | AA199: =100-(Y199+Z199+AB199) -> 6.187475091 | AB199: =IF((X201+AB201)>100,AB201*100/(X201+AB201),AB201) -> 1.097659353
C200: 2020 | D200: =IF((D202+H202)>100,D202*100/(D202+H202),D202) -> 63.57547158 | E200: =D200*AVERAGEIF(E205:E216,">0")/100 -> 9.609093685 | F200: =D200*(100-AVERAGEIF(E205:E216,">0"))/100 -> 53.9663779 | G200: =100-(E200+F200+H200) -> 12.73966665 | H200: =IF((D202+H202)>100,H202*100/(D202+H202),H202) -> 23.68486177 | I200: =IF((I202+M202)>100,I202*100/(I202+M202),I202) -> 78.82103888 | J200: =I200*AVERAGEIF(J205:J216,">0")/100 -> 12.86647656 | K200: =I200*(100-AVERAGEIF(J205:J216,">0"))/100 -> 65.95456232 | L200: =100-(J200+K200+M200) -> 11.66451314 | M200: =IF((I202+M202)>100,M202*100/(I202+M202),M202) -> 9.514447977 | N200: =IF((N202+R202)>100,N202*100/(N202+R202),N202) -> 86.16480071 | O200: =N200*AVERAGEIF(O205:O216,">0")/100 -> 18.12806305 | P200: =N200*(100-AVERAGEIF(O205:O216,">0"))/100 -> 68.03673766 | Q200: =100-(O200+P200+R200) -> 9.212781802 | R200: =IF((N202+R202)>100,R202*100/(N202+R202),R202) -> 4.622417488 | S200: =IF((S202+W202)>100,S202*100/(S202+W202),S202) -> 92.74386611 | T200: =S200*AVERAGEIF(T205:T216,">0")/100 -> 26.39886257 | U200: =S200*(100-AVERAGEIF(T205:T216,">0"))/100 -> 66.34500355 | V200: =100-(T200+U200+W200) -> 5.621052203 | W200: =IF((S202+W202)>100,W202*100/(S202+W202),W202) -> 1.635081682 | X200: =IF((X202+AB202)>100,X202*100/(X202+AB202),X202) -> 96.59315891 | Y200: =X200*AVERAGEIF(Y205:Y216,">0")/100 -> 60.19323056 | Z200: =X200*(100-AVERAGEIF(Y205:Y216,">0"))/100 -> 36.39992835 | AA200: =100-(Y200+Z200+AB200) -> 2.83945645 | AB200: =IF((X202+AB202)>100,AB202*100/(X202+AB202),AB202) -> 0.5673846395
A201: Regression period: | C201: =MinRegYear(C199,C205:C216) -> 2001 | D201: =IF(MAX(C205:C216)-MIN(C205:C216)<5,AVERAGEIF(C205:C216,">0",D205:D216), IF(FORECAST($C201,D$205:D$216,$C$205:$C$216)<0,0, IF(FORECAST($C201,D$205:D$216,$C$205:$C$216)>100,100, FORECAST($C201,D$205:D$216,$C$205:$C$216)))) -> 64.31110304 | H201: =IF(MAX(C205:C216)-MIN(C205:C216)<5,AVERAGEIF(C205:C216,">0",H205:H216), IF(FORECAST($C201,H$205:H$216,$C$205:$C$216)<0,0, IF(FORECAST($C201,H$205:H$216,$C$205:$C$216)>100,100, FORECAST($C201,H$205:H$216,$C$205:$C$216)))) -> 19.12864 | I201: =IF(MAX(C205:C216)-MIN(C205:C216)<5,AVERAGEIF(C205:C216,">0",I205:I216), IF(FORECAST($C201,I$205:I$216,$C$205:$C$216)<0,0, IF(FORECAST($C201,I$205:I$216,$C$205:$C$216)>100,100, FORECAST($C201,I$205:I$216,$C$205:$C$216)))) -> 77.51432749 | M201: =IF(MAX(C205:C216)-MIN(C205:C216)<5,AVERAGEIF(C205:C216,">0",M205:M216), IF(FORECAST($C201,M$205:M$216,$C$205:$C$216)<0,0, IF(FORECAST($C201,M$205:M$216,$C$205:$C$216)>100,100, FORECAST($C201,M$205:M$216,$C$205:$C$216)))) -> 9.936985131 | N201: =IF(MAX(C205:C216)-MIN(C205:C216)<5,AVERAGEIF(C205:C216,">0",N205:N216), IF(FORECAST($C201,N$205:N$216,$C$205:$C$216)<0,0, IF(FORECAST($C201,N$205:N$216,$C$205:$C$216)>100,100, FORECAST($C201,N$205:N$216,$C$205:$C$216)))) -> 83.18286137 | R201: =IF(MAX(C205:C216)-MIN(C205:C216)<5,AVERAGEIF(C205:C216,">0",R205:R216), IF(FORECAST($C201,R$205:R$216,$C$205:$C$216)<0,0, IF(FORECAST($C201,R$205:R$216,$C$205:$C$216)>100,100, FORECAST($C201,R$205:R$216,$C$205:$C$216)))) -> 5.05947611 | S201: =IF(MAX(C205:C216)-MIN(C205:C216)<5,AVERAGEIF(C205:C216,">0",S205:S216), IF(FORECAST($C201,S$205:S$216,$C$205:$C$216)<0,0, IF(FORECAST($C201,S$205:S$216,$C$205:$C$216)>100,100, FORECAST($C201,S$205:S$216,$C$205:$C$216)))) -> 83.60197614 | W201: =IF(MAX(C205:C216)-MIN(C205:C216)<5,AVERAGEIF(C205:C216,">0",W205:W216), IF(FORECAST($C201,W$205:W$216,$C$205:$C$216)<0,0, IF(FORECAST($C201,W$205:W$216,$C$205:$C$216)>100,100, FORECAST($C201,W$205:W$216,$C$205:$C$216)))) -> 3.995203496 | X201: =IF(MAX(C205:C216)-MIN(C205:C216)<5,AVERAGEIF(C205:C216,">0",X205:X216), IF(FORECAST($C201,X$205:X$216,$C$205:$C$216)<0,0, IF(FORECAST($C201,X$205:X$216,$C$205:$C$216)>100,100, FORECAST($C201,X$205:X$216,$C$205:$C$216)))) -> 92.71486556 | AB201: =IF(MAX(C205:C216)-MIN(C205:C216)<5,AVERAGEIF(C205:C216,">0",AB205:AB216), IF(FORECAST($C201,AB$205:AB$216,$C$205:$C$216)<0,0, IF(FORECAST($C201,AB$205:AB$216,$C$205:$C$216)>100,100, FORECAST($C201,AB$205:AB$216,$C$205:$C$216)))) -> 1.097659353
C202: =MaxRegYear(C200,C205:C216) -> 2020 | D202: =IF(MAX(C205:C216)-MIN(C205:C216)<5,AVERAGEIF(C205:C216,">0",D205:D216), IF(FORECAST($C202,D$205:D$216,$C$205:$C$216)<0,0, IF(FORECAST($C202,D$205:D$216,$C$205:$C$216)>100,100, FORECAST($C202,D$205:D$216,$C$205:$C$216)))) -> 63.57547158 | H202: =IF(MAX(C205:C216)-MIN(C205:C216)<5,AVERAGEIF(C205:C216,">0",H205:H216), IF(FORECAST($C202,H$205:H$216,$C$205:$C$216)<0,0, IF(FORECAST($C202,H$205:H$216,$C$205:$C$216)>100,100, FORECAST($C202,H$205:H$216,$C$205:$C$216)))) -> 23.68486177 | I202: =IF(MAX(C205:C216)-MIN(C205:C216)<5,AVERAGEIF(C205:C216,">0",I205:I216), IF(FORECAST($C202,I$205:I$216,$C$205:$C$216)<0,0, IF(FORECAST($C202,I$205:I$216,$C$205:$C$216)>100,100, FORECAST($C202,I$205:I$216,$C$205:$C$216)))) -> 78.82103888 | M202: =IF(MAX(C205:C216)-MIN(C205:C216)<5,AVERAGEIF(C205:C216,">0",M205:M216), IF(FORECAST($C202,M$205:M$216,$C$205:$C$216)<0,0, IF(FORECAST($C202,M$205:M$216,$C$205:$C$216)>100,100, FORECAST($C202,M$205:M$216,$C$205:$C$216)))) -> 9.514447977 | N202: =IF(MAX(C205:C216)-MIN(C205:C216)<5,AVERAGEIF(C205:C216,">0",N205:N216), IF(FORECAST($C202,N$205:N$216,$C$205:$C$216)<0,0, IF(FORECAST($C202,N$205:N$216,$C$205:$C$216)>100,100, FORECAST($C202,N$205:N$216,$C$205:$C$216)))) -> 86.16480071 | R202: =IF(MAX(C205:C216)-MIN(C205:C216)<5,AVERAGEIF(C205:C216,">0",R205:R216), IF(FORECAST($C202,R$205:R$216,$C$205:$C$216)<0,0, IF(FORECAST($C202,R$205:R$216,$C$205:$C$216)>100,100, FORECAST($C202,R$205:R$216,$C$205:$C$216)))) -> 4.622417488 | S202: =IF(MAX(C205:C216)-MIN(C205:C216)<5,AVERAGEIF(C205:C216,">0",S205:S216), IF(FORECAST($C202,S$205:S$216,$C$205:$C$216)<0,0, IF(FORECAST($C202,S$205:S$216,$C$205:$C$216)>100,100, FORECAST($C202,S$205:S$216,$C$205:$C$216)))) -> 92.74386611 | W202: =IF(MAX(C205:C216)-MIN(C205:C216)<5,AVERAGEIF(C205:C216,">0",W205:W216), IF(FORECAST($C202,W$205:W$216,$C$205:$C$216)<0,0, IF(FORECAST($C202,W$205:W$216,$C$205:$C$216)>100,100, FORECAST($C202,W$205:W$216,$C$205:$C$216)))) -> 1.635081682 | X202: =IF(MAX(C205:C216)-MIN(C205:C216)<5,AVERAGEIF(C205:C216,">0",X205:X216), IF(FORECAST($C202,X$205:X$216,$C$205:$C$216)<0,0, IF(FORECAST($C202,X$205:X$216,$C$205:$C$216)>100,100, FORECAST($C202,X$205:X$216,$C$205:$C$216)))) -> 96.59315891 | AB202: =IF(MAX(C205:C216)-MIN(C205:C216)<5,AVERAGEIF(C205:C216,">0",AB205:AB216), IF(FORECAST($C202,AB$205:AB$216,$C$205:$C$216)<0,0, IF(FORECAST($C202,AB$205:AB$216,$C$205:$C$216)>100,100, FORECAST($C202,AB$205:AB$216,$C$205:$C$216)))) -> 0.5673846395
B204: Survey | C204: Year | D204: Improved | E204: Not shared | H204: Open defecation | I204: Improved | J204: Not shared | M204: Open defecation | N204: Improved | O204: Not shared | R204: Open defecation | S204: Improved | T204: Not shared | W204: Open defecation | X204: Improved | Y204: Not shared | AB204: Open defecation
B205: DHS03 | C205: 2003 | D205: =IF(ISERROR(INDIRECT(CONCATENATE($B205,"!H122"))),"",INDIRECT(CONCATENATE($B205,"!H122"))) -> 61.04498484 | E205: =IF(ISERROR(INDIRECT(CONCATENATE($B205,"!H129"))),"",INDIRECT(CONCATENATE($B205,"!H129"))) -> N/A | H205: =IF(ISERROR(INDIRECT(CONCATENATE($B205,"!H127"))),"",INDIRECT(CONCATENATE($B205,"!H127"))) -> 19.42748498 | I205: =IF(ISERROR(INDIRECT(CONCATENATE($B205,"!I122"))),"",INDIRECT(CONCATENATE($B205,"!I122"))) -> 77.41012446 | J205: =IF(ISERROR(INDIRECT(CONCATENATE($B205,"!I129"))),"",INDIRECT(CONCATENATE($B205,"!I129"))) -> N/A | M205: =IF(ISERROR(INDIRECT(CONCATENATE($B205,"!I127"))),"",INDIRECT(CONCATENATE($B205,"!I127"))) -> 8.863013387 | N205: =IF(ISERROR(INDIRECT(CONCATENATE($B205,"!J122"))),"",INDIRECT(CONCATENATE($B205,"!J122"))) -> 81.34805399 | O205: =IF(ISERROR(INDIRECT(CONCATENATE($B205,"!J129"))),"",INDIRECT(CONCATENATE($B205,"!J129"))) -> N/A | R205: =IF(ISERROR(INDIRECT(CONCATENATE($B205,"!J127"))),"",INDIRECT(CONCATENATE($B205,"!J127"))) -> 4.224407812 | S205: =IF(ISERROR(INDIRECT(CONCATENATE($B205,"!K122"))),"",INDIRECT(CONCATENATE($B205,"!K122"))) -> 81.65710463 | T205: =IF(ISERROR(INDIRECT(CONCATENATE($B205,"!K129"))),"",INDIRECT(CONCATENATE($B205,"!K129"))) -> N/A | W205: =IF(ISERROR(INDIRECT(CONCATENATE($B205,"!K127"))),"",INDIRECT(CONCATENATE($B205,"!K127"))) -> 3.538295604 | X205: =IF(ISERROR(INDIRECT(CONCATENATE($B205,"!L122"))),"",INDIRECT(CONCATENATE($B205,"!L122"))) -> 92.23985837 | Y205: =IF(ISERROR(INDIRECT(CONCATENATE($B205,"!L129"))),"",INDIRECT(CONCATENATE($B205,"!L129"))) -> N/A | AB205: =IF(ISERROR(INDIRECT(CONCATENATE($B205,"!L2127"))),"",INDIRECT(CONCATENATE($B205,"!L127"))) -> 0.4233486231
B206: MICS06 | C206: 2006 | D206: 66.08842713 | E206: 1.724804685 | H206: 18.80034171 | I206: 81.26933667 | J206: 4.721387871 | M206: 10.44833036 | N206: 85.70415033 | O206: 8.546439902 | R206: 6.301794722 | S206: 85.18059702 | T206: 15.04587083 | W206: 5.388439704 | X206: 94.64163239 | Y206: 53.23970768 | AB206: 2.376886321
B207: DHS08 | C207: 2008 | D207: 75.8 | E207: 2.4 | H207: 19.2 | I207: 82.6 | J207: 4.2 | M207: 9.7 | N207: 87.9 | O207: 9.9 | R207: 4.5 | S207: 91.3 | T207: 20.3 | W207: 1.8 | X207: 96.2 | Y207: 59.4 | AB207: 0.6
B208: MICS11 | C208: 2011 | D208: 59.80012823 | E208: 4.482250247 | H208: 25.54822198 | I208: 73.0842377 | J208: 11.83175081 | M208: 14.1102916 | N208: 81.25603234 | O208: 18.66994956 | R208: 6.053866447 | S208: 88.50719153 | T208: 24.84591025 | W208: 3.354883095 | X208: 96.22478233 | Y208: 59.92565205 | AB208: 0.2690226922
B209: GLSS13 | C209: 2013 | D209: 49.11666441 | E209: N/A | H209: 17.58154489 | I209: 61.77090587 | J209: N/A | M209: 7.745487111 | N209: 77.26331156 | O209: N/A | R209: 4.422576846 | S209: 86.31182942 | T209: N/A | W209: 0.8130263149 | X209: 87.80093575 | Y209: N/A | AB209: 0.8130263149
B210: DHS14 | C210: 2014 | D210: 64.71020241 | E210: 76.49684366 | H210: 27.79092843 | I210: 84.87380865 | J210: 65.70943481 | M210: 6.333841417 | N210: 91.38137407 | O210: 61.50781449 | R210: 3.382227066 | S210: 93.79107607 | T210: 51.2942609 | W210: 1.594714774 | X210: 96.23427349 | Y210: 71.99019793 | AB210: 0.2634674359
B211: MIS16 | C211: 2016 | D211: 69.43414298 | E211: 5.830658841 | H211: 22.35342816 | I211: 86.56727713 | J211: 11.39935331 | M211: 8.594615757 | N211: 94.13971101 | O211: 18.69172692 | R211: 2.636667786 | S211: 95.6911952 | T211: 25.99327402 | W211: 1.800772399 | X211: 98.58316732 | Y211: 58.11851139 | AB211: 0.9645858032
B212: DHS17 | C212: 2017 | D212: 65.49192843 | E212: 9.618600508 | H212: 23.04380422 | I212: 79.26787767 | J212: 11.64534908 | M212: 9.516571171 | N212: 85.54228828 | O212: 16.36553661 | R212: 5.813204217 | S212: 90.69183114 | T212: 31.58285166 | W212: 2.353734191 | X212: 96.68577837 | Y212: 68.23952033 | AB212: 0.9759658834
B213: MICS18 | C213: 2018 | D213: 55.83611627 | E213: 11.99491899 | H213: 31.24337367 | I213: 70.21747939 | J213: 10.59133909 | M213: 14.94025567 | N213: 76.34238803 | O213: 18.25489526 | R213: 7.281654604 | S213: 85.98464713 | T213: 30.43531891 | W213: 3.1799846 | X213: 94.18954763 | Y213: 66.61923986 | AB213: 0.3454322137
B214: MIS19 | C214: 2019 | D214: 71.33592948 | E214: 8.367659233 | H214: 13.87440375 | I214: 85.99126996 | J214: 10.49064643 | M214: 6.559983119 | N214: 88.9998843 | O214: 16.3742504 | R214: 3.333006784 | S214: 92.23678121 | T214: 28.21665711 | W214: 1.843236459 | X214: 97.82256073 | Y214: 60.99713907 | AB214: 0.7353007645
B218: =CONCATENATE("Urban use of sanitation facilities, ",C199,"–",C200) -> Urban use of sanitation facilities, 2000–2020 | S218: Data points used for regression
A297: RURAL | D297: Poorest | I297: Poor | N297: Middle | S297: Rich | X297: Richest
D298: Improved | E298: Basic | F298: Limited | G298: Unimproved | H298: Open defecation | I298: Improved | J298: Basic | K298: Limited | L298: Unimproved | M298: Open defecation | N298: Improved | O298: Basic | P298: Limited | Q298: Unimproved | R298: Open defecation | S298: Improved | T298: Basic | U298: Limited | V298: Unimproved | W298: Open defecation | X298: Improved | Y298: Basic | Z298: Limited | AA298: Unimproved | AB298: Open defecation
A299: Forecast period: | C299: 2000 | D299: =IF((D301+H301)>100,D301*100/(D301+H301),D301) -> 14.14606533 | E299: =D299*AVERAGEIF(E305:E316,">0")/100 -> 5.219083076 | F299: =D299*(100-AVERAGEIF(E305:E316,">0"))/100 -> 8.92698225 | G299: =100-(E299+F299+H299) -> 7.912002155 | H299: =IF((D301+H301)>100,H301*100/(D301+H301),H301) -> 77.94193252 | I299: =IF((I301+M301)>100,I301*100/(I301+M301),I301) -> 28.5060779 | J299: =I299*AVERAGEIF(J305:J316,">0")/100 -> 8.653472079 | K299: =I299*(100-AVERAGEIF(J305:J316,">0"))/100 -> 19.85260582 | L299: =100-(J299+K299+M299) -> 23.90806568 | M299: =IF((I301+M301)>100,M301*100/(I301+M301),M301) -> 47.58585642 | N299: =IF((N301+R301)>100,N301*100/(N301+R301),N301) -> 43.73116025 | O299: =N299*AVERAGEIF(O305:O316,">0")/100 -> 10.08964384 | P299: =N299*(100-AVERAGEIF(O305:O316,">0"))/100 -> 33.64151641 | Q299: =100-(O299+P299+R299) -> 26.0759518 | R299: =IF((N301+R301)>100,R301*100/(N301+R301),R301) -> 30.19288795 | S299: =IF((S301+W301)>100,S301*100/(S301+W301),S301) -> 50.25115346 | T299: =S299*AVERAGEIF(T305:T316,">0")/100 -> 12.36131737 | U299: =S299*(100-AVERAGEIF(T305:T316,">0"))/100 -> 37.88983609 | V299: =100-(T299+U299+W299) -> 25.24752223 | W299: =IF((S301+W301)>100,W301*100/(S301+W301),W301) -> 24.50132431 | X299: =IF((X301+AB301)>100,X301*100/(X301+AB301),X301) -> 71.7364541 | Y299: =X299*AVERAGEIF(Y305:Y316,">0")/100 -> 24.33245645 | Z299: =X299*(100-AVERAGEIF(Y305:Y316,">0"))/100 -> 47.40399764 | AA299: =100-(Y299+Z299+AB299) -> 12.87911022 | AB299: =IF((X301+AB301)>100,AB301*100/(X301+AB301),AB301) -> 15.38443568
C300: 2020 | D300: =IF((D302+H302)>100,D302*100/(D302+H302),D302) -> 26.77106122 | E300: =D300*AVERAGEIF(E305:E316,">0")/100 -> 9.876979169 | F300: =D300*(100-AVERAGEIF(E305:E316,">0"))/100 -> 16.89408205 | G300: =100-(E300+F300+H300) -> 18.98216313 | H300: =IF((D302+H302)>100,H302*100/(D302+H302),H302) -> 54.24677565 | I300: =IF((I302+M302)>100,I302*100/(I302+M302),I302) -> 38.97344621 | J300: =I300*AVERAGEIF(J305:J316,">0")/100 -> 11.83100775 | K300: =I300*(100-AVERAGEIF(J305:J316,">0"))/100 -> 27.14243846 | L300: =100-(J300+K300+M300) -> 23.86549696 | M300: =IF((I302+M302)>100,M302*100/(I302+M302),M302) -> 37.16105683 | N300: =IF((N302+R302)>100,N302*100/(N302+R302),N302) -> 49.93682202 | O300: =N300*AVERAGEIF(O305:O316,">0")/100 -> 11.52141279 | P300: =N300*(100-AVERAGEIF(O305:O316,">0"))/100 -> 38.41540924 | Q300: =100-(O300+P300+R300) -> 21.0332161 | R300: =IF((N302+R302)>100,R302*100/(N302+R302),R302) -> 29.02996187 | S300: =IF((S302+W302)>100,S302*100/(S302+W302),S302) -> 64.47389239 | T300: =S300*AVERAGEIF(T305:T316,">0")/100 -> 15.85997914 | U300: =S300*(100-AVERAGEIF(T305:T316,">0"))/100 -> 48.61391324 | V300: =100-(T300+U300+W300) -> 17.94638407 | W300: =IF((S302+W302)>100,W302*100/(S302+W302),W302) -> 17.57972354 | X300: =IF((X302+AB302)>100,X302*100/(X302+AB302),X302) -> 78.67614588 | Y300: =X300*AVERAGEIF(Y305:Y316,">0")/100 -> 26.68634682 | Z300: =X300*(100-AVERAGEIF(Y305:Y316,">0"))/100 -> 51.98979907 | AA300: =100-(Y300+Z300+AB300) -> 13.69005294 | AB300: =IF((X302+AB302)>100,AB302*100/(X302+AB302),AB302) -> 7.633801177
A301: Regression period: | C301: =MinRegYear(C299,C305:C316) -> 2001 | D301: =IF(MAX(C305:C316)-MIN(C305:C316)<5,AVERAGEIF(C305:C316,">0",D305:D316), IF(FORECAST($C301,D$305:D$316,$C$305:$C$316)<0,0, IF(FORECAST($C301,D$305:D$316,$C$305:$C$316)>100,100, FORECAST($C301,D$305:D$316,$C$305:$C$316)))) -> 14.14606533 | H301: =IF(MAX(C305:C316)-MIN(C305:C316)<5,AVERAGEIF(C305:C316,">0",H305:H316), IF(FORECAST($C301,H$305:H$316,$C$305:$C$316)<0,0, IF(FORECAST($C301,H$305:H$316,$C$305:$C$316)>100,100, FORECAST($C301,H$305:H$316,$C$305:$C$316)))) -> 77.94193252 | I301: =IF(MAX(C305:C316)-MIN(C305:C316)<5,AVERAGEIF(C305:C316,">0",I305:I316), IF(FORECAST($C301,I$305:I$316,$C$305:$C$316)<0,0, IF(FORECAST($C301,I$305:I$316,$C$305:$C$316)>100,100, FORECAST($C301,I$305:I$316,$C$305:$C$316)))) -> 28.5060779 | M301: =IF(MAX(C305:C316)-MIN(C305:C316)<5,AVERAGEIF(C305:C316,">0",M305:M316), IF(FORECAST($C301,M$305:M$316,$C$305:$C$316)<0,0, IF(FORECAST($C301,M$305:M$316,$C$305:$C$316)>100,100, FORECAST($C301,M$305:M$316,$C$305:$C$316)))) -> 47.58585642 | N301: =IF(MAX(C305:C316)-MIN(C305:C316)<5,AVERAGEIF(C305:C316,">0",N305:N316), IF(FORECAST($C301,N$305:N$316,$C$305:$C$316)<0,0, IF(FORECAST($C301,N$305:N$316,$C$305:$C$316)>100,100, FORECAST($C301,N$305:N$316,$C$305:$C$316)))) -> 43.73116025 | R301: =IF(MAX(C305:C316)-MIN(C305:C316)<5,AVERAGEIF(C305:C316,">0",R305:R316), IF(FORECAST($C301,R$305:R$316,$C$305:$C$316)<0,0, IF(FORECAST($C301,R$305:R$316,$C$305:$C$316)>100,100, FORECAST($C301,R$305:R$316,$C$305:$C$316)))) -> 30.19288795 | S301: =IF(MAX(C305:C316)-MIN(C305:C316)<5,AVERAGEIF(C305:C316,">0",S305:S316), IF(FORECAST($C301,S$305:S$316,$C$305:$C$316)<0,0, IF(FORECAST($C301,S$305:S$316,$C$305:$C$316)>100,100, FORECAST($C301,S$305:S$316,$C$305:$C$316)))) -> 50.25115346 | W301: =IF(MAX(C305:C316)-MIN(C305:C316)<5,AVERAGEIF(C305:C316,">0",W305:W316), IF(FORECAST($C301,W$305:W$316,$C$305:$C$316)<0,0, IF(FORECAST($C301,W$305:W$316,$C$305:$C$316)>100,100, FORECAST($C301,W$305:W$316,$C$305:$C$316)))) -> 24.50132431 | X301: =IF(MAX(C305:C316)-MIN(C305:C316)<5,AVERAGEIF(C305:C316,">0",X305:X316), IF(FORECAST($C301,X$305:X$316,$C$305:$C$316)<0,0, IF(FORECAST($C301,X$305:X$316,$C$305:$C$316)>100,100, FORECAST($C301,X$305:X$316,$C$305:$C$316)))) -> 71.7364541 | AB301: =IF(MAX(C305:C316)-MIN(C305:C316)<5,AVERAGEIF(C305:C316,">0",AB305:AB316), IF(FORECAST($C301,AB$305:AB$316,$C$305:$C$316)<0,0, IF(FORECAST($C301,AB$305:AB$316,$C$305:$C$316)>100,100, FORECAST($C301,AB$305:AB$316,$C$305:$C$316)))) -> 15.38443568
C302: =MaxRegYear(C300,C305:C316) -> 2020 | D302: =IF(MAX(C305:C316)-MIN(C305:C316)<5,AVERAGEIF(C305:C316,">0",D305:D316), IF(FORECAST($C302,D$305:D$316,$C$305:$C$316)<0,0, IF(FORECAST($C302,D$305:D$316,$C$305:$C$316)>100,100, FORECAST($C302,D$305:D$316,$C$305:$C$316)))) -> 26.77106122 | H302: =IF(MAX(C305:C316)-MIN(C305:C316)<5,AVERAGEIF(C305:C316,">0",H305:H316), IF(FORECAST($C302,H$305:H$316,$C$305:$C$316)<0,0, IF(FORECAST($C302,H$305:H$316,$C$305:$C$316)>100,100, FORECAST($C302,H$305:H$316,$C$305:$C$316)))) -> 54.24677565 | I302: =IF(MAX(C305:C316)-MIN(C305:C316)<5,AVERAGEIF(C305:C316,">0",I305:I316), IF(FORECAST($C302,I$305:I$316,$C$305:$C$316)<0,0, IF(FORECAST($C302,I$305:I$316,$C$305:$C$316)>100,100, FORECAST($C302,I$305:I$316,$C$305:$C$316)))) -> 38.97344621 | M302: =IF(MAX(C305:C316)-MIN(C305:C316)<5,AVERAGEIF(C305:C316,">0",M305:M316), IF(FORECAST($C302,M$305:M$316,$C$305:$C$316)<0,0, IF(FORECAST($C302,M$305:M$316,$C$305:$C$316)>100,100, FORECAST($C302,M$305:M$316,$C$305:$C$316)))) -> 37.16105683 | N302: =IF(MAX(C305:C316)-MIN(C305:C316)<5,AVERAGEIF(C305:C316,">0",N305:N316), IF(FORECAST($C302,N$305:N$316,$C$305:$C$316)<0,0, IF(FORECAST($C302,N$305:N$316,$C$305:$C$316)>100,100, FORECAST($C302,N$305:N$316,$C$305:$C$316)))) -> 49.93682202 | R302: =IF(MAX(C305:C316)-MIN(C305:C316)<5,AVERAGEIF(C305:C316,">0",R305:R316), IF(FORECAST($C302,R$305:R$316,$C$305:$C$316)<0,0, IF(FORECAST($C302,R$305:R$316,$C$305:$C$316)>100,100, FORECAST($C302,R$305:R$316,$C$305:$C$316)))) -> 29.02996187 | S302: =IF(MAX(C305:C316)-MIN(C305:C316)<5,AVERAGEIF(C305:C316,">0",S305:S316), IF(FORECAST($C302,S$305:S$316,$C$305:$C$316)<0,0, IF(FORECAST($C302,S$305:S$316,$C$305:$C$316)>100,100, FORECAST($C302,S$305:S$316,$C$305:$C$316)))) -> 64.47389239 | W302: =IF(MAX(C305:C316)-MIN(C305:C316)<5,AVERAGEIF(C305:C316,">0",W305:W316), IF(FORECAST($C302,W$305:W$316,$C$305:$C$316)<0,0, IF(FORECAST($C302,W$305:W$316,$C$305:$C$316)>100,100, FORECAST($C302,W$305:W$316,$C$305:$C$316)))) -> 17.57972354 | X302: =IF(MAX(C305:C316)-MIN(C305:C316)<5,AVERAGEIF(C305:C316,">0",X305:X316), IF(FORECAST($C302,X$305:X$316,$C$305:$C$316)<0,0, IF(FORECAST($C302,X$305:X$316,$C$305:$C$316)>100,100, FORECAST($C302,X$305:X$316,$C$305:$C$316)))) -> 78.67614588 | AB302: =IF(MAX(C305:C316)-MIN(C305:C316)<5,AVERAGEIF(C305:C316,">0",AB305:AB316), IF(FORECAST($C302,AB$305:AB$316,$C$305:$C$316)<0,0, IF(FORECAST($C302,AB$305:AB$316,$C$305:$C$316)>100,100, FORECAST($C302,AB$305:AB$316,$C$305:$C$316)))) -> 7.633801177
B304: Survey | C304: Year | D304: Improved | E304: Not shared | H304: Open defecation | I304: Improved | J304: Not shared | M304: Open defecation | N304: Improved | O304: Not shared | R304: Open defecation | S304: Improved | T304: Not shared | W304: Open defecation | X304: Improved | Y304: Not shared | AB304: Open defecation
B305: DHS03 | C305: 2003 | D305: =IF(ISERROR(INDIRECT(CONCATENATE($B305,"!M122"))),"",INDIRECT(CONCATENATE($B305,"!M122"))) -> 19.93373149 | E305: =IF(ISERROR(INDIRECT(CONCATENATE($B305,"!M129"))),"",INDIRECT(CONCATENATE($B305,"!M129"))) -> N/A | H305: =IF(ISERROR(INDIRECT(CONCATENATE($B305,"!M127"))),"",INDIRECT(CONCATENATE($B305,"!M127"))) -> 66.07057898 | I305: =IF(ISERROR(INDIRECT(CONCATENATE($B305,"!N122"))),"",INDIRECT(CONCATENATE($B305,"!N122"))) -> 31.53597913 | J305: =IF(ISERROR(INDIRECT(CONCATENATE($B305,"!N129"))),"",INDIRECT(CONCATENATE($B305,"!N129"))) -> N/A | M305: =IF(ISERROR(INDIRECT(CONCATENATE($B305,"!N127"))),"",INDIRECT(CONCATENATE($B305,"!N127"))) -> 39.39704583 | N305: =IF(ISERROR(INDIRECT(CONCATENATE($B305,"!O122"))),"",INDIRECT(CONCATENATE($B305,"!O122"))) -> 40.2233615 | O305: =IF(ISERROR(INDIRECT(CONCATENATE($B305,"!O129"))),"",INDIRECT(CONCATENATE($B305,"!O129"))) -> N/A | R305: =IF(ISERROR(INDIRECT(CONCATENATE($B305,"!O127"))),"",INDIRECT(CONCATENATE($B305,"!O127"))) -> 33.96015011 | S305: =IF(ISERROR(INDIRECT(CONCATENATE($B305,"!P122"))),"",INDIRECT(CONCATENATE($B305,"!P122"))) -> 42.99096326 | T305: =IF(ISERROR(INDIRECT(CONCATENATE($B305,"!P129"))),"",INDIRECT(CONCATENATE($B305,"!P129"))) -> N/A | W305: =IF(ISERROR(INDIRECT(CONCATENATE($B305,"!P127"))),"",INDIRECT(CONCATENATE($B305,"!P127"))) -> 32.89442367 | X305: =IF(ISERROR(INDIRECT(CONCATENATE($B305,"!Q122"))),"",INDIRECT(CONCATENATE($B305,"!Q122"))) -> 67.90160894 | Y305: =IF(ISERROR(INDIRECT(CONCATENATE($B305,"!Q129"))),"",INDIRECT(CONCATENATE($B305,"!Q129"))) -> N/A | AB305: =IF(ISERROR(INDIRECT(CONCATENATE($B305,"!Q2127"))),"",INDIRECT(CONCATENATE($B305,"!Q127"))) -> 17.63378207
B306: MICS06 | C306: 2006 | D306: 14.36918636 | E306: 9.261519894 | H306: 76.71801825 | I306: 28.47567481 | J306: 10.02928856 | M306: 45.72339117 | N306: 46.85691911 | O306: 8.73014904 | R306: 27.7133067 | S306: 56.67343126 | T306: 13.35442444 | W306: 17.11898387 | X306: 79.86394311 | Y306: 20.10249981 | AB306: 10.19688761
B307: DHS08 | C307: 2008 | D307: 20.2 | E307: 26 | H307: 72.9 | I307: 37.4 | J307: 19.4 | M307: 48.7 | N307: 55.2 | O307: 7.4 | R307: 27.1 | S307: 63.4 | T307: 9.6 | W307: 17.2 | X307: 78 | Y307: 23.2 | AB307: 10.3
B308: MICS11 | C308: 2011 | D308: 18.1151093 | E308: 31.5830241 | H308: 66.71547288 | I308: 26.70583199 | J308: 29.30541801 | M308: 49.45366115 | N308: 38.57355995 | O308: 17.69957673 | R308: 30.98080427 | S308: 57.54941013 | T308: 14.81537252 | W308: 18.41779853 | X308: 75.00655149 | Y308: 22.21742946 | AB308: 10.30693779
B309: GLSS13 | C309: 2013 | D309: 23.09584911 | E309: N/A | H309: 61.2800019 | I309: 34.22986401 | J309: N/A | M309: 41.93624959 | N309: 44.19093714 | O309: N/A | R309: 28.62161306 | S309: 57.54758211 | T309: N/A | W309: 18.35806664 | X309: 59.16444765 | Y309: N/A | AB309: 18.35806664
B310: DHS14 | C310: 2014 | D310: 22.14508525 | E310: 78.65391779 | H310: 69.09168599 | I310: 42.45990969 | J310: 75.20978608 | M310: 41.10609015 | N310: 55.70303077 | O310: 69.76488223 | R310: 29.86073253 | S310: 66.21161886 | T310: 64.54035923 | W310: 21.03727917 | X310: 84.93142248 | Y310: 62.10582959 | AB310: 7.829270792
B311: MIS16 | C311: 2016 | D311: 18.21457427 | E311: 29.78864138 | H311: 64.04055705 | I311: 33.34627997 | J311: 15.99458457 | M311: 32.90239282 | N311: 49.61437363 | O311: 16.93738826 | R311: 26.03078706 | S311: 65.24804204 | T311: 14.81121161 | W311: 20.01779632 | X311: 83.55798296 | Y311: 31.66788792 | AB311: 5.744813079
B312: DHS17 | C312: 2017 | D312: 18.96414168 | E312: 32.64656341 | H312: 56.92118032 | I312: 30.79298609 | J312: 27.16209923 | M312: 38.41100601 | N312: 46.54965781 | O312: 20.49469444 | R312: 26.13541102 | S312: 61.20623605 | T312: 25.86889026 | W312: 16.70623956 | X312: 77.20939577 | Y312: 38.56533335 | AB312: 8.127610241
B313: MICS18 | C313: 2018 | D313: 27.03135021 | E313: 45.11358085 | H313: 52.18579964 | I313: 40.97877324 | J313: 30.58288737 | M313: 38.21069438 | N313: 46.82767322 | O313: 24.0558546 | R313: 31.87415147 | S313: 52.47361531 | T313: 27.83117323 | W313: 21.70249228 | X313: 72.56832621 | Y313: 37.60277056 | AB313: 8.903207479
B314: MIS19 | C314: 2019 | D314: 35.80607441 | E314: 42.10666037 | H314: 50.07797544 | I314: 42.49060404 | J314: 35.16862494 | M314: 36.92056191 | N314: 51.13267379 | O314: 19.49328181 | R314: 32.61316021 | S314: 65.29563433 | T314: 25.97114387 | W314: 19.6662637 | X314: 81.16426002 | Y314: 35.89212938 | AB314: 9.532045961
B318: =CONCATENATE("Rural use of sanitation facilities, ",C299,"–",C300) -> Rural use of sanitation facilities, 2000–2020 | S318: Data points used for regression

Sheet Hygiene
B4: Access to hygiene facilities by wealth quintile (%)
B5: =IF(ISERROR(INDIRECT(CONCATENATE($E$32,"!A2"))),"",INDIRECT(CONCATENATE($E$32,"!A2"))) -> Ghana
B7: =CONCATENATE("National ",IF(ISERROR(INDIRECT(CONCATENATE($E$32,"!A2"))),"",INDIRECT(CONCATENATE($E$32,"!A210")))) -> National Access to hygiene facilities | K7: =CONCATENATE("Urban ",IF(ISERROR(INDIRECT(CONCATENATE($E$32,"!A2"))),"",INDIRECT(CONCATENATE($E$32,"!A210")))) -> Urban Access to hygiene facilities | S7: =CONCATENATE("Rural ",IF(ISERROR(INDIRECT(CONCATENATE($E$32,"!A2"))),"",INDIRECT(CONCATENATE($E$32,"!A210")))) -> Rural Access to hygiene facilities
E32: =INDEX(B88:B100,A88) -> MICS18 | G32: =IF(ISERROR(INDIRECT(CONCATENATE($E$32,"!A2"))),"",INDIRECT(CONCATENATE($E$32,"!A2"))) -> Ghana | K32: Poorest | N32: Poor | Q32: Middle | T32: Rich | W32: Richest
K33: Basic | L33: Limited | M33: No facility | N33: Basic | O33: Limited | P33: No facility | Q33: Basic | R33: Limited | S33: No facility | T33: Basic | U33: Limited | V33: No facility | W33: Basic | X33: Limited | Y33: No facility
B34: >>> Select Survey : | G34: NATIONAL | J34: =IF(ISERROR(INDIRECT(CONCATENATE(#REF!,"!A2"))),"",INDIRECT(CONCATENATE(#REF!,"!A210"))) ->  | K34: =IF(ISERROR(INDIRECT(CONCATENATE($E$32,"!C222"))),"",INDIRECT(CONCATENATE($E$32,"!C222"))) -> 27.66523773 | L34: =IF(ISERROR(INDIRECT(CONCATENATE($E$32,"!C223"))),"",INDIRECT(CONCATENATE($E$32,"!C223"))) -> 20.12768755 | M34: =IF(ISERROR(INDIRECT(CONCATENATE($E$32,"!C224"))),"",INDIRECT(CONCATENATE($E$32,"!C224"))) -> 52.20707472 | N34: =IF(ISERROR(INDIRECT(CONCATENATE($E$32,"!D222"))),"",INDIRECT(CONCATENATE($E$32,"!D222"))) -> 35.18262152 | O34: =IF(ISERROR(INDIRECT(CONCATENATE($E$32,"!D223"))),"",INDIRECT(CONCATENATE($E$32,"!D223"))) -> 17.99242045 | P34: =IF(ISERROR(INDIRECT(CONCATENATE($E$32,"!D224"))),"",INDIRECT(CONCATENATE($E$32,"!D224"))) -> 46.82495803 | Q34: =IF(ISERROR(INDIRECT(CONCATENATE($E$32,"!E222"))),"",INDIRECT(CONCATENATE($E$32,"!E222"))) -> 35.69189593 | R34: =IF(ISERROR(INDIRECT(CONCATENATE($E$32,"!E223"))),"",INDIRECT(CONCATENATE($E$32,"!E223"))) -> 16.08848672 | S34: =IF(ISERROR(INDIRECT(CONCATENATE($E$32,"!E224"))),"",INDIRECT(CONCATENATE($E$32,"!E224"))) -> 48.21961734 | T34: =IF(ISERROR(INDIRECT(CONCATENATE($E$32,"!F222"))),"",INDIRECT(CONCATENATE($E$32,"!F222"))) -> 42.43965835 | U34: =IF(ISERROR(INDIRECT(CONCATENATE($E$32,"!F223"))),"",INDIRECT(CONCATENATE($E$32,"!F223"))) -> 17.70380233 | V34: =IF(ISERROR(INDIRECT(CONCATENATE($E$32,"!F224"))),"",INDIRECT(CONCATENATE($E$32,"!F224"))) -> 39.85653932 | W34: =IF(ISERROR(INDIRECT(CONCATENATE($E$32,"!G222"))),"",INDIRECT(CONCATENATE($E$32,"!G222"))) -> 60.07911854 | X34: =IF(ISERROR(INDIRECT(CONCATENATE($E$32,"!G223"))),"",INDIRECT(CONCATENATE($E$32,"!G223"))) -> 13.02215243 | Y34: =IF(ISERROR(INDIRECT(CONCATENATE($E$32,"!G224"))),"",INDIRECT(CONCATENATE($E$32,"!G224"))) -> 26.89872903
G37: URBAN | J37: =IF(ISERROR(INDIRECT(CONCATENATE(#REF!,"!A2"))),"",INDIRECT(CONCATENATE(#REF!,"!A210"))) ->  | K37: =IF(ISERROR(INDIRECT(CONCATENATE($E$32,"!H222"))),"",INDIRECT(CONCATENATE($E$32,"!H222"))) -> 38.63717891 | L37: =IF(ISERROR(INDIRECT(CONCATENATE($E$32,"!H223"))),"",INDIRECT(CONCATENATE($E$32,"!H223"))) -> 17.59215067 | M37: =IF(ISERROR(INDIRECT(CONCATENATE($E$32,"!H224"))),"",INDIRECT(CONCATENATE($E$32,"!H224"))) -> 43.77067041 | N37: =IF(ISERROR(INDIRECT(CONCATENATE($E$32,"!I222"))),"",INDIRECT(CONCATENATE($E$32,"!I222"))) -> 36.187134 | O37: =IF(ISERROR(INDIRECT(CONCATENATE($E$32,"!I223"))),"",INDIRECT(CONCATENATE($E$32,"!I223"))) -> 16.12090616 | P37: =IF(ISERROR(INDIRECT(CONCATENATE($E$32,"!I224"))),"",INDIRECT(CONCATENATE($E$32,"!I224"))) -> 47.69195984 | Q37: =IF(ISERROR(INDIRECT(CONCATENATE($E$32,"!J222"))),"",INDIRECT(CONCATENATE($E$32,"!J222"))) -> 44.55990155 | R37: =IF(ISERROR(INDIRECT(CONCATENATE($E$32,"!J223"))),"",INDIRECT(CONCATENATE($E$32,"!J223"))) -> 14.69957651 | S37: =IF(ISERROR(INDIRECT(CONCATENATE($E$32,"!J224"))),"",INDIRECT(CONCATENATE($E$32,"!J224"))) -> 40.74052194 | T37: =IF(ISERROR(INDIRECT(CONCATENATE($E$32,"!K222"))),"",INDIRECT(CONCATENATE($E$32,"!K222"))) -> 52.67193163 | U37: =IF(ISERROR(INDIRECT(CONCATENATE($E$32,"!K223"))),"",INDIRECT(CONCATENATE($E$32,"!K223"))) -> 15.44132057 | V37: =IF(ISERROR(INDIRECT(CONCATENATE($E$32,"!K224"))),"",INDIRECT(CONCATENATE($E$32,"!K224"))) -> 31.88674781 | W37: =IF(ISERROR(INDIRECT(CONCATENATE($E$32,"!L222"))),"",INDIRECT(CONCATENATE($E$32,"!L222"))) -> 70.21012335 | X37: =IF(ISERROR(INDIRECT(CONCATENATE($E$32,"!L223"))),"",INDIRECT(CONCATENATE($E$32,"!L223"))) -> 11.66061873 | Y37: =IF(ISERROR(INDIRECT(CONCATENATE($E$32,"!L224"))),"",INDIRECT(CONCATENATE($E$32,"!L224"))) -> 18.12925792
G40: RURAL | J40: =IF(ISERROR(INDIRECT(CONCATENATE(#REF!,"!A2"))),"",INDIRECT(CONCATENATE(#REF!,"!A210"))) ->  | K40: =IF(ISERROR(INDIRECT(CONCATENATE($E$32,"!M222"))),"",INDIRECT(CONCATENATE($E$32,"!M222"))) -> 23.2991811 | L40: =IF(ISERROR(INDIRECT(CONCATENATE($E$32,"!M223"))),"",INDIRECT(CONCATENATE($E$32,"!M223"))) -> 19.66644923 | M40: =IF(ISERROR(INDIRECT(CONCATENATE($E$32,"!M224"))),"",INDIRECT(CONCATENATE($E$32,"!M224"))) -> 57.03436966 | N40: =IF(ISERROR(INDIRECT(CONCATENATE($E$32,"!N222"))),"",INDIRECT(CONCATENATE($E$32,"!N222"))) -> 33.13301696 | O40: =IF(ISERROR(INDIRECT(CONCATENATE($E$32,"!N223"))),"",INDIRECT(CONCATENATE($E$32,"!N223"))) -> 19.33629807 | P40: =IF(ISERROR(INDIRECT(CONCATENATE($E$32,"!N224"))),"",INDIRECT(CONCATENATE($E$32,"!N224"))) -> 47.53068497 | Q40: =IF(ISERROR(INDIRECT(CONCATENATE($E$32,"!O222"))),"",INDIRECT(CONCATENATE($E$32,"!O222"))) -> 31.41704065 | R40: =IF(ISERROR(INDIRECT(CONCATENATE($E$32,"!O223"))),"",INDIRECT(CONCATENATE($E$32,"!O223"))) -> 18.87863129 | S40: =IF(ISERROR(INDIRECT(CONCATENATE($E$32,"!O224"))),"",INDIRECT(CONCATENATE($E$32,"!O224"))) -> 49.70432806 | T40: =IF(ISERROR(INDIRECT(CONCATENATE($E$32,"!P222"))),"",INDIRECT(CONCATENATE($E$32,"!P222"))) -> 36.767536 | U40: =IF(ISERROR(INDIRECT(CONCATENATE($E$32,"!P223"))),"",INDIRECT(CONCATENATE($E$32,"!P223"))) -> 17.38623176 | V40: =IF(ISERROR(INDIRECT(CONCATENATE($E$32,"!P224"))),"",INDIRECT(CONCATENATE($E$32,"!P224"))) -> 45.84623224 | W40: =IF(ISERROR(INDIRECT(CONCATENATE($E$32,"!Q222"))),"",INDIRECT(CONCATENATE($E$32,"!Q222"))) -> 41.34906236 | X40: =IF(ISERROR(INDIRECT(CONCATENATE($E$32,"!Q223"))),"",INDIRECT(CONCATENATE($E$32,"!Q223"))) -> 17.69506085 | Y40: =IF(ISERROR(INDIRECT(CONCATENATE($E$32,"!Q224"))),"",INDIRECT(CONCATENATE($E$32,"!Q224"))) -> 40.95587679
A88: 9 | B88: DHS03
B89: MICS06
B90: DHS08
B91: MICS11
B92: GLSS13
B93: DHS14
B94: MIS16
B95: DHS17
B96: MICS18
B97: MIS19
B98: Input
B99: Template

Sheet DHS03
A2: =A1026 -> Ghana
A3: =A1034 -> 2003
A4: Use of drinking water sources
A5: by wealth quintile and sub-national region
A6: Notes:
A7: WHO/UNICEF JMP customised wealth index excludes water,
A8: sanitation and hygiene assets.
A9: Survey used for analysis: | B9: =A1025 -> DHS03
A10: =B1028 -> 
A11: =B1027 -> 
A14: Use of drinking water sources | C14: NATIONAL wealth index quintile | H14: URBAN wealth index quintile | M14: RURAL wealth index quintile | R14: SUB-REGIONS: | BA14: Raw numbers of respondents: | BB14: Use of drinking water sources | BC14: NATIONAL wealth index quintile | BH14: URBAN wealth index quintile | BM14: RURAL wealth index quintile | BR14: SUB-REGIONS:
A15: Weighted percentage (used in graphs) | C15: Poorest | D15: Poor | E15: Middle | F15: Rich | G15: Richest | H15: Poorest | I15: Poor | J15: Middle | K15: Rich | L15: Richest | M15: Poorest | N15: Poor | O15: Middle | P15: Rich | Q15: Richest | R15: Ashanti | S15: Brong Ahafo | T15: Central | U15: Eastern | V15: Greater Accra | W15: Northern | X15: Upper East | Y15: Upper West | Z15: Volta | AA15: Western | BA15: Water data, raw numbers (weighted) | BC15: Poorest | BD15: Poor | BE15: Middle | BF15: Rich | BG15: Richest | BH15: Poorest | BI15: Poor | BJ15: Middle | BK15: Rich | BL15: Richest | BM15: Poorest | BN15: Poor | BO15: Middle | BP15: Rich | BQ15: Richest | BR15: Ashanti | BS15: Brong Ahafo | BT15: Central | BU15: Eastern | BV15: Greater Accra | BW15: Northern | BX15: Upper East | BY15: Upper West | BZ15: Volta | CA15: Western
A16: Water | B16: Improved | C16: 47.7 | D16: 48.9 | E16: 64.3 | F16: 78.4 | G16: 95.4 | H16: 75.1 | I16: 81.8 | J16: 86.5 | K16: 93.5 | L16: 98.5 | M16: 45.2 | N16: 45.5 | O16: 50.1 | P16: 58 | Q16: 65.2 | R16: 71.1 | S16: 65.9 | T16: 63.8 | U16: 60.3 | V16: 92.7 | W16: 42.4 | X16: 65.4 | Y16: 65.7 | Z16: 58.9 | AA16: 71.7 | BA16: Water | BB16: Improved | BC16: N/A | BD16: N/A | BE16: N/A | BF16: N/A | BG16: N/A | BH16: N/A | BI16: N/A | BJ16: N/A | BK16: N/A | BL16: N/A | BM16: N/A | BN16: N/A | BO16: N/A | BP16: N/A | BQ16: N/A | BR16: N/A | BS16: N/A | BT16: N/A | BU16: N/A | BV16: N/A | BW16: N/A | BX16: N/A | BY16: N/A | BZ16: N/A | CA16: N/A
B17: Not Improved | C17: 52.3 | D17: 51.1 | E17: 35.7 | F17: 21.6 | G17: 4.6 | H17: 24.9 | I17: 18.2 | J17: 13.5 | K17: 6.5 | L17: 1.5 | M17: 54.8 | N17: 54.5 | O17: 49.9 | P17: 42 | Q17: 34.8 | R17: 28.9 | S17: 34.1 | T17: 36.2 | U17: 39.7 | V17: 7.3 | W17: 57.6 | X17: 34.6 | Y17: 34.3 | Z17: 41.1 | AA17: 28.3 | BB17: Not Improved | BC17: N/A | BD17: N/A | BE17: N/A | BF17: N/A | BG17: N/A | BH17: N/A | BI17: N/A | BJ17: N/A | BK17: N/A | BL17: N/A | BM17: N/A | BN17: N/A | BO17: N/A | BP17: N/A | BQ17: N/A | BR17: N/A | BS17: N/A | BT17: N/A | BU17: N/A | BV17: N/A | BW17: N/A | BX17: N/A | BY17: N/A | BZ17: N/A | CA17: N/A
A18: Water ladder | B18: Basic | C18: =C16*C23/100 -> 42.5484 | D18: =D16*D23/100 -> 42.543 | E18: =E16*E23/100 -> 58.3844 | F18: 75.4992 | G18: 93.2058 | H18: 68.8667 | I18: 79.2642 | J18: 83.732 | K18: 91.5365 | L18: 96.4315 | M18: 40.8156 | N18: 40.586 | O18: 43.4367 | P18: 50.692 | Q18: 61.288 | R18: 66.6207 | S18: 64.1866 | T18: 53.8472 | U18: 59.4558 | V18: 90.846 | W18: 39.3048 | X18: 61.0182 | Y18: 57.2247 | Z18: 54.777 | AA18: 60.228 | BA18: Water ladder | BB18: Basic | BC18: N/A | BD18: N/A | BE18: N/A | BF18: N/A | BG18: N/A | BH18: N/A | BI18: N/A | BJ18: N/A | BK18: N/A | BL18: N/A | BM18: N/A | BN18: N/A | BO18: N/A | BP18: N/A | BQ18: N/A | BR18: N/A | BS18: N/A | BT18: N/A | BU18: N/A | BV18: N/A | BW18: N/A | BX18: N/A | BY18: N/A | BZ18: N/A | CA18: N/A
B19: Limited | C19: =C16*C22/100 -> 5.1516 | D19: =D16*D22/100 -> 6.357 | E19: =E16*E22/100 -> 5.9156 | F19: 2.9008 | G19: 2.1942 | H19: 6.2333 | I19: 2.5358 | J19: 2.768 | K19: 1.9635 | L19: 2.0685 | M19: 4.3844 | N19: 4.914 | O19: 6.6633 | P19: 7.308 | Q19: 3.912 | R19: 4.4793 | S19: 1.7134 | T19: 9.9528 | U19: 0.8442 | V19: 1.854 | W19: 3.0952 | X19: 4.3818 | Y19: 8.4753 | Z19: 4.123 | AA19: 11.472 | BB19: Limited | BC19: N/A | BD19: N/A | BE19: N/A | BF19: N/A | BG19: N/A | BH19: N/A | BI19: N/A | BJ19: N/A | BK19: N/A | BL19: N/A | BM19: N/A | BN19: N/A | BO19: N/A | BP19: N/A | BQ19: N/A | BR19: N/A | BS19: N/A | BT19: N/A | BU19: N/A | BV19: N/A | BW19: N/A | BX19: N/A | BY19: N/A | BZ19: N/A | CA19: N/A
B20: Unimproved | C20: =100-C18-C19-C21 -> 17.5 | D20: =100-D18-D19-D21 -> 16.8 | E20: =100-E18-E19-E21 -> 13 | F20: 14.9 | G20: 3.8 | H20: 16.8 | I20: 13.9 | J20: 12.7 | K20: 6.5 | L20: 1.1 | M20: 16.7 | N20: 20.4 | O20: 15.7 | P20: 10.4 | Q20: 12.2 | R20: 10.2 | S20: 13.8 | T20: 13.7 | U20: 10.6 | V20: 2.2 | W20: 21.1 | X20: 31.5 | Y20: 22.9 | Z20: 9.2 | AA20: 13.5 | BB20: Unimproved | BC20: N/A | BD20: N/A | BE20: N/A | BF20: N/A | BG20: N/A | BH20: N/A | BI20: N/A | BJ20: N/A | BK20: N/A | BL20: N/A | BM20: N/A | BN20: N/A | BO20: N/A | BP20: N/A | BQ20: N/A | BR20: N/A | BS20: N/A | BT20: N/A | BU20: N/A | BV20: N/A | BW20: N/A | BX20: N/A | BY20: N/A | BZ20: N/A | CA20: N/A
B21: Surface water | C21: 34.8 | D21: 34.3 | E21: 22.7 | F21: 6.7 | G21: 0.8 | H21: 8.1 | I21: 4.3 | J21: 0.8 | K21: 0 | L21: 0.4 | M21: 38.1 | N21: 34.1 | O21: 34.2 | P21: 31.6 | Q21: 22.6 | R21: 18.7 | S21: 20.3 | T21: 22.5 | U21: 29.1 | V21: 5.1 | W21: 36.5 | X21: 3.1 | Y21: 11.4 | Z21: 31.9 | AA21: 14.8 | BB21: Surface water | BC21: N/A | BD21: N/A | BE21: N/A | BF21: N/A | BG21: N/A | BH21: N/A | BI21: N/A | BJ21: N/A | BK21: N/A | BL21: N/A | BM21: N/A | BN21: N/A | BO21: N/A | BP21: N/A | BQ21: N/A | BR21: N/A | BS21: N/A | BT21: N/A | BU21: N/A | BV21: N/A | BW21: N/A | BX21: N/A | BY21: N/A | BZ21: N/A | CA21: N/A
A22: Improved water point at more than 30 minutes | B22: Yes | C22: 10.8 | D22: 13 | E22: 9.2 | F22: 3.7 | G22: 2.3 | H22: 8.3 | I22: 3.1 | J22: 3.2 | K22: 2.1 | L22: 2.1 | M22: 9.7 | N22: 10.8 | O22: 13.3 | P22: 12.6 | Q22: 6 | R22: 6.3 | S22: 2.6 | T22: 15.6 | U22: 1.4 | V22: 2 | W22: 7.3 | X22: 6.7 | Y22: 12.9 | Z22: 7 | AA22: 16 | BA22: Improved water point at more than 30 minutes | BB22: Yes | BC22: N/A | BD22: N/A | BE22: N/A | BF22: N/A | BG22: N/A | BH22: N/A | BI22: N/A | BJ22: N/A | BK22: N/A | BL22: N/A | BM22: N/A | BN22: N/A | BO22: N/A | BP22: N/A | BQ22: N/A | BR22: N/A | BS22: N/A | BT22: N/A | BU22: N/A | BV22: N/A | BW22: N/A | BX22: N/A | BY22: N/A | BZ22: N/A | CA22: N/A
B23: No | C23: 89.2 | D23: 87 | E23: 90.8 | F23: 96.3 | G23: 97.7 | H23: 91.7 | I23: 96.9 | J23: 96.8 | K23: 97.9 | L23: 97.9 | M23: 90.3 | N23: 89.2 | O23: 86.7 | P23: 87.4 | Q23: 94 | R23: 93.7 | S23: 97.4 | T23: 84.4 | U23: 98.6 | V23: 98 | W23: 92.7 | X23: 93.3 | Y23: 87.1 | Z23: 93 | AA23: 84 | BB23: No | BC23: N/A | BD23: N/A | BE23: N/A | BF23: N/A | BG23: N/A | BH23: N/A | BI23: N/A | BJ23: N/A | BK23: N/A | BL23: N/A | BM23: N/A | BN23: N/A | BO23: N/A | BP23: N/A | BQ23: N/A | BR23: N/A | BS23: N/A | BT23: N/A | BU23: N/A | BV23: N/A | BW23: N/A | BX23: N/A | BY23: N/A | BZ23: N/A | CA23: N/A
A24: Manually calculated ratios | B24: Improved wells
B25: Improved springs
B26: Other
C27: NATIONAL wealth index quintile | H27: URBAN wealth index quintile | M27: RURAL wealth index quintile | R27: SUB-REGIONS: | BA27: Raw numbers of respondents: | BB27: Use of drinking water sources | BC27: NATIONAL wealth index quintile | BH27: URBAN wealth index quintile | BM27: RURAL wealth index quintile | BR27: SUB-REGIONS:
A28: Percentage based on weighted population | C28: Poorest | D28: Poor | E28: Middle | F28: Rich | G28: Richest | H28: Poorest | I28: Poor | J28: Middle | K28: Rich | L28: Richest | M28: Poorest | N28: Poor | O28: Middle | P28: Rich | Q28: Richest | R28: Ashanti | S28: Brong Ahafo | T28: Central | U28: Eastern | V28: Greater Accra | W28: Northern | X28: Upper East | Y28: Upper West | Z28: Volta | AA28: Western | BA28: Water data, raw numbers (weighted) | BC28: Poorest | BD28: Poor | BE28: Middle | BF28: Rich | BG28: Richest | BH28: Poorest | BI28: Poor | BJ28: Middle | BK28: Rich | BL28: Richest | BM28: Poorest | BN28: Poor | BO28: Middle | BP28: Rich | BQ28: Richest | BR28: Ashanti | BS28: Brong Ahafo | BT28: Central | BU28: Eastern | BV28: Greater Accra | BW28: Northern | BX28: Upper East | BY28: Upper West | BZ28: Volta | CA28: Western
A29: Piped water | B29: Yes | C29: 8.1 | D29: 6.3 | E29: 24.8 | F29: 56.4 | G29: 81.7 | H29: 55 | I29: 66.1 | J29: 71 | K29: 79 | L29: 89.3 | M29: 2.3 | N29: 7.2 | O29: 5.5 | P29: 8.5 | Q29: 24.1 | R29: 37 | S29: 31.4 | T29: 35.8 | U29: 28.4 | V29: 82.6 | W29: 17.7 | X29: 5.3 | Y29: 5.6 | Z29: 28.9 | AA29: 37.3 | BA29: Piped water | BB29: Yes | BC29: N/A | BD29: N/A | BE29: N/A | BF29: N/A | BG29: N/A | BH29: N/A | BI29: N/A | BJ29: N/A | BK29: N/A | BL29: N/A | BM29: N/A | BN29: N/A | BO29: N/A | BP29: N/A | BQ29: N/A | BR29: N/A | BS29: N/A | BT29: N/A | BU29: N/A | BV29: N/A | BW29: N/A | BX29: N/A | BY29: N/A | BZ29: N/A | CA29: N/A
B30: No | C30: 91.9 | D30: 93.7 | E30: 75.2 | F30: 43.6 | G30: 18.3 | H30: 45 | I30: 33.9 | J30: 29 | K30: 21 | L30: 10.7 | M30: 97.7 | N30: 92.8 | O30: 94.5 | P30: 91.5 | Q30: 75.9 | R30: 63 | S30: 68.6 | T30: 64.2 | U30: 71.6 | V30: 17.4 | W30: 82.3 | X30: 94.7 | Y30: 94.4 | Z30: 71.1 | AA30: 62.7 | BB30: No | BC30: N/A | BD30: N/A | BE30: N/A | BF30: N/A | BG30: N/A | BH30: N/A | BI30: N/A | BJ30: N/A | BK30: N/A | BL30: N/A | BM30: N/A | BN30: N/A | BO30: N/A | BP30: N/A | BQ30: N/A | BR30: N/A | BS30: N/A | BT30: N/A | BU30: N/A | BV30: N/A | BW30: N/A | BX30: N/A | BY30: N/A | BZ30: N/A | CA30: N/A
A31: Piped water on premises | B31: Yes | C31: 0.6 | D31: 0.1 | E31: 2.9 | F31: 15.7 | G31: 56 | H31: 6.6 | I31: 16.4 | J31: 26.6 | K31: 46.5 | L31: 73.8 | M31: 0 | N31: 0.4 | O31: 0 | P31: 0.9 | Q31: 7.2 | R31: 20.3 | S31: 4 | T31: 9.1 | U31: 10.5 | V31: 48.6 | W31: 7.1 | X31: 0.9 | Y31: 2.6 | Z31: 8.5 | AA31: 9.6 | BA31: Piped water on premises | BB31: Yes | BC31: N/A | BD31: N/A | BE31: N/A | BF31: N/A | BG31: N/A | BH31: N/A | BI31: N/A | BJ31: N/A | BK31: N/A | BL31: N/A | BM31: N/A | BN31: N/A | BO31: N/A | BP31: N/A | BQ31: N/A | BR31: N/A | BS31: N/A | BT31: N/A | BU31: N/A | BV31: N/A | BW31: N/A | BX31: N/A | BY31: N/A | BZ31: N/A | CA31: N/A
B32: No | C32: 99.4 | D32: 99.9 | E32: 97.1 | F32: 84.3 | G32: 44 | H32: 93.4 | I32: 83.6 | J32: 73.4 | K32: 53.5 | L32: 26.2 | M32: 100 | N32: 99.6 | O32: 100 | P32: 99.1 | Q32: 92.8 | R32: 79.7 | S32: 96 | T32: 90.9 | U32: 89.5 | V32: 51.4 | W32: 92.9 | X32: 99.1 | Y32: 97.4 | Z32: 91.5 | AA32: 90.4 | BB32: No | BC32: N/A | BD32: N/A | BE32: N/A | BF32: N/A | BG32: N/A | BH32: N/A | BI32: N/A | BJ32: N/A | BK32: N/A | BL32: N/A | BM32: N/A | BN32: N/A | BO32: N/A | BP32: N/A | BQ32: N/A | BR32: N/A | BS32: N/A | BT32: N/A | BU32: N/A | BV32: N/A | BW32: N/A | BX32: N/A | BY32: N/A | BZ32: N/A | CA32: N/A
A33: Piped water into dwelling | B33: Yes | C33: N/A | D33: N/A | E33: N/A | F33: N/A | G33: N/A | H33: N/A | I33: N/A | J33: N/A | K33: N/A | L33: N/A | M33: N/A | N33: N/A | O33: N/A | P33: N/A | Q33: N/A | R33: N/A | S33: N/A | T33: N/A | U33: N/A | V33: N/A | W33: N/A | X33: N/A | Y33: N/A | Z33: N/A | AA33: N/A | BA33: Piped water into dwelling | BB33: Yes | BC33: N/A | BD33: N/A | BE33: N/A | BF33: N/A | BG33: N/A | BH33: N/A | BI33: N/A | BJ33: N/A | BK33: N/A | BL33: N/A | BM33: N/A | BN33: N/A | BO33: N/A | BP33: N/A | BQ33: N/A | BR33: N/A | BS33: N/A | BT33: N/A | BU33: N/A | BV33: N/A | BW33: N/A | BX33: N/A | BY33: N/A | BZ33: N/A | CA33: N/A
B34: No | C34: N/A | D34: N/A | E34: N/A | F34: N/A | G34: N/A | H34: N/A | I34: N/A | J34: N/A | K34: N/A | L34: N/A | M34: N/A | N34: N/A | O34: N/A | P34: N/A | Q34: N/A | R34: N/A | S34: N/A | T34: N/A | U34: N/A | V34: N/A | W34: N/A | X34: N/A | Y34: N/A | Z34: N/A | AA34: N/A | BB34: No | BC34: N/A | BD34: N/A | BE34: N/A | BF34: N/A | BG34: N/A | BH34: N/A | BI34: N/A | BJ34: N/A | BK34: N/A | BL34: N/A | BM34: N/A | BN34: N/A | BO34: N/A | BP34: N/A | BQ34: N/A | BR34: N/A | BS34: N/A | BT34: N/A | BU34: N/A | BV34: N/A | BW34: N/A | BX34: N/A | BY34: N/A | BZ34: N/A | CA34: N/A
A35: Water source on premises | B35: Yes | C35: 0.9 | D35: 0.1 | E35: 3.1 | F35: 16 | G35: 56.2 | H35: 6.7 | I35: 17 | J35: 26.6 | K35: 46.8 | L35: 74.2 | M35: 0.4 | N35: 0.7 | O35: 0 | P35: 1.1 | Q35: 7.2 | R35: 20.3 | S35: 4.2 | T35: 9.1 | U35: 10.6 | V35: 49.3 | W35: 7.6 | X35: 0.9 | Y35: 2.7 | Z35: 8.8 | AA35: 9.6 | BA35: Water source on premises | BB35: Yes | BC35: N/A | BD35: N/A | BE35: N/A | BF35: N/A | BG35: N/A | BH35: N/A | BI35: N/A | BJ35: N/A | BK35: N/A | BL35: N/A | BM35: N/A | BN35: N/A | BO35: N/A | BP35: N/A | BQ35: N/A | BR35: N/A | BS35: N/A | BT35: N/A | BU35: N/A | BV35: N/A | BW35: N/A | BX35: N/A | BY35: N/A | BZ35: N/A | CA35: N/A
B36: No | C36: 99.1 | D36: 99.9 | E36: 96.9 | F36: 84 | G36: 43.8 | H36: 93.3 | I36: 83 | J36: 73.4 | K36: 53.2 | L36: 25.8 | M36: 99.6 | N36: 99.3 | O36: 100 | P36: 98.9 | Q36: 92.8 | R36: 79.7 | S36: 95.8 | T36: 90.9 | U36: 89.4 | V36: 50.7 | W36: 92.4 | X36: 99.1 | Y36: 97.3 | Z36: 91.2 | AA36: 90.4 | BB36: No | BC36: N/A | BD36: N/A | BE36: N/A | BF36: N/A | BG36: N/A | BH36: N/A | BI36: N/A | BJ36: N/A | BK36: N/A | BL36: N/A | BM36: N/A | BN36: N/A | BO36: N/A | BP36: N/A | BQ36: N/A | BR36: N/A | BS36: N/A | BT36: N/A | BU36: N/A | BV36: N/A | BW36: N/A | BX36: N/A | BY36: N/A | BZ36: N/A | CA36: N/A
A37: Improved Water source on premises | B37: Yes | C37: 0.8 | D37: 0.1 | E37: 3 | F37: 15.8 | G37: 56.2 | H37: 6.6 | I37: 16.7 | J37: 26.6 | K37: 46.8 | L37: 74.2 | M37: 0.3 | N37: 0.5 | O37: 0 | P37: 1.1 | Q37: 7.2 | R37: 20.3 | S37: 4 | T37: 9.1 | U37: 10.6 | V37: 49.3 | W37: 7.1 | X37: 0.9 | Y37: 2.6 | Z37: 8.8 | AA37: 9.6 | BA37: Improved water source on premises | BB37: Yes | BC37: N/A | BD37: N/A | BE37: N/A | BF37: N/A | BG37: N/A | BH37: N/A | BI37: N/A | BJ37: N/A | BK37: N/A | BL37: N/A | BM37: N/A | BN37: N/A | BO37: N/A | BP37: N/A | BQ37: N/A | BR37: N/A | BS37: N/A | BT37: N/A | BU37: N/A | BV37: N/A | BW37: N/A | BX37: N/A | BY37: N/A | BZ37: N/A | CA37: N/A
B38: No | C38: 99.2 | D38: 99.9 | E38: 97 | F38: 84.2 | G38: 43.8 | H38: 93.4 | I38: 83.3 | J38: 73.4 | K38: 53.2 | L38: 25.8 | M38: 99.7 | N38: 99.5 | O38: 100 | P38: 98.9 | Q38: 92.8 | R38: 79.7 | S38: 96 | T38: 90.9 | U38: 89.4 | V38: 50.7 | W38: 92.9 | X38: 99.1 | Y38: 97.4 | Z38: 91.2 | AA38: 90.4 | BB38: No | BC38: N/A | BD38: N/A | BE38: N/A | BF38: N/A | BG38: N/A | BH38: N/A | BI38: N/A | BJ38: N/A | BK38: N/A | BL38: N/A | BM38: N/A | BN38: N/A | BO38: N/A | BP38: N/A | BQ38: N/A | BR38: N/A | BS38: N/A | BT38: N/A | BU38: N/A | BV38: N/A | BW38: N/A | BX38: N/A | BY38: N/A | BZ38: N/A | CA38: N/A
A39: Piped water on premises available when needed | B39: Yes | C39: N/A | D39: N/A | E39: N/A | F39: N/A | G39: N/A | H39: N/A | I39: N/A | J39: N/A | K39: N/A | L39: N/A | M39: N/A | N39: N/A | O39: N/A | P39: N/A | Q39: N/A | R39: N/A | S39: N/A | T39: N/A | U39: N/A | V39: N/A | W39: N/A | X39: N/A | Y39: N/A | Z39: N/A | AA39: N/A | BA39: Piped water on premises available when needed | BB39: Yes | BC39: N/A | BD39: N/A | BE39: N/A | BF39: N/A | BG39: N/A | BH39: N/A | BI39: N/A | BJ39: N/A | BK39: N/A | BL39: N/A | BM39: N/A | BN39: N/A | BO39: N/A | BP39: N/A | BQ39: N/A | BR39: N/A | BS39: N/A | BT39: N/A | BU39: N/A | BV39: N/A | BW39: N/A | BX39: N/A | BY39: N/A | BZ39: N/A | CA39: N/A
B40: No | C40: N/A | D40: N/A | E40: N/A | F40: N/A | G40: N/A | H40: N/A | I40: N/A | J40: N/A | K40: N/A | L40: N/A | M40: N/A | N40: N/A | O40: N/A | P40: N/A | Q40: N/A | R40: N/A | S40: N/A | T40: N/A | U40: N/A | V40: N/A | W40: N/A | X40: N/A | Y40: N/A | Z40: N/A | AA40: N/A | BB40: No | BC40: N/A | BD40: N/A | BE40: N/A | BF40: N/A | BG40: N/A | BH40: N/A | BI40: N/A | BJ40: N/A | BK40: N/A | BL40: N/A | BM40: N/A | BN40: N/A | BO40: N/A | BP40: N/A | BQ40: N/A | BR40: N/A | BS40: N/A | BT40: N/A | BU40: N/A | BV40: N/A | BW40: N/A | BX40: N/A | BY40: N/A | BZ40: N/A | CA40: N/A
A41: Water point at more than 30 minutes | B41: Yes | C41: 14.5 | D41: 16.6 | E41: 12.8 | F41: 5.5 | G41: 3 | H41: 8.6 | I41: 4.2 | J41: 3.7 | K41: 2.8 | L41: 2.1 | M41: 14.7 | N41: 14.8 | O41: 16.9 | P41: 15.8 | Q41: 11.3 | R41: 9.8 | S41: 9.6 | T41: 15.1 | U41: 4.8 | V41: 2.8 | W41: 17.3 | X41: 7.3 | Y41: 13.9 | Z41: 12.5 | AA41: 17.5 | BA41: Water point at more than 30 minutes | BB41: Yes | BC41: N/A | BD41: N/A | BE41: N/A | BF41: N/A | BG41: N/A | BH41: N/A | BI41: N/A | BJ41: N/A | BK41: N/A | BL41: N/A | BM41: N/A | BN41: N/A | BO41: N/A | BP41: N/A | BQ41: N/A | BR41: N/A | BS41: N/A | BT41: N/A | BU41: N/A | BV41: N/A | BW41: N/A | BX41: N/A | BY41: N/A | BZ41: N/A | CA41: N/A
B42: No | C42: 85.5 | D42: 83.4 | E42: 87.2 | F42: 94.5 | G42: 97 | H42: 91.4 | I42: 95.8 | J42: 96.3 | K42: 97.2 | L42: 97.9 | M42: 85.3 | N42: 85.2 | O42: 83.1 | P42: 84.2 | Q42: 88.7 | R42: 90.2 | S42: 90.4 | T42: 84.9 | U42: 95.2 | V42: 97.2 | W42: 82.7 | X42: 92.7 | Y42: 86.1 | Z42: 87.5 | AA42: 82.5 | BB42: No | BC42: N/A | BD42: N/A | BE42: N/A | BF42: N/A | BG42: N/A | BH42: N/A | BI42: N/A | BJ42: N/A | BK42: N/A | BL42: N/A | BM42: N/A | BN42: N/A | BO42: N/A | BP42: N/A | BQ42: N/A | BR42: N/A | BS42: N/A | BT42: N/A | BU42: N/A | BV42: N/A | BW42: N/A | BX42: N/A | BY42: N/A | BZ42: N/A | CA42: N/A
A43: Water source available when needed | B43: Yes | C43: N/A | D43: N/A | E43: N/A | F43: N/A | G43: N/A | H43: N/A | I43: N/A | J43: N/A | K43: N/A | L43: N/A | M43: N/A | N43: N/A | O43: N/A | P43: N/A | Q43: N/A | R43: N/A | S43: N/A | T43: N/A | U43: N/A | V43: N/A | W43: N/A | X43: N/A | Y43: N/A | Z43: N/A | AA43: N/A | BA43: Water source available when needed | BB43: Yes | BC43: N/A | BD43: N/A | BE43: N/A | BF43: N/A | BG43: N/A | BH43: N/A | BI43: N/A | BJ43: N/A | BK43: N/A | BL43: N/A | BM43: N/A | BN43: N/A | BO43: N/A | BP43: N/A | BQ43: N/A | BR43: N/A | BS43: N/A | BT43: N/A | BU43: N/A | BV43: N/A | BW43: N/A | BX43: N/A | BY43: N/A | BZ43: N/A | CA43: N/A
B44: No | C44: N/A | D44: N/A | E44: N/A | F44: N/A | G44: N/A | H44: N/A | I44: N/A | J44: N/A | K44: N/A | L44: N/A | M44: N/A | N44: N/A | O44: N/A | P44: N/A | Q44: N/A | R44: N/A | S44: N/A | T44: N/A | U44: N/A | V44: N/A | W44: N/A | X44: N/A | Y44: N/A | Z44: N/A | AA44: N/A | BB44: No | BC44: N/A | BD44: N/A | BE44: N/A | BF44: N/A | BG44: N/A | BH44: N/A | BI44: N/A | BJ44: N/A | BK44: N/A | BL44: N/A | BM44: N/A | BN44: N/A | BO44: N/A | BP44: N/A | BQ44: N/A | BR44: N/A | BS44: N/A | BT44: N/A | BU44: N/A | BV44: N/A | BW44: N/A | BX44: N/A | BY44: N/A | BZ44: N/A | CA44: N/A
A45: Improved water source available when needed | B45: Yes | C45: N/A | D45: N/A | E45: N/A | F45: N/A | G45: N/A | H45: N/A | I45: N/A | J45: N/A | K45: N/A | L45: N/A | M45: N/A | N45: N/A | O45: N/A | P45: N/A | Q45: N/A | R45: N/A | S45: N/A | T45: N/A | U45: N/A | V45: N/A | W45: N/A | X45: N/A | Y45: N/A | Z45: N/A | AA45: N/A | BA45: Improved water source available when needed | BB45: Yes | BC45: N/A | BD45: N/A | BE45: N/A | BF45: N/A | BG45: N/A | BH45: N/A | BI45: N/A | BJ45: N/A | BK45: N/A | BL45: N/A | BM45: N/A | BN45: N/A | BO45: N/A | BP45: N/A | BQ45: N/A | BR45: N/A | BS45: N/A | BT45: N/A | BU45: N/A | BV45: N/A | BW45: N/A | BX45: N/A | BY45: N/A | BZ45: N/A | CA45: N/A
B46: No | C46: N/A | D46: N/A | E46: N/A | F46: N/A | G46: N/A | H46: N/A | I46: N/A | J46: N/A | K46: N/A | L46: N/A | M46: N/A | N46: N/A | O46: N/A | P46: N/A | Q46: N/A | R46: N/A | S46: N/A | T46: N/A | U46: N/A | V46: N/A | W46: N/A | X46: N/A | Y46: N/A | Z46: N/A | AA46: N/A | BB46: No | BC46: N/A | BD46: N/A | BE46: N/A | BF46: N/A | BG46: N/A | BH46: N/A | BI46: N/A | BJ46: N/A | BK46: N/A | BL46: N/A | BM46: N/A | BN46: N/A | BO46: N/A | BP46: N/A | BQ46: N/A | BR46: N/A | BS46: N/A | BT46: N/A | BU46: N/A | BV46: N/A | BW46: N/A | BX46: N/A | BY46: N/A | BZ46: N/A | CA46: N/A
A47: Microbiological quality at point of collection | B47: Not contaminated (No E. coli in 100 mL) | C47: N/A | D47: N/A | E47: N/A | F47: N/A | G47: N/A | H47: N/A | I47: N/A | J47: N/A | K47: N/A | L47: N/A | M47: N/A | N47: N/A | O47: N/A | P47: N/A | Q47: N/A | R47: N/A | S47: N/A | T47: N/A | U47: N/A | V47: N/A | W47: N/A | X47: N/A | Y47: N/A | Z47: N/A | AA47: N/A | BA47: Microbiological quality at point of collection | BB47: Not contaminated (No E. coli in 100 mL) | BC47: N/A | BD47: N/A | BE47: N/A | BF47: N/A | BG47: N/A | BH47: N/A | BI47: N/A | BJ47: N/A | BK47: N/A | BL47: N/A | BM47: N/A | BN47: N/A | BO47: N/A | BP47: N/A | BQ47: N/A | BR47: N/A | BS47: N/A | BT47: N/A | BU47: N/A | BV47: N/A | BW47: N/A | BX47: N/A | BY47: N/A | BZ47: N/A | CA47: N/A
B48: Contaminated (E. coli detected in 100 mL) | C48: N/A | D48: N/A | E48: N/A | F48: N/A | G48: N/A | H48: N/A | I48: N/A | J48: N/A | K48: N/A | L48: N/A | M48: N/A | N48: N/A | O48: N/A | P48: N/A | Q48: N/A | R48: N/A | S48: N/A | T48: N/A | U48: N/A | V48: N/A | W48: N/A | X48: N/A | Y48: N/A | Z48: N/A | AA48: N/A | BB48: Contaminated (E. coli detected in 100 mL) | BC48: N/A | BD48: N/A | BE48: N/A | BF48: N/A | BG48: N/A | BH48: N/A | BI48: N/A | BJ48: N/A | BK48: N/A | BL48: N/A | BM48: N/A | BN48: N/A | BO48: N/A | BP48: N/A | BQ48: N/A | BR48: N/A | BS48: N/A | BT48: N/A | BU48: N/A | BV48: N/A | BW48: N/A | BX48: N/A | BY48: N/A | BZ48: N/A | CA48: N/A
B49: Highly contaminated (>100 CFU/100 mL) | C49: N/A | D49: N/A | E49: N/A | F49: N/A | G49: N/A | H49: N/A | I49: N/A | J49: N/A | K49: N/A | L49: N/A | M49: N/A | N49: N/A | O49: N/A | P49: N/A | Q49: N/A | R49: N/A | S49: N/A | T49: N/A | U49: N/A | V49: N/A | W49: N/A | X49: N/A | Y49: N/A | Z49: N/A | AA49: N/A | BB49: Highly contaminated (>100 CFU/100 mL) | BC49: N/A | BD49: N/A | BE49: N/A | BF49: N/A | BG49: N/A | BH49: N/A | BI49: N/A | BJ49: N/A | BK49: N/A | BL49: N/A | BM49: N/A | BN49: N/A | BO49: N/A | BP49: N/A | BQ49: N/A | BR49: N/A | BS49: N/A | BT49: N/A | BU49: N/A | BV49: N/A | BW49: N/A | BX49: N/A | BY49: N/A | BZ49: N/A | CA49: N/A
A50: Microbiological quality of improved water sources at point of collection | B50: Not contaminated (No E. coli in 100 mL) | C50: N/A | D50: N/A | E50: N/A | F50: N/A | G50: N/A | H50: N/A | I50: N/A | J50: N/A | K50: N/A | L50: N/A | M50: N/A | N50: N/A | O50: N/A | P50: N/A | Q50: N/A | R50: N/A | S50: N/A | T50: N/A | U50: N/A | V50: N/A | W50: N/A | X50: N/A | Y50: N/A | Z50: N/A | AA50: N/A | BA50: Microbiological quality of improved water sources at point of collection | BB50: Not contaminated (No E. coli in 100 mL) | BC50: N/A | BD50: N/A | BE50: N/A | BF50: N/A | BG50: N/A | BH50: N/A | BI50: N/A | BJ50: N/A | BK50: N/A | BL50: N/A | BM50: N/A | BN50: N/A | BO50: N/A | BP50: N/A | BQ50: N/A | BR50: N/A | BS50: N/A | BT50: N/A | BU50: N/A | BV50: N/A | BW50: N/A | BX50: N/A | BY50: N/A | BZ50: N/A | CA50: N/A
B51: Contaminated (E. coli detected in 100 mL) | C51: N/A | D51: N/A | E51: N/A | F51: N/A | G51: N/A | H51: N/A | I51: N/A | J51: N/A | K51: N/A | L51: N/A | M51: N/A | N51: N/A | O51: N/A | P51: N/A | Q51: N/A | R51: N/A | S51: N/A | T51: N/A | U51: N/A | V51: N/A | W51: N/A | X51: N/A | Y51: N/A | Z51: N/A | AA51: N/A | BB51: Contaminated (E. coli detected in 100 mL) | BC51: N/A | BD51: N/A | BE51: N/A | BF51: N/A | BG51: N/A | BH51: N/A | BI51: N/A | BJ51: N/A | BK51: N/A | BL51: N/A | BM51: N/A | BN51: N/A | BO51: N/A | BP51: N/A | BQ51: N/A | BR51: N/A | BS51: N/A | BT51: N/A | BU51: N/A | BV51: N/A | BW51: N/A | BX51: N/A | BY51: N/A | BZ51: N/A | CA51: N/A
B52: Highly contaminated (>100 CFU/100 mL) | C52: N/A | D52: N/A | E52: N/A | F52: N/A | G52: N/A | H52: N/A | I52: N/A | J52: N/A | K52: N/A | L52: N/A | M52: N/A | N52: N/A | O52: N/A | P52: N/A | Q52: N/A | R52: N/A | S52: N/A | T52: N/A | U52: N/A | V52: N/A | W52: N/A | X52: N/A | Y52: N/A | Z52: N/A | AA52: N/A | BB52: Highly contaminated (>100 CFU/100 mL) | BC52: N/A | BD52: N/A | BE52: N/A | BF52: N/A | BG52: N/A | BH52: N/A | BI52: N/A | BJ52: N/A | BK52: N/A | BL52: N/A | BM52: N/A | BN52: N/A | BO52: N/A | BP52: N/A | BQ52: N/A | BR52: N/A | BS52: N/A | BT52: N/A | BU52: N/A | BV52: N/A | BW52: N/A | BX52: N/A | BY52: N/A | BZ52: N/A | CA52: N/A
A53: Microbiological quality of piped on premises at point of collection | B53: Not contaminated (No E. coli in 100 mL) | C53: N/A | D53: N/A | E53: N/A | F53: N/A | G53: N/A | H53: N/A | I53: N/A | J53: N/A | K53: N/A | L53: N/A | M53: N/A | N53: N/A | O53: N/A | P53: N/A | Q53: N/A | R53: N/A | S53: N/A | T53: N/A | U53: N/A | V53: N/A | W53: N/A | X53: N/A | Y53: N/A | Z53: N/A | AA53: N/A | BA53: Microbiological quality of piped on premises at point of collection | BB53: Not contaminated (No E. coli in 100 mL) | BC53: N/A | BD53: N/A | BE53: N/A | BF53: N/A | BG53: N/A | BH53: N/A | BI53: N/A | BJ53: N/A | BK53: N/A | BL53: N/A | BM53: N/A | BN53: N/A | BO53: N/A | BP53: N/A | BQ53: N/A | BR53: N/A | BS53: N/A | BT53: N/A | BU53: N/A | BV53: N/A | BW53: N/A | BX53: N/A | BY53: N/A | BZ53: N/A | CA53: N/A
B54: Contaminated (E. coli detected in 100 mL) | C54: N/A | D54: N/A | E54: N/A | F54: N/A | G54: N/A | H54: N/A | I54: N/A | J54: N/A | K54: N/A | L54: N/A | M54: N/A | N54: N/A | O54: N/A | P54: N/A | Q54: N/A | R54: N/A | S54: N/A | T54: N/A | U54: N/A | V54: N/A | W54: N/A | X54: N/A | Y54: N/A | Z54: N/A | AA54: N/A | BB54: Contaminated (E. coli detected in 100 mL) | BC54: N/A | BD54: N/A | BE54: N/A | BF54: N/A | BG54: N/A | BH54: N/A | BI54: N/A | BJ54: N/A | BK54: N/A | BL54: N/A | BM54: N/A | BN54: N/A | BO54: N/A | BP54: N/A | BQ54: N/A | BR54: N/A | BS54: N/A | BT54: N/A | BU54: N/A | BV54: N/A | BW54: N/A | BX54: N/A | BY54: N/A | BZ54: N/A | CA54: N/A
B55: Highly contaminated (>100 CFU/100 mL) | C55: N/A | D55: N/A | E55: N/A | F55: N/A | G55: N/A | H55: N/A | I55: N/A | J55: N/A | K55: N/A | L55: N/A | M55: N/A | N55: N/A | O55: N/A | P55: N/A | Q55: N/A | R55: N/A | S55: N/A | T55: N/A | U55: N/A | V55: N/A | W55: N/A | X55: N/A | Y55: N/A | Z55: N/A | AA55: N/A | BB55: Highly contaminated (>100 CFU/100 mL) | BC55: N/A | BD55: N/A | BE55: N/A | BF55: N/A | BG55: N/A | BH55: N/A | BI55: N/A | BJ55: N/A | BK55: N/A | BL55: N/A | BM55: N/A | BN55: N/A | BO55: N/A | BP55: N/A | BQ55: N/A | BR55: N/A | BS55: N/A | BT55: N/A | BU55: N/A | BV55: N/A | BW55: N/A | BX55: N/A | BY55: N/A | BZ55: N/A | CA55: N/A
C56: NATIONAL wealth index quintile | H56: URBAN wealth index quintile | M56: RURAL wealth index quintile | R56: SUB-REGIONS: | BA56: Raw numbers of respondents: | BB56: Use of drinking water sources | BC56: NATIONAL wealth index quintile | BH56: URBAN wealth index quintile | BM56: RURAL wealth index quintile | BR56: SUB-REGIONS:
A57: Percentage based on weighted population | C57: Poorest | D57: Poor | E57: Middle | F57: Rich | G57: Richest | H57: Poorest | I57: Poor | J57: Middle | K57: Rich | L57: Richest | M57: Poorest | N57: Poor | O57: Middle | P57: Rich | Q57: Richest | R57: Ashanti | S57: Brong Ahafo | T57: Central | U57: Eastern | V57: Greater Accra | W57: Northern | X57: Upper East | Y57: Upper West | Z57: Volta | AA57: Western | BA57: Water data, raw numbers (weighted) | BC57: Poorest | BD57: Poor | BE57: Middle | BF57: Rich | BG57: Richest | BH57: Poorest | BI57: Poor | BJ57: Middle | BK57: Rich | BL57: Richest | BM57: Poorest | BN57: Poor | BO57: Middle | BP57: Rich | BQ57: Richest | BR57: Ashanti | BS57: Brong Ahafo | BT57: Central | BU57: Eastern | BV57: Greater Accra | BW57: Northern | BX57: Upper East | BY57: Upper West | BZ57: Volta | CA57: Western
A58: Source of drinking water | B58: Piped into dwelling | C58: 0 | D58: 0 | E58: 0.9 | F58: 3.8 | G58: 25.7 | H58: 2 | I58: 4.1 | J58: 6.8 | K58: 11.4 | L58: 44.7 | M58: 0 | N58: 0 | O58: 0 | P58: 0 | Q58: 2.9 | R58: 5.4 | S58: 2.2 | T58: 3.3 | U58: 5.2 | V58: 22.6 | W58: 2.1 | X58: 0.3 | Y58: 0.1 | Z58: 3.7 | AA58: 4.6
B59: Piped into compound/plot | C59: 0.6 | D59: 0.1 | E59: 2 | F59: 11.9 | G59: 30.4 | H59: 4.6 | I59: 12.3 | J59: 19.8 | K59: 35.2 | L59: 29.2 | M59: 0 | N59: 0.4 | O59: 0 | P59: 0.8 | Q59: 4.3 | R59: 14.9 | S59: 1.8 | T59: 5.8 | U59: 5.4 | V59: 26.1 | W59: 5 | X59: 0.6 | Y59: 2.5 | Z59: 4.8 | AA59: 5
B60: Public tap | C60: 7.5 | D60: 6.2 | E60: 21.9 | F60: 40.7 | G60: 25.7 | H60: 48.5 | I60: 49.7 | J60: 44.4 | K60: 32.5 | L60: 15.5 | M60: 2.3 | N60: 6.7 | O60: 5.5 | P60: 7.7 | Q60: 16.9 | R60: 16.7 | S60: 27.4 | T60: 26.7 | U60: 17.9 | V60: 34 | W60: 10.6 | X60: 4.4 | Y60: 3 | Z60: 20.4 | AA60: 27.6
B61: Open well in dwelling | C61: 0.4 | D61: 0.4 | E61: 1.9 | F61: 1.4 | G61: 0.2 | H61: 4.5 | I61: 2.1 | J61: 1.3 | K61: 0.3 | L61: 0.1 | M61: 0 | N61: 1.1 | O61: 0 | P61: 0.2 | Q61: 0.2 | R61: 0.4 | S61: 1.5 | T61: 0.1 | U61: 0.4 | V61: 0 | W61: 1.9 | X61: 4.1 | Y61: 0.2 | Z61: 0.9 | AA61: 0.3
B62: Open well in yard/plot | C62: 2 | D62: 0.8 | E62: 1.1 | F62: 2.5 | G62: 0.6 | H62: 1.5 | I62: 2.6 | J62: 3.4 | K62: 0.6 | L62: 0.1 | M62: 3.1 | N62: 1.3 | O62: 0.7 | P62: 1.2 | Q62: 0.6 | R62: 1.2 | S62: 1.3 | T62: 0.2 | U62: 1.4 | V62: 0.1 | W62: 2.6 | X62: 3.4 | Y62: 2.4 | Z62: 2.8 | AA62: 0.5
B63: Open public well | C63: 14 | D63: 14.7 | E63: 10.2 | F63: 10.5 | G63: 2.7 | H63: 10 | I63: 8.8 | J63: 7.3 | K63: 5.1 | L63: 0.8 | M63: 12.1 | N63: 17.3 | O63: 14.2 | P63: 9.5 | Q63: 11.7 | R63: 8.5 | S63: 9 | T63: 13.5 | U63: 9.7 | V63: 2.1 | W63: 16 | X63: 21.6 | Y63: 19.9 | Z63: 6 | AA63: 13
B64: Protected well in dwelling | C64: 0.6 | D64: 0.2 | E64: 0.9 | F64: 1 | G64: 0 | H64: 0.4 | I64: 0.4 | J64: 1.1 | K64: 0 | L64: 0.1 | M64: 0.3 | N64: 0.8 | O64: 0.1 | P64: 1.3 | Q64: 1.1 | R64: 0.7 | S64: 1.3 | T64: 0 | U64: 0.5 | V64: 0.1 | W64: 0.5 | X64: 0.9 | Y64: 2.4 | Z64: 0 | AA64: 0.5
B65: Protected well in yard/plot | C65: 0.3 | D65: 0.4 | E65: 1.6 | F65: 2.4 | G65: 1.7 | H65: 2.1 | I65: 1.7 | J65: 3.1 | K65: 1.3 | L65: 1.4 | M65: 0 | N65: 0.3 | O65: 0.3 | P65: 1.2 | Q65: 2.4 | R65: 2.2 | S65: 2.3 | T65: 0.1 | U65: 3.3 | V65: 0 | W65: 0.2 | X65: 2.8 | Y65: 0.3 | Z65: 0.1 | AA65: 0.4
B66: Protected public well | C66: 38 | D66: 41.7 | E66: 34 | F66: 16.1 | G66: 6.7 | H66: 12.2 | I66: 12 | J66: 6.7 | K66: 7.7 | L66: 1.4 | M66: 42.3 | N66: 36.5 | O66: 44 | P66: 45.3 | Q66: 36.6 | R66: 30.8 | S66: 30.8 | T66: 21.5 | U66: 27.4 | V66: 0.3 | W66: 23.9 | X66: 56.4 | Y66: 57.9 | Z66: 26.8 | AA66: 32.5
B67: Spring | C67: 1.4 | D67: 1.1 | E67: 0.2 | F67: 0.6 | G67: 0 | H67: 0.5 | I67: 0.6 | J67: 0.4 | K67: 0 | L67: 0 | M67: 1.6 | N67: 1.3 | O67: 0.9 | P67: 0.2 | Q67: 0.4 | R67: 0.6 | S67: 2.6 | T67: 0 | U67: 0.4 | V67: 0 | W67: 0.8 | X67: 2.2 | Y67: 0.1 | Z67: 0 | AA67: 0
B68: River, stream | C68: 26.5 | D68: 24.7 | E68: 17.5 | F68: 5.5 | G68: 0.7 | H68: 5.3 | I68: 3.2 | J68: 0.5 | K68: 0 | L68: 0.4 | M68: 27.2 | N68: 25.8 | O68: 26.4 | P68: 22.3 | Q68: 19.1 | R68: 15.7 | S68: 13.5 | T68: 20.2 | U68: 25.1 | V68: 3.9 | W68: 16.9 | X68: 2.3 | Y68: 10.3 | Z68: 23.5 | AA68: 13.6
B69: Pond, lake | C69: 3.1 | D69: 3.4 | E69: 1.7 | F69: 0.6 | G69: 0.1 | H69: 2.3 | I69: 0.5 | J69: 0.2 | K69: 0 | L69: 0 | M69: 2.7 | N69: 3.5 | O69: 3.2 | P69: 2.1 | Q69: 1.1 | R69: 1.4 | S69: 1.1 | T69: 2.1 | U69: 2.4 | V69: 0.9 | W69: 1.8 | X69: 0.6 | Y69: 0.7 | Z69: 5.6 | AA69: 0.9
B70: Dam | C70: 4.9 | D70: 5.9 | E70: 2.8 | F70: 0.3 | G70: 0 | H70: 0.1 | I70: 0.5 | J70: 0 | K70: 0 | L70: 0 | M70: 8.1 | N70: 4.2 | O70: 4.4 | P70: 6.2 | Q70: 1.4 | R70: 0.9 | S70: 5 | T70: 0 | U70: 0.2 | V70: 0 | W70: 17.5 | X70: 0 | Y70: 0.1 | Z70: 1.9 | AA70: 0
B71: Rainwater | C71: 0.3 | D71: 0 | E71: 0.4 | F71: 0.4 | G71: 0.5 | H71: 0.4 | I71: 0.1 | J71: 0.9 | K71: 1 | L71: 0 | M71: 0 | N71: 0.5 | O71: 0 | P71: 0.6 | Q71: 0 | R71: 0 | S71: 0 | T71: 0 | U71: 0.1 | V71: 0.3 | W71: 0.1 | X71: 0 | Y71: 0 | Z71: 2.6 | AA71: 0.2
B72: Tanker truck | C72: 0.4 | D72: 0.2 | E72: 2.5 | F72: 1.3 | G72: 1.6 | H72: 4.6 | I72: 1 | J72: 2.4 | K72: 1.8 | L72: 1.9 | M72: 0.3 | N72: 0.2 | O72: 0.2 | P72: 1.2 | Q72: 0.3 | R72: 0 | S72: 0 | T72: 5.7 | U72: 0 | V72: 5.3 | W72: 0 | X72: 0 | Y72: 0 | Z72: 0.3 | AA72: 0.2
B73: Bottled water | C73: 0 | D73: 0 | E73: 0 | F73: 0 | G73: 0.1 | H73: 0 | I73: 0 | J73: 0 | K73: 0 | L73: 0.2 | M73: 0 | N73: 0 | O73: 0 | P73: 0 | Q73: 0 | R73: 0 | S73: 0 | T73: 0 | U73: 0 | V73: 0.1 | W73: 0 | X73: 0 | Y73: 0 | Z73: 0 | AA73: 0
B74: Satchel water | C74: 0 | D74: 0 | E74: 0.2 | F74: 0.7 | G74: 3.3 | H74: 0.3 | I74: 0.4 | J74: 1.3 | K74: 2.7 | L74: 4.1 | M74: 0 | N74: 0 | O74: 0 | P74: 0 | Q74: 0.8 | R74: 0.4 | S74: 0.1 | T74: 0.7 | U74: 0.7 | V74: 4 | W74: 0 | X74: 0 | Y74: 0 | Z74: 0.2 | AA74: 0.5
B75: Other | C75: 0 | D75: 0 | E75: 0.2 | F75: 0.2 | G75: 0.2 | H75: 0.5 | I75: 0.1 | J75: 0.3 | K75: 0.3 | L75: 0 | M75: 0 | N75: 0 | O75: 0 | P75: 0 | Q75: 0.2 | R75: 0.1 | S75: 0 | T75: 0 | U75: 0 | V75: 0.2 | W75: 0.1 | X75: 0.4 | Y75: 0 | Z75: 0.4 | AA75: 0
A108: =A1026 -> Ghana
A109: =A1034 -> 2003
A110: Use of sanitation facilities
A111: by wealth quintile and sub-national region
A112: Notes:
A113: WHO/UNICEF JMP customised wealth index excludes water,
A114: sanitation and hygiene assets.
A115: Survey used for analysis: | B115: =A1025 -> DHS03
A116: =B1030 -> Ratio of Improved latrines based on: | B116: MICS06
A117: =B1029 -> Ratio of Shared improved based on: | B117: MICS06
A120: Use of sanitation facilities | C120: NATIONAL wealth index quintile | H120: URBAN wealth index quintile | M120: RURAL wealth index quintile | R120: SUB-REGIONS: | BA120: Raw numbers of respondents: | BB120: Use of sanitation facilities | BC120: NATIONAL wealth index quintile | BH120: URBAN wealth index quintile | BM120: RURAL wealth index quintile | BR120: SUB-REGIONS:
A121: Weighted percentage (used in graphs) | C121: Poorest | D121: Poor | E121: Middle | F121: Rich | G121: Richest | H121: Poorest | I121: Poor | J121: Middle | K121: Rich | L121: Richest | M121: Poorest | N121: Poor | O121: Middle | P121: Rich | Q121: Richest | R121: Ashanti | S121: Brong Ahafo | T121: Central | U121: Eastern | V121: Greater Accra | W121: Northern | X121: Upper East | Y121: Upper West | Z121: Volta | AA121: Western | BA121: Sanitation data, raw numbers (weighted) | BC121: Poorest | BD121: Poor | BE121: Middle | BF121: Rich | BG121: Richest | BH121: Poorest | BI121: Poor | BJ121: Middle | BK121: Rich | BL121: Richest | BM121: Poorest | BN121: Poor | BO121: Middle | BP121: Rich | BQ121: Richest | BR121: Ashanti | BS121: Brong Ahafo | BT121: Central | BU121: Eastern | BV121: Greater Accra | BW121: Northern | BX121: Upper East | BY121: Upper West | BZ121: Volta | CA121: Western
A122: Sanitation | B122: Improved | C122: =C153+C155+C154*MICS06!C130/100 -> 28.51627806 | D122: =D153+D155+D154*MICS06!D130/100 -> 36.51439017 | E122: =E153+E155+E154*MICS06!E130/100 -> 53.47268085 | F122: =F153+F155+F154*MICS06!F130/100 -> 77.34213255 | G122: =G153+G155+G154*MICS06!G130/100 -> 86.29470712 | H122: =H153+H155+H154*MICS06!H130/100 -> 61.04498484 | I122: =I153+I155+I154*MICS06!I130/100 -> 77.41012446 | J122: =J153+J155+J154*MICS06!J130/100 -> 81.34805399 | K122: =K153+K155+K154*MICS06!K130/100 -> 81.65710463 | L122: =L153+L155+L154*MICS06!L130/100 -> 92.23985837 | M122: =M153+M155+M154*MICS06!M130/100 -> 19.93373149 | N122: =N153+N155+N154*MICS06!N130/100 -> 31.53597913 | O122: =O153+O155+O154*MICS06!O130/100 -> 40.2233615 | P122: =P153+P155+P154*MICS06!P130/100 -> 42.99096326 | Q122: =Q153+Q155+Q154*MICS06!Q130/100 -> 67.90160894 | R122: =R153+R155+R154*MICS06!R130/100 -> 78.78312039 | S122: =S153+S155+S154*MICS06!S130/100 -> 66.46919389 | T122: =T153+T155+T154*MICS06!T130/100 -> 62.61732408 | U122: =U153+U155+U154*MICS06!U130/100 -> 52.57825332 | V122: =V153+V155+V154*MICS06!V130/100 -> 78.93230623 | W122: =W153+W155+W154*MICS06!W130/100 -> 17.17407152 | X122: =X153+X155+X154*MICS06!X130/100 -> 23.99793039 | Y122: =Y153+Y155+Y154*MICS06!Y130/100 -> 12.87023104 | Z122: =Z153+Z155+Z154*MICS06!Z130/100 -> 37.40997002 | AA122: =AA153+AA155+AA154*MICS06!AA130/100 -> 72.68962083 | BA122: Sanitation | BB122: Improved | BC122: N/A | BD122: N/A | BE122: N/A | BF122: N/A | BG122: N/A | BH122: N/A | BI122: N/A | BJ122: N/A | BK122: N/A | BL122: N/A | BM122: N/A | BN122: N/A | BO122: N/A | BP122: N/A | BQ122: N/A | BR122: N/A | BS122: N/A | BT122: N/A | BU122: N/A | BV122: N/A | BW122: N/A | BX122: N/A | BY122: N/A | BZ122: N/A | CA122: N/A
B123: Not Improved | C123: =100-C122 -> 71.48372194 | D123: =100-D122 -> 63.48560983 | E123: 46.52731915 | F123: 22.65786745 | G123: 13.70529288 | H123: 38.95501516 | I123: 22.58987554 | J123: 18.65194601 | K123: 18.34289537 | L123: 7.760141629 | M123: 80.06626851 | N123: 68.46402087 | O123: 59.7766385 | P123: 57.00903674 | Q123: 32.09839106 | R123: 21.21687961 | S123: 33.53080611 | T123: 37.38267592 | U123: 47.42174668 | V123: 21.06769377 | W123: 82.82592848 | X123: 76.00206961 | Y123: 87.12976896 | Z123: 62.59002998 | AA123: 27.31037917 | BB123: Not Improved | BC123: N/A | BD123: N/A | BE123: N/A | BF123: N/A | BG123: N/A | BH123: N/A | BI123: N/A | BJ123: N/A | BK123: N/A | BL123: N/A | BM123: N/A | BN123: N/A | BO123: N/A | BP123: N/A | BQ123: N/A | BR123: N/A | BS123: N/A | BT123: N/A | BU123: N/A | BV123: N/A | BW123: N/A | BX123: N/A | BY123: N/A | BZ123: N/A | CA123: N/A
A124: Sanitation ladder | B124: Basic | C124: =C122*MICS06!C129/100 -> 2.99550068 | D124: =D122*MICS06!D129/100 -> 2.717025418 | E124: =E122*MICS06!E129/100 -> 5.139950593 | F124: =F122*MICS06!F129/100 -> 6.970392446 | G124: =G122*MICS06!G129/100 -> 29.76352996 | H124: =H122*MICS06!H129/100 -> 1.052906759 | I124: =I122*MICS06!I129/100 -> 3.654832227 | J124: =J122*MICS06!J129/100 -> 6.952362546 | K124: =K122*MICS06!K129/100 -> 12.28602248 | L124: =L122*MICS06!L129/100 -> 49.10823096 | M124: =M122*MICS06!M129/100 -> 1.846166507 | N124: =N122*MICS06!N129/100 -> 3.162834347 | O124: =O122*MICS06!O129/100 -> 3.511559408 | P124: =P122*MICS06!P129/100 -> 5.741195704 | Q124: =Q122*MICS06!Q129/100 -> 13.64992081 | R124: =R122*MICS06!R129/100 -> 10.38487179 | S124: =S122*MICS06!S129/100 -> 6.554115567 | T124: =T122*MICS06!T129/100 -> 6.352239593 | U124: =U122*MICS06!U129/100 -> 7.849924366 | V124: =V122*MICS06!V129/100 -> 20.85088345 | W124: =W122*MICS06!W129/100 -> 1.030610723 | X124: =X122*MICS06!X129/100 -> 2.226430337 | Y124: =Y122*MICS06!Y129/100 -> 3.913920603 | Z124: =Z122*MICS06!Z129/100 -> 7.635918662 | AA124: =AA122*MICS06!AA129/100 -> 14.40357989 | BA124: Sanitation ladder | BB124: Basic | BC124: N/A | BD124: N/A | BE124: N/A | BF124: N/A | BG124: N/A | BH124: N/A | BI124: N/A | BJ124: N/A | BK124: N/A | BL124: N/A | BM124: N/A | BN124: N/A | BO124: N/A | BP124: N/A | BQ124: N/A | BR124: N/A | BS124: N/A | BT124: N/A | BU124: N/A | BV124: N/A | BW124: N/A | BX124: N/A | BY124: N/A | BZ124: N/A | CA124: N/A
B125: Limited | C125: =C122*MICS06!C128/100 -> 25.52077738 | D125: =D122*MICS06!D128/100 -> 33.79736475 | E125: =E122*MICS06!E128/100 -> 48.33273026 | F125: =F122*MICS06!F128/100 -> 70.37174011 | G125: =G122*MICS06!G128/100 -> 56.53117716 | H125: =H122*MICS06!H128/100 -> 59.99207808 | I125: =I122*MICS06!I128/100 -> 73.75529223 | J125: =J122*MICS06!J128/100 -> 74.39569145 | K125: =K122*MICS06!K128/100 -> 69.37108215 | L125: =L122*MICS06!L128/100 -> 43.13162741 | M125: =M122*MICS06!M128/100 -> 18.08756498 | N125: =N122*MICS06!N128/100 -> 28.37314479 | O125: =O122*MICS06!O128/100 -> 36.71180209 | P125: =P122*MICS06!P128/100 -> 37.24976755 | Q125: =Q122*MICS06!Q128/100 -> 54.25168813 | R125: =R122*MICS06!R128/100 -> 68.39824861 | S125: =S122*MICS06!S128/100 -> 59.91507832 | T125: =T122*MICS06!T128/100 -> 56.26508449 | U125: =U122*MICS06!U128/100 -> 44.72832895 | V125: =V122*MICS06!V128/100 -> 58.08142277 | W125: =W122*MICS06!W128/100 -> 16.14346079 | X125: =X122*MICS06!X128/100 -> 21.77150005 | Y125: =Y122*MICS06!Y128/100 -> 8.956310437 | Z125: =Z122*MICS06!Z128/100 -> 29.77405136 | AA125: =AA122*MICS06!AA128/100 -> 58.28604094 | BB125: Limited | BC125: N/A | BD125: N/A | BE125: N/A | BF125: N/A | BG125: N/A | BH125: N/A | BI125: N/A | BJ125: N/A | BK125: N/A | BL125: N/A | BM125: N/A | BN125: N/A | BO125: N/A | BP125: N/A | BQ125: N/A | BR125: N/A | BS125: N/A | BT125: N/A | BU125: N/A | BV125: N/A | BW125: N/A | BX125: N/A | BY125: N/A | BZ125: N/A | CA125: N/A
B126: Unimproved | C126: =100-C124-C125-C127 -> 23.91209672 | D126: =100-D124-D125-D127 -> 25.30621115 | E126: 21.22622482 | F126: 13.62642036 | G126: 11.49895239 | H126: 19.52753018 | I126: 13.72686215 | J126: 14.42753819 | K126: 14.80459976 | L126: 7.336793006 | M126: 13.99568953 | N126: 29.06697503 | O126: 25.8164884 | P126: 24.11461307 | Q126: 14.46460898 | R126: 15.79190496 | S126: 18.99901954 | T126: 24.38360553 | U126: 44.23281162 | V126: 10.6191987 | W126: 1.807510506 | X126: 0.7912267817 | Y126: 1.874275041 | Z126: 42.50133883 | AA126: 13.00980074 | BB126: Unimproved | BC126: N/A | BD126: N/A | BE126: N/A | BF126: N/A | BG126: N/A | BH126: N/A | BI126: N/A | BJ126: N/A | BK126: N/A | BL126: N/A | BM126: N/A | BN126: N/A | BO126: N/A | BP126: N/A | BQ126: N/A | BR126: N/A | BS126: N/A | BT126: N/A | BU126: N/A | BV126: N/A | BW126: N/A | BX126: N/A | BY126: N/A | BZ126: N/A | CA126: N/A
B127: Open defecation | C127: =C156 -> 47.57162522 | D127: =D156 -> 38.17939868 | E127: 25.30109433 | F127: 9.031447085 | G127: 2.206340486 | H127: 19.42748498 | I127: 8.863013387 | J127: 4.224407812 | K127: 3.538295604 | L127: 0.4233486231 | M127: 66.07057898 | N127: 39.39704583 | O127: 33.96015011 | P127: 32.89442367 | Q127: 17.63378207 | R127: 5.424974647 | S127: 14.53178658 | T127: 12.99907038 | U127: 3.188935055 | V127: 10.44849507 | W127: 81.01841798 | X127: 75.21084283 | Y127: 85.25549392 | Z127: 20.08869114 | AA127: 14.30057843 | BB127: Open defecation | BC127: N/A | BD127: N/A | BE127: N/A | BF127: N/A | BG127: N/A | BH127: N/A | BI127: N/A | BJ127: N/A | BK127: N/A | BL127: N/A | BM127: N/A | BN127: N/A | BO127: N/A | BP127: N/A | BQ127: N/A | BR127: N/A | BS127: N/A | BT127: N/A | BU127: N/A | BV127: N/A | BW127: N/A | BX127: N/A | BY127: N/A | BZ127: N/A | CA127: N/A
A128: Shared among Improved Sanitation | B128: Yes | C128: N/A | D128: N/A | E128: N/A | F128: N/A | G128: N/A | H128: N/A | I128: N/A | J128: N/A | K128: N/A | L128: N/A | M128: N/A | N128: N/A | O128: N/A | P128: N/A | Q128: N/A | R128: N/A | S128: N/A | T128: N/A | U128: N/A | V128: N/A | W128: N/A | X128: N/A | Y128: N/A | Z128: N/A | AA128: N/A | BA128: Shared among improved sanitation facilities | BB128: Yes | BC128: N/A | BD128: N/A | BE128: N/A | BF128: N/A | BG128: N/A | BH128: N/A | BI128: N/A | BJ128: N/A | BK128: N/A | BL128: N/A | BM128: N/A | BN128: N/A | BO128: N/A | BP128: N/A | BQ128: N/A | BR128: N/A | BS128: N/A | BT128: N/A | BU128: N/A | BV128: N/A | BW128: N/A | BX128: N/A | BY128: N/A | BZ128: N/A | CA128: N/A
B129: No | C129: N/A | D129: N/A | E129: N/A | F129: N/A | G129: N/A | H129: N/A | I129: N/A | J129: N/A | K129: N/A | L129: N/A | M129: N/A | N129: N/A | O129: N/A | P129: N/A | Q129: N/A | R129: N/A | S129: N/A | T129: N/A | U129: N/A | V129: N/A | W129: N/A | X129: N/A | Y129: N/A | Z129: N/A | AA129: N/A | BB129: No | BC129: N/A | BD129: N/A | BE129: N/A | BF129: N/A | BG129: N/A | BH129: N/A | BI129: N/A | BJ129: N/A | BK129: N/A | BL129: N/A | BM129: N/A | BN129: N/A | BO129: N/A | BP129: N/A | BQ129: N/A | BR129: N/A | BS129: N/A | BT129: N/A | BU129: N/A | BV129: N/A | BW129: N/A | BX129: N/A | BY129: N/A | BZ129: N/A | CA129: N/A
A130: Manually calculated ratios | B130: Improved latrines
B131: Other
B132: Other
C133: NATIONAL wealth index quintile | H133: URBAN wealth index quintile | M133: RURAL wealth index quintile | R133: SUB-REGIONS: | BA133: Raw numbers of respondents: | BB133: Use of sanitation facilities | BC133: NATIONAL wealth index quintile | BH133: URBAN wealth index quintile | BM133: RURAL wealth index quintile | BR133: SUB-REGIONS:
A134: Percentage based on weighted population | C134: Poorest | D134: Poor | E134: Middle | F134: Rich | G134: Richest | H134: Poorest | I134: Poor | J134: Middle | K134: Rich | L134: Richest | M134: Poorest | N134: Poor | O134: Middle | P134: Rich | Q134: Richest | R134: Ashanti | S134: Brong Ahafo | T134: Central | U134: Eastern | V134: Greater Accra | W134: Northern | X134: Upper East | Y134: Upper West | Z134: Volta | AA134: Western | BA134: Sanitation data, raw numbers (weighted) | BC134: Poorest | BD134: Poor | BE134: Middle | BF134: Rich | BG134: Richest | BH134: Poorest | BI134: Poor | BJ134: Middle | BK134: Rich | BL134: Richest | BM134: Poorest | BN134: Poor | BO134: Middle | BP134: Rich | BQ134: Richest | BR134: Ashanti | BS134: Brong Ahafo | BT134: Central | BU134: Eastern | BV134: Greater Accra | BW134: Northern | BX134: Upper East | BY134: Upper West | BZ134: Volta | CA134: Western
A135: Sanitation type | B135: Sewer connection | C135: N/A | D135: N/A | E135: N/A | F135: N/A | G135: N/A | H135: N/A | I135: N/A | J135: N/A | K135: N/A | L135: N/A | M135: N/A | N135: N/A | O135: N/A | P135: N/A | Q135: N/A | R135: N/A | S135: N/A | T135: N/A | U135: N/A | V135: N/A | W135: N/A | X135: N/A | Y135: N/A | Z135: N/A | AA135: N/A | BA135: Sanitation type | BB135: Sewer connection | BC135: N/A | BD135: N/A | BE135: N/A | BF135: N/A | BG135: N/A | BH135: N/A | BI135: N/A | BJ135: N/A | BK135: N/A | BL135: N/A | BM135: N/A | BN135: N/A | BO135: N/A | BP135: N/A | BQ135: N/A | BR135: N/A | BS135: N/A | BT135: N/A | BU135: N/A | BV135: N/A | BW135: N/A | BX135: N/A | BY135: N/A | BZ135: N/A | CA135: N/A
B136: Septic tank connection | C136: N/A | D136: N/A | E136: N/A | F136: N/A | G136: N/A | H136: N/A | I136: N/A | J136: N/A | K136: N/A | L136: N/A | M136: N/A | N136: N/A | O136: N/A | P136: N/A | Q136: N/A | R136: N/A | S136: N/A | T136: N/A | U136: N/A | V136: N/A | W136: N/A | X136: N/A | Y136: N/A | Z136: N/A | AA136: N/A | BB136: Septic tank connection | BC136: N/A | BD136: N/A | BE136: N/A | BF136: N/A | BG136: N/A | BH136: N/A | BI136: N/A | BJ136: N/A | BK136: N/A | BL136: N/A | BM136: N/A | BN136: N/A | BO136: N/A | BP136: N/A | BQ136: N/A | BR136: N/A | BS136: N/A | BT136: N/A | BU136: N/A | BV136: N/A | BW136: N/A | BX136: N/A | BY136: N/A | BZ136: N/A | CA136: N/A
B137: Improved latrines | C137: N/A | D137: N/A | E137: N/A | F137: N/A | G137: N/A | H137: N/A | I137: N/A | J137: N/A | K137: N/A | L137: N/A | M137: N/A | N137: N/A | O137: N/A | P137: N/A | Q137: N/A | R137: N/A | S137: N/A | T137: N/A | U137: N/A | V137: N/A | W137: N/A | X137: N/A | Y137: N/A | Z137: N/A | AA137: N/A | BB137: Improved latrines | BC137: N/A | BD137: N/A | BE137: N/A | BF137: N/A | BG137: N/A | BH137: N/A | BI137: N/A | BJ137: N/A | BK137: N/A | BL137: N/A | BM137: N/A | BN137: N/A | BO137: N/A | BP137: N/A | BQ137: N/A | BR137: N/A | BS137: N/A | BT137: N/A | BU137: N/A | BV137: N/A | BW137: N/A | BX137: N/A | BY137: N/A | BZ137: N/A | CA137: N/A
B138: Unimproved facilities | C138: N/A | D138: N/A | E138: N/A | F138: N/A | G138: N/A | H138: N/A | I138: N/A | J138: N/A | K138: N/A | L138: N/A | M138: N/A | N138: N/A | O138: N/A | P138: N/A | Q138: N/A | R138: N/A | S138: N/A | T138: N/A | U138: N/A | V138: N/A | W138: N/A | X138: N/A | Y138: N/A | Z138: N/A | AA138: N/A | BB138: Unimproved facilities | BC138: N/A | BD138: N/A | BE138: N/A | BF138: N/A | BG138: N/A | BH138: N/A | BI138: N/A | BJ138: N/A | BK138: N/A | BL138: N/A | BM138: N/A | BN138: N/A | BO138: N/A | BP138: N/A | BQ138: N/A | BR138: N/A | BS138: N/A | BT138: N/A | BU138: N/A | BV138: N/A | BW138: N/A | BX138: N/A | BY138: N/A | BZ138: N/A | CA138: N/A
B139: Open defecation | C139: 47.56434303 | D139: 38.17939868 | E139: 25.17827598 | F139: 9.031447085 | G139: 2.204926984 | H139: 19.36150843 | I139: 8.863013387 | J139: 4.224407812 | K139: 3.532848064 | L139: 0.4233486231 | M139: 66.04729169 | N139: 39.39704583 | O139: 33.96015011 | P139: 32.69496969 | Q139: 17.62012436 | R139: 5.424974647 | S139: 14.51639878 | T139: 12.99907038 | U139: 3.180729396 | V139: 10.43835461 | W139: 80.67074326 | X139: 75.21084283 | Y139: 85.12943434 | Z139: 20.08869114 | AA139: 14.28513368 | BB139: Open defecation | BC139: N/A | BD139: N/A | BE139: N/A | BF139: N/A | BG139: N/A | BH139: N/A | BI139: N/A | BJ139: N/A | BK139: N/A | BL139: N/A | BM139: N/A | BN139: N/A | BO139: N/A | BP139: N/A | BQ139: N/A | BR139: N/A | BS139: N/A | BT139: N/A | BU139: N/A | BV139: N/A | BW139: N/A | BX139: N/A | BY139: N/A | BZ139: N/A | CA139: N/A
A140: Septic tank emptying practices | B140: Not emptied/treated and disposed in situ | C140: N/A | D140: N/A | E140: N/A | F140: N/A | G140: N/A | H140: N/A | I140: N/A | J140: N/A | K140: N/A | L140: N/A | M140: N/A | N140: N/A | O140: N/A | P140: N/A | Q140: N/A | R140: N/A | S140: N/A | T140: N/A | U140: N/A | V140: N/A | W140: N/A | X140: N/A | Y140: N/A | Z140: N/A | AA140: N/A | BA140: Septic tank emptying practices | BB140: Not emptied/treated and disposed in situ | BC140: N/A | BD140: N/A | BE140: N/A | BF140: N/A | BG140: N/A | BH140: N/A | BI140: N/A | BJ140: N/A | BK140: N/A | BL140: N/A | BM140: N/A | BN140: N/A | BO140: N/A | BP140: N/A | BQ140: N/A | BR140: N/A | BS140: N/A | BT140: N/A | BU140: N/A | BV140: N/A | BW140: N/A | BX140: N/A | BY140: N/A | BZ140: N/A | CA140: N/A
B141: Emptied and buried on site | C141: N/A | D141: N/A | E141: N/A | F141: N/A | G141: N/A | H141: N/A | I141: N/A | J141: N/A | K141: N/A | L141: N/A | M141: N/A | N141: N/A | O141: N/A | P141: N/A | Q141: N/A | R141: N/A | S141: N/A | T141: N/A | U141: N/A | V141: N/A | W141: N/A | X141: N/A | Y141: N/A | Z141: N/A | AA141: N/A | BB141: Emptied and buried on site | BC141: N/A | BD141: N/A | BE141: N/A | BF141: N/A | BG141: N/A | BH141: N/A | BI141: N/A | BJ141: N/A | BK141: N/A | BL141: N/A | BM141: N/A | BN141: N/A | BO141: N/A | BP141: N/A | BQ141: N/A | BR141: N/A | BS141: N/A | BT141: N/A | BU141: N/A | BV141: N/A | BW141: N/A | BX141: N/A | BY141: N/A | BZ141: N/A | CA141: N/A
B142: Emptied and discharged locally | C142: N/A | D142: N/A | E142: N/A | F142: N/A | G142: N/A | H142: N/A | I142: N/A | J142: N/A | K142: N/A | L142: N/A | M142: N/A | N142: N/A | O142: N/A | P142: N/A | Q142: N/A | R142: N/A | S142: N/A | T142: N/A | U142: N/A | V142: N/A | W142: N/A | X142: N/A | Y142: N/A | Z142: N/A | AA142: N/A | BB142: Emptied and discharged locally | BC142: N/A | BD142: N/A | BE142: N/A | BF142: N/A | BG142: N/A | BH142: N/A | BI142: N/A | BJ142: N/A | BK142: N/A | BL142: N/A | BM142: N/A | BN142: N/A | BO142: N/A | BP142: N/A | BQ142: N/A | BR142: N/A | BS142: N/A | BT142: N/A | BU142: N/A | BV142: N/A | BW142: N/A | BX142: N/A | BY142: N/A | BZ142: N/A | CA142: N/A
B143: Emptied and removed offsite | C143: N/A | D143: N/A | E143: N/A | F143: N/A | G143: N/A | H143: N/A | I143: N/A | J143: N/A | K143: N/A | L143: N/A | M143: N/A | N143: N/A | O143: N/A | P143: N/A | Q143: N/A | R143: N/A | S143: N/A | T143: N/A | U143: N/A | V143: N/A | W143: N/A | X143: N/A | Y143: N/A | Z143: N/A | AA143: N/A | BB143: Emptied and removed offsite | BC143: N/A | BD143: N/A | BE143: N/A | BF143: N/A | BG143: N/A | BH143: N/A | BI143: N/A | BJ143: N/A | BK143: N/A | BL143: N/A | BM143: N/A | BN143: N/A | BO143: N/A | BP143: N/A | BQ143: N/A | BR143: N/A | BS143: N/A | BT143: N/A | BU143: N/A | BV143: N/A | BW143: N/A | BX143: N/A | BY143: N/A | BZ143: N/A | CA143: N/A
A144: Latrine emptying practices | B144: Not emptied/treated and disposed in situ | C144: N/A | D144: N/A | E144: N/A | F144: N/A | G144: N/A | H144: N/A | I144: N/A | J144: N/A | K144: N/A | L144: N/A | M144: N/A | N144: N/A | O144: N/A | P144: N/A | Q144: N/A | R144: N/A | S144: N/A | T144: N/A | U144: N/A | V144: N/A | W144: N/A | X144: N/A | Y144: N/A | Z144: N/A | AA144: N/A | BA144: Latrine emptying practices | BB144: Not emptied/treated and disposed in situ | BC144: N/A | BD144: N/A | BE144: N/A | BF144: N/A | BG144: N/A | BH144: N/A | BI144: N/A | BJ144: N/A | BK144: N/A | BL144: N/A | BM144: N/A | BN144: N/A | BO144: N/A | BP144: N/A | BQ144: N/A | BR144: N/A | BS144: N/A | BT144: N/A | BU144: N/A | BV144: N/A | BW144: N/A | BX144: N/A | BY144: N/A | BZ144: N/A | CA144: N/A
B145: Emptied and buried on site | C145: N/A | D145: N/A | E145: N/A | F145: N/A | G145: N/A | H145: N/A | I145: N/A | J145: N/A | K145: N/A | L145: N/A | M145: N/A | N145: N/A | O145: N/A | P145: N/A | Q145: N/A | R145: N/A | S145: N/A | T145: N/A | U145: N/A | V145: N/A | W145: N/A | X145: N/A | Y145: N/A | Z145: N/A | AA145: N/A | BB145: Emptied and buried on site | BC145: N/A | BD145: N/A | BE145: N/A | BF145: N/A | BG145: N/A | BH145: N/A | BI145: N/A | BJ145: N/A | BK145: N/A | BL145: N/A | BM145: N/A | BN145: N/A | BO145: N/A | BP145: N/A | BQ145: N/A | BR145: N/A | BS145: N/A | BT145: N/A | BU145: N/A | BV145: N/A | BW145: N/A | BX145: N/A | BY145: N/A | BZ145: N/A | CA145: N/A
B146: Emptied and discharged locally | C146: N/A | D146: N/A | E146: N/A | F146: N/A | G146: N/A | H146: N/A | I146: N/A | J146: N/A | K146: N/A | L146: N/A | M146: N/A | N146: N/A | O146: N/A | P146: N/A | Q146: N/A | R146: N/A | S146: N/A | T146: N/A | U146: N/A | V146: N/A | W146: N/A | X146: N/A | Y146: N/A | Z146: N/A | AA146: N/A | BB146: Emptied and discharged locally | BC146: N/A | BD146: N/A | BE146: N/A | BF146: N/A | BG146: N/A | BH146: N/A | BI146: N/A | BJ146: N/A | BK146: N/A | BL146: N/A | BM146: N/A | BN146: N/A | BO146: N/A | BP146: N/A | BQ146: N/A | BR146: N/A | BS146: N/A | BT146: N/A | BU146: N/A | BV146: N/A | BW146: N/A | BX146: N/A | BY146: N/A | BZ146: N/A | CA146: N/A
B147: Emptied and removed offsite | C147: N/A | D147: N/A | E147: N/A | F147: N/A | G147: N/A | H147: N/A | I147: N/A | J147: N/A | K147: N/A | L147: N/A | M147: N/A | N147: N/A | O147: N/A | P147: N/A | Q147: N/A | R147: N/A | S147: N/A | T147: N/A | U147: N/A | V147: N/A | W147: N/A | X147: N/A | Y147: N/A | Z147: N/A | AA147: N/A | BB147: Emptied and removed offsite | BC147: N/A | BD147: N/A | BE147: N/A | BF147: N/A | BG147: N/A | BH147: N/A | BI147: N/A | BJ147: N/A | BK147: N/A | BL147: N/A | BM147: N/A | BN147: N/A | BO147: N/A | BP147: N/A | BQ147: N/A | BR147: N/A | BS147: N/A | BT147: N/A | BU147: N/A | BV147: N/A | BW147: N/A | BX147: N/A | BY147: N/A | BZ147: N/A | CA147: N/A
A148: Shared among improved sanitation facilities | B148: Yes | C148: N/A | D148: N/A | E148: N/A | F148: N/A | G148: N/A | H148: N/A | I148: N/A | J148: N/A | K148: N/A | L148: N/A | M148: N/A | N148: N/A | O148: N/A | P148: N/A | Q148: N/A | R148: N/A | S148: N/A | T148: N/A | U148: N/A | V148: N/A | W148: N/A | X148: N/A | Y148: N/A | Z148: N/A | AA148: N/A | BA148: Shared among improved sanitation facilities | BB148: Yes | BC148: N/A | BD148: N/A | BE148: N/A | BF148: N/A | BG148: N/A | BH148: N/A | BI148: N/A | BJ148: N/A | BK148: N/A | BL148: N/A | BM148: N/A | BN148: N/A | BO148: N/A | BP148: N/A | BQ148: N/A | BR148: N/A | BS148: N/A | BT148: N/A | BU148: N/A | BV148: N/A | BW148: N/A | BX148: N/A | BY148: N/A | BZ148: N/A | CA148: N/A
B149: No | C149: N/A | D149: N/A | E149: N/A | F149: N/A | G149: N/A | H149: N/A | I149: N/A | J149: N/A | K149: N/A | L149: N/A | M149: N/A | N149: N/A | O149: N/A | P149: N/A | Q149: N/A | R149: N/A | S149: N/A | T149: N/A | U149: N/A | V149: N/A | W149: N/A | X149: N/A | Y149: N/A | Z149: N/A | AA149: N/A | BB149: No | BC149: N/A | BD149: N/A | BE149: N/A | BF149: N/A | BG149: N/A | BH149: N/A | BI149: N/A | BJ149: N/A | BK149: N/A | BL149: N/A | BM149: N/A | BN149: N/A | BO149: N/A | BP149: N/A | BQ149: N/A | BR149: N/A | BS149: N/A | BT149: N/A | BU149: N/A | BV149: N/A | BW149: N/A | BX149: N/A | BY149: N/A | BZ149: N/A | CA149: N/A
B150: DK/missing | C150: N/A | D150: N/A | E150: N/A | F150: N/A | G150: N/A | H150: N/A | I150: N/A | J150: N/A | K150: N/A | L150: N/A | M150: N/A | N150: N/A | O150: N/A | P150: N/A | Q150: N/A | R150: N/A | S150: N/A | T150: N/A | U150: N/A | V150: N/A | W150: N/A | X150: N/A | Y150: N/A | Z150: N/A | AA150: N/A | BB150: DK/missing | BC150: N/A | BD150: N/A | BE150: N/A | BF150: N/A | BG150: N/A | BH150: N/A | BI150: N/A | BJ150: N/A | BK150: N/A | BL150: N/A | BM150: N/A | BN150: N/A | BO150: N/A | BP150: N/A | BQ150: N/A | BR150: N/A | BS150: N/A | BT150: N/A | BU150: N/A | BV150: N/A | BW150: N/A | BX150: N/A | BY150: N/A | BZ150: N/A | CA150: N/A
A151: Shared among all sanitation facilities | B151: Yes | C151: 85.97926037 | D151: 87.37452424 | E151: 89.82303744 | F151: 86.46316058 | G151: 66.61292053 | H151: 94.08187751 | I151: 87.3655049 | J151: 86.97399532 | K151: 83.24109693 | L151: 47.30512965 | M151: 84.16066724 | N151: 85.58777295 | O151: 88.00799881 | P151: 86.63391317 | Q151: 81.41532233 | R151: 87.01945198 | S151: 88.64681333 | T151: 88.09152735 | U151: 75.78467482 | V151: 69.13880191 | W151: 86.25156783 | X151: 79.15984623 | Y151: 82.8550093 | Z151: 83.27009377 | AA151: 83.56676999 | BA151: Shared among all sanitation facilities | BB151: Yes | BC151: N/A | BD151: N/A | BE151: N/A | BF151: N/A | BG151: N/A | BH151: N/A | BI151: N/A | BJ151: N/A | BK151: N/A | BL151: N/A | BM151: N/A | BN151: N/A | BO151: N/A | BP151: N/A | BQ151: N/A | BR151: N/A | BS151: N/A | BT151: N/A | BU151: N/A | BV151: N/A | BW151: N/A | BX151: N/A | BY151: N/A | BZ151: N/A | CA151: N/A
B152: No | C152: 13.99154608 | D152: 12.62547576 | E152: 10.16898411 | F152: 13.53683942 | G152: 33.23422303 | H152: 5.918122493 | I152: 12.6344951 | J152: 13.02600468 | K152: 16.59930526 | L152: 52.48814357 | M152: 15.73552341 | N152: 14.41222705 | O152: 11.99200119 | P152: 13.36608683 | Q152: 18.57243216 | R152: 12.98054802 | S152: 11.35318667 | T152: 11.90847265 | U152: 24.21532518 | V152: 30.60835064 | W152: 13.74843217 | X152: 20.84015377 | Y152: 16.15067114 | Z152: 16.72990623 | AA152: 16.43323001 | BB152: No | BC152: N/A | BD152: N/A | BE152: N/A | BF152: N/A | BG152: N/A | BH152: N/A | BI152: N/A | BJ152: N/A | BK152: N/A | BL152: N/A | BM152: N/A | BN152: N/A | BO152: N/A | BP152: N/A | BQ152: N/A | BR152: N/A | BS152: N/A | BT152: N/A | BU152: N/A | BV152: N/A | BW152: N/A | BX152: N/A | BY152: N/A | BZ152: N/A | CA152: N/A
A153: Type of toilet facility | B153: Flush toilet | C153: 0.1971491235 | D153: 0 | E153: 1.06624497 | F153: 8.182750994 | G153: 42.14979333 | H153: 2.092694627 | I153: 7.105290792 | J153: 11.77809928 | K153: 25.29194635 | L153: 67.30734735 | M153: 0 | N153: 0.1933787204 | O153: 0 | P153: 0.5312612632 | Q153: 7.108858984 | R153: 10.24339278 | S153: 3.283125631 | T153: 8.423253864 | U153: 7.335169029 | V153: 39.83302288 | W153: 0.2557419417 | X153: 1.001996362 | Y153: 0.7004790848 | Z153: 4.502068223 | AA153: 8.830453399 | BA153: Type of toilet facility | BB153: Flush toilet | BC153: 10.772564 | BD153: 0 | BE153: 52.902607 | BF153: 424.941559 | BG153: 2151.432483 | BH153: 43.210315 | BI153: 154.266945 | BJ153: 250.536568 | BK153: 536.71193 | BL153: 1426.531838 | BM153: 0 | BN153: 6.25464 | BO153: 0 | BP153: 12.959288 | BQ153: 209.577689 | BR153: 501.044431 | BS153: 85.47343 | BT153: 175.298163 | BU153: 200.05777 | BV153: 1341.69018 | BW153: 6.901472 | BX153: 16.46698 | BY153: 5.365263 | BZ153: 105.325068 | CA153: 202.426456
B154: Traditional pit toilet | C154: 46.02217809 | D154: 55.84056191 | E154: 46.91819896 | F154: 38.20261744 | G154: 16.84677911 | H154: 34.93812489 | I154: 37.85422662 | J154: 28.85374581 | K154: 22.92378771 | L154: 8.427434324 | M154: 33.0789324 | N154: 53.65889861 | O154: 59.02378881 | P154: 51.35082124 | Q154: 49.49294961 | R154: 51.30046101 | S154: 66.04955571 | T154: 53.7082918 | U154: 64.18434603 | V154: 16.41197578 | W154: 6.954308205 | X154: 5.990073019 | Y154: 4.304069517 | Z154: 52.30322073 | AA154: 48.49769594 | BB154: Traditional pit toilet | BC154: 2514.730221 | BD154: 2617.954272 | BE154: 2327.884408 | BF154: 1983.914679 | BG154: 859.902385 | BH154: 721.408352 | BI154: 821.8743 | BJ154: 613.759341 | BK154: 486.458028 | BL154: 178.613537 | BM154: 784.85942 | BN154: 1735.543047 | BO154: 2250.135417 | BP154: 1252.623008 | BQ154: 1459.111515 | BR154: 2509.306325 | BS154: 1719.544943 | BT154: 1117.734909 | BU154: 1750.54959 | BV154: 552.802302 | BW154: 187.669504 | BX154: 98.441887 | BY154: 32.966673 | BZ154: 1223.624345 | CA154: 1111.745487
B155: Ventilated improved pit latrine | C155: 6.209047572 | D155: 5.980039406 | E155: 25.97814563 | F155: 42.39734977 | G155: 32.44463877 | H155: 41.94441092 | I155: 43.63095979 | J155: 50.20263989 | K155: 40.72698315 | L155: 18.95485136 | M155: 0.8504886147 | N155: 6.750676834 | O155: 7.016061087 | P155: 15.07788432 | Q155: 25.28170295 | R155: 30.37022608 | S155: 16.11377559 | T155: 22.98638041 | U155: 24.30174205 | V155: 28.07638772 | W155: 11.45304321 | X155: 17.61557331 | Y155: 9.739957479 | Z155: 20.99188713 | AA155: 26.61843584 | BB155: Ventilated improved pit latrine | BC155: 339.272938 | BD155: 280.360175 | BE155: 1288.926717 | BF155: 2201.752922 | BG155: 1656.05675 | BH155: 866.075339 | BI155: 947.296187 | BJ155: 1067.880038 | BK155: 864.253681 | BL155: 401.734729 | BM155: 20.17943 | BN155: 218.343845 | BO155: 267.469911 | BP155: 367.801417 | BQ155: 745.334925 | BR155: 1485.526619 | BS155: 419.508671 | BT155: 478.374548 | BU155: 662.800312 | BV155: 945.69307 | BW155: 309.072718 | BX155: 289.497352 | BY155: 74.602418 | BZ155: 491.101385 | CA155: 610.192409
B156: No facility, bush, field | C156: 47.57162522 | D156: 38.17939868 | E156: 25.30109433 | F156: 9.031447085 | G156: 2.206340486 | H156: 19.42748498 | I156: 8.863013387 | J156: 4.224407812 | K156: 3.538295604 | L156: 0.4233486231 | M156: 66.07057898 | N156: 39.39704583 | O156: 33.96015011 | P156: 32.89442367 | Q156: 17.63378207 | R156: 5.424974647 | S156: 14.53178658 | T156: 12.99907038 | U156: 3.188935055 | V156: 10.44849507 | W156: 81.01841798 | X156: 75.21084283 | Y156: 85.25549392 | Z156: 20.08869114 | AA156: 14.30057843 | BB156: No facility, bush, field | BC156: 2599.394652 | BD156: 1789.9519 | BE156: 1255.334269 | BF156: 469.015519 | BG156: 112.617221 | BH156: 401.142018 | BI156: 192.429844 | BJ156: 89.859035 | BK156: 75.084987 | BL156: 8.972576 | BM156: 1567.647821 | BN156: 1274.257779 | BO156: 1294.646414 | BP156: 802.408042 | BQ156: 519.865045 | BR156: 265.356742 | BS156: 378.32291 | BT156: 270.526473 | BU156: 86.974306 | BV156: 351.935209 | BW156: 2186.369351 | BX156: 1236.027886 | BY156: 653.007573 | BZ156: 469.971279 | CA156: 327.821832
B157: Bucket, pan | C157: 0 | D157: 0 | E157: 0.7363161174 | F157: 2.18583471 | G157: 6.352448299 | H157: 1.59728458 | I157: 2.54650941 | J157: 4.941107214 | K157: 7.518987186 | L157: 4.887018344 | M157: 0 | N157: 0 | O157: 0 | P157: 0.145609495 | Q157: 0.4827063791 | R157: 2.660945486 | S157: 0.02175648918 | T157: 1.883003537 | U157: 0.9898078377 | V157: 5.230118548 | W157: 0.318488666 | X157: 0.1815144748 | Y157: 0 | Z157: 2.11413277 | AA157: 1.752836383 | BB157: Bucket, pan | BC157: 0 | BD157: 0 | BE157: 36.53292 | BF157: 113.513415 | BG157: 324.245092 | BH157: 32.981004 | BI157: 55.288691 | BJ157: 105.104229 | BK157: 159.557911 | BL157: 103.576913 | BM157: 0 | BN157: 0 | BO157: 0 | BP157: 3.551916 | BQ157: 14.230763 | BR157: 130.157258 | BS157: 0.566412 | BT157: 39.187595 | BU157: 26.995799 | BV157: 176.165357 | BW157: 8.59476 | BX157: 2.98304 | BY157: 0 | BZ157: 49.459752 | CA157: 40.181454
BB158: Total | BC158: 5464.170375 | BD158: 4688.266347 | BE158: 4961.580921 | BF158: 5193.138094 | BG158: 5104.253931 | BH158: 2064.817028 | BI158: 2171.155967 | BJ158: 2127.139211 | BK158: 2122.066537 | BL158: 2119.429593 | BM158: 2372.686671 | BN158: 3234.399311 | BO158: 3812.251742 | BP158: 2439.343671 | BQ158: 2948.119937 | BR158: 4891.391375 | BS158: 2603.416366 | BT158: 2081.121688 | BU158: 2727.377777 | BV158: 3368.286118 | BW158: 2698.607805 | BX158: 1643.417145 | BY158: 765.941927 | BZ158: 2339.481829 | CA158: 2292.367638
A208: =A1026 -> Ghana
A209: =A1034 -> 2003
A210: Access to hygiene facilities
A211: by wealth quintile and sub-national region
A212: Notes:
A213: WHO/UNICEF JMP customised wealth index excludes water,
A214: sanitation and hygiene assets.
A215: Survey used for analysis: | B215: =A1025 -> DHS03
A220: Access to handwashing | C220: NATIONAL wealth index quintile | H220: URBAN wealth index quintile | M220: RURAL wealth index quintile | R220: SUB-REGIONS: | BA220: Raw numbers of respondents: | BB220: Access to handwashing | BC220: NATIONAL wealth index quintile | BH220: URBAN wealth index quintile | BM220: RURAL wealth index quintile | BR220: SUB-REGIONS:
A221: Weighted percentage (used in graphs) | C221: Poorest | D221: Poor | E221: Middle | F221: Rich | G221: Richest | H221: Poorest | I221: Poor | J221: Middle | K221: Rich | L221: Richest | M221: Poorest | N221: Poor | O221: Middle | P221: Rich | Q221: Richest | R221: Ashanti | S221: Brong Ahafo | T221: Central | U221: Eastern | V221: Greater Accra | W221: Northern | X221: Upper East | Y221: Upper West | Z221: Volta | AA221: Western | BA221: Hygiene data, raw numbers (weighted) | BC221: Poorest | BD221: Poor | BE221: Middle | BF221: Rich | BG221: Richest | BH221: Poorest | BI221: Poor | BJ221: Middle | BK221: Rich | BL221: Richest | BM221: Poorest | BN221: Poor | BO221: Middle | BP221: Rich | BQ221: Richest | BR221: Ashanti | BS221: Brong Ahafo | BT221: Central | BU221: Eastern | BV221: Greater Accra | BW221: Northern | BX221: Upper East | BY221: Upper West | BZ221: Volta | CA221: Western
A222: Hygiene ladder | B222: Basic | C222: 12.14536673 | D222: 4.633275627 | E222: 7.269444311 | F222: 10.88425481 | G222: 27.99924646 | H222: 7.96976493 | I222: 11.0732494 | J222: 9.348932546 | K222: 10.17128904 | L222: 49.68664 | M222: 10.60845465 | N222: 12.68577029 | O222: 3.94078873 | P222: 6.788044691 | Q222: 13.08723666 | R222: 3.163041232 | S222: 1.374149718 | T222: 9.209498661 | U222: 34.99236843 | V222: 23.92797824 | W222: 11.09915741 | X222: 21.48386897 | Y222: 0 | Z222: 6.67397494 | AA222: 12.37023912 | BA222: Hygiene ladder | BB222: Basic | BC222: 663.745136 | BD222: 217.220302 | BE222: 362.159051 | BF222: 565.234383 | BG222: 1430.068818 | BH222: 165.121824 | BI222: 240.417515 | BJ222: 198.86481 | BK222: 216.174342 | BL222: 1053.073352 | BM222: 251.794137 | BN222: 410.308467 | BO222: 150.232787 | BP222: 166.352912 | BQ222: 386.087544 | BR222: 154.716726 | BS222: 35.812761 | BT222: 191.660874 | BU222: 955.594021 | BV222: 806.745731 | BW222: 300.813611 | BX222: 353.069586 | BY222: 0 | BZ222: 156.136431 | CA222: 283.877949
B223: Limited | C223: 54.16644172 | D223: 55.78273789 | E223: 45.64357746 | F223: 30.62767701 | G223: 23.63448473 | H223: 38.95627519 | I223: 25.70550156 | J223: 27.30435676 | K223: 27.25192054 | L223: 15.6108787 | M223: 54.82245673 | N223: 51.32543936 | O223: 61.15301294 | P223: 49.7055289 | Q223: 43.39667458 | R223: 41.29048565 | S223: 47.89722512 | T223: 79.55254479 | U223: 35.34887603 | V223: 12.73550411 | W223: 60.54651458 | X223: 34.03276269 | Y223: 50.68872608 | Z223: 6.326397759 | AA223: 69.36658796 | BB223: Limited | BC223: 2960.199804 | BD223: 2615.243328 | BE223: 2273.933741 | BF223: 1590.537562 | BG223: 1207.137474 | BH223: 807.116806 | BI223: 558.106531 | BJ223: 580.801679 | BK223: 579.195613 | BL223: 330.861583 | BM223: 1301.223754 | BN223: 1660.069657 | BO223: 2331.306801 | BP223: 1218.120954 | BQ223: 1280.248531 | BR223: 2019.679254 | BS223: 1248.286015 | BT223: 1655.585263 | BU223: 965.329759 | BV223: 429.384943 | BW223: 1640.954805 | BX223: 559.300257 | BY223: 388.670254 | BZ223: 148.004926 | CA223: 1591.856433
B224: No facility | C224: 33.68819155 | D224: 39.58398648 | E224: 47.08697823 | F224: 58.48806818 | G224: 48.36626882 | H224: 53.07395988 | I224: 63.22124904 | J224: 63.34671069 | K224: 62.57679041 | L224: 34.70248129 | M224: 34.56908862 | N224: 35.98879035 | O224: 34.90619833 | P224: 43.50642641 | Q224: 43.51608877 | R224: 55.54647311 | S224: 50.72862516 | T224: 11.23795655 | U224: 29.65875553 | V224: 63.33651766 | W224: 28.35432801 | X224: 44.48336834 | Y224: 49.31127392 | Z224: 86.9996273 | AA224: 18.26317292 | BB224: No facility | BC224: 1841.062009 | BD224: 1855.802717 | BE224: 2345.843041 | BF224: 3037.366149 | BG224: 2470.319799 | BH224: 1099.614498 | BI224: 1372.631921 | BJ224: 1347.472722 | BK224: 1329.968742 | BL224: 735.494658 | BM224: 820.505354 | BN224: 1164.021187 | BO224: 1330.712154 | BP224: 1066.201101 | BQ224: 1283.771378 | BR224: 2716.995395 | BS224: 1322.077285 | BT224: 233.875551 | BU224: 809.940302 | BV224: 2135.427604 | BW224: 768.469847 | BX224: 731.047302 | BY224: 378.108247 | BZ224: 2035.340472 | CA224: 419.11171
A225: Place for hand washing | B225: Nowhere | C225: 14.7887984 | D225: 17.31208242 | E225: 22.0146956 | F225: 23.41217784 | G225: 13.9411362 | H225: 21.84768519 | I225: 23.11229242 | J225: 22.12430684 | K225: 18.88209727 | L225: 8.168425296 | M225: 15.79102888 | N225: 17.45643388 | O225: 13.92481344 | P225: 21.23554041 | Q225: 22.1796571 | R225: 17.53153811 | S225: 28.40396127 | T225: 1.02536969 | U225: 9.723453031 | V225: 23.27209347 | W225: 16.07912603 | X225: 37.4656597 | Y225: 9.762157859 | Z225: 30.77599189 | AA225: 5.634297631 | BA225: Observed handwashing place | BB225: Fixed | BC225: N/A | BD225: N/A | BE225: N/A | BF225: N/A | BG225: N/A | BH225: N/A | BI225: N/A | BJ225: N/A | BK225: N/A | BL225: N/A | BM225: N/A | BN225: N/A | BO225: N/A | BP225: N/A | BQ225: N/A | BR225: N/A | BS225: N/A | BT225: N/A | BU225: N/A | BV225: N/A | BW225: N/A | BX225: N/A | BY225: N/A | BZ225: N/A | CA225: N/A
B226: In dwelling/yard/plot | C226: 66.31180845 | D226: 60.41601352 | E226: 52.87218988 | F226: 41.51193182 | G226: 51.63373118 | H226: 46.92604012 | I226: 36.77875096 | J226: 36.65328931 | K226: 37.42320959 | L226: 65.29751871 | M226: 65.43091138 | N226: 64.01120965 | O226: 65.09380167 | P226: 56.41186119 | Q226: 56.47821323 | R226: 44.45352689 | S226: 49.27137484 | T226: 88.76204345 | U226: 70.24992801 | V226: 36.66348234 | W226: 71.64567199 | X226: 55.51663166 | Y226: 50.66905843 | Z226: 13.0003727 | AA226: 81.73682708 | BB226: Mobile | BC226: N/A | BD226: N/A | BE226: N/A | BF226: N/A | BG226: N/A | BH226: N/A | BI226: N/A | BJ226: N/A | BK226: N/A | BL226: N/A | BM226: N/A | BN226: N/A | BO226: N/A | BP226: N/A | BQ226: N/A | BR226: N/A | BS226: N/A | BT226: N/A | BU226: N/A | BV226: N/A | BW226: N/A | BX226: N/A | BY226: N/A | BZ226: N/A | CA226: N/A
B227: Somewhere else | C227: 18.89939315 | D227: 22.27190406 | E227: 25.03594657 | F227: 35.07589034 | G227: 34.42513261 | H227: 31.22627469 | I227: 40.10895662 | J227: 41.22240385 | K227: 43.69469315 | L227: 26.534056 | M227: 18.77805974 | N227: 18.53235647 | O227: 20.98138489 | P227: 22.20795823 | Q227: 21.33204183 | R227: 38.014935 | S227: 22.32466389 | T227: 10.21258686 | U227: 19.89679973 | V227: 40.06442418 | W227: 12.27520198 | X227: 7.017708641 | Y227: 39.52998287 | Z227: 56.22363541 | AA227: 12.62887529 | BA227: Water / Soap | BB227: Water and soap | BC227: N/A | BD227: N/A | BE227: N/A | BF227: N/A | BG227: N/A | BH227: N/A | BI227: N/A | BJ227: N/A | BK227: N/A | BL227: N/A | BM227: N/A | BN227: N/A | BO227: N/A | BP227: N/A | BQ227: N/A | BR227: N/A | BS227: N/A | BT227: N/A | BU227: N/A | BV227: N/A | BW227: N/A | BX227: N/A | BY227: N/A | BZ227: N/A | CA227: N/A
B228: missing | C228: 0 | D228: 0 | E228: 0.07716795535 | F228: 0 | G228: 0 | H228: 0 | I228: 0 | J228: 0 | K228: 0 | L228: 0 | M228: 0 | N228: 0 | O228: 0 | P228: 0.1446401754 | Q228: 0.01008783511 | R228: 0 | S228: 0 | T228: 0 | U228: 0.1298192285 | V228: 0 | W228: 0 | X228: 0 | Y228: 0.03880084221 | Z228: 0 | AA228: 0 | BB228: Water only | BC228: N/A | BD228: N/A | BE228: N/A | BF228: N/A | BG228: N/A | BH228: N/A | BI228: N/A | BJ228: N/A | BK228: N/A | BL228: N/A | BM228: N/A | BN228: N/A | BO228: N/A | BP228: N/A | BQ228: N/A | BR228: N/A | BS228: N/A | BT228: N/A | BU228: N/A | BV228: N/A | BW228: N/A | BX228: N/A | BY228: N/A | BZ228: N/A | CA228: N/A
BB229: Soap only | BC229: N/A | BD229: N/A | BE229: N/A | BF229: N/A | BG229: N/A | BH229: N/A | BI229: N/A | BJ229: N/A | BK229: N/A | BL229: N/A | BM229: N/A | BN229: N/A | BO229: N/A | BP229: N/A | BQ229: N/A | BR229: N/A | BS229: N/A | BT229: N/A | BU229: N/A | BV229: N/A | BW229: N/A | BX229: N/A | BY229: N/A | BZ229: N/A | CA229: N/A
BB230: Neither | BC230: N/A | BD230: N/A | BE230: N/A | BF230: N/A | BG230: N/A | BH230: N/A | BI230: N/A | BJ230: N/A | BK230: N/A | BL230: N/A | BM230: N/A | BN230: N/A | BO230: N/A | BP230: N/A | BQ230: N/A | BR230: N/A | BS230: N/A | BT230: N/A | BU230: N/A | BV230: N/A | BW230: N/A | BX230: N/A | BY230: N/A | BZ230: N/A | CA230: N/A
BA231: Place for hand washing | BB231: Nowhere | BC231: 808.20886 | BD231: 811.636534 | BE231: 1097.605008 | BF231: 1215.826726 | BG231: 712.047169 | BH231: 452.651949 | BI231: 501.803916 | BJ231: 470.614806 | BK231: 401.30852 | BL231: 173.124023 | BM231: 374.803741 | BN231: 564.610777 | BO231: 530.848943 | BP231: 521.167891 | BQ231: 654.389731 | BR231: 857.536143 | BS231: 740.257239 | BT231: 21.339191 | BU231: 265.879449 | BV231: 784.632194 | BW231: 435.782626 | BX231: 615.717075 | BY231: 74.883183 | BZ231: 719.998738 | CA231: 129.298459
BB232: In dwelling/yard/plot | BC232: 3623.94494 | BD232: 2832.46363 | BE232: 2636.092792 | BF232: 2155.771945 | BG232: 2637.206292 | BH232: 972.23863 | BI232: 798.524046 | BJ232: 779.666489 | BK232: 795.369955 | BL232: 1383.934935 | BM232: 1553.017891 | BN232: 2070.378124 | BO232: 2481.539588 | BP232: 1384.473866 | BQ232: 1666.336075 | BR232: 2174.39598 | BS232: 1284.098776 | BT232: 1847.246137 | BU232: 1920.92378 | BV232: 1236.130674 | BW232: 1941.768416 | BX232: 912.369843 | BY232: 388.670254 | BZ232: 304.141357 | CA232: 1875.734382
BB233: Somewhere else | BC233: 1032.853149 | BD233: 1044.166183 | BE233: 1248.238033 | BF233: 1821.539423 | BG233: 1758.27263 | BH233: 646.962549 | BI233: 870.828005 | BJ233: 876.857916 | BK233: 928.660222 | BL233: 562.370635 | BM233: 445.701613 | BN233: 599.41041 | BO233: 799.863211 | BP233: 545.03321 | BQ233: 629.381647 | BR233: 1859.459252 | BS233: 581.820046 | BT233: 212.53636 | BU233: 544.060853 | BV233: 1350.79541 | BW233: 332.687221 | BX233: 115.330227 | BY233: 303.225064 | BZ233: 1315.341734 | CA233: 289.813251
BB234: missing | BC234: 0 | BD234: 0 | BE234: 3.847427 | BF234: 0 | BG234: 0 | BH234: 0 | BI234: 0 | BJ234: 0 | BK234: 0 | BL234: 0 | BM234: 0 | BN234: 0 | BO234: 0 | BP234: 3.549795 | BQ234: 0.297632 | BR234: 0 | BS234: 0 | BT234: 0 | BU234: 3.549795 | BV234: 0 | BW234: 0 | BX234: 0 | BY234: 0.297632 | BZ234: 0 | CA234: 0
BB235: Total | BC235: 5465.006949 | BD235: 4688.266347 | BE235: 4985.78326 | BF235: 5193.138094 | BG235: 5107.526091 | BH235: 2071.853128 | BI235: 2171.155967 | BJ235: 2127.139211 | BK235: 2125.338697 | BL235: 2119.429593 | BM235: 2373.523245 | BN235: 3234.399311 | BO235: 3812.251742 | BP235: 2454.224762 | BQ235: 2950.405085 | BR235: 4891.391375 | BS235: 2606.176061 | BT235: 2081.121688 | BU235: 2734.413877 | BV235: 3371.558278 | BW235: 2710.238263 | BX235: 1643.417145 | BY235: 767.076133 | BZ235: 2339.481829 | CA235: 2294.846092
BA259: Raw numbers of respondents: | BB259: Menstrual health and hygiene | BC259: NATIONAL wealth index quintile | BH259: URBAN wealth index quintile | BM259: RURAL wealth index quintile | BR259: SUB-REGIONS:
BA260: MHH data, raw numbers (weighted) | BC260: Poorest | BD260: Poor | BE260: Middle | BF260: Rich | BG260: Richest | BH260: Poorest | BI260: Poor | BJ260: Middle | BK260: Rich | BL260: Richest | BM260: Poorest | BN260: Poor | BO260: Middle | BP260: Rich | BQ260: Richest | BR260: Ashanti | BS260: Brong Ahafo | BT260: Central | BU260: Eastern | BV260: Greater Accra | BW260: Northern | BX260: Upper East | BY260: Upper West | BZ260: Volta | CA260: Western
BA261: Private place to wash and change | BB261: Yes | BC261: N/A | BD261: N/A | BE261: N/A | BF261: N/A | BG261: N/A | BH261: N/A | BI261: N/A | BJ261: N/A | BK261: N/A | BL261: N/A | BM261: N/A | BN261: N/A | BO261: N/A | BP261: N/A | BQ261: N/A | BR261: N/A | BS261: N/A | BT261: N/A | BU261: N/A | BV261: N/A | BW261: N/A | BX261: N/A | BY261: N/A | BZ261: N/A | CA261: N/A
BB262: No | BC262: N/A | BD262: N/A | BE262: N/A | BF262: N/A | BG262: N/A | BH262: N/A | BI262: N/A | BJ262: N/A | BK262: N/A | BL262: N/A | BM262: N/A | BN262: N/A | BO262: N/A | BP262: N/A | BQ262: N/A | BR262: N/A | BS262: N/A | BT262: N/A | BU262: N/A | BV262: N/A | BW262: N/A | BX262: N/A | BY262: N/A | BZ262: N/A | CA262: N/A
BB263: DK/not sure/missing | BC263: N/A | BD263: N/A | BE263: N/A | BF263: N/A | BG263: N/A | BH263: N/A | BI263: N/A | BJ263: N/A | BK263: N/A | BL263: N/A | BM263: N/A | BN263: N/A | BO263: N/A | BP263: N/A | BQ263: N/A | BR263: N/A | BS263: N/A | BT263: N/A | BU263: N/A | BV263: N/A | BW263: N/A | BX263: N/A | BY263: N/A | BZ263: N/A | CA263: N/A
BA264: Use of menstrual materials | BB264: Materials reusable | BC264: N/A | BD264: N/A | BE264: N/A | BF264: N/A | BG264: N/A | BH264: N/A | BI264: N/A | BJ264: N/A | BK264: N/A | BL264: N/A | BM264: N/A | BN264: N/A | BO264: N/A | BP264: N/A | BQ264: N/A | BR264: N/A | BS264: N/A | BT264: N/A | BU264: N/A | BV264: N/A | BW264: N/A | BX264: N/A | BY264: N/A | BZ264: N/A | CA264: N/A
BB265: Materials not reusable | BC265: N/A | BD265: N/A | BE265: N/A | BF265: N/A | BG265: N/A | BH265: N/A | BI265: N/A | BJ265: N/A | BK265: N/A | BL265: N/A | BM265: N/A | BN265: N/A | BO265: N/A | BP265: N/A | BQ265: N/A | BR265: N/A | BS265: N/A | BT265: N/A | BU265: N/A | BV265: N/A | BW265: N/A | BX265: N/A | BY265: N/A | BZ265: N/A | CA265: N/A
BB266: No materials used | BC266: N/A | BD266: N/A | BE266: N/A | BF266: N/A | BG266: N/A | BH266: N/A | BI266: N/A | BJ266: N/A | BK266: N/A | BL266: N/A | BM266: N/A | BN266: N/A | BO266: N/A | BP266: N/A | BQ266: N/A | BR266: N/A | BS266: N/A | BT266: N/A | BU266: N/A | BV266: N/A | BW266: N/A | BX266: N/A | BY266: N/A | BZ266: N/A | CA266: N/A
BB267: DK/not sure/missing | BC267: N/A | BD267: N/A | BE267: N/A | BF267: N/A | BG267: N/A | BH267: N/A | BI267: N/A | BJ267: N/A | BK267: N/A | BL267: N/A | BM267: N/A | BN267: N/A | BO267: N/A | BP267: N/A | BQ267: N/A | BR267: N/A | BS267: N/A | BT267: N/A | BU267: N/A | BV267: N/A | BW267: N/A | BX267: N/A | BY267: N/A | BZ267: N/A | CA267: N/A
BA268: Use of menstrual materials with private place to wash and change | BB268: Materials reusable | BC268: N/A | BD268: N/A | BE268: N/A | BF268: N/A | BG268: N/A | BH268: N/A | BI268: N/A | BJ268: N/A | BK268: N/A | BL268: N/A | BM268: N/A | BN268: N/A | BO268: N/A | BP268: N/A | BQ268: N/A | BR268: N/A | BS268: N/A | BT268: N/A | BU268: N/A | BV268: N/A | BW268: N/A | BX268: N/A | BY268: N/A | BZ268: N/A | CA268: N/A
BB269: Materials not reusable | BC269: N/A | BD269: N/A | BE269: N/A | BF269: N/A | BG269: N/A | BH269: N/A | BI269: N/A | BJ269: N/A | BK269: N/A | BL269: N/A | BM269: N/A | BN269: N/A | BO269: N/A | BP269: N/A | BQ269: N/A | BR269: N/A | BS269: N/A | BT269: N/A | BU269: N/A | BV269: N/A | BW269: N/A | BX269: N/A | BY269: N/A | BZ269: N/A | CA269: N/A
BB270: No materials used | BC270: N/A | BD270: N/A | BE270: N/A | BF270: N/A | BG270: N/A | BH270: N/A | BI270: N/A | BJ270: N/A | BK270: N/A | BL270: N/A | BM270: N/A | BN270: N/A | BO270: N/A | BP270: N/A | BQ270: N/A | BR270: N/A | BS270: N/A | BT270: N/A | BU270: N/A | BV270: N/A | BW270: N/A | BX270: N/A | BY270: N/A | BZ270: N/A | CA270: N/A
BA271: Awareness of menstruation before menarche | BB271: Yes | BC271: N/A | BD271: N/A | BE271: N/A | BF271: N/A | BG271: N/A | BH271: N/A | BI271: N/A | BJ271: N/A | BK271: N/A | BL271: N/A | BM271: N/A | BN271: N/A | BO271: N/A | BP271: N/A | BQ271: N/A | BR271: N/A | BS271: N/A | BT271: N/A | BU271: N/A | BV271: N/A | BW271: N/A | BX271: N/A | BY271: N/A | BZ271: N/A | CA271: N/A
BB272: No | BC272: N/A | BD272: N/A | BE272: N/A | BF272: N/A | BG272: N/A | BH272: N/A | BI272: N/A | BJ272: N/A | BK272: N/A | BL272: N/A | BM272: N/A | BN272: N/A | BO272: N/A | BP272: N/A | BQ272: N/A | BR272: N/A | BS272: N/A | BT272: N/A | BU272: N/A | BV272: N/A | BW272: N/A | BX272: N/A | BY272: N/A | BZ272: N/A | CA272: N/A
BB273: DK/not sure/missing | BC273: N/A | BD273: N/A | BE273: N/A | BF273: N/A | BG273: N/A | BH273: N/A | BI273: N/A | BJ273: N/A | BK273: N/A | BL273: N/A | BM273: N/A | BN273: N/A | BO273: N/A | BP273: N/A | BQ273: N/A | BR273: N/A | BS273: N/A | BT273: N/A | BU273: N/A | BV273: N/A | BW273: N/A | BX273: N/A | BY273: N/A | BZ273: N/A | CA273: N/A
BA274: Participation in (all) activities during menstruation | BB274: Yes | BC274: N/A | BD274: N/A | BE274: N/A | BF274: N/A | BG274: N/A | BH274: N/A | BI274: N/A | BJ274: N/A | BK274: N/A | BL274: N/A | BM274: N/A | BN274: N/A | BO274: N/A | BP274: N/A | BQ274: N/A | BR274: N/A | BS274: N/A | BT274: N/A | BU274: N/A | BV274: N/A | BW274: N/A | BX274: N/A | BY274: N/A | BZ274: N/A | CA274: N/A
BB275: No | BC275: N/A | BD275: N/A | BE275: N/A | BF275: N/A | BG275: N/A | BH275: N/A | BI275: N/A | BJ275: N/A | BK275: N/A | BL275: N/A | BM275: N/A | BN275: N/A | BO275: N/A | BP275: N/A | BQ275: N/A | BR275: N/A | BS275: N/A | BT275: N/A | BU275: N/A | BV275: N/A | BW275: N/A | BX275: N/A | BY275: N/A | BZ275: N/A | CA275: N/A
BB276: DK/not sure/missing/no such activity | BC276: N/A | BD276: N/A | BE276: N/A | BF276: N/A | BG276: N/A | BH276: N/A | BI276: N/A | BJ276: N/A | BK276: N/A | BL276: N/A | BM276: N/A | BN276: N/A | BO276: N/A | BP276: N/A | BQ276: N/A | BR276: N/A | BS276: N/A | BT276: N/A | BU276: N/A | BV276: N/A | BW276: N/A | BX276: N/A | BY276: N/A | BZ276: N/A | CA276: N/A
BA277: Participation in specific activities during menstruation | BB277: Did not go to school (amongst those usually attending school) | BC277: N/A | BD277: N/A | BE277: N/A | BF277: N/A | BG277: N/A | BH277: N/A | BI277: N/A | BJ277: N/A | BK277: N/A | BL277: N/A | BM277: N/A | BN277: N/A | BO277: N/A | BP277: N/A | BQ277: N/A | BR277: N/A | BS277: N/A | BT277: N/A | BU277: N/A | BV277: N/A | BW277: N/A | BX277: N/A | BY277: N/A | BZ277: N/A | CA277: N/A
BB278: Did not go to work (amongst those who usually work) | BC278: N/A | BD278: N/A | BE278: N/A | BF278: N/A | BG278: N/A | BH278: N/A | BI278: N/A | BJ278: N/A | BK278: N/A | BL278: N/A | BM278: N/A | BN278: N/A | BO278: N/A | BP278: N/A | BQ278: N/A | BR278: N/A | BS278: N/A | BT278: N/A | BU278: N/A | BV278: N/A | BW278: N/A | BX278: N/A | BY278: N/A | BZ278: N/A | CA278: N/A
BB279: Did not participate in social activities | BC279: N/A | BD279: N/A | BE279: N/A | BF279: N/A | BG279: N/A | BH279: N/A | BI279: N/A | BJ279: N/A | BK279: N/A | BL279: N/A | BM279: N/A | BN279: N/A | BO279: N/A | BP279: N/A | BQ279: N/A | BR279: N/A | BS279: N/A | BT279: N/A | BU279: N/A | BV279: N/A | BW279: N/A | BX279: N/A | BY279: N/A | BZ279: N/A | CA279: N/A
BB280: Did not cook food | BC280: N/A | BD280: N/A | BE280: N/A | BF280: N/A | BG280: N/A | BH280: N/A | BI280: N/A | BJ280: N/A | BK280: N/A | BL280: N/A | BM280: N/A | BN280: N/A | BO280: N/A | BP280: N/A | BQ280: N/A | BR280: N/A | BS280: N/A | BT280: N/A | BU280: N/A | BV280: N/A | BW280: N/A | BX280: N/A | BY280: N/A | BZ280: N/A | CA280: N/A
BB281: Did not eat with others | BC281: N/A | BD281: N/A | BE281: N/A | BF281: N/A | BG281: N/A | BH281: N/A | BI281: N/A | BJ281: N/A | BK281: N/A | BL281: N/A | BM281: N/A | BN281: N/A | BO281: N/A | BP281: N/A | BQ281: N/A | BR281: N/A | BS281: N/A | BT281: N/A | BU281: N/A | BV281: N/A | BW281: N/A | BX281: N/A | BY281: N/A | BZ281: N/A | CA281: N/A
BB282: Did not bathe in regular place | BC282: N/A | BD282: N/A | BE282: N/A | BF282: N/A | BG282: N/A | BH282: N/A | BI282: N/A | BJ282: N/A | BK282: N/A | BL282: N/A | BM282: N/A | BN282: N/A | BO282: N/A | BP282: N/A | BQ282: N/A | BR282: N/A | BS282: N/A | BT282: N/A | BU282: N/A | BV282: N/A | BW282: N/A | BX282: N/A | BY282: N/A | BZ282: N/A | CA282: N/A
BB283: Did not participate in other activities | BC283: N/A | BD283: N/A | BE283: N/A | BF283: N/A | BG283: N/A | BH283: N/A | BI283: N/A | BJ283: N/A | BK283: N/A | BL283: N/A | BM283: N/A | BN283: N/A | BO283: N/A | BP283: N/A | BQ283: N/A | BR283: N/A | BS283: N/A | BT283: N/A | BU283: N/A | BV283: N/A | BW283: N/A | BX283: N/A | BY283: N/A | BZ283: N/A | CA283: N/A
BB284: DK/not sure/missing/no such activity | BC284: N/A | BD284: N/A | BE284: N/A | BF284: N/A | BG284: N/A | BH284: N/A | BI284: N/A | BJ284: N/A | BK284: N/A | BL284: N/A | BM284: N/A | BN284: N/A | BO284: N/A | BP284: N/A | BQ284: N/A | BR284: N/A | BS284: N/A | BT284: N/A | BU284: N/A | BV284: N/A | BW284: N/A | BX284: N/A | BY284: N/A | BZ284: N/A | CA284: N/A
BA339: Raw numbers of respondents: | BB339: Basic water, sanitation and hygiene | BC339: NATIONAL wealth index quintile | BH339: URBAN wealth index quintile | BM339: RURAL wealth index quintile | BR339: SUB-REGIONS:
BA340: WatSan data, raw numbers (weighted) | BC340: Poorest | BD340: Poor | BE340: Middle | BF340: Rich | BG340: Richest | BH340: Poorest | BI340: Poor | BJ340: Middle | BK340: Rich | BL340: Richest | BM340: Poorest | BN340: Poor | BO340: Middle | BP340: Rich | BQ340: Richest | BR340: Ashanti | BS340: Brong Ahafo | BT340: Central | BU340: Eastern | BV340: Greater Accra | BW340: Northern | BX340: Upper East | BY340: Upper West | BZ340: Volta | CA340: Western
BA341: Use of Basic Water Sanitation and Hygiene | BB341: Yes | BC341: N/A | BD341: N/A | BE341: N/A | BF341: N/A | BG341: N/A | BH341: N/A | BI341: N/A | BJ341: N/A | BK341: N/A | BL341: N/A | BM341: N/A | BN341: N/A | BO341: N/A | BP341: N/A | BQ341: N/A | BR341: N/A | BS341: N/A | BT341: N/A | BU341: N/A | BV341: N/A | BW341: N/A | BX341: N/A | BY341: N/A | BZ341: N/A | CA341: N/A
BB342: No | BC342: N/A | BD342: N/A | BE342: N/A | BF342: N/A | BG342: N/A | BH342: N/A | BI342: N/A | BJ342: N/A | BK342: N/A | BL342: N/A | BM342: N/A | BN342: N/A | BO342: N/A | BP342: N/A | BQ342: N/A | BR342: N/A | BS342: N/A | BT342: N/A | BU342: N/A | BV342: N/A | BW342: N/A | BX342: N/A | BY342: N/A | BZ342: N/A | CA342: N/A
BA343: Use of Basic Water and Sanitation | BB343: Yes | BC343: N/A | BD343: N/A | BE343: N/A | BF343: N/A | BG343: N/A | BH343: N/A | BI343: N/A | BJ343: N/A | BK343: N/A | BL343: N/A | BM343: N/A | BN343: N/A | BO343: N/A | BP343: N/A | BQ343: N/A | BR343: N/A | BS343: N/A | BT343: N/A | BU343: N/A | BV343: N/A | BW343: N/A | BX343: N/A | BY343: N/A | BZ343: N/A | CA343: N/A
BB344: No | BC344: N/A | BD344: N/A | BE344: N/A | BF344: N/A | BG344: N/A | BH344: N/A | BI344: N/A | BJ344: N/A | BK344: N/A | BL344: N/A | BM344: N/A | BN344: N/A | BO344: N/A | BP344: N/A | BQ344: N/A | BR344: N/A | BS344: N/A | BT344: N/A | BU344: N/A | BV344: N/A | BW344: N/A | BX344: N/A | BY344: N/A | BZ344: N/A | CA344: N/A
BA345: Use of Basic Water and Hygiene | BB345: Yes | BC345: N/A | BD345: N/A | BE345: N/A | BF345: N/A | BG345: N/A | BH345: N/A | BI345: N/A | BJ345: N/A | BK345: N/A | BL345: N/A | BM345: N/A | BN345: N/A | BO345: N/A | BP345: N/A | BQ345: N/A | BR345: N/A | BS345: N/A | BT345: N/A | BU345: N/A | BV345: N/A | BW345: N/A | BX345: N/A | BY345: N/A | BZ345: N/A | CA345: N/A
BB346: No | BC346: N/A | BD346: N/A | BE346: N/A | BF346: N/A | BG346: N/A | BH346: N/A | BI346: N/A | BJ346: N/A | BK346: N/A | BL346: N/A | BM346: N/A | BN346: N/A | BO346: N/A | BP346: N/A | BQ346: N/A | BR346: N/A | BS346: N/A | BT346: N/A | BU346: N/A | BV346: N/A | BW346: N/A | BX346: N/A | BY346: N/A | BZ346: N/A | CA346: N/A
BA347: Use of Basic Sanitation and Hygiene | BB347: Yes | BC347: N/A | BD347: N/A | BE347: N/A | BF347: N/A | BG347: N/A | BH347: N/A | BI347: N/A | BJ347: N/A | BK347: N/A | BL347: N/A | BM347: N/A | BN347: N/A | BO347: N/A | BP347: N/A | BQ347: N/A | BR347: N/A | BS347: N/A | BT347: N/A | BU347: N/A | BV347: N/A | BW347: N/A | BX347: N/A | BY347: N/A | BZ347: N/A | CA347: N/A
BB348: No | BC348: N/A | BD348: N/A | BE348: N/A | BF348: N/A | BG348: N/A | BH348: N/A | BI348: N/A | BJ348: N/A | BK348: N/A | BL348: N/A | BM348: N/A | BN348: N/A | BO348: N/A | BP348: N/A | BQ348: N/A | BR348: N/A | BS348: N/A | BT348: N/A | BU348: N/A | BV348: N/A | BW348: N/A | BX348: N/A | BY348: N/A | BZ348: N/A | CA348: N/A
BA349: Use of Basic Water | BB349: Yes | BC349: N/A | BD349: N/A | BE349: N/A | BF349: N/A | BG349: N/A | BH349: N/A | BI349: N/A | BJ349: N/A | BK349: N/A | BL349: N/A | BM349: N/A | BN349: N/A | BO349: N/A | BP349: N/A | BQ349: N/A | BR349: N/A | BS349: N/A | BT349: N/A | BU349: N/A | BV349: N/A | BW349: N/A | BX349: N/A | BY349: N/A | BZ349: N/A | CA349: N/A
BB350: No | BC350: N/A | BD350: N/A | BE350: N/A | BF350: N/A | BG350: N/A | BH350: N/A | BI350: N/A | BJ350: N/A | BK350: N/A | BL350: N/A | BM350: N/A | BN350: N/A | BO350: N/A | BP350: N/A | BQ350: N/A | BR350: N/A | BS350: N/A | BT350: N/A | BU350: N/A | BV350: N/A | BW350: N/A | BX350: N/A | BY350: N/A | BZ350: N/A | CA350: N/A
BA351: Use of Basic Sanitation | BB351: Yes | BC351: N/A | BD351: N/A | BE351: N/A | BF351: N/A | BG351: N/A | BH351: N/A | BI351: N/A | BJ351: N/A | BK351: N/A | BL351: N/A | BM351: N/A | BN351: N/A | BO351: N/A | BP351: N/A | BQ351: N/A | BR351: N/A | BS351: N/A | BT351: N/A | BU351: N/A | BV351: N/A | BW351: N/A | BX351: N/A | BY351: N/A | BZ351: N/A | CA351: N/A
BB352: No | BC352: N/A | BD352: N/A | BE352: N/A | BF352: N/A | BG352: N/A | BH352: N/A | BI352: N/A | BJ352: N/A | BK352: N/A | BL352: N/A | BM352: N/A | BN352: N/A | BO352: N/A | BP352: N/A | BQ352: N/A | BR352: N/A | BS352: N/A | BT352: N/A | BU352: N/A | BV352: N/A | BW352: N/A | BX352: N/A | BY352: N/A | BZ352: N/A | CA352: N/A
BA353: Access to Basic Hygiene | BB353: Yes | BC353: N/A | BD353: N/A | BE353: N/A | BF353: N/A | BG353: N/A | BH353: N/A | BI353: N/A | BJ353: N/A | BK353: N/A | BL353: N/A | BM353: N/A | BN353: N/A | BO353: N/A | BP353: N/A | BQ353: N/A | BR353: N/A | BS353: N/A | BT353: N/A | BU353: N/A | BV353: N/A | BW353: N/A | BX353: N/A | BY353: N/A | BZ353: N/A | CA353: N/A
BB354: No | BC354: N/A | BD354: N/A | BE354: N/A | BF354: N/A | BG354: N/A | BH354: N/A | BI354: N/A | BJ354: N/A | BK354: N/A | BL354: N/A | BM354: N/A | BN354: N/A | BO354: N/A | BP354: N/A | BQ354: N/A | BR354: N/A | BS354: N/A | BT354: N/A | BU354: N/A | BV354: N/A | BW354: N/A | BX354: N/A | BY354: N/A | BZ354: N/A | CA354: N/A
C399: INITIAL (national) Wealth Index | H399: URBAN Wealth Index | M399: RURAL Wealth Index
C400: Component Matrix | H400: Component Matrix | M400: Component Matrix
E401: Component | J401: Component | O401: Component
B402: Note: The INITIAL (national) Wealth Index is based on the first component of the Principal Component Analysis (PCA) which has been obtained at national level. The final national-level (NATIONAL) Wealth Index is based on the URBAN and RURAL specific wealth indexes. Regression procedures are used to establish the relationships between the two sets of scores (urban and rural) and the initial (national) wealth factors. This allows best use of the available information for each area and a better precision of the FINAL (NATIONAL) Wealth Index. For dependency reasons, all WASH variables (contained in the generic MICS and DHS scripts) have been excluded from the sets of asset variables used in the PCAs. The PCA can extracts as many components as there are asset variables in the input. Only the first of the components is used to represent the Wealth Index. The scores represent the weights of the asset variables on the Wealth Index (correlations between the variables and the component). The communalities are the proportion of each variable's variance that can be explained by the component. Proportion of explained variance is the part of the model's total variance that is explained by the component. For more information on the procedure used: The DHS Wealth Index, DHS Comparative Reports No. 6, Shea Oscar Rutstein, Kiersten Johnson, ORC Macro International Inc., 2004. The DHS Wealth Index: Approaches for Rural and Urban Areas, Shea O. Rutstein, ORC Macro International Inc., 2008. MICS Methodological Paper No. 4, Review of options for reporting water, sanitation and hygiene coverage by wealth quintile, UNICEF, 2016. | E402: 1 | J402: 1 | O402: 1
C403: if household has tv | E403: 0.7743658117 | H403: if household has fridge | J403: 0.7307064225 | M403: if household has fridge | O403: 0.7046626742
C404: if household has fridge | E404: 0.7672176475 | H404: if household has tv | J404: 0.7306335484 | M404: if household has tv | O404: 0.7013437443
C405: if uses wood, straw, dung or other for cooking fuel | E405: -0.7428362581 | H405: if household owns a vcr/vcp | J405: 0.7047554363 | M405: if household owns a vcr/vcp | O405: 0.6615543485
C406: if household owns a vcr/vcp | E406: 0.6992186866 | H406: if household has phone | J406: 0.6744758594 | M406: if uses wood, straw, dung or other for cooking fuel | O406: -0.6593619931
C407: if household has electric | E407: 0.6755875323 | H407: if uses LPG, natural gas or biogas for cooking | J407: 0.6474010123 | M407: if household has phone | O407: 0.6260413294
C408: if household has phone | E408: 0.653422289 | H408: if floor is of cement | J408: -0.5940489396 | M408: if uses LPG, natural gas or biogas for cooking | O408: 0.5983441127
C409: if uses LPG, natural gas or biogas for cooking | E409: 0.614382339 | H409: if household has car or truck | J409: 0.5277047461 | M409: if household has electric | O409: 0.5493720145
C410: if waste is collected by the government | E410: 0.5111472473 | H410: if household has electric | J410: 0.4776575728 | M410: if waste is collected by a private company | O410: 0.4928943833
C411: if household has car or truck | E411: 0.481227474 | H411: if household has radio | J411: 0.4594245435 | M411: if household has car or truck | O411: 0.4401603591
... 139 more rows

Sheet MICS06
A2: =A1026 -> Ghana
A3: =A1034 -> 2006
A4: Use of drinking water sources
A5: by wealth quintile and sub-national region
A6: Notes:
A7: WHO/UNICEF JMP customised wealth index excludes water,
A8: sanitation and hygiene assets.
A9: Survey used for analysis: | B9: =A1025 -> MICS06
A10: =B1028 -> 
A11: =B1027 -> 
A14: Use of drinking water sources | C14: NATIONAL wealth index quintile | H14: URBAN wealth index quintile | M14: RURAL wealth index quintile | R14: SUB-REGIONS: | BA14: Raw numbers of respondents: | BB14: Use of drinking water sources | BC14: NATIONAL wealth index quintile | BH14: URBAN wealth index quintile | BM14: RURAL wealth index quintile | BR14: SUB-REGIONS:
A15: Weighted percentage (used in graphs) | C15: Poorest | D15: Poor | E15: Middle | F15: Rich | G15: Richest | H15: Poorest | I15: Poor | J15: Middle | K15: Rich | L15: Richest | M15: Poorest | N15: Poor | O15: Middle | P15: Rich | Q15: Richest | R15: Ashanti | S15: Brong Ahafo | T15: Central | U15: Eastern | V15: Greater Accra | W15: Northern | X15: Upper East | Y15: Upper West | Z15: Volta | AA15: Western | BA15: Water data, raw numbers (weighted) | BC15: Poorest | BD15: Poor | BE15: Middle | BF15: Rich | BG15: Richest | BH15: Poorest | BI15: Poor | BJ15: Middle | BK15: Rich | BL15: Richest | BM15: Poorest | BN15: Poor | BO15: Middle | BP15: Rich | BQ15: Richest | BR15: Ashanti | BS15: Brong Ahafo | BT15: Central | BU15: Eastern | BV15: Greater Accra | BW15: Northern | BX15: Upper East | BY15: Upper West | BZ15: Volta | CA15: Western
A16: Water | B16: Improved | C16: 65.16487267 | D16: 65.17911984 | E16: 76.62649117 | F16: 93.56554939 | G16: 97.96080443 | H16: 82.95273438 | I16: 91.87915844 | J16: 95.56612127 | K16: 97.23252844 | L16: 99.0168897 | M16: 67.63488382 | N16: 62.3407689 | O16: 60.9843856 | P16: 68.78993087 | Q16: 90.68023777 | R16: 91.49696433 | S16: 71.84719569 | T16: 80.69822448 | U16: 67.01854711 | V16: 92.99236541 | W16: 73.29703862 | X16: 83.13415092 | Y16: 95.07964397 | Z16: 57.19152681 | AA16: 84.26342994 | BA16: Water | BB16: Improved | BC16: N/A | BD16: N/A | BE16: N/A | BF16: N/A | BG16: N/A | BH16: N/A | BI16: N/A | BJ16: N/A | BK16: N/A | BL16: N/A | BM16: N/A | BN16: N/A | BO16: N/A | BP16: N/A | BQ16: N/A | BR16: N/A | BS16: N/A | BT16: N/A | BU16: N/A | BV16: N/A | BW16: N/A | BX16: N/A | BY16: N/A | BZ16: N/A | CA16: N/A
B17: Not Improved | C17: 34.83512733 | D17: 34.82088016 | E17: 23.37350883 | F17: 6.434450607 | G17: 2.039195573 | H17: 17.04726562 | I17: 8.12084156 | J17: 4.433878726 | K17: 2.767471565 | L17: 0.9831102985 | M17: 32.36511618 | N17: 37.6592311 | O17: 39.0156144 | P17: 31.21006913 | Q17: 9.319762225 | R17: 8.503035667 | S17: 28.15280431 | T17: 19.30177552 | U17: 32.98145289 | V17: 7.007634594 | W17: 26.70296138 | X17: 16.86584908 | Y17: 4.920356034 | Z17: 42.80847319 | AA17: 15.73657006 | BB17: Not Improved | BC17: N/A | BD17: N/A | BE17: N/A | BF17: N/A | BG17: N/A | BH17: N/A | BI17: N/A | BJ17: N/A | BK17: N/A | BL17: N/A | BM17: N/A | BN17: N/A | BO17: N/A | BP17: N/A | BQ17: N/A | BR17: N/A | BS17: N/A | BT17: N/A | BU17: N/A | BV17: N/A | BW17: N/A | BX17: N/A | BY17: N/A | BZ17: N/A | CA17: N/A
A18: Water ladder | B18: Basic | C18: =C16*C23/100 -> 50.66931557 | D18: =D16*D23/100 -> 54.42351135 | E18: =E16*E23/100 -> 69.21323919 | F18: 88.80154697 | G18: 95.79647681 | H18: 75.08287032 | I18: 89.07133209 | J18: 92.91330111 | K18: 95.05352204 | L18: 97.51311468 | M18: 50.86905041 | N18: 49.88383944 | O18: 51.69898161 | P18: 59.95445074 | Q18: 82.50329084 | R18: 84.55494143 | S18: 68.46970091 | T18: 76.52625636 | U18: 56.9582186 | V18: 90.80520583 | W18: 58.19713982 | X18: 67.86813148 | Y18: 84.33163936 | Z18: 45.95412949 | AA18: 78.2550148 | BA18: Water ladder | BB18: Basic | BC18: N/A | BD18: N/A | BE18: N/A | BF18: N/A | BG18: N/A | BH18: N/A | BI18: N/A | BJ18: N/A | BK18: N/A | BL18: N/A | BM18: N/A | BN18: N/A | BO18: N/A | BP18: N/A | BQ18: N/A | BR18: N/A | BS18: N/A | BT18: N/A | BU18: N/A | BV18: N/A | BW18: N/A | BX18: N/A | BY18: N/A | BZ18: N/A | CA18: N/A
B19: Limited | C19: =C16*C22/100 -> 14.49555711 | D19: =D16*D22/100 -> 10.75560849 | E19: =E16*E22/100 -> 7.413251973 | F19: 4.764002425 | G19: 2.164327614 | H19: 7.869864059 | I19: 2.807826349 | J19: 2.652820165 | K19: 2.179006398 | L19: 1.503775019 | M19: 16.76583341 | N19: 12.45692946 | O19: 9.285403988 | P19: 8.835480134 | Q19: 8.176946936 | R19: 6.942022906 | S19: 3.377494773 | T19: 4.171968114 | U19: 10.06032851 | V19: 2.187159579 | W19: 15.0998988 | X19: 15.26601944 | Y19: 10.74800461 | Z19: 11.23739732 | AA19: 6.008415134 | BB19: Limited | BC19: N/A | BD19: N/A | BE19: N/A | BF19: N/A | BG19: N/A | BH19: N/A | BI19: N/A | BJ19: N/A | BK19: N/A | BL19: N/A | BM19: N/A | BN19: N/A | BO19: N/A | BP19: N/A | BQ19: N/A | BR19: N/A | BS19: N/A | BT19: N/A | BU19: N/A | BV19: N/A | BW19: N/A | BX19: N/A | BY19: N/A | BZ19: N/A | CA19: N/A
B20: Unimproved | C20: =100-C18-C19-C21 -> 8.050732241 | D20: =100-D18-D19-D21 -> 8.066873198 | E20: =100-E18-E19-E21 -> 12.19286475 | F20: 5.058913103 | G20: 1.915783362 | H20: 13.74357613 | I20: 7.544311156 | J20: 4.433878726 | K20: 2.767471565 | L20: 0.9831102985 | M20: 9.233163649 | N20: 6.277777577 | O20: 8.178035321 | P20: 12.25243924 | Q20: 3.449230201 | R20: 3.21477946 | S20: 7.014260459 | T20: 2.697998393 | U20: 4.234090457 | V20: 5.157904435 | W20: 6.504540867 | X20: 14.82826475 | Y20: 0.9870304543 | Z20: 23.96699646 | AA20: 8.502684013 | BB20: Unimproved | BC20: N/A | BD20: N/A | BE20: N/A | BF20: N/A | BG20: N/A | BH20: N/A | BI20: N/A | BJ20: N/A | BK20: N/A | BL20: N/A | BM20: N/A | BN20: N/A | BO20: N/A | BP20: N/A | BQ20: N/A | BR20: N/A | BS20: N/A | BT20: N/A | BU20: N/A | BV20: N/A | BW20: N/A | BX20: N/A | BY20: N/A | BZ20: N/A | CA20: N/A
B21: Surface water | C21: 26.78439508 | D21: 26.75400696 | E21: 11.18064408 | F21: 1.375537504 | G21: 0.1234122112 | H21: 3.303689494 | I21: 0.5765304034 | J21: 0 | K21: 0 | L21: 0 | M21: 23.13195253 | N21: 31.38145352 | O21: 30.83757908 | P21: 18.95762989 | Q21: 5.870532024 | R21: 5.288256207 | S21: 21.13854386 | T21: 16.60377713 | U21: 28.74736244 | V21: 1.849730159 | W21: 20.19842051 | X21: 2.037584334 | Y21: 3.933325579 | Z21: 18.84147673 | AA21: 7.23388605 | BB21: Surface water | BC21: N/A | BD21: N/A | BE21: N/A | BF21: N/A | BG21: N/A | BH21: N/A | BI21: N/A | BJ21: N/A | BK21: N/A | BL21: N/A | BM21: N/A | BN21: N/A | BO21: N/A | BP21: N/A | BQ21: N/A | BR21: N/A | BS21: N/A | BT21: N/A | BU21: N/A | BV21: N/A | BW21: N/A | BX21: N/A | BY21: N/A | BZ21: N/A | CA21: N/A
A22: Improved water point at more than 30 minutes | B22: Yes | C22: 22.24443402 | D22: 16.50161664 | E22: 9.674528821 | F22: 5.091620213 | G22: 2.209381218 | H22: 9.487166539 | I22: 3.055999202 | J22: 2.775900214 | K22: 2.241026159 | L22: 1.51870557 | M22: 24.78873691 | N22: 19.98199522 | O22: 15.22587118 | P22: 12.84414742 | Q22: 9.017341746 | R22: 7.587161996 | S22: 4.700941687 | T22: 5.169838793 | U22: 15.01126023 | V22: 2.351977573 | W22: 20.60096708 | X22: 18.36311464 | Y22: 11.30421209 | Z22: 19.64871013 | AA22: 7.130513366 | BA22: Improved water point at more than 30 minutes | BB22: Yes | BC22: N/A | BD22: N/A | BE22: N/A | BF22: N/A | BG22: N/A | BH22: N/A | BI22: N/A | BJ22: N/A | BK22: N/A | BL22: N/A | BM22: N/A | BN22: N/A | BO22: N/A | BP22: N/A | BQ22: N/A | BR22: N/A | BS22: N/A | BT22: N/A | BU22: N/A | BV22: N/A | BW22: N/A | BX22: N/A | BY22: N/A | BZ22: N/A | CA22: N/A
B23: No | C23: 77.75556598 | D23: 83.49838336 | E23: 90.32547118 | F23: 94.90837979 | G23: 97.79061878 | H23: 90.51283346 | I23: 96.9440008 | J23: 97.22409979 | K23: 97.75897384 | L23: 98.48129443 | M23: 75.21126309 | N23: 80.01800478 | O23: 84.77412882 | P23: 87.15585258 | Q23: 90.98265825 | R23: 92.412838 | S23: 95.29905831 | T23: 94.83016121 | U23: 84.98873977 | V23: 97.64802243 | W23: 79.39903292 | X23: 81.63688536 | Y23: 88.69578791 | Z23: 80.35128987 | AA23: 92.86948663 | BB23: No | BC23: N/A | BD23: N/A | BE23: N/A | BF23: N/A | BG23: N/A | BH23: N/A | BI23: N/A | BJ23: N/A | BK23: N/A | BL23: N/A | BM23: N/A | BN23: N/A | BO23: N/A | BP23: N/A | BQ23: N/A | BR23: N/A | BS23: N/A | BT23: N/A | BU23: N/A | BV23: N/A | BW23: N/A | BX23: N/A | BY23: N/A | BZ23: N/A | CA23: N/A
A24: Manually calculated ratios | B24: Improved wells
B25: Improved springs
B26: Other
C27: NATIONAL wealth index quintile | H27: URBAN wealth index quintile | M27: RURAL wealth index quintile | R27: SUB-REGIONS: | BA27: Raw numbers of respondents: | BB27: Use of drinking water sources | BC27: NATIONAL wealth index quintile | BH27: URBAN wealth index quintile | BM27: RURAL wealth index quintile | BR27: SUB-REGIONS:
A28: Percentage based on weighted population | C28: Poorest | D28: Poor | E28: Middle | F28: Rich | G28: Richest | H28: Poorest | I28: Poor | J28: Middle | K28: Rich | L28: Richest | M28: Poorest | N28: Poor | O28: Middle | P28: Rich | Q28: Richest | R28: Ashanti | S28: Brong Ahafo | T28: Central | U28: Eastern | V28: Greater Accra | W28: Northern | X28: Upper East | Y28: Upper West | Z28: Volta | AA28: Western | BA28: Water data, raw numbers (weighted) | BC28: Poorest | BD28: Poor | BE28: Middle | BF28: Rich | BG28: Richest | BH28: Poorest | BI28: Poor | BJ28: Middle | BK28: Rich | BL28: Richest | BM28: Poorest | BN28: Poor | BO28: Middle | BP28: Rich | BQ28: Richest | BR28: Ashanti | BS28: Brong Ahafo | BT28: Central | BU28: Eastern | BV28: Greater Accra | BW28: Northern | BX28: Upper East | BY28: Upper West | BZ28: Volta | CA28: Western
A29: Piped water | B29: Yes | C29: 4.320930522 | D29: 15.27527229 | E29: 35.9125519 | F29: 70.87498691 | G29: 83.90131111 | H29: 50.68795432 | I29: 68.06558405 | J29: 81.05486606 | K29: 83.69975063 | L29: 87.84465549 | M29: 2.323201948 | N29: 8.040155275 | O29: 11.27511267 | P29: 19.45369153 | Q29: 55.59589449 | R29: 47.94671351 | S29: 33.74495264 | T29: 63.1009017 | U29: 24.78599002 | V29: 81.55614831 | W29: 19.24128439 | X29: 7.95940194 | Y29: 4.638813805 | Z29: 34.5852513 | AA29: 46.83040682 | BA29: Piped water | BB29: Yes | BC29: N/A | BD29: N/A | BE29: N/A | BF29: N/A | BG29: N/A | BH29: N/A | BI29: N/A | BJ29: N/A | BK29: N/A | BL29: N/A | BM29: N/A | BN29: N/A | BO29: N/A | BP29: N/A | BQ29: N/A | BR29: N/A | BS29: N/A | BT29: N/A | BU29: N/A | BV29: N/A | BW29: N/A | BX29: N/A | BY29: N/A | BZ29: N/A | CA29: N/A
B30: No | C30: 95.67906948 | D30: 84.72472771 | E30: 64.0874481 | F30: 29.12501309 | G30: 16.09868889 | H30: 49.31204568 | I30: 31.93441595 | J30: 18.94513394 | K30: 16.30024937 | L30: 12.15534451 | M30: 97.67679805 | N30: 91.95984472 | O30: 88.72488733 | P30: 80.54630847 | Q30: 44.40410551 | R30: 52.05328649 | S30: 66.25504736 | T30: 36.8990983 | U30: 75.21400998 | V30: 18.44385169 | W30: 80.75871561 | X30: 92.04059806 | Y30: 95.3611862 | Z30: 65.4147487 | AA30: 53.16959318 | BB30: No | BC30: N/A | BD30: N/A | BE30: N/A | BF30: N/A | BG30: N/A | BH30: N/A | BI30: N/A | BJ30: N/A | BK30: N/A | BL30: N/A | BM30: N/A | BN30: N/A | BO30: N/A | BP30: N/A | BQ30: N/A | BR30: N/A | BS30: N/A | BT30: N/A | BU30: N/A | BV30: N/A | BW30: N/A | BX30: N/A | BY30: N/A | BZ30: N/A | CA30: N/A
A31: Piped water on premises | B31: Yes | C31: 0.1000364598 | D31: 0.6831363846 | E31: 2.662300159 | F31: 19.3911324 | G31: 52.90567176 | H31: 4.508578827 | I31: 16.84333593 | J31: 28.03974932 | K31: 41.22832773 | L31: 70.25364013 | M31: 0 | N31: 0.5182369961 | O31: 0.1247705861 | P31: 0.6055734459 | Q31: 14.44853699 | R31: 15.71657358 | S31: 8.278145215 | T31: 13.27062228 | U31: 10.4850869 | V31: 42.95980901 | W31: 7.335175956 | X31: 4.104645639 | Y31: 1.545469112 | Z31: 6.036768068 | AA31: 11.16932491 | BA31: Piped water on premises | BB31: Yes | BC31: N/A | BD31: N/A | BE31: N/A | BF31: N/A | BG31: N/A | BH31: N/A | BI31: N/A | BJ31: N/A | BK31: N/A | BL31: N/A | BM31: N/A | BN31: N/A | BO31: N/A | BP31: N/A | BQ31: N/A | BR31: N/A | BS31: N/A | BT31: N/A | BU31: N/A | BV31: N/A | BW31: N/A | BX31: N/A | BY31: N/A | BZ31: N/A | CA31: N/A
B32: No | C32: 99.89996354 | D32: 99.31686362 | E32: 97.33769984 | F32: 80.6088676 | G32: 47.09432824 | H32: 95.49142117 | I32: 83.15666407 | J32: 71.96025068 | K32: 58.77167227 | L32: 29.74635987 | M32: 100 | N32: 99.481763 | O32: 99.87522941 | P32: 99.39442655 | Q32: 85.55146301 | R32: 84.28342642 | S32: 91.72185478 | T32: 86.72937772 | U32: 89.5149131 | V32: 57.04019099 | W32: 92.66482404 | X32: 95.89535436 | Y32: 98.45453089 | Z32: 93.96323193 | AA32: 88.83067509 | BB32: No | BC32: N/A | BD32: N/A | BE32: N/A | BF32: N/A | BG32: N/A | BH32: N/A | BI32: N/A | BJ32: N/A | BK32: N/A | BL32: N/A | BM32: N/A | BN32: N/A | BO32: N/A | BP32: N/A | BQ32: N/A | BR32: N/A | BS32: N/A | BT32: N/A | BU32: N/A | BV32: N/A | BW32: N/A | BX32: N/A | BY32: N/A | BZ32: N/A | CA32: N/A
A33: Piped water into dwelling | B33: Yes | C33: N/A | D33: N/A | E33: N/A | F33: N/A | G33: N/A | H33: N/A | I33: N/A | J33: N/A | K33: N/A | L33: N/A | M33: N/A | N33: N/A | O33: N/A | P33: N/A | Q33: N/A | R33: N/A | S33: N/A | T33: N/A | U33: N/A | V33: N/A | W33: N/A | X33: N/A | Y33: N/A | Z33: N/A | AA33: N/A | BA33: Piped water into dwelling | BB33: Yes | BC33: N/A | BD33: N/A | BE33: N/A | BF33: N/A | BG33: N/A | BH33: N/A | BI33: N/A | BJ33: N/A | BK33: N/A | BL33: N/A | BM33: N/A | BN33: N/A | BO33: N/A | BP33: N/A | BQ33: N/A | BR33: N/A | BS33: N/A | BT33: N/A | BU33: N/A | BV33: N/A | BW33: N/A | BX33: N/A | BY33: N/A | BZ33: N/A | CA33: N/A
B34: No | C34: N/A | D34: N/A | E34: N/A | F34: N/A | G34: N/A | H34: N/A | I34: N/A | J34: N/A | K34: N/A | L34: N/A | M34: N/A | N34: N/A | O34: N/A | P34: N/A | Q34: N/A | R34: N/A | S34: N/A | T34: N/A | U34: N/A | V34: N/A | W34: N/A | X34: N/A | Y34: N/A | Z34: N/A | AA34: N/A | BB34: No | BC34: N/A | BD34: N/A | BE34: N/A | BF34: N/A | BG34: N/A | BH34: N/A | BI34: N/A | BJ34: N/A | BK34: N/A | BL34: N/A | BM34: N/A | BN34: N/A | BO34: N/A | BP34: N/A | BQ34: N/A | BR34: N/A | BS34: N/A | BT34: N/A | BU34: N/A | BV34: N/A | BW34: N/A | BX34: N/A | BY34: N/A | BZ34: N/A | CA34: N/A
A35: Water source on premises | B35: Yes | C35: 0.5969623027 | D35: 2.551763691 | E35: 4.997870715 | F35: 24.16637273 | G35: 56.13613143 | H35: 9.285671513 | I35: 22.48637668 | J35: 33.66873658 | K35: 44.63581019 | L35: 74.1997773 | M35: 0.1204268516 | N35: 0.9270833942 | O35: 1.241988131 | P35: 2.250698592 | Q35: 16.3211483 | R35: 21.0400747 | S35: 9.620976496 | T35: 16.04406767 | U35: 13.49639002 | V35: 43.19416651 | W35: 8.158822678 | X35: 6.470492037 | Y35: 2.346113426 | Z35: 13.79925618 | AA35: 12.17357125 | BA35: Water source on premises | BB35: Yes | BC35: N/A | BD35: N/A | BE35: N/A | BF35: N/A | BG35: N/A | BH35: N/A | BI35: N/A | BJ35: N/A | BK35: N/A | BL35: N/A | BM35: N/A | BN35: N/A | BO35: N/A | BP35: N/A | BQ35: N/A | BR35: N/A | BS35: N/A | BT35: N/A | BU35: N/A | BV35: N/A | BW35: N/A | BX35: N/A | BY35: N/A | BZ35: N/A | CA35: N/A
B36: No | C36: 99.4030377 | D36: 97.44823631 | E36: 95.00212928 | F36: 75.83362727 | G36: 43.86386857 | H36: 90.71432849 | I36: 77.51362332 | J36: 66.33126342 | K36: 55.36418981 | L36: 25.8002227 | M36: 99.87957315 | N36: 99.07291661 | O36: 98.75801187 | P36: 97.74930141 | Q36: 83.6788517 | R36: 78.9599253 | S36: 90.3790235 | T36: 83.95593233 | U36: 86.50360998 | V36: 56.80583349 | W36: 91.84117732 | X36: 93.52950796 | Y36: 97.65388657 | Z36: 86.20074382 | AA36: 87.82642875 | BB36: No | BC36: N/A | BD36: N/A | BE36: N/A | BF36: N/A | BG36: N/A | BH36: N/A | BI36: N/A | BJ36: N/A | BK36: N/A | BL36: N/A | BM36: N/A | BN36: N/A | BO36: N/A | BP36: N/A | BQ36: N/A | BR36: N/A | BS36: N/A | BT36: N/A | BU36: N/A | BV36: N/A | BW36: N/A | BX36: N/A | BY36: N/A | BZ36: N/A | CA36: N/A
A37: Improved Water source on premises | B37: Yes | C37: 0.3822456576 | D37: 3.219855764 | E37: 5.512870668 | F37: 24.51167511 | G37: 57.12495162 | H37: 8.909280104 | I37: 22.46735467 | J37: 33.82229565 | K37: 45.46753453 | L37: 74.9364856 | M37: 0.06215063698 | N37: 1.133096204 | O37: 1.551424734 | P37: 2.441746242 | Q37: 17.96098589 | R37: 22.63967787 | S37: 13.39088659 | T37: 19.88156217 | U37: 20.13829098 | V37: 46.44915346 | W37: 10.67565753 | X37: 7.272364196 | Y37: 2.467524413 | Z37: 13.55525042 | AA37: 14.44703978 | BA37: Improved water source on premises | BB37: Yes | BC37: N/A | BD37: N/A | BE37: N/A | BF37: N/A | BG37: N/A | BH37: N/A | BI37: N/A | BJ37: N/A | BK37: N/A | BL37: N/A | BM37: N/A | BN37: N/A | BO37: N/A | BP37: N/A | BQ37: N/A | BR37: N/A | BS37: N/A | BT37: N/A | BU37: N/A | BV37: N/A | BW37: N/A | BX37: N/A | BY37: N/A | BZ37: N/A | CA37: N/A
B38: No | C38: 99.61775434 | D38: 96.78014424 | E38: 94.48712933 | F38: 75.48832489 | G38: 42.87504838 | H38: 91.0907199 | I38: 77.53264533 | J38: 66.17770435 | K38: 54.53246547 | L38: 25.0635144 | M38: 99.93784936 | N38: 98.8669038 | O38: 98.44857527 | P38: 97.55825376 | Q38: 82.03901411 | R38: 77.36032213 | S38: 86.60911341 | T38: 80.11843783 | U38: 79.86170902 | V38: 53.55084654 | W38: 89.32434247 | X38: 92.7276358 | Y38: 97.53247559 | Z38: 86.44474958 | AA38: 85.55296022 | BB38: No | BC38: N/A | BD38: N/A | BE38: N/A | BF38: N/A | BG38: N/A | BH38: N/A | BI38: N/A | BJ38: N/A | BK38: N/A | BL38: N/A | BM38: N/A | BN38: N/A | BO38: N/A | BP38: N/A | BQ38: N/A | BR38: N/A | BS38: N/A | BT38: N/A | BU38: N/A | BV38: N/A | BW38: N/A | BX38: N/A | BY38: N/A | BZ38: N/A | CA38: N/A
A39: Piped water on premises available when needed | B39: Yes | C39: N/A | D39: N/A | E39: N/A | F39: N/A | G39: N/A | H39: N/A | I39: N/A | J39: N/A | K39: N/A | L39: N/A | M39: N/A | N39: N/A | O39: N/A | P39: N/A | Q39: N/A | R39: N/A | S39: N/A | T39: N/A | U39: N/A | V39: N/A | W39: N/A | X39: N/A | Y39: N/A | Z39: N/A | AA39: N/A | BA39: Piped water on premises available when needed | BB39: Yes | BC39: N/A | BD39: N/A | BE39: N/A | BF39: N/A | BG39: N/A | BH39: N/A | BI39: N/A | BJ39: N/A | BK39: N/A | BL39: N/A | BM39: N/A | BN39: N/A | BO39: N/A | BP39: N/A | BQ39: N/A | BR39: N/A | BS39: N/A | BT39: N/A | BU39: N/A | BV39: N/A | BW39: N/A | BX39: N/A | BY39: N/A | BZ39: N/A | CA39: N/A
B40: No | C40: N/A | D40: N/A | E40: N/A | F40: N/A | G40: N/A | H40: N/A | I40: N/A | J40: N/A | K40: N/A | L40: N/A | M40: N/A | N40: N/A | O40: N/A | P40: N/A | Q40: N/A | R40: N/A | S40: N/A | T40: N/A | U40: N/A | V40: N/A | W40: N/A | X40: N/A | Y40: N/A | Z40: N/A | AA40: N/A | BB40: No | BC40: N/A | BD40: N/A | BE40: N/A | BF40: N/A | BG40: N/A | BH40: N/A | BI40: N/A | BJ40: N/A | BK40: N/A | BL40: N/A | BM40: N/A | BN40: N/A | BO40: N/A | BP40: N/A | BQ40: N/A | BR40: N/A | BS40: N/A | BT40: N/A | BU40: N/A | BV40: N/A | BW40: N/A | BX40: N/A | BY40: N/A | BZ40: N/A | CA40: N/A
A41: Water point at more than 30 minutes | B41: Yes | C41: 20.7450885 | D41: 16.97102909 | E41: 9.494016742 | F41: 5.06492602 | G41: 2.394285461 | H41: 8.973980914 | I41: 2.99052897 | J41: 2.652820165 | K41: 2.736143147 | L41: 1.503775019 | M41: 23.47247594 | N41: 18.87775284 | O41: 16.03085603 | P41: 12.04370901 | Q41: 9.506298922 | R41: 7.390020301 | S41: 7.153134157 | T41: 5.210351101 | U41: 14.72775482 | V41: 2.93804176 | W41: 20.95121158 | X41: 19.51756144 | Y41: 11.75479711 | Z41: 18.71775822 | AA41: 7.75846642 | BA41: Water point at more than 30 minutes | BB41: Yes | BC41: N/A | BD41: N/A | BE41: N/A | BF41: N/A | BG41: N/A | BH41: N/A | BI41: N/A | BJ41: N/A | BK41: N/A | BL41: N/A | BM41: N/A | BN41: N/A | BO41: N/A | BP41: N/A | BQ41: N/A | BR41: N/A | BS41: N/A | BT41: N/A | BU41: N/A | BV41: N/A | BW41: N/A | BX41: N/A | BY41: N/A | BZ41: N/A | CA41: N/A
B42: No | C42: 79.2549115 | D42: 83.02897091 | E42: 90.50598326 | F42: 94.93507398 | G42: 97.60571454 | H42: 91.02601909 | I42: 97.00947103 | J42: 97.34717984 | K42: 97.26385685 | L42: 98.49622498 | M42: 76.52752406 | N42: 81.12224716 | O42: 83.96914397 | P42: 87.95629099 | Q42: 90.49370108 | R42: 92.6099797 | S42: 92.84686584 | T42: 94.7896489 | U42: 85.27224518 | V42: 97.06195824 | W42: 79.04878842 | X42: 80.48243856 | Y42: 88.24520289 | Z42: 81.28224178 | AA42: 92.24153358 | BB42: No | BC42: N/A | BD42: N/A | BE42: N/A | BF42: N/A | BG42: N/A | BH42: N/A | BI42: N/A | BJ42: N/A | BK42: N/A | BL42: N/A | BM42: N/A | BN42: N/A | BO42: N/A | BP42: N/A | BQ42: N/A | BR42: N/A | BS42: N/A | BT42: N/A | BU42: N/A | BV42: N/A | BW42: N/A | BX42: N/A | BY42: N/A | BZ42: N/A | CA42: N/A
A43: Water source available when needed | B43: Yes | C43: N/A | D43: N/A | E43: N/A | F43: N/A | G43: N/A | H43: N/A | I43: N/A | J43: N/A | K43: N/A | L43: N/A | M43: N/A | N43: N/A | O43: N/A | P43: N/A | Q43: N/A | R43: N/A | S43: N/A | T43: N/A | U43: N/A | V43: N/A | W43: N/A | X43: N/A | Y43: N/A | Z43: N/A | AA43: N/A | BA43: Water source available when needed | BB43: Yes | BC43: N/A | BD43: N/A | BE43: N/A | BF43: N/A | BG43: N/A | BH43: N/A | BI43: N/A | BJ43: N/A | BK43: N/A | BL43: N/A | BM43: N/A | BN43: N/A | BO43: N/A | BP43: N/A | BQ43: N/A | BR43: N/A | BS43: N/A | BT43: N/A | BU43: N/A | BV43: N/A | BW43: N/A | BX43: N/A | BY43: N/A | BZ43: N/A | CA43: N/A
B44: No | C44: N/A | D44: N/A | E44: N/A | F44: N/A | G44: N/A | H44: N/A | I44: N/A | J44: N/A | K44: N/A | L44: N/A | M44: N/A | N44: N/A | O44: N/A | P44: N/A | Q44: N/A | R44: N/A | S44: N/A | T44: N/A | U44: N/A | V44: N/A | W44: N/A | X44: N/A | Y44: N/A | Z44: N/A | AA44: N/A | BB44: No | BC44: N/A | BD44: N/A | BE44: N/A | BF44: N/A | BG44: N/A | BH44: N/A | BI44: N/A | BJ44: N/A | BK44: N/A | BL44: N/A | BM44: N/A | BN44: N/A | BO44: N/A | BP44: N/A | BQ44: N/A | BR44: N/A | BS44: N/A | BT44: N/A | BU44: N/A | BV44: N/A | BW44: N/A | BX44: N/A | BY44: N/A | BZ44: N/A | CA44: N/A
A45: Improved water source available when needed | B45: Yes | C45: N/A | D45: N/A | E45: N/A | F45: N/A | G45: N/A | H45: N/A | I45: N/A | J45: N/A | K45: N/A | L45: N/A | M45: N/A | N45: N/A | O45: N/A | P45: N/A | Q45: N/A | R45: N/A | S45: N/A | T45: N/A | U45: N/A | V45: N/A | W45: N/A | X45: N/A | Y45: N/A | Z45: N/A | AA45: N/A | BA45: Improved water source available when needed | BB45: Yes | BC45: N/A | BD45: N/A | BE45: N/A | BF45: N/A | BG45: N/A | BH45: N/A | BI45: N/A | BJ45: N/A | BK45: N/A | BL45: N/A | BM45: N/A | BN45: N/A | BO45: N/A | BP45: N/A | BQ45: N/A | BR45: N/A | BS45: N/A | BT45: N/A | BU45: N/A | BV45: N/A | BW45: N/A | BX45: N/A | BY45: N/A | BZ45: N/A | CA45: N/A
B46: No | C46: N/A | D46: N/A | E46: N/A | F46: N/A | G46: N/A | H46: N/A | I46: N/A | J46: N/A | K46: N/A | L46: N/A | M46: N/A | N46: N/A | O46: N/A | P46: N/A | Q46: N/A | R46: N/A | S46: N/A | T46: N/A | U46: N/A | V46: N/A | W46: N/A | X46: N/A | Y46: N/A | Z46: N/A | AA46: N/A | BB46: No | BC46: N/A | BD46: N/A | BE46: N/A | BF46: N/A | BG46: N/A | BH46: N/A | BI46: N/A | BJ46: N/A | BK46: N/A | BL46: N/A | BM46: N/A | BN46: N/A | BO46: N/A | BP46: N/A | BQ46: N/A | BR46: N/A | BS46: N/A | BT46: N/A | BU46: N/A | BV46: N/A | BW46: N/A | BX46: N/A | BY46: N/A | BZ46: N/A | CA46: N/A
A47: Microbiological quality at point of collection | B47: Not contaminated (No E. coli in 100 mL) | C47: N/A | D47: N/A | E47: N/A | F47: N/A | G47: N/A | H47: N/A | I47: N/A | J47: N/A | K47: N/A | L47: N/A | M47: N/A | N47: N/A | O47: N/A | P47: N/A | Q47: N/A | R47: N/A | S47: N/A | T47: N/A | U47: N/A | V47: N/A | W47: N/A | X47: N/A | Y47: N/A | Z47: N/A | AA47: N/A | BA47: Microbiological quality at point of collection | BB47: Not contaminated (No E. coli in 100 mL) | BC47: N/A | BD47: N/A | BE47: N/A | BF47: N/A | BG47: N/A | BH47: N/A | BI47: N/A | BJ47: N/A | BK47: N/A | BL47: N/A | BM47: N/A | BN47: N/A | BO47: N/A | BP47: N/A | BQ47: N/A | BR47: N/A | BS47: N/A | BT47: N/A | BU47: N/A | BV47: N/A | BW47: N/A | BX47: N/A | BY47: N/A | BZ47: N/A | CA47: N/A
B48: Contaminated (E. coli detected in 100 mL) | C48: N/A | D48: N/A | E48: N/A | F48: N/A | G48: N/A | H48: N/A | I48: N/A | J48: N/A | K48: N/A | L48: N/A | M48: N/A | N48: N/A | O48: N/A | P48: N/A | Q48: N/A | R48: N/A | S48: N/A | T48: N/A | U48: N/A | V48: N/A | W48: N/A | X48: N/A | Y48: N/A | Z48: N/A | AA48: N/A | BB48: Contaminated (E. coli detected in 100 mL) | BC48: N/A | BD48: N/A | BE48: N/A | BF48: N/A | BG48: N/A | BH48: N/A | BI48: N/A | BJ48: N/A | BK48: N/A | BL48: N/A | BM48: N/A | BN48: N/A | BO48: N/A | BP48: N/A | BQ48: N/A | BR48: N/A | BS48: N/A | BT48: N/A | BU48: N/A | BV48: N/A | BW48: N/A | BX48: N/A | BY48: N/A | BZ48: N/A | CA48: N/A
B49: Highly contaminated (>100 CFU/100 mL) | C49: N/A | D49: N/A | E49: N/A | F49: N/A | G49: N/A | H49: N/A | I49: N/A | J49: N/A | K49: N/A | L49: N/A | M49: N/A | N49: N/A | O49: N/A | P49: N/A | Q49: N/A | R49: N/A | S49: N/A | T49: N/A | U49: N/A | V49: N/A | W49: N/A | X49: N/A | Y49: N/A | Z49: N/A | AA49: N/A | BB49: Highly contaminated (>100 CFU/100 mL) | BC49: N/A | BD49: N/A | BE49: N/A | BF49: N/A | BG49: N/A | BH49: N/A | BI49: N/A | BJ49: N/A | BK49: N/A | BL49: N/A | BM49: N/A | BN49: N/A | BO49: N/A | BP49: N/A | BQ49: N/A | BR49: N/A | BS49: N/A | BT49: N/A | BU49: N/A | BV49: N/A | BW49: N/A | BX49: N/A | BY49: N/A | BZ49: N/A | CA49: N/A
A50: Microbiological quality of improved water sources at point of collection | B50: Not contaminated (No E. coli in 100 mL) | C50: N/A | D50: N/A | E50: N/A | F50: N/A | G50: N/A | H50: N/A | I50: N/A | J50: N/A | K50: N/A | L50: N/A | M50: N/A | N50: N/A | O50: N/A | P50: N/A | Q50: N/A | R50: N/A | S50: N/A | T50: N/A | U50: N/A | V50: N/A | W50: N/A | X50: N/A | Y50: N/A | Z50: N/A | AA50: N/A | BA50: Microbiological quality of improved water sources at point of collection | BB50: Not contaminated (No E. coli in 100 mL) | BC50: N/A | BD50: N/A | BE50: N/A | BF50: N/A | BG50: N/A | BH50: N/A | BI50: N/A | BJ50: N/A | BK50: N/A | BL50: N/A | BM50: N/A | BN50: N/A | BO50: N/A | BP50: N/A | BQ50: N/A | BR50: N/A | BS50: N/A | BT50: N/A | BU50: N/A | BV50: N/A | BW50: N/A | BX50: N/A | BY50: N/A | BZ50: N/A | CA50: N/A
B51: Contaminated (E. coli detected in 100 mL) | C51: N/A | D51: N/A | E51: N/A | F51: N/A | G51: N/A | H51: N/A | I51: N/A | J51: N/A | K51: N/A | L51: N/A | M51: N/A | N51: N/A | O51: N/A | P51: N/A | Q51: N/A | R51: N/A | S51: N/A | T51: N/A | U51: N/A | V51: N/A | W51: N/A | X51: N/A | Y51: N/A | Z51: N/A | AA51: N/A | BB51: Contaminated (E. coli detected in 100 mL) | BC51: N/A | BD51: N/A | BE51: N/A | BF51: N/A | BG51: N/A | BH51: N/A | BI51: N/A | BJ51: N/A | BK51: N/A | BL51: N/A | BM51: N/A | BN51: N/A | BO51: N/A | BP51: N/A | BQ51: N/A | BR51: N/A | BS51: N/A | BT51: N/A | BU51: N/A | BV51: N/A | BW51: N/A | BX51: N/A | BY51: N/A | BZ51: N/A | CA51: N/A
B52: Highly contaminated (>100 CFU/100 mL) | C52: N/A | D52: N/A | E52: N/A | F52: N/A | G52: N/A | H52: N/A | I52: N/A | J52: N/A | K52: N/A | L52: N/A | M52: N/A | N52: N/A | O52: N/A | P52: N/A | Q52: N/A | R52: N/A | S52: N/A | T52: N/A | U52: N/A | V52: N/A | W52: N/A | X52: N/A | Y52: N/A | Z52: N/A | AA52: N/A | BB52: Highly contaminated (>100 CFU/100 mL) | BC52: N/A | BD52: N/A | BE52: N/A | BF52: N/A | BG52: N/A | BH52: N/A | BI52: N/A | BJ52: N/A | BK52: N/A | BL52: N/A | BM52: N/A | BN52: N/A | BO52: N/A | BP52: N/A | BQ52: N/A | BR52: N/A | BS52: N/A | BT52: N/A | BU52: N/A | BV52: N/A | BW52: N/A | BX52: N/A | BY52: N/A | BZ52: N/A | CA52: N/A
A53: Microbiological quality of piped on premises at point of collection | B53: Not contaminated (No E. coli in 100 mL) | C53: N/A | D53: N/A | E53: N/A | F53: N/A | G53: N/A | H53: N/A | I53: N/A | J53: N/A | K53: N/A | L53: N/A | M53: N/A | N53: N/A | O53: N/A | P53: N/A | Q53: N/A | R53: N/A | S53: N/A | T53: N/A | U53: N/A | V53: N/A | W53: N/A | X53: N/A | Y53: N/A | Z53: N/A | AA53: N/A | BA53: Microbiological quality of piped on premises at point of collection | BB53: Not contaminated (No E. coli in 100 mL) | BC53: N/A | BD53: N/A | BE53: N/A | BF53: N/A | BG53: N/A | BH53: N/A | BI53: N/A | BJ53: N/A | BK53: N/A | BL53: N/A | BM53: N/A | BN53: N/A | BO53: N/A | BP53: N/A | BQ53: N/A | BR53: N/A | BS53: N/A | BT53: N/A | BU53: N/A | BV53: N/A | BW53: N/A | BX53: N/A | BY53: N/A | BZ53: N/A | CA53: N/A
B54: Contaminated (E. coli detected in 100 mL) | C54: N/A | D54: N/A | E54: N/A | F54: N/A | G54: N/A | H54: N/A | I54: N/A | J54: N/A | K54: N/A | L54: N/A | M54: N/A | N54: N/A | O54: N/A | P54: N/A | Q54: N/A | R54: N/A | S54: N/A | T54: N/A | U54: N/A | V54: N/A | W54: N/A | X54: N/A | Y54: N/A | Z54: N/A | AA54: N/A | BB54: Contaminated (E. coli detected in 100 mL) | BC54: N/A | BD54: N/A | BE54: N/A | BF54: N/A | BG54: N/A | BH54: N/A | BI54: N/A | BJ54: N/A | BK54: N/A | BL54: N/A | BM54: N/A | BN54: N/A | BO54: N/A | BP54: N/A | BQ54: N/A | BR54: N/A | BS54: N/A | BT54: N/A | BU54: N/A | BV54: N/A | BW54: N/A | BX54: N/A | BY54: N/A | BZ54: N/A | CA54: N/A
B55: Highly contaminated (>100 CFU/100 mL) | C55: N/A | D55: N/A | E55: N/A | F55: N/A | G55: N/A | H55: N/A | I55: N/A | J55: N/A | K55: N/A | L55: N/A | M55: N/A | N55: N/A | O55: N/A | P55: N/A | Q55: N/A | R55: N/A | S55: N/A | T55: N/A | U55: N/A | V55: N/A | W55: N/A | X55: N/A | Y55: N/A | Z55: N/A | AA55: N/A | BB55: Highly contaminated (>100 CFU/100 mL) | BC55: N/A | BD55: N/A | BE55: N/A | BF55: N/A | BG55: N/A | BH55: N/A | BI55: N/A | BJ55: N/A | BK55: N/A | BL55: N/A | BM55: N/A | BN55: N/A | BO55: N/A | BP55: N/A | BQ55: N/A | BR55: N/A | BS55: N/A | BT55: N/A | BU55: N/A | BV55: N/A | BW55: N/A | BX55: N/A | BY55: N/A | BZ55: N/A | CA55: N/A
C56: NATIONAL wealth index quintile | H56: URBAN wealth index quintile | M56: RURAL wealth index quintile | R56: SUB-REGIONS: | BA56: Raw numbers of respondents: | BB56: Use of drinking water sources | BC56: NATIONAL wealth index quintile | BH56: URBAN wealth index quintile | BM56: RURAL wealth index quintile | BR56: SUB-REGIONS:
A57: Percentage based on weighted population | C57: Poorest | D57: Poor | E57: Middle | F57: Rich | G57: Richest | H57: Poorest | I57: Poor | J57: Middle | K57: Rich | L57: Richest | M57: Poorest | N57: Poor | O57: Middle | P57: Rich | Q57: Richest | R57: Ashanti | S57: Brong Ahafo | T57: Central | U57: Eastern | V57: Greater Accra | W57: Northern | X57: Upper East | Y57: Upper West | Z57: Volta | AA57: Western | BA57: Water data, raw numbers (weighted) | BC57: Poorest | BD57: Poor | BE57: Middle | BF57: Rich | BG57: Richest | BH57: Poorest | BI57: Poor | BJ57: Middle | BK57: Rich | BL57: Richest | BM57: Poorest | BN57: Poor | BO57: Middle | BP57: Rich | BQ57: Richest | BR57: Ashanti | BS57: Brong Ahafo | BT57: Central | BU57: Eastern | BV57: Greater Accra | BW57: Northern | BX57: Upper East | BY57: Upper West | BZ57: Volta | CA57: Western
A58: Main source of drinking water | B58: Piped into dwelling | C58: 0 | D58: 0.02928857892 | E58: 0.7319303572 | F58: 3.895534812 | G58: 18.31990994 | H58: 0.8666710822 | I58: 1.615080768 | J58: 7.876073664 | K58: 10.310249 | L58: 29.93549147 | M58: 0 | N58: 0 | O58: 0 | P58: 0.2899058917 | Q58: 3.195098021 | R58: 5.017546042 | S58: 2.914993502 | T58: 3.912733205 | U58: 1.105967992 | V58: 15.07428016 | W58: 0.9474627626 | X58: 1.362959891 | Y58: 0.5143998579 | Z58: 2.187758206 | AA58: 3.569643963
B59: Piped into yard or plot | C59: 0.1000364598 | D59: 0.6538478057 | E59: 1.859624871 | F59: 13.4566993 | G59: 24.53338236 | H59: 3.526133327 | I59: 13.14929196 | J59: 17.2405395 | K59: 25.20219877 | L59: 24.69909828 | M59: 0 | N59: 0.5182369961 | O59: 0.1247705861 | P59: 0.3156675542 | Q59: 9.173121167 | R59: 10.06917427 | S59: 4.22547772 | T59: 7.420825687 | U59: 9.258709214 | V59: 14.99910049 | W59: 6.387713194 | X59: 2.611628554 | Y59: 1.031069254 | Z59: 3.804411925 | AA59: 7.305745392
B60: Public tap/standpipe | C60: 4.220894063 | D60: 14.5921359 | E60: 32.19514454 | F60: 49.3036238 | G60: 26.42211885 | H60: 44.73944697 | I60: 49.14623375 | J60: 49.38146441 | K60: 38.03246966 | L60: 12.88247393 | M60: 2.323201948 | N60: 7.521918279 | O60: 11.15034209 | P60: 18.36658244 | Q60: 39.80582533 | R60: 32.1003845 | S60: 24.90764945 | T60: 48.74499088 | U60: 14.06469483 | V60: 30.41142518 | W60: 11.90610844 | X60: 3.854756301 | Y60: 2.855405634 | Z60: 27.66889827 | AA60: 35.5203746
B61: Borehole | C61: 54.32739651 | D61: 41.80760776 | E61: 31.36939003 | F61: 11.17916335 | G61: 4.122760579 | H61: 18.36292704 | I61: 6.252234286 | J61: 3.418093117 | K61: 3.178330675 | L61: 1.547165098 | M61: 60.61094799 | N61: 47.12101286 | O61: 40.93387117 | P61: 43.54004247 | Q61: 28.2075673 | R61: 32.6053546 | S61: 32.26903411 | T61: 12.51300707 | U61: 31.66336686 | V61: 0.7553251231 | W61: 47.74824223 | X61: 65.87035843 | Y61: 86.75306295 | Z61: 15.8340462 | AA61: 22.16434632
B62: Protected well | C62: 4.717193322 | D62: 6.895551074 | E62: 6.468279346 | F62: 6.792712831 | G62: 2.557334741 | H62: 11.08200668 | I62: 9.575457652 | J62: 7.578310854 | K62: 3.143221416 | L62: 1.446432832 | M62: 3.653205318 | N62: 4.379558337 | O62: 7.803567367 | P62: 4.33893925 | Q62: 3.454644339 | R62: 8.479014596 | S62: 5.675751084 | T62: 3.967457406 | U62: 7.301385565 | V62: 0.2190976673 | W62: 5.569118529 | X62: 9.024230858 | Y62: 1.797063736 | Z62: 0.6104678291 | AA62: 11.12538922
B63: Unprotected well | C63: 7.922683552 | D63: 7.873713701 | E63: 9.078193686 | F63: 3.310088362 | G63: 0.5110106489 | H63: 10.13815151 | I63: 4.29476504 | J63: 2.126346936 | K63: 1.142727525 | L63: 0 | M63: 9.233163649 | N63: 5.877467295 | O63: 8.178035321 | P63: 10.76399717 | Q63: 2.402268408 | R63: 3.21477946 | S63: 7.014260459 | T63: 2.697998393 | U63: 4.234090457 | V63: 0.1460651115 | W63: 6.447099484 | X63: 14.82826475 | Y63: 0.9870304543 | Z63: 17.36129256 | AA63: 8.502684013
B64: Spring | C64: 1.546245368 | D64: 0.5056013377 | E64: 0.5348362415 | F64: 0.08990265141 | G64: 0 | H64: 0.915060293 | I64: 0.5216647827 | J64: 0 | K64: 0 | L64: 0 | M64: 0.9027502222 | N64: 2.002293567 | O64: 0.5941300127 | P64: 0 | Q64: 0.05256754196 | R64: 0.7684973504 | S64: 0 | T64: 0.07606856199 | U64: 0 | V64: 0 | W64: 0.4817231436 | X64: 0.1200862254 | Y64: 1.450834982 | Z64: 0.79308803 | AA64: 2.397909108
B65: Rainwater collection | C65: 0.2531069549 | D65: 0.6051673163 | E65: 1.223578335 | F65: 0.3042130438 | G65: 0.2308215595 | H65: 0.5425521997 | I65: 0.203560604 | J65: 0.06498774481 | K65: 0 | L65: 0.2713527844 | M65: 0.1447783468 | N65: 0.7977488662 | O65: 0.3777043715 | P65: 1.201327987 | Q65: 1.175992342 | R65: 0.03485277334 | S65: 0.1574578506 | T65: 0.4482576641 | U65: 0.5834454416 | V65: 0.1594594965 | W65: 0.119338259 | X65: 0 | Y65: 0 | Z65: 4.446775544 | AA65: 0
B66: Tanker-truck | C66: 0 | D66: 0.08992006135 | E66: 0.7155836397 | F66: 2.976074195 | G66: 1.540107877 | H66: 1.274105319 | I66: 5.061050028 | J66: 1.822501938 | K66: 1.49775158 | L66: 1.783809607 | M66: 0 | N66: 0 | O66: 0 | P66: 0 | Q66: 1.006898391 | R66: 1.443843507 | S66: 0 | T66: 0 | U66: 0 | V66: 4.537958621 | W66: 0.137332067 | X66: 0 | Y66: 0.2443713857 | Z66: 0 | AA66: 1.059300781
B67: Cart with small tank/drum | C67: 0 | D67: 0 | E67: 0 | F67: 0.06102287508 | G67: 0.1183339284 | H67: 0 | I67: 0.1475368281 | J67: 0 | K67: 0.204910949 | L67: 0.08157164715 | M67: 0 | N67: 0 | O67: 0 | P67: 0 | Q67: 0 | R67: 0 | S67: 0 | T67: 0 | U67: 0.05434456138 | V67: 0.1857785159 | W67: 0 | X67: 0 | Y67: 0 | Z67: 0 | AA67: 0
B68: River/stream | C68: 20.03896172 | D68: 24.60286068 | E68: 10.72724222 | F68: 1.375537504 | G68: 0.1234122112 | H68: 3.117491697 | I68: 0.5765304034 | J68: 0 | K68: 0 | L68: 0 | M68: 16.2761278 | N68: 25.81280884 | O68: 29.08215814 | P68: 17.74210616 | Q68: 5.451407046 | R68: 4.862755939 | S68: 21.13854386 | T68: 15.53916518 | U68: 23.02675113 | V68: 1.849730159 | W68: 17.11616881 | X68: 1.855581272 | Y68: 2.187206934 | Z68: 12.71439598 | AA68: 6.937846967
B69: Dam/lake/pond/canal/irrigation channel | C69: 6.745433364 | D69: 2.151146286 | E69: 0.4534018627 | F69: 0 | G69: 0 | H69: 0.1861977967 | I69: 0 | J69: 0 | K69: 0 | L69: 0 | M69: 6.85582473 | N69: 5.568644675 | O69: 1.755420944 | P69: 1.215523729 | Q69: 0.4191249782 | R69: 0.4255002677 | S69: 0 | T69: 1.064611952 | U69: 5.720611309 | V69: 0 | W69: 3.082251706 | X69: 0.1820030617 | Y69: 1.746118645 | Z69: 6.12708075 | AA69: 0.2960390837
B70: Sachet water | C70: 0 | D70: 0 | E70: 1.512923791 | F70: 5.506602539 | G70: 19.39962208 | H70: 1.607032537 | I70: 6.207047779 | J70: 8.184150045 | K70: 15.49335512 | L70: 25.06377217 | M70: 0 | N70: 0 | O70: 0 | P70: 0.7374652703 | Q70: 4.428129859 | R70: 0.9782966872 | S70: 1.696831974 | T70: 3.336515318 | U70: 2.986632644 | V70: 25.86061441 | W70: 0 | X70: 0.2901306517 | Y70: 0.4334361673 | Z70: 1.846080804 | AA70: 1.120720551
B71: Bottled water | C71: 0 | D71: 0 | E71: 0.01520002136 | F71: 0 | G71: 0.7164125155 | H71: 0.03679892162 | I71: 0 | J71: 0 | K71: 0.170041267 | L71: 1.305721887 | M71: 0 | N71: 0 | O71: 0 | P71: 0 | Q71: 0.1803934876 | R71: 0 | S71: 0 | T71: 0.2783686889 | U71: 0 | V71: 0.789325735 | W71: 0 | X71: 0 | Y71: 0 | Z71: 0 | AA71: 0
B72: Other | C72: 0.1280486888 | D72: 0.1931594965 | E72: 3.114671066 | F72: 1.74882474 | G72: 1.404772713 | H72: 3.605424619 | I72: 3.249546116 | J72: 2.307531791 | K72: 1.62474404 | L72: 0.9831102985 | M72: 0 | N72: 0.4003102823 | O72: 0 | P72: 1.488442072 | Q72: 1.046961794 | R72: 0 | S72: 0 | T72: 0 | U72: 0 | V72: 5.011839323 | W72: 0.05744138349 | X72: 0 | Y72: 0 | Z72: 6.605703901 | AA72: 0
A108: =A1026 -> Ghana
A109: =A1034 -> 2006
A110: Use of sanitation facilities
A111: by wealth quintile and sub-national region
A112: Notes:
A113: WHO/UNICEF JMP customised wealth index excludes water,
A114: sanitation and hygiene assets.
A115: Survey used for analysis: | B115: =A1025 -> MICS06
A116: =B1030 -> 
A117: =B1029 -> 
A120: Use of sanitation facilities | C120: NATIONAL wealth index quintile | H120: URBAN wealth index quintile | M120: RURAL wealth index quintile | R120: SUB-REGIONS: | BA120: Raw numbers of respondents: | BB120: Use of sanitation facilities | BC120: NATIONAL wealth index quintile | BH120: URBAN wealth index quintile | BM120: RURAL wealth index quintile | BR120: SUB-REGIONS:
A121: Weighted percentage (used in graphs) | C121: Poorest | D121: Poor | E121: Middle | F121: Rich | G121: Richest | H121: Poorest | I121: Poor | J121: Middle | K121: Rich | L121: Richest | M121: Poorest | N121: Poor | O121: Middle | P121: Rich | Q121: Richest | R121: Ashanti | S121: Brong Ahafo | T121: Central | U121: Eastern | V121: Greater Accra | W121: Northern | X121: Upper East | Y121: Upper West | Z121: Volta | AA121: Western | BA121: Sanitation data, raw numbers (weighted) | BC121: Poorest | BD121: Poor | BE121: Middle | BF121: Rich | BG121: Richest | BH121: Poorest | BI121: Poor | BJ121: Middle | BK121: Rich | BL121: Richest | BM121: Poorest | BN121: Poor | BO121: Middle | BP121: Rich | BQ121: Richest | BR121: Ashanti | BS121: Brong Ahafo | BT121: Central | BU121: Eastern | BV121: Greater Accra | BW121: Northern | BX121: Upper East | BY121: Upper West | BZ121: Volta | CA121: Western
A122: Sanitation | B122: Improved | C122: 18.15554046 | D122: 46.75729814 | E122: 66.87017961 | F122: 82.71007141 | G122: 88.95722125 | H122: 66.08842713 | I122: 81.26933667 | J122: 85.70415033 | K122: 85.18059702 | L122: 94.64163239 | M122: 14.36918636 | N122: 28.47567481 | O122: 46.85691911 | P122: 56.67343126 | Q122: 79.86394311 | R122: 87.03679484 | S122: 79.09083824 | T122: 62.66413192 | U122: 49.5834351 | V122: 85.35264228 | W122: 25.0594474 | X122: 17.49239134 | Y122: 17.18439859 | Z122: 38.82231727 | AA122: 75.8926191 | BA122: Sanitation | BB122: Improved | BC122: 905.888085 | BD122: 2333.284823 | BE122: 3334.248054 | BF122: 4128.201038 | BG122: 4438.627035 | BH122: 1361.131043 | BI122: 1677.727337 | BJ122: 1771.267823 | BK122: 1754.262389 | BL122: 1954.227289 | BM122: 420.312135 | BN122: 833.219097 | BO122: 1371.256395 | BP122: 1658.015469 | BQ122: 2338.830058 | BR122: 3354.126159 | BS122: 1815.176091 | BT122: 1268.175648 | BU122: 1536.783207 | BV122: 3338.152059 | BW122: 889.273103 | BX122: 198.344811 | BY122: 112.069603 | BZ122: 767.888732 | CA122: 1860.259622
B123: Not Improved | C123: 81.84445954 | D123: 53.24270186 | E123: 33.12982039 | F123: 17.28992859 | G123: 11.04277875 | H123: 33.91157287 | I123: 18.73066333 | J123: 14.29584967 | K123: 14.81940298 | L123: 5.358367608 | M123: 85.63081364 | N123: 71.52432519 | O123: 53.14308089 | P123: 43.32656874 | Q123: 20.13605689 | R123: 12.96320516 | S123: 20.90916176 | T123: 37.33586808 | U123: 50.4165649 | V123: 14.64735772 | W123: 74.9405526 | X123: 82.50760866 | Y123: 82.81560141 | Z123: 61.17768273 | AA123: 24.1073809 | BB123: Not Improved | BC123: 4083.707718 | BD123: 2656.919735 | BE123: 1651.902833 | BF123: 862.969889 | BG123: 550.992664 | BH123: 698.42931 | BI123: 386.67654 | BJ123: 295.455686 | BK123: 305.200036 | BL123: 110.64336 | BM123: 2504.781357 | BN123: 2092.854131 | BO123: 1555.219398 | BP123: 1267.544943 | BQ123: 589.688078 | BR123: 499.561428 | BS123: 479.876195 | BT123: 755.590754 | BU123: 1562.605135 | BV123: 572.859914 | BW123: 2659.380979 | BX123: 935.547103 | BY123: 540.089403 | BZ123: 1210.068242 | CA123: 590.913686
A124: Sanitation ladder | B124: Basic | C124: =C122*C129/100 -> 1.907154001 | D124: =D122*D129/100 -> 3.479197295 | E124: =E122*E129/100 -> 6.427757388 | F124: 7.454173268 | G124: 30.68184606 | H124: 1.139896287 | I124: 3.837040604 | J124: 7.324653701 | K124: 12.8161626 | L124: 50.38692843 | M124: 1.330805053 | N124: 2.855907596 | O124: 4.090678873 | P124: 7.568410554 | Q124: 16.05464901 | R124: 11.47283772 | S124: 7.798657751 | T124: 6.356988033 | U124: 7.40279851 | V124: 22.54688963 | W124: 1.503809691 | X124: 1.622872895 | Y124: 5.225886891 | Z124: 7.924199265 | AA124: 15.03825979 | BA124: Sanitation ladder | BB124: Basic | BC124: 94.979564 | BD124: 173.619062 | BE124: 320.497682 | BF124: 372.050529 | BG124: 1530.907435 | BH124: 23.476852 | BI124: 79.212015 | BJ124: 151.38034 | BK124: 263.944053 | BL124: 1040.424896 | BM124: 38.927292 | BN124: 83.394366 | BO124: 119.712727 | BP124: 221.418423 | BQ124: 470.163308 | BR124: 442.127323 | BS124: 178.983273 | BT124: 128.650588 | BU124: 229.441474 | BV124: 881.811553 | BW124: 53.365004 | BX124: 18.242903 | BY124: 34.081092 | BZ124: 156.737252 | CA124: 368.61381
B125: Limited | C125: =C122*C128/100 -> 16.24838646 | D125: =D122*D128/100 -> 43.27810085 | E125: =E122*E128/100 -> 60.44242223 | F125: 75.25589814 | G125: 58.27537519 | H125: 64.94853084 | I125: 77.43229606 | J125: 78.37949663 | K125: 72.36443442 | L125: 44.25470397 | M125: 13.0383813 | N125: 25.61976721 | O125: 42.76624023 | P125: 49.1050207 | Q125: 63.80929409 | R125: 75.56395713 | S125: 71.29218049 | T125: 56.30714389 | U125: 42.18063659 | V125: 62.80575265 | W125: 23.55563771 | X125: 15.86951845 | Y125: 11.95851169 | Z125: 30.89811801 | AA125: 60.8543593 | BB125: Limited | BC125: 809.197716 | BD125: 2159.665761 | BE125: 3013.750372 | BF125: 3756.150509 | BG125: 2907.7196 | BH125: 1337.654191 | BI125: 1598.515322 | BJ125: 1619.887483 | BK125: 1490.318336 | BL125: 913.802393 | BM125: 381.384843 | BN125: 748.113926 | BO125: 1251.543668 | BP125: 1436.597046 | BQ125: 1868.66675 | BR125: 2911.998836 | BS125: 1636.192818 | BT125: 1139.52506 | BU125: 1307.341733 | BV125: 2456.340506 | BW125: 835.908099 | BX125: 178.391103 | BY125: 77.988511 | BZ125: 611.15148 | CA125: 1491.645812
B126: Unimproved | C126: =100-C124-C125-C127 -> 15.86411245 | D126: =100-D124-D125-D127 -> 24.8434618 | E126: =100-E124-E125-E127 -> 18.31703783 | F126: 8.891115281 | G126: 6.656451494 | H126: 15.11123117 | I126: 8.282332973 | J126: 7.994054951 | K126: 9.430963277 | L126: 2.981481287 | M126: 8.912795393 | N126: 25.80093402 | O126: 25.42977419 | P126: 26.20758487 | Q126: 9.939169282 | R126: 9.535986058 | S126: 14.51917113 | T126: 19.20440984 | U126: 44.91707271 | V126: 6.563719666 | W126: 2.018313432 | X126: 0.5229053602 | Y126: 4.142255915 | Z126: 30.40009808 | AA126: 11.26590348 | BB126: Unimproved | BC126: 792.683884 | BD126: 1239.739563 | BE126: 913.315144 | BF126: 443.770761 | BG126: 332.131615 | BH126: 311.224926 | BI126: 170.980803 | BJ126: 165.215013 | BK126: 194.227145 | BL126: 61.563732 | BM126: 260.707598 | BN126: 755.736461 | BO126: 744.196186 | BP126: 766.718728 | BQ126: 291.070375 | BR126: 367.487111 | BS126: 333.222569 | BT126: 388.652394 | BU126: 1392.154515 | BV126: 256.707862 | BW126: 71.622962 | BX126: 7.33178 | BY126: 27.014095 | BZ126: 601.30086 | CA126: 276.146819
B127: Open defecation | C127: 65.98034709 | D127: 28.39924006 | E127: 14.81278256 | F127: 8.398813307 | G127: 4.386327259 | H127: 18.80034171 | I127: 10.44833036 | J127: 6.301794722 | K127: 5.388439704 | L127: 2.376886321 | M127: 76.71801825 | N127: 45.72339117 | O127: 27.7133067 | P127: 17.11898387 | Q127: 10.19688761 | R127: 3.427219099 | S127: 6.389990629 | T127: 18.13145824 | U127: 5.499492196 | V127: 8.08363805 | W127: 72.92223917 | X127: 81.9847033 | Y127: 78.6733455 | Z127: 30.77758465 | AA127: 12.84147743 | BB127: Open defecation | BC127: 3291.023834 | BD127: 1417.180172 | BE127: 738.587689 | BF127: 419.199128 | BG127: 218.861049 | BH127: 387.204384 | BI127: 215.695737 | BJ127: 130.240673 | BK127: 110.972891 | BL127: 49.079628 | BM127: 2244.073759 | BN127: 1337.11767 | BO127: 811.023212 | BP127: 500.826215 | BQ127: 298.617703 | BR127: 132.074317 | BS127: 146.653626 | BT127: 366.93836 | BU127: 170.45062 | BV127: 316.152052 | BW127: 2587.758017 | BX127: 928.215323 | BY127: 513.075308 | BZ127: 608.767382 | CA127: 314.766867
A128: Shared among Improved Sanitation | B128: Yes | C128: 89.49547107 | D128: 92.55902836 | E128: 90.38770731 | F128: 90.98758695 | G128: 65.50943742 | H128: 98.27519531 | I128: 95.27861213 | J128: 91.4535601 | K128: 84.95412917 | L128: 46.76029232 | M128: 90.73848011 | N128: 89.97071144 | O128: 91.26985096 | P128: 86.64557556 | Q128: 79.89750019 | R128: 86.81840509 | S128: 90.1396193 | T128: 89.85545983 | U128: 85.07001684 | V128: 73.58384108 | W128: 93.99903091 | X128: 90.72240689 | Y128: 69.58935243 | Z128: 79.58854643 | AA128: 80.18481906 | BA128: Shared among improved sanitation facilities | BB128: Yes | BC128: N/A | BD128: N/A | BE128: N/A | BF128: N/A | BG128: N/A | BH128: N/A | BI128: N/A | BJ128: N/A | BK128: N/A | BL128: N/A | BM128: N/A | BN128: N/A | BO128: N/A | BP128: N/A | BQ128: N/A | BR128: N/A | BS128: N/A | BT128: N/A | BU128: N/A | BV128: N/A | BW128: N/A | BX128: N/A | BY128: N/A | BZ128: N/A | CA128: N/A
B129: No | C129: 10.50452893 | D129: 7.440971642 | E129: 9.612292691 | F129: 9.012413048 | G129: 34.49056258 | H129: 1.724804685 | I129: 4.721387871 | J129: 8.546439902 | K129: 15.04587083 | L129: 53.23970768 | M129: 9.261519894 | N129: 10.02928856 | O129: 8.73014904 | P129: 13.35442444 | Q129: 20.10249981 | R129: 13.18159491 | S129: 9.860380703 | T129: 10.14454017 | U129: 14.92998316 | V129: 26.41615892 | W129: 6.000969086 | X129: 9.277593114 | Y129: 30.41064757 | Z129: 20.41145357 | AA129: 19.81518094 | BB129: No | BC129: N/A | BD129: N/A | BE129: N/A | BF129: N/A | BG129: N/A | BH129: N/A | BI129: N/A | BJ129: N/A | BK129: N/A | BL129: N/A | BM129: N/A | BN129: N/A | BO129: N/A | BP129: N/A | BQ129: N/A | BR129: N/A | BS129: N/A | BT129: N/A | BU129: N/A | BV129: N/A | BW129: N/A | BX129: N/A | BY129: N/A | BZ129: N/A | CA129: N/A
A130: Manually calculated ratios | B130: Improved latrines | C130: =C157/(C157+C158)*100 -> 48.04223156 | D130: =D157/(D157+D158)*100 -> 54.68131 | E130: 56.3284415 | F130: 70.05287486 | G130: 69.45110956 | H130: 48.68000027 | I130: 70.46471757 | J130: 67.12235894 | K130: 68.21811182 | L130: 70.93095517 | M130: 57.69002047 | N130: 45.83009382 | O130: 56.26087563 | P130: 53.32303751 | Q130: 71.74970837 | R130: 74.40381779 | S130: 71.26814429 | T130: 58.10590648 | U130: 32.62686861 | V130: 67.1637332 | W130: 78.588498 | X130: 89.82128757 | Y130: 56.4534208 | Z130: 22.78256387 | AA130: 76.78866153
B131: Other
B132: Other
C133: NATIONAL wealth index quintile | H133: URBAN wealth index quintile | M133: RURAL wealth index quintile | R133: SUB-REGIONS: | BA133: Raw numbers of respondents: | BB133: Use of sanitation facilities | BC133: NATIONAL wealth index quintile | BH133: URBAN wealth index quintile | BM133: RURAL wealth index quintile | BR133: SUB-REGIONS:
A134: Percentage based on weighted population | C134: Poorest | D134: Poor | E134: Middle | F134: Rich | G134: Richest | H134: Poorest | I134: Poor | J134: Middle | K134: Rich | L134: Richest | M134: Poorest | N134: Poor | O134: Middle | P134: Rich | Q134: Richest | R134: Ashanti | S134: Brong Ahafo | T134: Central | U134: Eastern | V134: Greater Accra | W134: Northern | X134: Upper East | Y134: Upper West | Z134: Volta | AA134: Western | BA134: Sanitation data, raw numbers (weighted) | BC134: Poorest | BD134: Poor | BE134: Middle | BF134: Rich | BG134: Richest | BH134: Poorest | BI134: Poor | BJ134: Middle | BK134: Rich | BL134: Richest | BM134: Poorest | BN134: Poor | BO134: Middle | BP134: Rich | BQ134: Richest | BR134: Ashanti | BS134: Brong Ahafo | BT134: Central | BU134: Eastern | BV134: Greater Accra | BW134: Northern | BX134: Upper East | BY134: Upper West | BZ134: Volta | CA134: Western
A135: Sanitation type | B135: Sewer connection | C135: 0 | D135: 0 | E135: 0.3151296332 | F135: 1.757350315 | G135: 7.611294045 | H135: 0.04038347305 | I135: 1.284936262 | J135: 3.037711853 | K135: 3.205017737 | L135: 11.4866017 | M135: 0 | N135: 0 | O135: 0 | P135: 0.5086586809 | Q135: 2.560680847 | R135: 4.089885115 | S135: 0.6189379251 | T135: 1.420333393 | U135: 1.268036163 | V135: 5.425638875 | W135: 0 | X135: 0 | Y135: 0 | Z135: 0.9038997428 | AA135: 0.541036856 | BA135: Sanitation type | BB135: Sewer connection | BC135: N/A | BD135: N/A | BE135: N/A | BF135: N/A | BG135: N/A | BH135: N/A | BI135: N/A | BJ135: N/A | BK135: N/A | BL135: N/A | BM135: N/A | BN135: N/A | BO135: N/A | BP135: N/A | BQ135: N/A | BR135: N/A | BS135: N/A | BT135: N/A | BU135: N/A | BV135: N/A | BW135: N/A | BX135: N/A | BY135: N/A | BZ135: N/A | CA135: N/A
B136: Septic tank connection | C136: 0 | D136: 0 | E136: 0.7190954468 | F136: 6.389481279 | G136: 27.32737327 | H136: 1.195656877 | I136: 4.363645845 | J136: 8.076678727 | K136: 18.12353717 | L136: 42.82657068 | M136: 0 | N136: 0 | O136: 0 | P136: 0.1646620928 | Q136: 5.951403608 | R136: 9.904836092 | S136: 1.423095116 | T136: 5.870265406 | U136: 3.261580443 | V136: 19.55858277 | W136: 0.4671099413 | X136: 0.414765547 | Y136: 5.993631406 | Z136: 2.886859257 | AA136: 8.226220983 | BB136: Septic tank connection | BC136: N/A | BD136: N/A | BE136: N/A | BF136: N/A | BG136: N/A | BH136: N/A | BI136: N/A | BJ136: N/A | BK136: N/A | BL136: N/A | BM136: N/A | BN136: N/A | BO136: N/A | BP136: N/A | BQ136: N/A | BR136: N/A | BS136: N/A | BT136: N/A | BU136: N/A | BV136: N/A | BW136: N/A | BX136: N/A | BY136: N/A | BZ136: N/A | CA136: N/A
B137: Improved latrines | C137: 18.15554046 | D137: 46.75729814 | E137: 65.83595453 | F137: 74.56323982 | G137: 54.01855393 | H137: 64.85238678 | I137: 75.62075456 | J137: 74.58975975 | K137: 63.85204212 | L137: 40.32846001 | M137: 14.36918636 | N137: 28.47567481 | O137: 46.85691911 | P137: 56.00011048 | Q137: 71.35185865 | R137: 73.04207364 | S137: 77.0488052 | T137: 55.37353313 | U137: 45.05381849 | V137: 60.36842064 | W137: 24.59233746 | X137: 17.0776258 | Y137: 11.19076718 | Z137: 35.03155827 | AA137: 67.12536126 | BB137: Improved latrines | BC137: N/A | BD137: N/A | BE137: N/A | BF137: N/A | BG137: N/A | BH137: N/A | BI137: N/A | BJ137: N/A | BK137: N/A | BL137: N/A | BM137: N/A | BN137: N/A | BO137: N/A | BP137: N/A | BQ137: N/A | BR137: N/A | BS137: N/A | BT137: N/A | BU137: N/A | BV137: N/A | BW137: N/A | BX137: N/A | BY137: N/A | BZ137: N/A | CA137: N/A
B138: Unimproved facilities | C138: 15.88673543 | D138: 24.8434618 | E138: 18.31703783 | F138: 8.891115281 | G138: 6.656451494 | H138: 15.11123117 | I138: 8.282332973 | J138: 7.994054951 | K138: 9.430963277 | L138: 2.981481287 | M138: 8.912795393 | N138: 25.82766739 | O138: 25.42977419 | P138: 26.20758487 | Q138: 9.939169282 | R138: 9.535986058 | S138: 14.51917113 | T138: 19.20440984 | U138: 44.91707271 | V138: 6.563719666 | W138: 2.018313432 | X138: 0.6466030765 | Y138: 4.142255915 | Z138: 30.40009808 | AA138: 11.26590348 | BB138: Unimproved facilities | BC138: N/A | BD138: N/A | BE138: N/A | BF138: N/A | BG138: N/A | BH138: N/A | BI138: N/A | BJ138: N/A | BK138: N/A | BL138: N/A | BM138: N/A | BN138: N/A | BO138: N/A | BP138: N/A | BQ138: N/A | BR138: N/A | BS138: N/A | BT138: N/A | BU138: N/A | BV138: N/A | BW138: N/A | BX138: N/A | BY138: N/A | BZ138: N/A | CA138: N/A
B139: Open defecation | C139: 65.95772411 | D139: 28.39924006 | E139: 14.81278256 | F139: 8.398813307 | G139: 4.386327259 | H139: 18.80034171 | I139: 10.44833036 | J139: 6.301794722 | K139: 5.388439704 | L139: 2.376886321 | M139: 76.71801825 | N139: 45.6966578 | O139: 27.7133067 | P139: 17.11898387 | Q139: 10.19688761 | R139: 3.427219099 | S139: 6.389990629 | T139: 18.13145824 | U139: 5.499492196 | V139: 8.08363805 | W139: 72.92223917 | X139: 81.86100558 | Y139: 78.6733455 | Z139: 30.77758465 | AA139: 12.84147743 | BB139: Open defecation | BC139: N/A | BD139: N/A | BE139: N/A | BF139: N/A | BG139: N/A | BH139: N/A | BI139: N/A | BJ139: N/A | BK139: N/A | BL139: N/A | BM139: N/A | BN139: N/A | BO139: N/A | BP139: N/A | BQ139: N/A | BR139: N/A | BS139: N/A | BT139: N/A | BU139: N/A | BV139: N/A | BW139: N/A | BX139: N/A | BY139: N/A | BZ139: N/A | CA139: N/A
A140: Septic tank emptying practices | B140: Not emptied/treated and disposed in situ | C140: N/A | D140: N/A | E140: N/A | F140: N/A | G140: N/A | H140: N/A | I140: N/A | J140: N/A | K140: N/A | L140: N/A | M140: N/A | N140: N/A | O140: N/A | P140: N/A | Q140: N/A | R140: N/A | S140: N/A | T140: N/A | U140: N/A | V140: N/A | W140: N/A | X140: N/A | Y140: N/A | Z140: N/A | AA140: N/A | BA140: Septic tank emptying practices | BB140: Not emptied/treated and disposed in situ | BC140: N/A | BD140: N/A | BE140: N/A | BF140: N/A | BG140: N/A | BH140: N/A | BI140: N/A | BJ140: N/A | BK140: N/A | BL140: N/A | BM140: N/A | BN140: N/A | BO140: N/A | BP140: N/A | BQ140: N/A | BR140: N/A | BS140: N/A | BT140: N/A | BU140: N/A | BV140: N/A | BW140: N/A | BX140: N/A | BY140: N/A | BZ140: N/A | CA140: N/A
B141: Emptied and buried on site | C141: N/A | D141: N/A | E141: N/A | F141: N/A | G141: N/A | H141: N/A | I141: N/A | J141: N/A | K141: N/A | L141: N/A | M141: N/A | N141: N/A | O141: N/A | P141: N/A | Q141: N/A | R141: N/A | S141: N/A | T141: N/A | U141: N/A | V141: N/A | W141: N/A | X141: N/A | Y141: N/A | Z141: N/A | AA141: N/A | BB141: Emptied and buried on site | BC141: N/A | BD141: N/A | BE141: N/A | BF141: N/A | BG141: N/A | BH141: N/A | BI141: N/A | BJ141: N/A | BK141: N/A | BL141: N/A | BM141: N/A | BN141: N/A | BO141: N/A | BP141: N/A | BQ141: N/A | BR141: N/A | BS141: N/A | BT141: N/A | BU141: N/A | BV141: N/A | BW141: N/A | BX141: N/A | BY141: N/A | BZ141: N/A | CA141: N/A
B142: Emptied and discharged locally | C142: N/A | D142: N/A | E142: N/A | F142: N/A | G142: N/A | H142: N/A | I142: N/A | J142: N/A | K142: N/A | L142: N/A | M142: N/A | N142: N/A | O142: N/A | P142: N/A | Q142: N/A | R142: N/A | S142: N/A | T142: N/A | U142: N/A | V142: N/A | W142: N/A | X142: N/A | Y142: N/A | Z142: N/A | AA142: N/A | BB142: Emptied and discharged locally | BC142: N/A | BD142: N/A | BE142: N/A | BF142: N/A | BG142: N/A | BH142: N/A | BI142: N/A | BJ142: N/A | BK142: N/A | BL142: N/A | BM142: N/A | BN142: N/A | BO142: N/A | BP142: N/A | BQ142: N/A | BR142: N/A | BS142: N/A | BT142: N/A | BU142: N/A | BV142: N/A | BW142: N/A | BX142: N/A | BY142: N/A | BZ142: N/A | CA142: N/A
B143: Emptied and removed offsite | C143: N/A | D143: N/A | E143: N/A | F143: N/A | G143: N/A | H143: N/A | I143: N/A | J143: N/A | K143: N/A | L143: N/A | M143: N/A | N143: N/A | O143: N/A | P143: N/A | Q143: N/A | R143: N/A | S143: N/A | T143: N/A | U143: N/A | V143: N/A | W143: N/A | X143: N/A | Y143: N/A | Z143: N/A | AA143: N/A | BB143: Emptied and removed offsite | BC143: N/A | BD143: N/A | BE143: N/A | BF143: N/A | BG143: N/A | BH143: N/A | BI143: N/A | BJ143: N/A | BK143: N/A | BL143: N/A | BM143: N/A | BN143: N/A | BO143: N/A | BP143: N/A | BQ143: N/A | BR143: N/A | BS143: N/A | BT143: N/A | BU143: N/A | BV143: N/A | BW143: N/A | BX143: N/A | BY143: N/A | BZ143: N/A | CA143: N/A
A144: Latrine emptying practices | B144: Not emptied/treated and disposed in situ | C144: N/A | D144: N/A | E144: N/A | F144: N/A | G144: N/A | H144: N/A | I144: N/A | J144: N/A | K144: N/A | L144: N/A | M144: N/A | N144: N/A | O144: N/A | P144: N/A | Q144: N/A | R144: N/A | S144: N/A | T144: N/A | U144: N/A | V144: N/A | W144: N/A | X144: N/A | Y144: N/A | Z144: N/A | AA144: N/A | BA144: Latrine emptying practices | BB144: Not emptied/treated and disposed in situ | BC144: N/A | BD144: N/A | BE144: N/A | BF144: N/A | BG144: N/A | BH144: N/A | BI144: N/A | BJ144: N/A | BK144: N/A | BL144: N/A | BM144: N/A | BN144: N/A | BO144: N/A | BP144: N/A | BQ144: N/A | BR144: N/A | BS144: N/A | BT144: N/A | BU144: N/A | BV144: N/A | BW144: N/A | BX144: N/A | BY144: N/A | BZ144: N/A | CA144: N/A
B145: Emptied and buried on site | C145: N/A | D145: N/A | E145: N/A | F145: N/A | G145: N/A | H145: N/A | I145: N/A | J145: N/A | K145: N/A | L145: N/A | M145: N/A | N145: N/A | O145: N/A | P145: N/A | Q145: N/A | R145: N/A | S145: N/A | T145: N/A | U145: N/A | V145: N/A | W145: N/A | X145: N/A | Y145: N/A | Z145: N/A | AA145: N/A | BB145: Emptied and buried on site | BC145: N/A | BD145: N/A | BE145: N/A | BF145: N/A | BG145: N/A | BH145: N/A | BI145: N/A | BJ145: N/A | BK145: N/A | BL145: N/A | BM145: N/A | BN145: N/A | BO145: N/A | BP145: N/A | BQ145: N/A | BR145: N/A | BS145: N/A | BT145: N/A | BU145: N/A | BV145: N/A | BW145: N/A | BX145: N/A | BY145: N/A | BZ145: N/A | CA145: N/A
B146: Emptied and discharged locally | C146: N/A | D146: N/A | E146: N/A | F146: N/A | G146: N/A | H146: N/A | I146: N/A | J146: N/A | K146: N/A | L146: N/A | M146: N/A | N146: N/A | O146: N/A | P146: N/A | Q146: N/A | R146: N/A | S146: N/A | T146: N/A | U146: N/A | V146: N/A | W146: N/A | X146: N/A | Y146: N/A | Z146: N/A | AA146: N/A | BB146: Emptied and discharged locally | BC146: N/A | BD146: N/A | BE146: N/A | BF146: N/A | BG146: N/A | BH146: N/A | BI146: N/A | BJ146: N/A | BK146: N/A | BL146: N/A | BM146: N/A | BN146: N/A | BO146: N/A | BP146: N/A | BQ146: N/A | BR146: N/A | BS146: N/A | BT146: N/A | BU146: N/A | BV146: N/A | BW146: N/A | BX146: N/A | BY146: N/A | BZ146: N/A | CA146: N/A
B147: Emptied and removed offsite | C147: N/A | D147: N/A | E147: N/A | F147: N/A | G147: N/A | H147: N/A | I147: N/A | J147: N/A | K147: N/A | L147: N/A | M147: N/A | N147: N/A | O147: N/A | P147: N/A | Q147: N/A | R147: N/A | S147: N/A | T147: N/A | U147: N/A | V147: N/A | W147: N/A | X147: N/A | Y147: N/A | Z147: N/A | AA147: N/A | BB147: Emptied and removed offsite | BC147: N/A | BD147: N/A | BE147: N/A | BF147: N/A | BG147: N/A | BH147: N/A | BI147: N/A | BJ147: N/A | BK147: N/A | BL147: N/A | BM147: N/A | BN147: N/A | BO147: N/A | BP147: N/A | BQ147: N/A | BR147: N/A | BS147: N/A | BT147: N/A | BU147: N/A | BV147: N/A | BW147: N/A | BX147: N/A | BY147: N/A | BZ147: N/A | CA147: N/A
A148: Shared among improved sanitation facilities | B148: Yes | C148: 16.21770075 | D148: 43.27810085 | E148: 60.44242223 | F148: 75.25589814 | G148: 58.27537519 | H148: 64.94853084 | I148: 77.43229606 | J148: 78.37949663 | K148: 72.36443442 | L148: 44.25470397 | M148: 13.0383813 | N148: 25.56716349 | O148: 42.76624023 | P148: 49.1050207 | Q148: 63.80929409 | R148: 75.56395713 | S148: 71.29218049 | T148: 56.30714389 | U148: 42.18063659 | V148: 62.80575265 | W148: 23.55563771 | X148: 15.73263737 | Y148: 11.95851169 | Z148: 30.89811801 | AA148: 60.8543593 | BA148: Shared among improved sanitation facilities | BB148: Yes | BC148: N/A | BD148: N/A | BE148: N/A | BF148: N/A | BG148: N/A | BH148: N/A | BI148: N/A | BJ148: N/A | BK148: N/A | BL148: N/A | BM148: N/A | BN148: N/A | BO148: N/A | BP148: N/A | BQ148: N/A | BR148: N/A | BS148: N/A | BT148: N/A | BU148: N/A | BV148: N/A | BW148: N/A | BX148: N/A | BY148: N/A | BZ148: N/A | CA148: N/A
B149: No | C149: 1.903552267 | D149: 3.479197295 | E149: 6.427757388 | F149: 7.454173268 | G149: 30.68184606 | H149: 1.139896287 | I149: 3.837040604 | J149: 7.324653701 | K149: 12.8161626 | L149: 50.38692843 | M149: 1.330805053 | N149: 2.850043711 | O149: 4.090678873 | P149: 7.568410554 | Q149: 16.05464901 | R149: 11.47283772 | S149: 7.798657751 | T149: 6.356988033 | U149: 7.40279851 | V149: 22.54688963 | W149: 1.503809691 | X149: 1.608874953 | Y149: 5.225886891 | Z149: 7.924199265 | AA149: 15.03825979 | BB149: No | BC149: N/A | BD149: N/A | BE149: N/A | BF149: N/A | BG149: N/A | BH149: N/A | BI149: N/A | BJ149: N/A | BK149: N/A | BL149: N/A | BM149: N/A | BN149: N/A | BO149: N/A | BP149: N/A | BQ149: N/A | BR149: N/A | BS149: N/A | BT149: N/A | BU149: N/A | BV149: N/A | BW149: N/A | BX149: N/A | BY149: N/A | BZ149: N/A | CA149: N/A
B150: DK/missing | C150: 81.87874698 | D150: 53.24270186 | E150: 33.12982039 | F150: 17.28992859 | G150: 11.04277875 | H150: 33.91157287 | I150: 18.73066333 | J150: 14.29584967 | K150: 14.81940298 | L150: 5.358367608 | M150: 85.63081364 | N150: 71.5827928 | O150: 53.14308089 | P150: 43.32656874 | Q150: 20.13605689 | R150: 12.96320516 | S150: 20.90916176 | T150: 37.33586808 | U150: 50.4165649 | V150: 14.64735772 | W150: 74.9405526 | X150: 82.65848768 | Y150: 82.81560141 | Z150: 61.17768273 | AA150: 24.1073809 | BB150: DK/missing | BC150: N/A | BD150: N/A | BE150: N/A | BF150: N/A | BG150: N/A | BH150: N/A | BI150: N/A | BJ150: N/A | BK150: N/A | BL150: N/A | BM150: N/A | BN150: N/A | BO150: N/A | BP150: N/A | BQ150: N/A | BR150: N/A | BS150: N/A | BT150: N/A | BU150: N/A | BV150: N/A | BW150: N/A | BX150: N/A | BY150: N/A | BZ150: N/A | CA150: N/A
A151: Shared among all sanitation facilities | B151: Yes | C151: 82.14997642 | D151: 88.61120608 | E151: 89.24055563 | F151: 89.56449679 | G151: 65.81333931 | H151: 95.28838432 | I151: 92.7203349 | J151: 89.57729745 | K151: 84.15571105 | L151: 47.54866452 | M151: 88.11447524 | N151: 81.82684238 | O151: 86.95308852 | P151: 86.99286359 | Q151: 79.72907104 | R151: 86.33455811 | S151: 90.64436663 | T151: 91.08430122 | U151: 81.52099711 | V151: 72.66162774 | W151: 89.97467921 | X151: 89.47359498 | Y151: 74.66058163 | Z151: 74.94591472 | AA151: 81.29028717 | BA151: Shared among all sanitation facilities | BB151: Yes | BC151: N/A | BD151: N/A | BE151: N/A | BF151: N/A | BG151: N/A | BH151: N/A | BI151: N/A | BJ151: N/A | BK151: N/A | BL151: N/A | BM151: N/A | BN151: N/A | BO151: N/A | BP151: N/A | BQ151: N/A | BR151: N/A | BS151: N/A | BT151: N/A | BU151: N/A | BV151: N/A | BW151: N/A | BX151: N/A | BY151: N/A | BZ151: N/A | CA151: N/A
B152: No | C152: 17.74930339 | D152: 11.38879392 | E152: 10.75944437 | F152: 10.30472192 | G152: 34.18666069 | H152: 4.711615676 | I152: 6.955799982 | J152: 10.42270255 | K152: 15.84428895 | L152: 52.45133548 | M152: 11.88552476 | N152: 18.06548909 | O152: 13.04691148 | P152: 13.00713641 | Q152: 20.27092896 | R152: 13.66544189 | S152: 9.355633372 | T152: 8.915698779 | U152: 18.47900289 | V152: 27.17184971 | W152: 10.02532079 | X152: 9.694611284 | Y152: 25.33941837 | Z152: 25.05408528 | AA152: 18.70971283 | BB152: No | BC152: N/A | BD152: N/A | BE152: N/A | BF152: N/A | BG152: N/A | BH152: N/A | BI152: N/A | BJ152: N/A | BK152: N/A | BL152: N/A | BM152: N/A | BN152: N/A | BO152: N/A | BP152: N/A | BQ152: N/A | BR152: N/A | BS152: N/A | BT152: N/A | BU152: N/A | BV152: N/A | BW152: N/A | BX152: N/A | BY152: N/A | BZ152: N/A | CA152: N/A
A153: Kind of toilet facility | B153: Flush to piped sewer system | C153: 0 | D153: 0 | E153: 0.3151296332 | F153: 1.757350315 | G153: 7.611294045 | H153: 0.04038347305 | I153: 1.284936262 | J153: 3.037711853 | K153: 3.205017737 | L153: 11.4866017 | M153: 0 | N153: 0 | O153: 0 | P153: 0.5086586809 | Q153: 2.560680847 | R153: 4.089885115 | S153: 0.6189379251 | T153: 1.420333393 | U153: 1.268036163 | V153: 5.425638875 | W153: 0 | X153: 0 | Y153: 0 | Z153: 0.9038997428 | AA153: 0.541036856 | BA153: Kind of toilet facility | BB153: Flush to piped sewer system | BC153: 0 | BD153: 0 | BE153: 15.712839 | BF153: 87.712358 | BG153: 379.774627 | BH153: 0.831722 | BI153: 26.526274 | BJ153: 62.781105 | BK153: 66.006136 | BL153: 237.183467 | BM153: 0 | BN153: 0 | BO153: 0 | BP153: 14.881117 | BQ153: 74.990003 | BR153: 157.611395 | BS153: 14.204949 | BT153: 28.74423 | BU153: 39.301365 | BV153: 212.197386 | BW153: 0 | BX153: 0 | BY153: 0 | BZ153: 17.878748 | CA153: 13.261751
B154: Flush to septic tank | C154: 0 | D154: 0 | E154: 0.7190954468 | F154: 6.389481279 | G154: 27.32737327 | H154: 1.195656877 | I154: 4.363645845 | J154: 8.076678727 | K154: 18.12353717 | L154: 42.82657068 | M154: 0 | N154: 0 | O154: 0 | P154: 0.1646620928 | Q154: 5.951403608 | R154: 9.904836092 | S154: 1.423095116 | T154: 5.870265406 | U154: 3.261580443 | V154: 19.55858277 | W154: 0.4671099413 | X154: 0.414765547 | Y154: 5.993631406 | Z154: 2.886859257 | AA154: 8.226220983 | BB154: Flush to septic tank | BC154: 0 | BD154: 0 | BE154: 35.855184 | BF154: 318.909932 | BG154: 1363.532 | BH154: 24.625275 | BI154: 90.083274 | BJ154: 166.922618 | BK154: 373.247438 | BL154: 884.313288 | BM154: 0 | BN154: 0 | BO154: 0 | BP154: 4.817289 | BQ154: 174.287934 | BR154: 381.701439 | BS154: 32.660777 | BT154: 118.800459 | BU154: 101.089044 | BV154: 764.938514 | BW154: 16.576116 | BX154: 4.702993 | BY154: 39.088007 | BZ154: 57.100834 | CA154: 201.638933
B155: Flush to pit (latrine) | C155: 0 | D155: 0 | E155: 0.4670294688 | F155: 2.708168363 | G155: 9.591448785 | H155: 0.9247657138 | I155: 2.33314123 | J155: 3.463933114 | K155: 7.191563449 | L155: 12.64497145 | M155: 0 | N155: 0 | O155: 0 | P155: 0 | Q155: 3.039816824 | R155: 0.6108209467 | S155: 0.6283738757 | T155: 1.038836102 | U155: 0.4778177294 | V155: 13.04959989 | W155: 0.8260775867 | X155: 0.03562667614 | Y155: 0.1500983642 | Z155: 0.6863094687 | AA155: 0.3506662288 | BB155: Flush to pit (latrine) | BC155: 0 | BD155: 0 | BE155: 23.286794 | BF155: 135.169312 | BG155: 478.576818 | BH155: 19.046108 | BI155: 48.165458 | BJ155: 71.58992 | BK155: 148.107547 | BL155: 261.102304 | BM155: 0 | BN155: 0 | BO155: 0 | BP155: 0 | BQ155: 89.021587 | BR155: 23.539131 | BS155: 14.421509 | BT155: 21.023616 | BU155: 14.809427 | BV155: 510.371414 | BW155: 29.314636 | BX155: 0.403968 | BY155: 0.97888 | BZ155: 13.574906 | CA155: 8.595437
B156: Ventilated Improved Pit latrine (VIP) | C156: 3.46602925 | D156: 16.86841149 | E156: 42.82564147 | F156: 54.48888323 | G156: 34.26992429 | H156: 50.61651723 | I156: 56.6128107 | J156: 59.81750784 | K156: 44.39459336 | L156: 21.2997945 | M156: 2.21651329 | N156: 6.624346211 | O156: 14.30539726 | P156: 26.78614004 | Q156: 44.97547448 | R156: 46.350202 | S156: 40.40624576 | T156: 29.57459188 | U156: 24.23487108 | V156: 36.31792295 | W156: 19.66389614 | X156: 11.33609857 | Y156: 6.582185419 | Z156: 25.45916724 | AA156: 29.50439068 | BB156: Ventilated Improved Pit latrine (VIP) | BC156: 172.94085 | BD156: 841.768239 | BE156: 2135.351102 | BF156: 2719.633298 | BG156: 1709.938893 | BH156: 1042.477721 | BI156: 1168.717059 | BJ156: 1236.262497 | BK156: 914.289969 | BL156: 439.813205 | BM156: 64.835086 | BN156: 193.833221 | BO156: 418.643988 | BP156: 783.644709 | BQ156: 1317.114927 | BR156: 1786.191981 | BS156: 927.344467 | BT156: 598.520654 | BU156: 751.132769 | BV156: 1420.398315 | BW156: 697.803653 | BX156: 128.539105 | BY156: 42.926315 | BZ156: 503.571374 | CA156: 723.203749
B157: Pit latrine with slab | C157: 14.68951121 | D157: 29.88888665 | E157: 22.5432836 | F157: 17.36618823 | G157: 10.15718086 | H157: 13.31110383 | I157: 16.67480263 | J157: 11.30831879 | K157: 12.26588531 | L157: 6.383694062 | M157: 12.15267307 | N157: 21.8513286 | O157: 32.55152184 | P157: 29.21397044 | Q157: 23.33656734 | R157: 26.08105069 | S157: 36.01418556 | T157: 24.76010514 | U157: 20.34112968 | V157: 11.0008978 | W157: 4.102363731 | X157: 5.705900554 | Y157: 4.458483396 | Z157: 8.886081563 | AA157: 37.27030435 | BB157: Pit latrine with slab | BC157: 732.947235 | BD157: 1491.516584 | BE157: 1124.042135 | BF157: 866.776138 | BG157: 506.804697 | BH157: 274.150217 | BI157: 344.235272 | BJ157: 233.711683 | BK157: 252.611299 | BL157: 131.815025 | BM157: 355.477049 | BN157: 639.385876 | BO157: 952.612407 | BP157: 854.672354 | BQ157: 683.415607 | BR157: 1005.082213 | BS157: 826.544389 | BT157: 501.086689 | BU157: 630.450602 | BV157: 430.24643 | BW157: 145.578698 | BX157: 64.698745 | BY157: 29.076401 | BZ157: 175.76287 | CA157: 913.559752
B158: Pit latrine without slab/open pit | C158: 15.88673543 | D158: 24.77126442 | E158: 17.47785492 | F158: 7.423926758 | G158: 4.46775591 | H158: 14.0329877 | I158: 6.98924259 | J158: 5.539001492 | K158: 5.714508727 | L158: 2.61617637 | M158: 8.912795393 | N158: 25.82766739 | O158: 25.30666376 | P158: 25.57280055 | Q158: 9.188397391 | R158: 8.972326225 | S158: 14.51917113 | T158: 17.85192286 | U158: 42.00358972 | V158: 5.378325442 | W158: 1.117692429 | X158: 0.6466030765 | Y158: 3.43914855 | Z158: 30.1177883 | AA158: 11.26590348 | BB158: Pit latrine without slab/open pit | BC158: 792.683884 | BD158: 1236.136766 | BE158: 871.472218 | BF158: 370.540874 | BG158: 222.924029 | BH158: 289.017851 | BI158: 144.286195 | BJ158: 114.475846 | BK158: 117.68816 | BL158: 54.020658 | BM158: 260.707598 | BN158: 755.736461 | BO158: 740.593389 | BP158: 748.147729 | BQ158: 269.083884 | BR158: 345.765422 | BS158: 333.222569 | BT158: 361.281217 | BU158: 1301.854363 | BV158: 210.346952 | BW158: 39.663038 | BX158: 7.33178 | BY158: 22.428717 | BZ158: 595.716894 | CA158: 276.146819
B159: Bucket | C159: 0 | D159: 0 | E159: 0.6319981026 | F159: 1.264103893 | G159: 2.188695584 | H159: 1.078243469 | I159: 0.8020866064 | J159: 2.455053459 | K159: 3.71645455 | L159: 0.3653049165 | M159: 0 | N159: 0 | O159: 0 | P159: 0.3180691112 | Q159: 0.7144104297 | R159: 0.4556474183 | S159: 0 | T159: 1.308900967 | U159: 2.880833866 | V159: 0.8420609864 | W159: 0.9006210034 | X159: 0 | Y159: 0 | Z159: 0.2823097809 | AA159: 0 | BB159: Bucket | BC159: 0 | BD159: 0 | BE159: 31.512379 | BF159: 63.093586 | BG159: 109.207586 | BH159: 22.207075 | BI159: 16.558307 | BJ159: 50.739167 | BK159: 76.538985 | BL159: 7.543074 | BM159: 0 | BN159: 0 | BO159: 0 | BP159: 9.305304 | BQ159: 20.921639 | BR159: 17.559228 | BS159: 0 | BT159: 26.489098 | BU159: 89.288229 | BV159: 32.933106 | BW159: 31.959924 | BX159: 0 | BY159: 0 | BZ159: 5.583966 | CA159: 0
B160: No facilities or bush or field | C160: 65.95772411 | D160: 28.39924006 | E160: 14.81278256 | F160: 8.398813307 | G160: 4.386327259 | H160: 18.80034171 | I160: 10.44833036 | J160: 6.301794722 | K160: 5.388439704 | L160: 2.376886321 | M160: 76.71801825 | N160: 45.6966578 | O160: 27.7133067 | P160: 17.11898387 | Q160: 10.19688761 | R160: 3.427219099 | S160: 6.389990629 | T160: 18.13145824 | U160: 5.499492196 | V160: 8.08363805 | W160: 72.92223917 | X160: 81.86100558 | Y160: 78.6733455 | Z160: 30.77758465 | AA160: 12.84147743 | BB160: No facilities or bush or field | BC160: 3291.023834 | BD160: 1417.180172 | BE160: 738.587689 | BF160: 419.199128 | BG160: 218.861049 | BH160: 387.204384 | BI160: 215.695737 | BJ160: 130.240673 | BK160: 110.972891 | BL160: 49.079628 | BM160: 2244.073759 | BN160: 1337.11767 | BO160: 811.023212 | BP160: 500.826215 | BQ160: 298.617703 | BR160: 132.074317 | BS160: 146.653626 | BT160: 366.93836 | BU160: 170.45062 | BV160: 316.152052 | BW160: 2587.758017 | BX160: 928.215323 | BY160: 513.075308 | BZ160: 608.767382 | CA160: 314.766867
B161: Other | C161: 0 | D161: 0.07219738105 | E161: 0.2071848052 | F161: 0.08339648273 | G161: 0 | H161: 0 | I161: 0.2016301677 | J161: 0 | K161: 0 | L161: 0 | M161: 0 | N161: 0 | O161: 0.1231104323 | P161: 0.3167152167 | Q161: 0.03636146169 | R161: 0.1080124142 | S161: 0 | T161: 0.0435860087 | U161: 0.03264911939 | V161: 0.1905891378 | W161: 0 | X161: 0 | Y161: 0.7031073646 | Z161: 0 | AA161: 0 | BB161: Other | BC161: 0 | BD161: 3.602797 | BE161: 10.330547 | BF161: 4.162461 | BG161: 0 | BH161: 0 | BI161: 4.162461 | BJ161: 0 | BK161: 0 | BL161: 0 | BM161: 0 | BN161: 0 | BO161: 3.602797 | BP161: 9.265695 | BQ161: 1.064852 | BR161: 4.162461 | BS161: 0 | BT161: 0.882079 | BU161: 1.011923 | BV161: 7.453964 | BW161: 0 | BX161: 0 | BY161: 4.585378 | BZ161: 0 | CA161: 0
B162: Missing | C162: 0 | D162: 0 | E162: 0 | F162: 0.1196881471 | G162: 0 | H162: 0 | I162: 0.2893736088 | J162: 0 | K162: 0 | L162: 0 | M162: 0 | N162: 0 | O162: 0 | P162: 0 | Q162: 0 | R162: 0 | S162: 0 | T162: 0 | U162: 0 | V162: 0.152744099 | W162: 0 | X162: 0 | Y162: 0 | Z162: 0 | AA162: 0 | BB162: Missing | BC162: 0 | BD162: 0 | BE162: 0 | BF162: 5.97384 | BG162: 0 | BH162: 0 | BI162: 5.97384 | BJ162: 0 | BK162: 0 | BL162: 0 | BM162: 0 | BN162: 0 | BO162: 0 | BP162: 0 | BQ162: 0 | BR162: 0 | BS162: 0 | BT162: 0 | BU162: 0 | BV162: 5.97384 | BW162: 0 | BX162: 0 | BY162: 0 | BZ162: 0 | CA162: 0
BB163: Total | BC163: 4989.595803 | BD163: 4990.204558 | BE163: 4986.150887 | BF163: 4991.170927 | BG163: 4989.619699 | BH163: 2059.560353 | BI163: 2064.403877 | BJ163: 2066.723509 | BK163: 2059.462425 | BL163: 2064.870649 | BM163: 2925.093492 | BN163: 2926.073228 | BO163: 2926.475793 | BP163: 2925.560412 | BQ163: 2928.518136 | BR163: 3853.687587 | BS163: 2295.052286 | BT163: 2023.766402 | BU163: 3099.388342 | BV163: 3911.011973 | BW163: 3548.654082 | BX163: 1133.891914 | BY163: 652.159006 | BZ163: 1977.956974 | CA163: 2451.173308
A208: =A1026 -> Ghana
A209: =A1034 -> 2006
A210: Access to hygiene facilities
A211: by wealth quintile and sub-national region
A212: Notes:
A213: WHO/UNICEF JMP customised wealth index excludes water,
A214: sanitation and hygiene assets.
A215: Survey used for analysis: | B215: =A1025 -> MICS06
A220: Access to handwashing | C220: NATIONAL wealth index quintile | H220: URBAN wealth index quintile | M220: RURAL wealth index quintile | R220: SUB-REGIONS: | BA220: Raw numbers of respondents: | BB220: Access to handwashing | BC220: NATIONAL wealth index quintile | BH220: URBAN wealth index quintile | BM220: RURAL wealth index quintile | BR220: SUB-REGIONS:
A221: Weighted percentage (used in graphs) | C221: Poorest | D221: Poor | E221: Middle | F221: Rich | G221: Richest | H221: Poorest | I221: Poor | J221: Middle | K221: Rich | L221: Richest | M221: Poorest | N221: Poor | O221: Middle | P221: Rich | Q221: Richest | R221: Ashanti | S221: Brong Ahafo | T221: Central | U221: Eastern | V221: Greater Accra | W221: Northern | X221: Upper East | Y221: Upper West | Z221: Volta | AA221: Western | BA221: Hygiene data, raw numbers (weighted) | BC221: Poorest | BD221: Poor | BE221: Middle | BF221: Rich | BG221: Richest | BH221: Poorest | BI221: Poor | BJ221: Middle | BK221: Rich | BL221: Richest | BM221: Poorest | BN221: Poor | BO221: Middle | BP221: Rich | BQ221: Richest | BR221: Ashanti | BS221: Brong Ahafo | BT221: Central | BU221: Eastern | BV221: Greater Accra | BW221: Northern | BX221: Upper East | BY221: Upper West | BZ221: Volta | CA221: Western
A222: Hygiene ladder | B222: Basic | C222: N/A | D222: N/A | E222: N/A | F222: N/A | G222: N/A | H222: N/A | I222: N/A | J222: N/A | K222: N/A | L222: N/A | M222: N/A | N222: N/A | O222: N/A | P222: N/A | Q222: N/A | R222: N/A | S222: N/A | T222: N/A | U222: N/A | V222: N/A | W222: N/A | X222: N/A | Y222: N/A | Z222: N/A | AA222: N/A | BA222: Hygiene ladder | BB222: Basic | BC222: N/A | BD222: N/A | BE222: N/A | BF222: N/A | BG222: N/A | BH222: N/A | BI222: N/A | BJ222: N/A | BK222: N/A | BL222: N/A | BM222: N/A | BN222: N/A | BO222: N/A | BP222: N/A | BQ222: N/A | BR222: N/A | BS222: N/A | BT222: N/A | BU222: N/A | BV222: N/A | BW222: N/A | BX222: N/A | BY222: N/A | BZ222: N/A | CA222: N/A
B223: Limited | C223: N/A | D223: N/A | E223: N/A | F223: N/A | G223: N/A | H223: N/A | I223: N/A | J223: N/A | K223: N/A | L223: N/A | M223: N/A | N223: N/A | O223: N/A | P223: N/A | Q223: N/A | R223: N/A | S223: N/A | T223: N/A | U223: N/A | V223: N/A | W223: N/A | X223: N/A | Y223: N/A | Z223: N/A | AA223: N/A | BB223: Limited | BC223: N/A | BD223: N/A | BE223: N/A | BF223: N/A | BG223: N/A | BH223: N/A | BI223: N/A | BJ223: N/A | BK223: N/A | BL223: N/A | BM223: N/A | BN223: N/A | BO223: N/A | BP223: N/A | BQ223: N/A | BR223: N/A | BS223: N/A | BT223: N/A | BU223: N/A | BV223: N/A | BW223: N/A | BX223: N/A | BY223: N/A | BZ223: N/A | CA223: N/A
B224: No facility | C224: N/A | D224: N/A | E224: N/A | F224: N/A | G224: N/A | H224: N/A | I224: N/A | J224: N/A | K224: N/A | L224: N/A | M224: N/A | N224: N/A | O224: N/A | P224: N/A | Q224: N/A | R224: N/A | S224: N/A | T224: N/A | U224: N/A | V224: N/A | W224: N/A | X224: N/A | Y224: N/A | Z224: N/A | AA224: N/A | BB224: No facility | BC224: N/A | BD224: N/A | BE224: N/A | BF224: N/A | BG224: N/A | BH224: N/A | BI224: N/A | BJ224: N/A | BK224: N/A | BL224: N/A | BM224: N/A | BN224: N/A | BO224: N/A | BP224: N/A | BQ224: N/A | BR224: N/A | BS224: N/A | BT224: N/A | BU224: N/A | BV224: N/A | BW224: N/A | BX224: N/A | BY224: N/A | BZ224: N/A | CA224: N/A
BA225: Observed handwashing place | BB225: Fixed | BC225: N/A | BD225: N/A | BE225: N/A | BF225: N/A | BG225: N/A | BH225: N/A | BI225: N/A | BJ225: N/A | BK225: N/A | BL225: N/A | BM225: N/A | BN225: N/A | BO225: N/A | BP225: N/A | BQ225: N/A | BR225: N/A | BS225: N/A | BT225: N/A | BU225: N/A | BV225: N/A | BW225: N/A | BX225: N/A | BY225: N/A | BZ225: N/A | CA225: N/A
BB226: Mobile | BC226: N/A | BD226: N/A | BE226: N/A | BF226: N/A | BG226: N/A | BH226: N/A | BI226: N/A | BJ226: N/A | BK226: N/A | BL226: N/A | BM226: N/A | BN226: N/A | BO226: N/A | BP226: N/A | BQ226: N/A | BR226: N/A | BS226: N/A | BT226: N/A | BU226: N/A | BV226: N/A | BW226: N/A | BX226: N/A | BY226: N/A | BZ226: N/A | CA226: N/A
BA227: Water / Soap | BB227: Water and soap | BC227: N/A | BD227: N/A | BE227: N/A | BF227: N/A | BG227: N/A | BH227: N/A | BI227: N/A | BJ227: N/A | BK227: N/A | BL227: N/A | BM227: N/A | BN227: N/A | BO227: N/A | BP227: N/A | BQ227: N/A | BR227: N/A | BS227: N/A | BT227: N/A | BU227: N/A | BV227: N/A | BW227: N/A | BX227: N/A | BY227: N/A | BZ227: N/A | CA227: N/A
BB228: Water only | BC228: N/A | BD228: N/A | BE228: N/A | BF228: N/A | BG228: N/A | BH228: N/A | BI228: N/A | BJ228: N/A | BK228: N/A | BL228: N/A | BM228: N/A | BN228: N/A | BO228: N/A | BP228: N/A | BQ228: N/A | BR228: N/A | BS228: N/A | BT228: N/A | BU228: N/A | BV228: N/A | BW228: N/A | BX228: N/A | BY228: N/A | BZ228: N/A | CA228: N/A
BB229: Soap only | BC229: N/A | BD229: N/A | BE229: N/A | BF229: N/A | BG229: N/A | BH229: N/A | BI229: N/A | BJ229: N/A | BK229: N/A | BL229: N/A | BM229: N/A | BN229: N/A | BO229: N/A | BP229: N/A | BQ229: N/A | BR229: N/A | BS229: N/A | BT229: N/A | BU229: N/A | BV229: N/A | BW229: N/A | BX229: N/A | BY229: N/A | BZ229: N/A | CA229: N/A
BB230: Neither | BC230: N/A | BD230: N/A | BE230: N/A | BF230: N/A | BG230: N/A | BH230: N/A | BI230: N/A | BJ230: N/A | BK230: N/A | BL230: N/A | BM230: N/A | BN230: N/A | BO230: N/A | BP230: N/A | BQ230: N/A | BR230: N/A | BS230: N/A | BT230: N/A | BU230: N/A | BV230: N/A | BW230: N/A | BX230: N/A | BY230: N/A | BZ230: N/A | CA230: N/A
BA259: Raw numbers of respondents: | BB259: Menstrual health and hygiene | BC259: NATIONAL wealth index quintile | BH259: URBAN wealth index quintile | BM259: RURAL wealth index quintile | BR259: SUB-REGIONS:
BA260: MHH data, raw numbers (weighted) | BC260: Poorest | BD260: Poor | BE260: Middle | BF260: Rich | BG260: Richest | BH260: Poorest | BI260: Poor | BJ260: Middle | BK260: Rich | BL260: Richest | BM260: Poorest | BN260: Poor | BO260: Middle | BP260: Rich | BQ260: Richest | BR260: Ashanti | BS260: Brong Ahafo | BT260: Central | BU260: Eastern | BV260: Greater Accra | BW260: Northern | BX260: Upper East | BY260: Upper West | BZ260: Volta | CA260: Western
BA261: Private place to wash and change | BB261: Yes | BC261: N/A | BD261: N/A | BE261: N/A | BF261: N/A | BG261: N/A | BH261: N/A | BI261: N/A | BJ261: N/A | BK261: N/A | BL261: N/A | BM261: N/A | BN261: N/A | BO261: N/A | BP261: N/A | BQ261: N/A | BR261: N/A | BS261: N/A | BT261: N/A | BU261: N/A | BV261: N/A | BW261: N/A | BX261: N/A | BY261: N/A | BZ261: N/A | CA261: N/A
BB262: No | BC262: N/A | BD262: N/A | BE262: N/A | BF262: N/A | BG262: N/A | BH262: N/A | BI262: N/A | BJ262: N/A | BK262: N/A | BL262: N/A | BM262: N/A | BN262: N/A | BO262: N/A | BP262: N/A | BQ262: N/A | BR262: N/A | BS262: N/A | BT262: N/A | BU262: N/A | BV262: N/A | BW262: N/A | BX262: N/A | BY262: N/A | BZ262: N/A | CA262: N/A
BB263: DK/not sure/missing | BC263: N/A | BD263: N/A | BE263: N/A | BF263: N/A | BG263: N/A | BH263: N/A | BI263: N/A | BJ263: N/A | BK263: N/A | BL263: N/A | BM263: N/A | BN263: N/A | BO263: N/A | BP263: N/A | BQ263: N/A | BR263: N/A | BS263: N/A | BT263: N/A | BU263: N/A | BV263: N/A | BW263: N/A | BX263: N/A | BY263: N/A | BZ263: N/A | CA263: N/A
BA264: Use of menstrual materials | BB264: Materials reusable | BC264: N/A | BD264: N/A | BE264: N/A | BF264: N/A | BG264: N/A | BH264: N/A | BI264: N/A | BJ264: N/A | BK264: N/A | BL264: N/A | BM264: N/A | BN264: N/A | BO264: N/A | BP264: N/A | BQ264: N/A | BR264: N/A | BS264: N/A | BT264: N/A | BU264: N/A | BV264: N/A | BW264: N/A | BX264: N/A | BY264: N/A | BZ264: N/A | CA264: N/A
BB265: Materials not reusable | BC265: N/A | BD265: N/A | BE265: N/A | BF265: N/A | BG265: N/A | BH265: N/A | BI265: N/A | BJ265: N/A | BK265: N/A | BL265: N/A | BM265: N/A | BN265: N/A | BO265: N/A | BP265: N/A | BQ265: N/A | BR265: N/A | BS265: N/A | BT265: N/A | BU265: N/A | BV265: N/A | BW265: N/A | BX265: N/A | BY265: N/A | BZ265: N/A | CA265: N/A
BB266: No materials used | BC266: N/A | BD266: N/A | BE266: N/A | BF266: N/A | BG266: N/A | BH266: N/A | BI266: N/A | BJ266: N/A | BK266: N/A | BL266: N/A | BM266: N/A | BN266: N/A | BO266: N/A | BP266: N/A | BQ266: N/A | BR266: N/A | BS266: N/A | BT266: N/A | BU266: N/A | BV266: N/A | BW266: N/A | BX266: N/A | BY266: N/A | BZ266: N/A | CA266: N/A
BB267: DK/not sure/missing | BC267: N/A | BD267: N/A | BE267: N/A | BF267: N/A | BG267: N/A | BH267: N/A | BI267: N/A | BJ267: N/A | BK267: N/A | BL267: N/A | BM267: N/A | BN267: N/A | BO267: N/A | BP267: N/A | BQ267: N/A | BR267: N/A | BS267: N/A | BT267: N/A | BU267: N/A | BV267: N/A | BW267: N/A | BX267: N/A | BY267: N/A | BZ267: N/A | CA267: N/A
BA268: Use of menstrual materials with private place to wash and change | BB268: Materials reusable | BC268: N/A | BD268: N/A | BE268: N/A | BF268: N/A | BG268: N/A | BH268: N/A | BI268: N/A | BJ268: N/A | BK268: N/A | BL268: N/A | BM268: N/A | BN268: N/A | BO268: N/A | BP268: N/A | BQ268: N/A | BR268: N/A | BS268: N/A | BT268: N/A | BU268: N/A | BV268: N/A | BW268: N/A | BX268: N/A | BY268: N/A | BZ268: N/A | CA268: N/A
BB269: Materials not reusable | BC269: N/A | BD269: N/A | BE269: N/A | BF269: N/A | BG269: N/A | BH269: N/A | BI269: N/A | BJ269: N/A | BK269: N/A | BL269: N/A | BM269: N/A | BN269: N/A | BO269: N/A | BP269: N/A | BQ269: N/A | BR269: N/A | BS269: N/A | BT269: N/A | BU269: N/A | BV269: N/A | BW269: N/A | BX269: N/A | BY269: N/A | BZ269: N/A | CA269: N/A
BB270: No materials used | BC270: N/A | BD270: N/A | BE270: N/A | BF270: N/A | BG270: N/A | BH270: N/A | BI270: N/A | BJ270: N/A | BK270: N/A | BL270: N/A | BM270: N/A | BN270: N/A | BO270: N/A | BP270: N/A | BQ270: N/A | BR270: N/A | BS270: N/A | BT270: N/A | BU270: N/A | BV270: N/A | BW270: N/A | BX270: N/A | BY270: N/A | BZ270: N/A | CA270: N/A
BA271: Awareness of menstruation before menarche | BB271: Yes | BC271: N/A | BD271: N/A | BE271: N/A | BF271: N/A | BG271: N/A | BH271: N/A | BI271: N/A | BJ271: N/A | BK271: N/A | BL271: N/A | BM271: N/A | BN271: N/A | BO271: N/A | BP271: N/A | BQ271: N/A | BR271: N/A | BS271: N/A | BT271: N/A | BU271: N/A | BV271: N/A | BW271: N/A | BX271: N/A | BY271: N/A | BZ271: N/A | CA271: N/A
BB272: No | BC272: N/A | BD272: N/A | BE272: N/A | BF272: N/A | BG272: N/A | BH272: N/A | BI272: N/A | BJ272: N/A | BK272: N/A | BL272: N/A | BM272: N/A | BN272: N/A | BO272: N/A | BP272: N/A | BQ272: N/A | BR272: N/A | BS272: N/A | BT272: N/A | BU272: N/A | BV272: N/A | BW272: N/A | BX272: N/A | BY272: N/A | BZ272: N/A | CA272: N/A
BB273: DK/not sure/missing | BC273: N/A | BD273: N/A | BE273: N/A | BF273: N/A | BG273: N/A | BH273: N/A | BI273: N/A | BJ273: N/A | BK273: N/A | BL273: N/A | BM273: N/A | BN273: N/A | BO273: N/A | BP273: N/A | BQ273: N/A | BR273: N/A | BS273: N/A | BT273: N/A | BU273: N/A | BV273: N/A | BW273: N/A | BX273: N/A | BY273: N/A | BZ273: N/A | CA273: N/A
BA274: Participation in (all) activities during menstruation | BB274: Yes | BC274: N/A | BD274: N/A | BE274: N/A | BF274: N/A | BG274: N/A | BH274: N/A | BI274: N/A | BJ274: N/A | BK274: N/A | BL274: N/A | BM274: N/A | BN274: N/A | BO274: N/A | BP274: N/A | BQ274: N/A | BR274: N/A | BS274: N/A | BT274: N/A | BU274: N/A | BV274: N/A | BW274: N/A | BX274: N/A | BY274: N/A | BZ274: N/A | CA274: N/A
BB275: No | BC275: N/A | BD275: N/A | BE275: N/A | BF275: N/A | BG275: N/A | BH275: N/A | BI275: N/A | BJ275: N/A | BK275: N/A | BL275: N/A | BM275: N/A | BN275: N/A | BO275: N/A | BP275: N/A | BQ275: N/A | BR275: N/A | BS275: N/A | BT275: N/A | BU275: N/A | BV275: N/A | BW275: N/A | BX275: N/A | BY275: N/A | BZ275: N/A | CA275: N/A
BB276: DK/not sure/missing/no such activity | BC276: N/A | BD276: N/A | BE276: N/A | BF276: N/A | BG276: N/A | BH276: N/A | BI276: N/A | BJ276: N/A | BK276: N/A | BL276: N/A | BM276: N/A | BN276: N/A | BO276: N/A | BP276: N/A | BQ276: N/A | BR276: N/A | BS276: N/A | BT276: N/A | BU276: N/A | BV276: N/A | BW276: N/A | BX276: N/A | BY276: N/A | BZ276: N/A | CA276: N/A
BA277: Participation in specific activities during menstruation | BB277: Did not go to school (amongst those usually attending school) | BC277: N/A | BD277: N/A | BE277: N/A | BF277: N/A | BG277: N/A | BH277: N/A | BI277: N/A | BJ277: N/A | BK277: N/A | BL277: N/A | BM277: N/A | BN277: N/A | BO277: N/A | BP277: N/A | BQ277: N/A | BR277: N/A | BS277: N/A | BT277: N/A | BU277: N/A | BV277: N/A | BW277: N/A | BX277: N/A | BY277: N/A | BZ277: N/A | CA277: N/A
BB278: Did not go to work (amongst those who usually work) | BC278: N/A | BD278: N/A | BE278: N/A | BF278: N/A | BG278: N/A | BH278: N/A | BI278: N/A | BJ278: N/A | BK278: N/A | BL278: N/A | BM278: N/A | BN278: N/A | BO278: N/A | BP278: N/A | BQ278: N/A | BR278: N/A | BS278: N/A | BT278: N/A | BU278: N/A | BV278: N/A | BW278: N/A | BX278: N/A | BY278: N/A | BZ278: N/A | CA278: N/A
BB279: Did not participate in social activities | BC279: N/A | BD279: N/A | BE279: N/A | BF279: N/A | BG279: N/A | BH279: N/A | BI279: N/A | BJ279: N/A | BK279: N/A | BL279: N/A | BM279: N/A | BN279: N/A | BO279: N/A | BP279: N/A | BQ279: N/A | BR279: N/A | BS279: N/A | BT279: N/A | BU279: N/A | BV279: N/A | BW279: N/A | BX279: N/A | BY279: N/A | BZ279: N/A | CA279: N/A
BB280: Did not cook food | BC280: N/A | BD280: N/A | BE280: N/A | BF280: N/A | BG280: N/A | BH280: N/A | BI280: N/A | BJ280: N/A | BK280: N/A | BL280: N/A | BM280: N/A | BN280: N/A | BO280: N/A | BP280: N/A | BQ280: N/A | BR280: N/A | BS280: N/A | BT280: N/A | BU280: N/A | BV280: N/A | BW280: N/A | BX280: N/A | BY280: N/A | BZ280: N/A | CA280: N/A
BB281: Did not eat with others | BC281: N/A | BD281: N/A | BE281: N/A | BF281: N/A | BG281: N/A | BH281: N/A | BI281: N/A | BJ281: N/A | BK281: N/A | BL281: N/A | BM281: N/A | BN281: N/A | BO281: N/A | BP281: N/A | BQ281: N/A | BR281: N/A | BS281: N/A | BT281: N/A | BU281: N/A | BV281: N/A | BW281: N/A | BX281: N/A | BY281: N/A | BZ281: N/A | CA281: N/A
BB282: Did not bathe in regular place | BC282: N/A | BD282: N/A | BE282: N/A | BF282: N/A | BG282: N/A | BH282: N/A | BI282: N/A | BJ282: N/A | BK282: N/A | BL282: N/A | BM282: N/A | BN282: N/A | BO282: N/A | BP282: N/A | BQ282: N/A | BR282: N/A | BS282: N/A | BT282: N/A | BU282: N/A | BV282: N/A | BW282: N/A | BX282: N/A | BY282: N/A | BZ282: N/A | CA282: N/A
BB283: Did not participate in other activities | BC283: N/A | BD283: N/A | BE283: N/A | BF283: N/A | BG283: N/A | BH283: N/A | BI283: N/A | BJ283: N/A | BK283: N/A | BL283: N/A | BM283: N/A | BN283: N/A | BO283: N/A | BP283: N/A | BQ283: N/A | BR283: N/A | BS283: N/A | BT283: N/A | BU283: N/A | BV283: N/A | BW283: N/A | BX283: N/A | BY283: N/A | BZ283: N/A | CA283: N/A
BB284: DK/not sure/missing/no such activity | BC284: N/A | BD284: N/A | BE284: N/A | BF284: N/A | BG284: N/A | BH284: N/A | BI284: N/A | BJ284: N/A | BK284: N/A | BL284: N/A | BM284: N/A | BN284: N/A | BO284: N/A | BP284: N/A | BQ284: N/A | BR284: N/A | BS284: N/A | BT284: N/A | BU284: N/A | BV284: N/A | BW284: N/A | BX284: N/A | BY284: N/A | BZ284: N/A | CA284: N/A
BA339: Raw numbers of respondents: | BB339: Basic water, sanitation and hygiene | BC339: NATIONAL wealth index quintile | BH339: URBAN wealth index quintile | BM339: RURAL wealth index quintile | BR339: SUB-REGIONS:
BA340: WatSan data, raw numbers (weighted) | BC340: Poorest | BD340: Poor | BE340: Middle | BF340: Rich | BG340: Richest | BH340: Poorest | BI340: Poor | BJ340: Middle | BK340: Rich | BL340: Richest | BM340: Poorest | BN340: Poor | BO340: Middle | BP340: Rich | BQ340: Richest | BR340: Ashanti | BS340: Brong Ahafo | BT340: Central | BU340: Eastern | BV340: Greater Accra | BW340: Northern | BX340: Upper East | BY340: Upper West | BZ340: Volta | CA340: Western
BA341: Use of Basic Water Sanitation and Hygiene | BB341: Yes | BC341: N/A | BD341: N/A | BE341: N/A | BF341: N/A | BG341: N/A | BH341: N/A | BI341: N/A | BJ341: N/A | BK341: N/A | BL341: N/A | BM341: N/A | BN341: N/A | BO341: N/A | BP341: N/A | BQ341: N/A | BR341: N/A | BS341: N/A | BT341: N/A | BU341: N/A | BV341: N/A | BW341: N/A | BX341: N/A | BY341: N/A | BZ341: N/A | CA341: N/A
BB342: No | BC342: N/A | BD342: N/A | BE342: N/A | BF342: N/A | BG342: N/A | BH342: N/A | BI342: N/A | BJ342: N/A | BK342: N/A | BL342: N/A | BM342: N/A | BN342: N/A | BO342: N/A | BP342: N/A | BQ342: N/A | BR342: N/A | BS342: N/A | BT342: N/A | BU342: N/A | BV342: N/A | BW342: N/A | BX342: N/A | BY342: N/A | BZ342: N/A | CA342: N/A
BA343: Use of Basic Water and Sanitation | BB343: Yes | BC343: N/A | BD343: N/A | BE343: N/A | BF343: N/A | BG343: N/A | BH343: N/A | BI343: N/A | BJ343: N/A | BK343: N/A | BL343: N/A | BM343: N/A | BN343: N/A | BO343: N/A | BP343: N/A | BQ343: N/A | BR343: N/A | BS343: N/A | BT343: N/A | BU343: N/A | BV343: N/A | BW343: N/A | BX343: N/A | BY343: N/A | BZ343: N/A | CA343: N/A
BB344: No | BC344: N/A | BD344: N/A | BE344: N/A | BF344: N/A | BG344: N/A | BH344: N/A | BI344: N/A | BJ344: N/A | BK344: N/A | BL344: N/A | BM344: N/A | BN344: N/A | BO344: N/A | BP344: N/A | BQ344: N/A | BR344: N/A | BS344: N/A | BT344: N/A | BU344: N/A | BV344: N/A | BW344: N/A | BX344: N/A | BY344: N/A | BZ344: N/A | CA344: N/A
BA345: Use of Basic Water and Hygiene | BB345: Yes | BC345: N/A | BD345: N/A | BE345: N/A | BF345: N/A | BG345: N/A | BH345: N/A | BI345: N/A | BJ345: N/A | BK345: N/A | BL345: N/A | BM345: N/A | BN345: N/A | BO345: N/A | BP345: N/A | BQ345: N/A | BR345: N/A | BS345: N/A | BT345: N/A | BU345: N/A | BV345: N/A | BW345: N/A | BX345: N/A | BY345: N/A | BZ345: N/A | CA345: N/A
BB346: No | BC346: N/A | BD346: N/A | BE346: N/A | BF346: N/A | BG346: N/A | BH346: N/A | BI346: N/A | BJ346: N/A | BK346: N/A | BL346: N/A | BM346: N/A | BN346: N/A | BO346: N/A | BP346: N/A | BQ346: N/A | BR346: N/A | BS346: N/A | BT346: N/A | BU346: N/A | BV346: N/A | BW346: N/A | BX346: N/A | BY346: N/A | BZ346: N/A | CA346: N/A
BA347: Use of Basic Sanitation and Hygiene | BB347: Yes | BC347: N/A | BD347: N/A | BE347: N/A | BF347: N/A | BG347: N/A | BH347: N/A | BI347: N/A | BJ347: N/A | BK347: N/A | BL347: N/A | BM347: N/A | BN347: N/A | BO347: N/A | BP347: N/A | BQ347: N/A | BR347: N/A | BS347: N/A | BT347: N/A | BU347: N/A | BV347: N/A | BW347: N/A | BX347: N/A | BY347: N/A | BZ347: N/A | CA347: N/A
BB348: No | BC348: N/A | BD348: N/A | BE348: N/A | BF348: N/A | BG348: N/A | BH348: N/A | BI348: N/A | BJ348: N/A | BK348: N/A | BL348: N/A | BM348: N/A | BN348: N/A | BO348: N/A | BP348: N/A | BQ348: N/A | BR348: N/A | BS348: N/A | BT348: N/A | BU348: N/A | BV348: N/A | BW348: N/A | BX348: N/A | BY348: N/A | BZ348: N/A | CA348: N/A
BA349: Use of Basic Water | BB349: Yes | BC349: N/A | BD349: N/A | BE349: N/A | BF349: N/A | BG349: N/A | BH349: N/A | BI349: N/A | BJ349: N/A | BK349: N/A | BL349: N/A | BM349: N/A | BN349: N/A | BO349: N/A | BP349: N/A | BQ349: N/A | BR349: N/A | BS349: N/A | BT349: N/A | BU349: N/A | BV349: N/A | BW349: N/A | BX349: N/A | BY349: N/A | BZ349: N/A | CA349: N/A
BB350: No | BC350: N/A | BD350: N/A | BE350: N/A | BF350: N/A | BG350: N/A | BH350: N/A | BI350: N/A | BJ350: N/A | BK350: N/A | BL350: N/A | BM350: N/A | BN350: N/A | BO350: N/A | BP350: N/A | BQ350: N/A | BR350: N/A | BS350: N/A | BT350: N/A | BU350: N/A | BV350: N/A | BW350: N/A | BX350: N/A | BY350: N/A | BZ350: N/A | CA350: N/A
BA351: Use of Basic Sanitation | BB351: Yes | BC351: N/A | BD351: N/A | BE351: N/A | BF351: N/A | BG351: N/A | BH351: N/A | BI351: N/A | BJ351: N/A | BK351: N/A | BL351: N/A | BM351: N/A | BN351: N/A | BO351: N/A | BP351: N/A | BQ351: N/A | BR351: N/A | BS351: N/A | BT351: N/A | BU351: N/A | BV351: N/A | BW351: N/A | BX351: N/A | BY351: N/A | BZ351: N/A | CA351: N/A
BB352: No | BC352: N/A | BD352: N/A | BE352: N/A | BF352: N/A | BG352: N/A | BH352: N/A | BI352: N/A | BJ352: N/A | BK352: N/A | BL352: N/A | BM352: N/A | BN352: N/A | BO352: N/A | BP352: N/A | BQ352: N/A | BR352: N/A | BS352: N/A | BT352: N/A | BU352: N/A | BV352: N/A | BW352: N/A | BX352: N/A | BY352: N/A | BZ352: N/A | CA352: N/A
BA353: Access to Basic Hygiene | BB353: Yes | BC353: N/A | BD353: N/A | BE353: N/A | BF353: N/A | BG353: N/A | BH353: N/A | BI353: N/A | BJ353: N/A | BK353: N/A | BL353: N/A | BM353: N/A | BN353: N/A | BO353: N/A | BP353: N/A | BQ353: N/A | BR353: N/A | BS353: N/A | BT353: N/A | BU353: N/A | BV353: N/A | BW353: N/A | BX353: N/A | BY353: N/A | BZ353: N/A | CA353: N/A
BB354: No | BC354: N/A | BD354: N/A | BE354: N/A | BF354: N/A | BG354: N/A | BH354: N/A | BI354: N/A | BJ354: N/A | BK354: N/A | BL354: N/A | BM354: N/A | BN354: N/A | BO354: N/A | BP354: N/A | BQ354: N/A | BR354: N/A | BS354: N/A | BT354: N/A | BU354: N/A | BV354: N/A | BW354: N/A | BX354: N/A | BY354: N/A | BZ354: N/A | CA354: N/A
C399: INITIAL (national) Wealth Index | H399: URBAN Wealth Index | M399: RURAL Wealth Index
C400: Component Matrix | H400: Component Matrix | M400: Component Matrix
E401: Component | J401: Component | O401: Component
